Workbook

Sheet User Guide (hidden)
A1: I. Next Analytics
A5: II. All Request
A7: 1- Go to All_requests tab, on "AC" column, click on a cell of the cross-tabulation from this column, look at the top of excel, click on "Analyze" --> and click on the arrow at the bottom of "Refresh" and click on "Refresh all"
A9: III. All Data
A11: 1- Go to All_data tab, you will just change the column "A", you will have to change the date of the column from the date you choose in Next Analytic
A13: IV. Historic
A15: 1- Go to All_data tab, select only the data (without the column name's) and copy it
A16: 2- Go to Historic tab, position the cursor at the correct location (according to the date of the data you copied : for example if you take 201708 as date data you will position the cursor between 201707 and 201709, in this case you can have to insert cells) and paste as value (right click with your mouse on the cell and select paste as value)
A18: V. Cross Tabulation
A20: 1- Go to Cross Tabulation tab, click on "A1" cell, look at the top of excel, click on "Analyze" --> and click on the arrow at the bottom of "Refresh" and click on "Refresh all"
A22: VI. Dashboard
A24: 1- Go to Dashboard tab, on the column "K" you will have to add the date of your new data, beware to add this date according to the other date already present.
A25: 2- After that, on the same tab, click on "B8" cell, look at the top of excel and select "Data", you will see "data validation" (in Data Tools, on the right side), click on it. Normaly you will have a new box that appear, in "settings", you will have "source" at the bottom, now click on it and select the data from column "K"

Sheet DashBoard
I1: Year | K1: Month
I2: 2017 | K2: Janv
I3: 2018 | K3: Févr
K4: Mars
K5: Avr
B6: =DATE(B7,MONTH(1&B8)-1,1) -> 43160 | K6: Mai
A7: Year | B7: 2018 | K7: Juin
A8: Month | B8: Avr | K8: Juil
A9: Country | K9: Août
A10: Custo | K10: Sept
I11: Oct
A12: =GETPIVOTDATA("Somme de Organic sessions",'Cross Tabulation'!$A$4,"Date",B8,"Years",B7) -> 997716 | I12: Nov
B13: Organic Visits | I13: Déc
A14: Last month | B14: ='Cross Tabulation'!I5 -> -0.1130112416
K19: Country
J20: 1 | K20: (All) | L20: =INDEX(K20:K46,J20,1) -> (All)
K21: FR
K22: DA
I23: NO
I24: SV
I25: BE
I26: LU
K27: NL
K28: FI
K29: CH
K30: IT
K31: EN | O31: Customer Type
K32: IR | L32: 1 | N32: =INDEX($O$32:$O$36,L32,1) -> (All) | O32: (All)
K33: AT | O33: SMB
K34: HU | O34: corporate
K35: CZ | O35: guest
K36: SK | O36: rep
K37: SP
K38: PT
K39: DE
K40: PL
K41: MY
K42: SG
K43: HK
K44: KR
K45: TH
K46: AU

Sheet All_data
G1: Sessions | H1: Sessions | I1: Sessions
A2: Date | B2: Date-Code | C2: Country | D2: Customer Type | E2: CODE | F2: Session | G2: Organic sessions | H2: Direct sessions | I2: others sessions
A3: =DATE(LEFT(B3,4),RIGHT(B3,2),1) -> 2018-04-01 | B3: 201804 | C3: AT | D3: SMB | E3: =CONCATENATE(B3,C3,D3) -> 201804ATSMB | F3: =IFERROR(VLOOKUP(E3,All_requests!$A$6:$D$739,2,0),0) -> 2892 | G3: =IFERROR(VLOOKUP(E3,All_requests!$AC$5:$AL$1108,2,0),0) -> 975 | H3: =IFERROR(VLOOKUP(E3,All_requests!$AC$5:$AL$1108,3,0),0) -> 1442 | I3: =IFERROR(VLOOKUP($E3,All_requests!$AC$5:$AL$1108,4,0),0) -> 475
A4: =DATE(LEFT(B4,4),RIGHT(B4,2),1) -> 2018-04-01 | B4: 201804 | C4: AT | D4: Corporate | E4: =CONCATENATE(B4,C4,D4) -> 201804ATCorporate | F4: =IFERROR(VLOOKUP(E4,All_requests!$A$6:$D$739,2,0),0) -> 1821 | G4: =IFERROR(VLOOKUP(E4,All_requests!$AC$5:$AL$1108,2,0),0) -> 560 | H4: =IFERROR(VLOOKUP(E4,All_requests!$AC$5:$AL$1108,3,0),0) -> 1003 | I4: =IFERROR(VLOOKUP($E4,All_requests!$AC$5:$AL$1108,4,0),0) -> 258
A5: 2018-04-01 | B5: 201804 | C5: AT | D5: Guest | E5: 201804ATGuest | F5: =IFERROR(VLOOKUP(E5,All_requests!$A$6:$D$739,2,0),0) -> 2377 | G5: =IFERROR(VLOOKUP(E5,All_requests!$AC$5:$AL$1108,2,0),0) -> 1635 | H5: =IFERROR(VLOOKUP(E5,All_requests!$AC$5:$AL$1108,3,0),0) -> 632 | I5: =IFERROR(VLOOKUP($E5,All_requests!$AC$5:$AL$1108,4,0),0) -> 108
A6: 2018-04-01 | B6: 201804 | C6: AT | D6: Rep | E6: 201804ATRep | F6: =IFERROR(VLOOKUP(E6,All_requests!$A$6:$D$739,2,0),0) -> 943 | G6: =IFERROR(VLOOKUP(E6,All_requests!$AC$5:$AL$1108,2,0),0) -> 669 | H6: =IFERROR(VLOOKUP(E6,All_requests!$AC$5:$AL$1108,3,0),0) -> 274 | I6: =IFERROR(VLOOKUP($E6,All_requests!$AC$5:$AL$1108,4,0),0) -> 0
A7: 2018-04-01 | B7: 201804 | C7: AU | D7: SMB | E7: 201804AUSMB | F7: =IFERROR(VLOOKUP(E7,All_requests!$A$6:$D$739,2,0),0) -> 8974 | G7: =IFERROR(VLOOKUP(E7,All_requests!$AC$5:$AL$1108,2,0),0) -> 4084 | H7: =IFERROR(VLOOKUP(E7,All_requests!$AC$5:$AL$1108,3,0),0) -> 4403 | I7: =IFERROR(VLOOKUP($E7,All_requests!$AC$5:$AL$1108,4,0),0) -> 488
A8: 2018-04-01 | B8: 201804 | C8: AU | D8: Corporate | E8: 201804AUCorporate | F8: =IFERROR(VLOOKUP(E8,All_requests!$A$6:$D$739,2,0),0) -> 29042 | G8: =IFERROR(VLOOKUP(E8,All_requests!$AC$5:$AL$1108,2,0),0) -> 9079 | H8: =IFERROR(VLOOKUP(E8,All_requests!$AC$5:$AL$1108,3,0),0) -> 17377 | I8: =IFERROR(VLOOKUP($E8,All_requests!$AC$5:$AL$1108,4,0),0) -> 2586
A9: 2018-04-01 | B9: 201804 | C9: AU | D9: Guest | E9: 201804AUGuest | F9: =IFERROR(VLOOKUP(E9,All_requests!$A$6:$D$739,2,0),0) -> 11158 | G9: =IFERROR(VLOOKUP(E9,All_requests!$AC$5:$AL$1108,2,0),0) -> 6175 | H9: =IFERROR(VLOOKUP(E9,All_requests!$AC$5:$AL$1108,3,0),0) -> 4048 | I9: =IFERROR(VLOOKUP($E9,All_requests!$AC$5:$AL$1108,4,0),0) -> 934
A10: 2018-04-01 | B10: 201804 | C10: AU | D10: Rep | E10: 201804AURep | F10: =IFERROR(VLOOKUP(E10,All_requests!$A$6:$D$739,2,0),0) -> 1132 | G10: =IFERROR(VLOOKUP(E10,All_requests!$AC$5:$AL$1108,2,0),0) -> 338 | H10: =IFERROR(VLOOKUP(E10,All_requests!$AC$5:$AL$1108,3,0),0) -> 628 | I10: =IFERROR(VLOOKUP($E10,All_requests!$AC$5:$AL$1108,4,0),0) -> 165
A11: 2018-04-01 | B11: 201804 | C11: BE | D11: SMB | E11: 201804BESMB | F11: =IFERROR(VLOOKUP(E11,All_requests!$A$6:$D$739,2,0),0) -> 24954 | G11: =IFERROR(VLOOKUP(E11,All_requests!$AC$5:$AL$1108,2,0),0) -> 13840 | H11: =IFERROR(VLOOKUP(E11,All_requests!$AC$5:$AL$1108,3,0),0) -> 8898 | I11: =IFERROR(VLOOKUP($E11,All_requests!$AC$5:$AL$1108,4,0),0) -> 2215
A12: 2018-04-01 | B12: 201804 | C12: BE | D12: Corporate | E12: 201804BECorporate | F12: =IFERROR(VLOOKUP(E12,All_requests!$A$6:$D$739,2,0),0) -> 42911 | G12: =IFERROR(VLOOKUP(E12,All_requests!$AC$5:$AL$1108,2,0),0) -> 19681 | H12: =IFERROR(VLOOKUP(E12,All_requests!$AC$5:$AL$1108,3,0),0) -> 19177 | I12: =IFERROR(VLOOKUP($E12,All_requests!$AC$5:$AL$1108,4,0),0) -> 4052
A13: 2018-04-01 | B13: 201804 | C13: BE | D13: Guest | E13: 201804BEGuest | F13: =IFERROR(VLOOKUP(E13,All_requests!$A$6:$D$739,2,0),0) -> 22235 | G13: =IFERROR(VLOOKUP(E13,All_requests!$AC$5:$AL$1108,2,0),0) -> 16011 | H13: =IFERROR(VLOOKUP(E13,All_requests!$AC$5:$AL$1108,3,0),0) -> 5200 | I13: =IFERROR(VLOOKUP($E13,All_requests!$AC$5:$AL$1108,4,0),0) -> 1022
A14: 2018-04-01 | B14: 201804 | C14: BE | D14: Rep | E14: 201804BERep | F14: =IFERROR(VLOOKUP(E14,All_requests!$A$6:$D$739,2,0),0) -> 435 | G14: =IFERROR(VLOOKUP(E14,All_requests!$AC$5:$AL$1108,2,0),0) -> 222 | H14: =IFERROR(VLOOKUP(E14,All_requests!$AC$5:$AL$1108,3,0),0) -> 149 | I14: =IFERROR(VLOOKUP($E14,All_requests!$AC$5:$AL$1108,4,0),0) -> 64
A15: 2018-04-01 | B15: 201804 | C15: CH | D15: SMB | E15: 201804CHSMB | F15: =IFERROR(VLOOKUP(E15,All_requests!$A$6:$D$739,2,0),0) -> 45758 | G15: =IFERROR(VLOOKUP(E15,All_requests!$AC$5:$AL$1108,2,0),0) -> 22154 | H15: =IFERROR(VLOOKUP(E15,All_requests!$AC$5:$AL$1108,3,0),0) -> 21377 | I15: =IFERROR(VLOOKUP($E15,All_requests!$AC$5:$AL$1108,4,0),0) -> 2227
A16: 2018-04-01 | B16: 201804 | C16: CH | D16: Corporate | E16: 201804CHCorporate | F16: =IFERROR(VLOOKUP(E16,All_requests!$A$6:$D$739,2,0),0) -> 43358 | G16: =IFERROR(VLOOKUP(E16,All_requests!$AC$5:$AL$1108,2,0),0) -> 14110 | H16: =IFERROR(VLOOKUP(E16,All_requests!$AC$5:$AL$1108,3,0),0) -> 23653 | I16: =IFERROR(VLOOKUP($E16,All_requests!$AC$5:$AL$1108,4,0),0) -> 5595
A17: 2018-04-01 | B17: 201804 | C17: CH | D17: Guest | E17: 201804CHGuest | F17: =IFERROR(VLOOKUP(E17,All_requests!$A$6:$D$739,2,0),0) -> 34875 | G17: =IFERROR(VLOOKUP(E17,All_requests!$AC$5:$AL$1108,2,0),0) -> 21864 | H17: =IFERROR(VLOOKUP(E17,All_requests!$AC$5:$AL$1108,3,0),0) -> 11750 | I17: =IFERROR(VLOOKUP($E17,All_requests!$AC$5:$AL$1108,4,0),0) -> 1261
A18: 2018-04-01 | B18: 201804 | C18: CH | D18: Rep | E18: 201804CHRep | F18: =IFERROR(VLOOKUP(E18,All_requests!$A$6:$D$739,2,0),0) -> 367 | G18: =IFERROR(VLOOKUP(E18,All_requests!$AC$5:$AL$1108,2,0),0) -> 258 | H18: =IFERROR(VLOOKUP(E18,All_requests!$AC$5:$AL$1108,3,0),0) -> 109 | I18: =IFERROR(VLOOKUP($E18,All_requests!$AC$5:$AL$1108,4,0),0) -> 0
A19: 2018-04-01 | B19: 201804 | C19: CZ | D19: SMB | E19: 201804CZSMB | F19: =IFERROR(VLOOKUP(E19,All_requests!$A$6:$D$739,2,0),0) -> 6948 | G19: =IFERROR(VLOOKUP(E19,All_requests!$AC$5:$AL$1108,2,0),0) -> 2731 | H19: =IFERROR(VLOOKUP(E19,All_requests!$AC$5:$AL$1108,3,0),0) -> 3214 | I19: =IFERROR(VLOOKUP($E19,All_requests!$AC$5:$AL$1108,4,0),0) -> 1003
A20: 2018-04-01 | B20: 201804 | C20: CZ | D20: Corporate | E20: 201804CZCorporate | F20: =IFERROR(VLOOKUP(E20,All_requests!$A$6:$D$739,2,0),0) -> 5470 | G20: =IFERROR(VLOOKUP(E20,All_requests!$AC$5:$AL$1108,2,0),0) -> 1764 | H20: =IFERROR(VLOOKUP(E20,All_requests!$AC$5:$AL$1108,3,0),0) -> 3142 | I20: =IFERROR(VLOOKUP($E20,All_requests!$AC$5:$AL$1108,4,0),0) -> 564
A21: 2018-04-01 | B21: 201804 | C21: CZ | D21: Guest | E21: 201804CZGuest | F21: =IFERROR(VLOOKUP(E21,All_requests!$A$6:$D$739,2,0),0) -> 5345 | G21: =IFERROR(VLOOKUP(E21,All_requests!$AC$5:$AL$1108,2,0),0) -> 2598 | H21: =IFERROR(VLOOKUP(E21,All_requests!$AC$5:$AL$1108,3,0),0) -> 2248 | I21: =IFERROR(VLOOKUP($E21,All_requests!$AC$5:$AL$1108,4,0),0) -> 500
A22: 2018-04-01 | B22: 201804 | C22: CZ | D22: Rep | E22: 201804CZRep | F22: =IFERROR(VLOOKUP(E22,All_requests!$A$6:$D$739,2,0),0) -> 2904 | G22: =IFERROR(VLOOKUP(E22,All_requests!$AC$5:$AL$1108,2,0),0) -> 1656 | H22: =IFERROR(VLOOKUP(E22,All_requests!$AC$5:$AL$1108,3,0),0) -> 814 | I22: =IFERROR(VLOOKUP($E22,All_requests!$AC$5:$AL$1108,4,0),0) -> 435
A23: 2018-04-01 | B23: 201804 | C23: DA | D23: SMB | E23: 201804DASMB | F23: =IFERROR(VLOOKUP(E23,All_requests!$A$6:$D$739,2,0),0) -> 14646 | G23: =IFERROR(VLOOKUP(E23,All_requests!$AC$5:$AL$1108,2,0),0) -> 6409 | H23: =IFERROR(VLOOKUP(E23,All_requests!$AC$5:$AL$1108,3,0),0) -> 6723 | I23: =IFERROR(VLOOKUP($E23,All_requests!$AC$5:$AL$1108,4,0),0) -> 1514
A24: 2018-04-01 | B24: 201804 | C24: DA | D24: Corporate | E24: 201804DACorporate | F24: =IFERROR(VLOOKUP(E24,All_requests!$A$6:$D$739,2,0),0) -> 26657 | G24: =IFERROR(VLOOKUP(E24,All_requests!$AC$5:$AL$1108,2,0),0) -> 10453 | H24: =IFERROR(VLOOKUP(E24,All_requests!$AC$5:$AL$1108,3,0),0) -> 14009 | I24: =IFERROR(VLOOKUP($E24,All_requests!$AC$5:$AL$1108,4,0),0) -> 2175
A25: 2018-04-01 | B25: 201804 | C25: DA | D25: Guest | E25: 201804DAGuest | F25: =IFERROR(VLOOKUP(E25,All_requests!$A$6:$D$739,2,0),0) -> 22303 | G25: =IFERROR(VLOOKUP(E25,All_requests!$AC$5:$AL$1108,2,0),0) -> 15327 | H25: =IFERROR(VLOOKUP(E25,All_requests!$AC$5:$AL$1108,3,0),0) -> 5635 | I25: =IFERROR(VLOOKUP($E25,All_requests!$AC$5:$AL$1108,4,0),0) -> 829
A26: 2018-04-01 | B26: 201804 | C26: DA | D26: Rep | E26: 201804DARep | F26: =IFERROR(VLOOKUP(E26,All_requests!$A$6:$D$739,2,0),0) -> 1502 | G26: =IFERROR(VLOOKUP(E26,All_requests!$AC$5:$AL$1108,2,0),0) -> 781 | H26: =IFERROR(VLOOKUP(E26,All_requests!$AC$5:$AL$1108,3,0),0) -> 713 | I26: =IFERROR(VLOOKUP($E26,All_requests!$AC$5:$AL$1108,4,0),0) -> 8
A27: 2018-04-01 | B27: 201804 | C27: DE | D27: SMB | E27: 201804DESMB | F27: =IFERROR(VLOOKUP(E27,All_requests!$A$6:$D$739,2,0),0) -> 35503 | G27: =IFERROR(VLOOKUP(E27,All_requests!$AC$5:$AL$1108,2,0),0) -> 15625 | H27: =IFERROR(VLOOKUP(E27,All_requests!$AC$5:$AL$1108,3,0),0) -> 18299 | I27: =IFERROR(VLOOKUP($E27,All_requests!$AC$5:$AL$1108,4,0),0) -> 1579
A28: 2018-04-01 | B28: 201804 | C28: DE | D28: Corporate | E28: 201804DECorporate | F28: =IFERROR(VLOOKUP(E28,All_requests!$A$6:$D$739,2,0),0) -> 70490 | G28: =IFERROR(VLOOKUP(E28,All_requests!$AC$5:$AL$1108,2,0),0) -> 21723 | H28: =IFERROR(VLOOKUP(E28,All_requests!$AC$5:$AL$1108,3,0),0) -> 41771 | I28: =IFERROR(VLOOKUP($E28,All_requests!$AC$5:$AL$1108,4,0),0) -> 6996
A29: 2018-04-01 | B29: 201804 | C29: DE | D29: Guest | E29: 201804DEGuest | F29: =IFERROR(VLOOKUP(E29,All_requests!$A$6:$D$739,2,0),0) -> 45493 | G29: =IFERROR(VLOOKUP(E29,All_requests!$AC$5:$AL$1108,2,0),0) -> 27012 | H29: =IFERROR(VLOOKUP(E29,All_requests!$AC$5:$AL$1108,3,0),0) -> 16716 | I29: =IFERROR(VLOOKUP($E29,All_requests!$AC$5:$AL$1108,4,0),0) -> 1765
A30: 2018-04-01 | B30: 201804 | C30: DE | D30: Rep | E30: 201804DERep | F30: =IFERROR(VLOOKUP(E30,All_requests!$A$6:$D$739,2,0),0) -> 1913 | G30: =IFERROR(VLOOKUP(E30,All_requests!$AC$5:$AL$1108,2,0),0) -> 1148 | H30: =IFERROR(VLOOKUP(E30,All_requests!$AC$5:$AL$1108,3,0),0) -> 689 | I30: =IFERROR(VLOOKUP($E30,All_requests!$AC$5:$AL$1108,4,0),0) -> 77
A31: 2018-04-01 | B31: 201804 | C31: EN | D31: SMB | E31: 201804ENSMB | F31: =IFERROR(VLOOKUP(E31,All_requests!$A$6:$D$739,2,0),0) -> 88935 | G31: =IFERROR(VLOOKUP(E31,All_requests!$AC$5:$AL$1108,2,0),0) -> 43148 | H31: =IFERROR(VLOOKUP(E31,All_requests!$AC$5:$AL$1108,3,0),0) -> 41863 | I31: =IFERROR(VLOOKUP($E31,All_requests!$AC$5:$AL$1108,4,0),0) -> 3923
A32: 2018-04-01 | B32: 201804 | C32: EN | D32: Corporate | E32: 201804ENCorporate | F32: =IFERROR(VLOOKUP(E32,All_requests!$A$6:$D$739,2,0),0) -> 173096 | G32: =IFERROR(VLOOKUP(E32,All_requests!$AC$5:$AL$1108,2,0),0) -> 57005 | H32: =IFERROR(VLOOKUP(E32,All_requests!$AC$5:$AL$1108,3,0),0) -> 98812 | I32: =IFERROR(VLOOKUP($E32,All_requests!$AC$5:$AL$1108,4,0),0) -> 17279
A33: 2018-04-01 | B33: 201804 | C33: EN | D33: Guest | E33: 201804ENGuest | F33: =IFERROR(VLOOKUP(E33,All_requests!$A$6:$D$739,2,0),0) -> 67578 | G33: =IFERROR(VLOOKUP(E33,All_requests!$AC$5:$AL$1108,2,0),0) -> 42085 | H33: =IFERROR(VLOOKUP(E33,All_requests!$AC$5:$AL$1108,3,0),0) -> 22706 | I33: =IFERROR(VLOOKUP($E33,All_requests!$AC$5:$AL$1108,4,0),0) -> 2787
A34: 2018-04-01 | B34: 201804 | C34: EN | D34: Rep | E34: 201804ENRep | F34: =IFERROR(VLOOKUP(E34,All_requests!$A$6:$D$739,2,0),0) -> 6594 | G34: =IFERROR(VLOOKUP(E34,All_requests!$AC$5:$AL$1108,2,0),0) -> 2731 | H34: =IFERROR(VLOOKUP(E34,All_requests!$AC$5:$AL$1108,3,0),0) -> 3444 | I34: =IFERROR(VLOOKUP($E34,All_requests!$AC$5:$AL$1108,4,0),0) -> 419
A35: 2018-04-01 | B35: 201804 | C35: FI | D35: SMB | E35: 201804FISMB | F35: =IFERROR(VLOOKUP(E35,All_requests!$A$6:$D$739,2,0),0) -> 7710 | G35: =IFERROR(VLOOKUP(E35,All_requests!$AC$5:$AL$1108,2,0),0) -> 3827 | H35: =IFERROR(VLOOKUP(E35,All_requests!$AC$5:$AL$1108,3,0),0) -> 3009 | I35: =IFERROR(VLOOKUP($E35,All_requests!$AC$5:$AL$1108,4,0),0) -> 874
A36: 2018-04-01 | B36: 201804 | C36: FI | D36: Corporate | E36: 201804FICorporate | F36: =IFERROR(VLOOKUP(E36,All_requests!$A$6:$D$739,2,0),0) -> 17051 | G36: =IFERROR(VLOOKUP(E36,All_requests!$AC$5:$AL$1108,2,0),0) -> 6582 | H36: =IFERROR(VLOOKUP(E36,All_requests!$AC$5:$AL$1108,3,0),0) -> 8431 | I36: =IFERROR(VLOOKUP($E36,All_requests!$AC$5:$AL$1108,4,0),0) -> 2038
A37: 2018-04-01 | B37: 201804 | C37: FI | D37: Guest | E37: 201804FIGuest | F37: =IFERROR(VLOOKUP(E37,All_requests!$A$6:$D$739,2,0),0) -> 11399 | G37: =IFERROR(VLOOKUP(E37,All_requests!$AC$5:$AL$1108,2,0),0) -> 8056 | H37: =IFERROR(VLOOKUP(E37,All_requests!$AC$5:$AL$1108,3,0),0) -> 2868 | I37: =IFERROR(VLOOKUP($E37,All_requests!$AC$5:$AL$1108,4,0),0) -> 475
A38: 2018-04-01 | B38: 201804 | C38: FI | D38: Rep | E38: 201804FIRep | F38: =IFERROR(VLOOKUP(E38,All_requests!$A$6:$D$739,2,0),0) -> 1317 | G38: =IFERROR(VLOOKUP(E38,All_requests!$AC$5:$AL$1108,2,0),0) -> 914 | H38: =IFERROR(VLOOKUP(E38,All_requests!$AC$5:$AL$1108,3,0),0) -> 395 | I38: =IFERROR(VLOOKUP($E38,All_requests!$AC$5:$AL$1108,4,0),0) -> 8
A39: 2018-04-01 | B39: 201804 | C39: FR | D39: SMB | E39: 201804FRSMB | F39: =IFERROR(VLOOKUP(E39,All_requests!$A$6:$D$739,2,0),0) -> 70003 | G39: =IFERROR(VLOOKUP(E39,All_requests!$AC$5:$AL$1108,2,0),0) -> 40272 | H39: =IFERROR(VLOOKUP(E39,All_requests!$AC$5:$AL$1108,3,0),0) -> 25389 | I39: =IFERROR(VLOOKUP($E39,All_requests!$AC$5:$AL$1108,4,0),0) -> 4342
A40: 2018-04-01 | B40: 201804 | C40: FR | D40: Corporate | E40: 201804FRCorporate | F40: =IFERROR(VLOOKUP(E40,All_requests!$A$6:$D$739,2,0),0) -> 206082 | G40: =IFERROR(VLOOKUP(E40,All_requests!$AC$5:$AL$1108,2,0),0) -> 93893 | H40: =IFERROR(VLOOKUP(E40,All_requests!$AC$5:$AL$1108,3,0),0) -> 91964 | I40: =IFERROR(VLOOKUP($E40,All_requests!$AC$5:$AL$1108,4,0),0) -> 20224
A41: 2018-04-01 | B41: 201804 | C41: FR | D41: Guest | E41: 201804FRGuest | F41: =IFERROR(VLOOKUP(E41,All_requests!$A$6:$D$739,2,0),0) -> 92548 | G41: =IFERROR(VLOOKUP(E41,All_requests!$AC$5:$AL$1108,2,0),0) -> 63502 | H41: =IFERROR(VLOOKUP(E41,All_requests!$AC$5:$AL$1108,3,0),0) -> 24229 | I41: =IFERROR(VLOOKUP($E41,All_requests!$AC$5:$AL$1108,4,0),0) -> 4818
A42: 2018-04-01 | B42: 201804 | C42: FR | D42: Rep | E42: 201804FRRep | F42: =IFERROR(VLOOKUP(E42,All_requests!$A$6:$D$739,2,0),0) -> 13595 | G42: =IFERROR(VLOOKUP(E42,All_requests!$AC$5:$AL$1108,2,0),0) -> 7170 | H42: =IFERROR(VLOOKUP(E42,All_requests!$AC$5:$AL$1108,3,0),0) -> 5643 | I42: =IFERROR(VLOOKUP($E42,All_requests!$AC$5:$AL$1108,4,0),0) -> 781
A43: 2018-04-01 | B43: 201804 | C43: HK | D43: SMB | E43: 201804HKSMB | F43: =IFERROR(VLOOKUP(E43,All_requests!$A$6:$D$739,2,0),0) -> 9107 | G43: =IFERROR(VLOOKUP(E43,All_requests!$AC$5:$AL$1108,2,0),0) -> 3927 | H43: =IFERROR(VLOOKUP(E43,All_requests!$AC$5:$AL$1108,3,0),0) -> 4660 | I43: =IFERROR(VLOOKUP($E43,All_requests!$AC$5:$AL$1108,4,0),0) -> 519
A44: 2018-04-01 | B44: 201804 | C44: HK | D44: Corporate | E44: 201804HKCorporate | F44: =IFERROR(VLOOKUP(E44,All_requests!$A$6:$D$739,2,0),0) -> 6525 | G44: =IFERROR(VLOOKUP(E44,All_requests!$AC$5:$AL$1108,2,0),0) -> 1688 | H44: =IFERROR(VLOOKUP(E44,All_requests!$AC$5:$AL$1108,3,0),0) -> 4342 | I44: =IFERROR(VLOOKUP($E44,All_requests!$AC$5:$AL$1108,4,0),0) -> 495
A45: 2018-04-01 | B45: 201804 | C45: HK | D45: Guest | E45: 201804HKGuest | F45: =IFERROR(VLOOKUP(E45,All_requests!$A$6:$D$739,2,0),0) -> 13200 | G45: =IFERROR(VLOOKUP(E45,All_requests!$AC$5:$AL$1108,2,0),0) -> 10288 | H45: =IFERROR(VLOOKUP(E45,All_requests!$AC$5:$AL$1108,3,0),0) -> 2469 | I45: =IFERROR(VLOOKUP($E45,All_requests!$AC$5:$AL$1108,4,0),0) -> 443
A46: 2018-04-01 | B46: 201804 | C46: HK | D46: Rep | E46: 201804HKRep | F46: =IFERROR(VLOOKUP(E46,All_requests!$A$6:$D$739,2,0),0) -> 1998 | G46: =IFERROR(VLOOKUP(E46,All_requests!$AC$5:$AL$1108,2,0),0) -> 749 | H46: =IFERROR(VLOOKUP(E46,All_requests!$AC$5:$AL$1108,3,0),0) -> 1245 | I46: =IFERROR(VLOOKUP($E46,All_requests!$AC$5:$AL$1108,4,0),0) -> 4
A47: 2018-04-01 | B47: 201804 | C47: HU | D47: SMB | E47: 201804HUSMB | F47: =IFERROR(VLOOKUP(E47,All_requests!$A$6:$D$739,2,0),0) -> 5313 | G47: =IFERROR(VLOOKUP(E47,All_requests!$AC$5:$AL$1108,2,0),0) -> 2441 | H47: =IFERROR(VLOOKUP(E47,All_requests!$AC$5:$AL$1108,3,0),0) -> 2175 | I47: =IFERROR(VLOOKUP($E47,All_requests!$AC$5:$AL$1108,4,0),0) -> 696
A48: 2018-04-01 | B48: 201804 | C48: HU | D48: Corporate | E48: 201804HUCorporate | F48: =IFERROR(VLOOKUP(E48,All_requests!$A$6:$D$739,2,0),0) -> 2159 | G48: =IFERROR(VLOOKUP(E48,All_requests!$AC$5:$AL$1108,2,0),0) -> 681 | H48: =IFERROR(VLOOKUP(E48,All_requests!$AC$5:$AL$1108,3,0),0) -> 1225 | I48: =IFERROR(VLOOKUP($E48,All_requests!$AC$5:$AL$1108,4,0),0) -> 253
A49: 2018-04-01 | B49: 201804 | C49: HU | D49: Guest | E49: 201804HUGuest | F49: =IFERROR(VLOOKUP(E49,All_requests!$A$6:$D$739,2,0),0) -> 6147 | G49: =IFERROR(VLOOKUP(E49,All_requests!$AC$5:$AL$1108,2,0),0) -> 3919 | H49: =IFERROR(VLOOKUP(E49,All_requests!$AC$5:$AL$1108,3,0),0) -> 2030 | I49: =IFERROR(VLOOKUP($E49,All_requests!$AC$5:$AL$1108,4,0),0) -> 197
A50: 2018-04-01 | B50: 201804 | C50: HU | D50: Rep | E50: 201804HURep | F50: =IFERROR(VLOOKUP(E50,All_requests!$A$6:$D$739,2,0),0) -> 1688 | G50: =IFERROR(VLOOKUP(E50,All_requests!$AC$5:$AL$1108,2,0),0) -> 451 | H50: =IFERROR(VLOOKUP(E50,All_requests!$AC$5:$AL$1108,3,0),0) -> 1075 | I50: =IFERROR(VLOOKUP($E50,All_requests!$AC$5:$AL$1108,4,0),0) -> 161
A51: 2018-04-01 | B51: 201804 | C51: IR | D51: SMB | E51: 201804IRSMB | F51: =IFERROR(VLOOKUP(E51,All_requests!$A$6:$D$739,2,0),0) -> 8535 | G51: =IFERROR(VLOOKUP(E51,All_requests!$AC$5:$AL$1108,2,0),0) -> 3738 | H51: =IFERROR(VLOOKUP(E51,All_requests!$AC$5:$AL$1108,3,0),0) -> 4556 | I51: =IFERROR(VLOOKUP($E51,All_requests!$AC$5:$AL$1108,4,0),0) -> 241
A52: 2018-04-01 | B52: 201804 | C52: IR | D52: Corporate | E52: 201804IRCorporate | F52: =IFERROR(VLOOKUP(E52,All_requests!$A$6:$D$739,2,0),0) -> 7017 | G52: =IFERROR(VLOOKUP(E52,All_requests!$AC$5:$AL$1108,2,0),0) -> 2232 | H52: =IFERROR(VLOOKUP(E52,All_requests!$AC$5:$AL$1108,3,0),0) -> 4475 | I52: =IFERROR(VLOOKUP($E52,All_requests!$AC$5:$AL$1108,4,0),0) -> 310
A53: 2018-04-01 | B53: 201804 | C53: IR | D53: Guest | E53: 201804IRGuest | F53: =IFERROR(VLOOKUP(E53,All_requests!$A$6:$D$739,2,0),0) -> 8483 | G53: =IFERROR(VLOOKUP(E53,All_requests!$AC$5:$AL$1108,2,0),0) -> 6457 | H53: =IFERROR(VLOOKUP(E53,All_requests!$AC$5:$AL$1108,3,0),0) -> 1861 | I53: =IFERROR(VLOOKUP($E53,All_requests!$AC$5:$AL$1108,4,0),0) -> 165
A54: 2018-04-01 | B54: 201804 | C54: IR | D54: Rep | E54: 201804IRRep | F54: =IFERROR(VLOOKUP(E54,All_requests!$A$6:$D$739,2,0),0) -> 4 | G54: =IFERROR(VLOOKUP(E54,All_requests!$AC$5:$AL$1108,2,0),0) -> 4 | H54: =IFERROR(VLOOKUP(E54,All_requests!$AC$5:$AL$1108,3,0),0) -> 0 | I54: =IFERROR(VLOOKUP($E54,All_requests!$AC$5:$AL$1108,4,0),0) -> 0
A55: 2018-04-01 | B55: 201804 | C55: IT | D55: SMB | E55: 201804ITSMB | F55: =IFERROR(VLOOKUP(E55,All_requests!$A$6:$D$739,2,0),0) -> 40965 | G55: =IFERROR(VLOOKUP(E55,All_requests!$AC$5:$AL$1108,2,0),0) -> 20426 | H55: =IFERROR(VLOOKUP(E55,All_requests!$AC$5:$AL$1108,3,0),0) -> 14163 | I55: =IFERROR(VLOOKUP($E55,All_requests!$AC$5:$AL$1108,4,0),0) -> 6377
A56: 2018-04-01 | B56: 201804 | C56: IT | D56: Corporate | E56: 201804ITCorporate | F56: =IFERROR(VLOOKUP(E56,All_requests!$A$6:$D$739,2,0),0) -> 31040 | G56: =IFERROR(VLOOKUP(E56,All_requests!$AC$5:$AL$1108,2,0),0) -> 11661 | H56: =IFERROR(VLOOKUP(E56,All_requests!$AC$5:$AL$1108,3,0),0) -> 15379 | I56: =IFERROR(VLOOKUP($E56,All_requests!$AC$5:$AL$1108,4,0),0) -> 4000
A57: 2018-04-01 | B57: 201804 | C57: IT | D57: Guest | E57: 201804ITGuest | F57: =IFERROR(VLOOKUP(E57,All_requests!$A$6:$D$739,2,0),0) -> 25397 | G57: =IFERROR(VLOOKUP(E57,All_requests!$AC$5:$AL$1108,2,0),0) -> 15580 | H57: =IFERROR(VLOOKUP(E57,All_requests!$AC$5:$AL$1108,3,0),0) -> 7182 | I57: =IFERROR(VLOOKUP($E57,All_requests!$AC$5:$AL$1108,4,0),0) -> 2634
A58: 2018-04-01 | B58: 201804 | C58: IT | D58: Rep | E58: 201804ITRep | F58: =IFERROR(VLOOKUP(E58,All_requests!$A$6:$D$739,2,0),0) -> 36 | G58: =IFERROR(VLOOKUP(E58,All_requests!$AC$5:$AL$1108,2,0),0) -> 20 | H58: =IFERROR(VLOOKUP(E58,All_requests!$AC$5:$AL$1108,3,0),0) -> 16 | I58: =IFERROR(VLOOKUP($E58,All_requests!$AC$5:$AL$1108,4,0),0) -> 0
A59: 2018-04-01 | B59: 201804 | C59: KR | D59: SMB | E59: 201804KRSMB | F59: =IFERROR(VLOOKUP(E59,All_requests!$A$6:$D$739,2,0),0) -> 16958 | G59: =IFERROR(VLOOKUP(E59,All_requests!$AC$5:$AL$1108,2,0),0) -> 5518 | H59: =IFERROR(VLOOKUP(E59,All_requests!$AC$5:$AL$1108,3,0),0) -> 9277 | I59: =IFERROR(VLOOKUP($E59,All_requests!$AC$5:$AL$1108,4,0),0) -> 2163
A60: 2018-04-01 | B60: 201804 | C60: KR | D60: Corporate | E60: 201804KRCorporate | F60: =IFERROR(VLOOKUP(E60,All_requests!$A$6:$D$739,2,0),0) -> 7210 | G60: =IFERROR(VLOOKUP(E60,All_requests!$AC$5:$AL$1108,2,0),0) -> 2099 | H60: =IFERROR(VLOOKUP(E60,All_requests!$AC$5:$AL$1108,3,0),0) -> 4753 | I60: =IFERROR(VLOOKUP($E60,All_requests!$AC$5:$AL$1108,4,0),0) -> 358
A61: 2018-04-01 | B61: 201804 | C61: KR | D61: Guest | E61: 201804KRGuest | F61: =IFERROR(VLOOKUP(E61,All_requests!$A$6:$D$739,2,0),0) -> 9667 | G61: =IFERROR(VLOOKUP(E61,All_requests!$AC$5:$AL$1108,2,0),0) -> 5776 | H61: =IFERROR(VLOOKUP(E61,All_requests!$AC$5:$AL$1108,3,0),0) -> 3416 | I61: =IFERROR(VLOOKUP($E61,All_requests!$AC$5:$AL$1108,4,0),0) -> 475
A62: 2018-04-01 | B62: 201804 | C62: KR | D62: Rep | E62: 201804KRRep | F62: =IFERROR(VLOOKUP(E62,All_requests!$A$6:$D$739,2,0),0) -> 1764 | G62: =IFERROR(VLOOKUP(E62,All_requests!$AC$5:$AL$1108,2,0),0) -> 419 | H62: =IFERROR(VLOOKUP(E62,All_requests!$AC$5:$AL$1108,3,0),0) -> 1269 | I62: =IFERROR(VLOOKUP($E62,All_requests!$AC$5:$AL$1108,4,0),0) -> 76
A63: 2018-04-01 | B63: 201804 | C63: LU | D63: SMB | E63: 201804LUSMB | F63: =IFERROR(VLOOKUP(E63,All_requests!$A$6:$D$739,2,0),0) -> 2904 | G63: =IFERROR(VLOOKUP(E63,All_requests!$AC$5:$AL$1108,2,0),0) -> 1402 | H63: =IFERROR(VLOOKUP(E63,All_requests!$AC$5:$AL$1108,3,0),0) -> 1390 | I63: =IFERROR(VLOOKUP($E63,All_requests!$AC$5:$AL$1108,4,0),0) -> 113
A64: 2018-04-01 | B64: 201804 | C64: LU | D64: Corporate | E64: 201804LUCorporate | F64: =IFERROR(VLOOKUP(E64,All_requests!$A$6:$D$739,2,0),0) -> 1942 | G64: =IFERROR(VLOOKUP(E64,All_requests!$AC$5:$AL$1108,2,0),0) -> 685 | H64: =IFERROR(VLOOKUP(E64,All_requests!$AC$5:$AL$1108,3,0),0) -> 1047 | I64: =IFERROR(VLOOKUP($E64,All_requests!$AC$5:$AL$1108,4,0),0) -> 209
A65: 2018-04-01 | B65: 201804 | C65: LU | D65: Guest | E65: 201804LUGuest | F65: =IFERROR(VLOOKUP(E65,All_requests!$A$6:$D$739,2,0),0) -> 4387 | G65: =IFERROR(VLOOKUP(E65,All_requests!$AC$5:$AL$1108,2,0),0) -> 3657 | H65: =IFERROR(VLOOKUP(E65,All_requests!$AC$5:$AL$1108,3,0),0) -> 608 | I65: =IFERROR(VLOOKUP($E65,All_requests!$AC$5:$AL$1108,4,0),0) -> 120
A66: 2018-04-01 | B66: 201804 | C66: LU | D66: Rep | E66: 201804LURep | F66: =IFERROR(VLOOKUP(E66,All_requests!$A$6:$D$739,2,0),0) -> 4 | G66: =IFERROR(VLOOKUP(E66,All_requests!$AC$5:$AL$1108,2,0),0) -> 4 | H66: =IFERROR(VLOOKUP(E66,All_requests!$AC$5:$AL$1108,3,0),0) -> 0 | I66: =IFERROR(VLOOKUP($E66,All_requests!$AC$5:$AL$1108,4,0),0) -> 0
A67: 2018-04-01 | B67: 201804 | C67: MY | D67: SMB | E67: 201804MYSMB | F67: =IFERROR(VLOOKUP(E67,All_requests!$A$6:$D$739,2,0),0) -> 8991 | G67: =IFERROR(VLOOKUP(E67,All_requests!$AC$5:$AL$1108,2,0),0) -> 4697 | H67: =IFERROR(VLOOKUP(E67,All_requests!$AC$5:$AL$1108,3,0),0) -> 3589 | I67: =IFERROR(VLOOKUP($E67,All_requests!$AC$5:$AL$1108,4,0),0) -> 705
A68: =DATE(LEFT(B68,4),RIGHT(B68,2),1) -> 2018-04-01 | B68: 201804 | C68: MY | D68: Corporate | E68: =CONCATENATE(B68,C68,D68) -> 201804MYCorporate | F68: =IFERROR(VLOOKUP(E68,All_requests!$A$6:$D$739,2,0),0) -> 737 | G68: =IFERROR(VLOOKUP(E68,All_requests!$AC$5:$AL$1108,2,0),0) -> 234 | H68: =IFERROR(VLOOKUP(E68,All_requests!$AC$5:$AL$1108,3,0),0) -> 487 | I68: =IFERROR(VLOOKUP($E68,All_requests!$AC$5:$AL$1108,4,0),0) -> 16
A69: 2018-04-01 | B69: 201804 | C69: MY | D69: Guest | E69: 201804MYGuest | F69: =IFERROR(VLOOKUP(E69,All_requests!$A$6:$D$739,2,0),0) -> 4358 | G69: =IFERROR(VLOOKUP(E69,All_requests!$AC$5:$AL$1108,2,0),0) -> 3243 | H69: =IFERROR(VLOOKUP(E69,All_requests!$AC$5:$AL$1108,3,0),0) -> 910 | I69: =IFERROR(VLOOKUP($E69,All_requests!$AC$5:$AL$1108,4,0),0) -> 205
A70: 2018-04-01 | B70: 201804 | C70: MY | D70: Rep | E70: 201804MYRep | F70: =IFERROR(VLOOKUP(E70,All_requests!$A$6:$D$739,2,0),0) -> 1494 | G70: =IFERROR(VLOOKUP(E70,All_requests!$AC$5:$AL$1108,2,0),0) -> 358 | H70: =IFERROR(VLOOKUP(E70,All_requests!$AC$5:$AL$1108,3,0),0) -> 781 | I70: =IFERROR(VLOOKUP($E70,All_requests!$AC$5:$AL$1108,4,0),0) -> 355
A71: 2018-04-01 | B71: 201804 | C71: NL | D71: SMB | E71: 201804NLSMB | F71: =IFERROR(VLOOKUP(E71,All_requests!$A$6:$D$739,2,0),0) -> 18811 | G71: =IFERROR(VLOOKUP(E71,All_requests!$AC$5:$AL$1108,2,0),0) -> 7327 | H71: =IFERROR(VLOOKUP(E71,All_requests!$AC$5:$AL$1108,3,0),0) -> 10155 | I71: =IFERROR(VLOOKUP($E71,All_requests!$AC$5:$AL$1108,4,0),0) -> 1330
A72: 2018-04-01 | B72: 201804 | C72: NL | D72: Corporate | E72: 201804NLCorporate | F72: =IFERROR(VLOOKUP(E72,All_requests!$A$6:$D$739,2,0),0) -> 28547 | G72: =IFERROR(VLOOKUP(E72,All_requests!$AC$5:$AL$1108,2,0),0) -> 7770 | H72: =IFERROR(VLOOKUP(E72,All_requests!$AC$5:$AL$1108,3,0),0) -> 17703 | I72: =IFERROR(VLOOKUP($E72,All_requests!$AC$5:$AL$1108,4,0),0) -> 3073
A73: 2018-04-01 | B73: 201804 | C73: NL | D73: Guest | E73: 201804NLGuest | F73: =IFERROR(VLOOKUP(E73,All_requests!$A$6:$D$739,2,0),0) -> 13832 | G73: =IFERROR(VLOOKUP(E73,All_requests!$AC$5:$AL$1108,2,0),0) -> 8616 | H73: =IFERROR(VLOOKUP(E73,All_requests!$AC$5:$AL$1108,3,0),0) -> 4616 | I73: =IFERROR(VLOOKUP($E73,All_requests!$AC$5:$AL$1108,4,0),0) -> 600
A74: 2018-04-01 | B74: 201804 | C74: NL | D74: Rep | E74: 201804NLRep | F74: =IFERROR(VLOOKUP(E74,All_requests!$A$6:$D$739,2,0),0) -> 516 | G74: =IFERROR(VLOOKUP(E74,All_requests!$AC$5:$AL$1108,2,0),0) -> 334 | H74: =IFERROR(VLOOKUP(E74,All_requests!$AC$5:$AL$1108,3,0),0) -> 101 | I74: =IFERROR(VLOOKUP($E74,All_requests!$AC$5:$AL$1108,4,0),0) -> 81
A75: 2018-04-01 | B75: 201804 | C75: NO | D75: SMB | E75: 201804NOSMB | F75: =IFERROR(VLOOKUP(E75,All_requests!$A$6:$D$739,2,0),0) -> 8310 | G75: =IFERROR(VLOOKUP(E75,All_requests!$AC$5:$AL$1108,2,0),0) -> 3460 | H75: =IFERROR(VLOOKUP(E75,All_requests!$AC$5:$AL$1108,3,0),0) -> 4044 | I75: =IFERROR(VLOOKUP($E75,All_requests!$AC$5:$AL$1108,4,0),0) -> 805
A76: 2018-04-01 | B76: 201804 | C76: NO | D76: Corporate | E76: 201804NOCorporate | F76: =IFERROR(VLOOKUP(E76,All_requests!$A$6:$D$739,2,0),0) -> 8354 | G76: =IFERROR(VLOOKUP(E76,All_requests!$AC$5:$AL$1108,2,0),0) -> 2687 | H76: =IFERROR(VLOOKUP(E76,All_requests!$AC$5:$AL$1108,3,0),0) -> 5003 | I76: =IFERROR(VLOOKUP($E76,All_requests!$AC$5:$AL$1108,4,0),0) -> 665
A77: 2018-04-01 | B77: 201804 | C77: NO | D77: Guest | E77: 201804NOGuest | F77: =IFERROR(VLOOKUP(E77,All_requests!$A$6:$D$739,2,0),0) -> 10211 | G77: =IFERROR(VLOOKUP(E77,All_requests!$AC$5:$AL$1108,2,0),0) -> 5643 | H77: =IFERROR(VLOOKUP(E77,All_requests!$AC$5:$AL$1108,3,0),0) -> 3831 | I77: =IFERROR(VLOOKUP($E77,All_requests!$AC$5:$AL$1108,4,0),0) -> 483
A78: 2018-04-01 | B78: 201804 | C78: NO | D78: Rep | E78: 201804NORep | F78: =IFERROR(VLOOKUP(E78,All_requests!$A$6:$D$739,2,0),0) -> 1353 | G78: =IFERROR(VLOOKUP(E78,All_requests!$AC$5:$AL$1108,2,0),0) -> 930 | H78: =IFERROR(VLOOKUP(E78,All_requests!$AC$5:$AL$1108,3,0),0) -> 419 | I78: =IFERROR(VLOOKUP($E78,All_requests!$AC$5:$AL$1108,4,0),0) -> 4
A79: 2018-04-01 | B79: 201804 | C79: PL | D79: SMB | E79: 201804PLSMB | F79: =IFERROR(VLOOKUP(E79,All_requests!$A$6:$D$739,2,0),0) -> 42423 | G79: =IFERROR(VLOOKUP(E79,All_requests!$AC$5:$AL$1108,2,0),0) -> 22589 | H79: =IFERROR(VLOOKUP(E79,All_requests!$AC$5:$AL$1108,3,0),0) -> 16716 | I79: =IFERROR(VLOOKUP($E79,All_requests!$AC$5:$AL$1108,4,0),0) -> 3117
A80: 2018-04-01 | B80: 201804 | C80: PL | D80: Corporate | E80: 201804PLCorporate | F80: =IFERROR(VLOOKUP(E80,All_requests!$A$6:$D$739,2,0),0) -> 61065 | G80: =IFERROR(VLOOKUP(E80,All_requests!$AC$5:$AL$1108,2,0),0) -> 24555 | H80: =IFERROR(VLOOKUP(E80,All_requests!$AC$5:$AL$1108,3,0),0) -> 28817 | I80: =IFERROR(VLOOKUP($E80,All_requests!$AC$5:$AL$1108,4,0),0) -> 7693
A81: 2018-04-01 | B81: 201804 | C81: PL | D81: Guest | E81: 201804PLGuest | F81: =IFERROR(VLOOKUP(E81,All_requests!$A$6:$D$739,2,0),0) -> 30955 | G81: =IFERROR(VLOOKUP(E81,All_requests!$AC$5:$AL$1108,2,0),0) -> 20708 | H81: =IFERROR(VLOOKUP(E81,All_requests!$AC$5:$AL$1108,3,0),0) -> 8539 | I81: =IFERROR(VLOOKUP($E81,All_requests!$AC$5:$AL$1108,4,0),0) -> 1707
A82: 2018-04-01 | B82: 201804 | C82: PL | D82: Rep | E82: 201804PLRep | F82: =IFERROR(VLOOKUP(E82,All_requests!$A$6:$D$739,2,0),0) -> 4 | G82: =IFERROR(VLOOKUP(E82,All_requests!$AC$5:$AL$1108,2,0),0) -> 4 | H82: =IFERROR(VLOOKUP(E82,All_requests!$AC$5:$AL$1108,3,0),0) -> 0 | I82: =IFERROR(VLOOKUP($E82,All_requests!$AC$5:$AL$1108,4,0),0) -> 0
A83: 2018-04-01 | B83: 201804 | C83: PT | D83: SMB | E83: 201804PTSMB | F83: =IFERROR(VLOOKUP(E83,All_requests!$A$6:$D$739,2,0),0) -> 1063 | G83: =IFERROR(VLOOKUP(E83,All_requests!$AC$5:$AL$1108,2,0),0) -> 761 | H83: =IFERROR(VLOOKUP(E83,All_requests!$AC$5:$AL$1108,3,0),0) -> 282 | I83: =IFERROR(VLOOKUP($E83,All_requests!$AC$5:$AL$1108,4,0),0) -> 20
A84: 2018-04-01 | B84: 201804 | C84: PT | D84: Corporate | E84: 201804PTCorporate | F84: =IFERROR(VLOOKUP(E84,All_requests!$A$6:$D$739,2,0),0) -> 1152 | G84: =IFERROR(VLOOKUP(E84,All_requests!$AC$5:$AL$1108,2,0),0) -> 491 | H84: =IFERROR(VLOOKUP(E84,All_requests!$AC$5:$AL$1108,3,0),0) -> 653 | I84: =IFERROR(VLOOKUP($E84,All_requests!$AC$5:$AL$1108,4,0),0) -> 8
A85: 2018-04-01 | B85: 201804 | C85: PT | D85: Guest | E85: 201804PTGuest | F85: =IFERROR(VLOOKUP(E85,All_requests!$A$6:$D$739,2,0),0) -> 3968 | G85: =IFERROR(VLOOKUP(E85,All_requests!$AC$5:$AL$1108,2,0),0) -> 3303 | H85: =IFERROR(VLOOKUP(E85,All_requests!$AC$5:$AL$1108,3,0),0) -> 580 | I85: =IFERROR(VLOOKUP($E85,All_requests!$AC$5:$AL$1108,4,0),0) -> 84
A86: 2018-04-01 | B86: 201804 | C86: PT | D86: Rep | E86: 201804PTRep | F86: =IFERROR(VLOOKUP(E86,All_requests!$A$6:$D$739,2,0),0) -> 363 | G86: =IFERROR(VLOOKUP(E86,All_requests!$AC$5:$AL$1108,2,0),0) -> 12 | H86: =IFERROR(VLOOKUP(E86,All_requests!$AC$5:$AL$1108,3,0),0) -> 322 | I86: =IFERROR(VLOOKUP($E86,All_requests!$AC$5:$AL$1108,4,0),0) -> 28
A87: 2018-04-01 | B87: 201804 | C87: SG | D87: SMB | E87: 201804SGSMB | F87: =IFERROR(VLOOKUP(E87,All_requests!$A$6:$D$739,2,0),0) -> 7387 | G87: =IFERROR(VLOOKUP(E87,All_requests!$AC$5:$AL$1108,2,0),0) -> 3359 | H87: =IFERROR(VLOOKUP(E87,All_requests!$AC$5:$AL$1108,3,0),0) -> 3396 | I87: =IFERROR(VLOOKUP($E87,All_requests!$AC$5:$AL$1108,4,0),0) -> 632
A88: 2018-04-01 | B88: 201804 | C88: SG | D88: Corporate | E88: 201804SGCorporate | F88: =IFERROR(VLOOKUP(E88,All_requests!$A$6:$D$739,2,0),0) -> 3110 | G88: =IFERROR(VLOOKUP(E88,All_requests!$AC$5:$AL$1108,2,0),0) -> 600 | H88: =IFERROR(VLOOKUP(E88,All_requests!$AC$5:$AL$1108,3,0),0) -> 2091 | I88: =IFERROR(VLOOKUP($E88,All_requests!$AC$5:$AL$1108,4,0),0) -> 418
A89: 2018-04-01 | B89: 201804 | C89: SG | D89: Guest | E89: 201804SGGuest | F89: =IFERROR(VLOOKUP(E89,All_requests!$A$6:$D$739,2,0),0) -> 5716 | G89: =IFERROR(VLOOKUP(E89,All_requests!$AC$5:$AL$1108,2,0),0) -> 3754 | H89: =IFERROR(VLOOKUP(E89,All_requests!$AC$5:$AL$1108,3,0),0) -> 1660 | I89: =IFERROR(VLOOKUP($E89,All_requests!$AC$5:$AL$1108,4,0),0) -> 302
A90: 2018-04-01 | B90: 201804 | C90: SG | D90: Rep | E90: 201804SGRep | F90: =IFERROR(VLOOKUP(E90,All_requests!$A$6:$D$739,2,0),0) -> 1531 | G90: =IFERROR(VLOOKUP(E90,All_requests!$AC$5:$AL$1108,2,0),0) -> 830 | H90: =IFERROR(VLOOKUP(E90,All_requests!$AC$5:$AL$1108,3,0),0) -> 665 | I90: =IFERROR(VLOOKUP($E90,All_requests!$AC$5:$AL$1108,4,0),0) -> 36
A91: 2018-04-01 | B91: 201804 | C91: SK | D91: SMB | E91: 201804SKSMB | F91: =IFERROR(VLOOKUP(E91,All_requests!$A$6:$D$739,2,0),0) -> 6594 | G91: =IFERROR(VLOOKUP(E91,All_requests!$AC$5:$AL$1108,2,0),0) -> 3384 | H91: =IFERROR(VLOOKUP(E91,All_requests!$AC$5:$AL$1108,3,0),0) -> 2614 | I91: =IFERROR(VLOOKUP($E91,All_requests!$AC$5:$AL$1108,4,0),0) -> 596
A92: 2018-04-01 | B92: 201804 | C92: SK | D92: Corporate | E92: 201804SKCorporate | F92: =IFERROR(VLOOKUP(E92,All_requests!$A$6:$D$739,2,0),0) -> 2932 | G92: =IFERROR(VLOOKUP(E92,All_requests!$AC$5:$AL$1108,2,0),0) -> 1410 | H92: =IFERROR(VLOOKUP(E92,All_requests!$AC$5:$AL$1108,3,0),0) -> 1220 | I92: =IFERROR(VLOOKUP($E92,All_requests!$AC$5:$AL$1108,4,0),0) -> 302
A93: 2018-04-01 | B93: 201804 | C93: SK | D93: Guest | E93: 201804SKGuest | F93: =IFERROR(VLOOKUP(E93,All_requests!$A$6:$D$739,2,0),0) -> 5917 | G93: =IFERROR(VLOOKUP(E93,All_requests!$AC$5:$AL$1108,2,0),0) -> 4068 | H93: =IFERROR(VLOOKUP(E93,All_requests!$AC$5:$AL$1108,3,0),0) -> 1511 | I93: =IFERROR(VLOOKUP($E93,All_requests!$AC$5:$AL$1108,4,0),0) -> 339
A94: 2018-04-01 | B94: 201804 | C94: SK | D94: Rep | E94: 201804SKRep | F94: =IFERROR(VLOOKUP(E94,All_requests!$A$6:$D$739,2,0),0) -> 1716 | G94: =IFERROR(VLOOKUP(E94,All_requests!$AC$5:$AL$1108,2,0),0) -> 644 | H94: =IFERROR(VLOOKUP(E94,All_requests!$AC$5:$AL$1108,3,0),0) -> 1071 | I94: =IFERROR(VLOOKUP($E94,All_requests!$AC$5:$AL$1108,4,0),0) -> 0
A95: 2018-04-01 | B95: 201804 | C95: SP | D95: SMB | E95: 201804SPSMB | F95: =IFERROR(VLOOKUP(E95,All_requests!$A$6:$D$739,2,0),0) -> 44816 | G95: =IFERROR(VLOOKUP(E95,All_requests!$AC$5:$AL$1108,2,0),0) -> 25985 | H95: =IFERROR(VLOOKUP(E95,All_requests!$AC$5:$AL$1108,3,0),0) -> 16100 | I95: =IFERROR(VLOOKUP($E95,All_requests!$AC$5:$AL$1108,4,0),0) -> 2731
A96: 2018-04-01 | B96: 201804 | C96: SP | D96: Corporate | E96: 201804SPCorporate | F96: =IFERROR(VLOOKUP(E96,All_requests!$A$6:$D$739,2,0),0) -> 38327 | G96: =IFERROR(VLOOKUP(E96,All_requests!$AC$5:$AL$1108,2,0),0) -> 16338 | H96: =IFERROR(VLOOKUP(E96,All_requests!$AC$5:$AL$1108,3,0),0) -> 17167 | I96: =IFERROR(VLOOKUP($E96,All_requests!$AC$5:$AL$1108,4,0),0) -> 4822
A97: 2018-04-01 | B97: 201804 | C97: SP | D97: Guest | E97: 201804SPGuest | F97: =IFERROR(VLOOKUP(E97,All_requests!$A$6:$D$739,2,0),0) -> 35483 | G97: =IFERROR(VLOOKUP(E97,All_requests!$AC$5:$AL$1108,2,0),0) -> 23850 | H97: =IFERROR(VLOOKUP(E97,All_requests!$AC$5:$AL$1108,3,0),0) -> 9704 | I97: =IFERROR(VLOOKUP($E97,All_requests!$AC$5:$AL$1108,4,0),0) -> 1928
A98: 2018-04-01 | B98: 201804 | C98: SP | D98: Rep | E98: 201804SPRep | F98: =IFERROR(VLOOKUP(E98,All_requests!$A$6:$D$739,2,0),0) -> 11278 | G98: =IFERROR(VLOOKUP(E98,All_requests!$AC$5:$AL$1108,2,0),0) -> 5188 | H98: =IFERROR(VLOOKUP(E98,All_requests!$AC$5:$AL$1108,3,0),0) -> 3380 | I98: =IFERROR(VLOOKUP($E98,All_requests!$AC$5:$AL$1108,4,0),0) -> 2711
A99: 2018-04-01 | B99: 201804 | C99: SV | D99: SMB | E99: 201804SVSMB | F99: =IFERROR(VLOOKUP(E99,All_requests!$A$6:$D$739,2,0),0) -> 12378 | G99: =IFERROR(VLOOKUP(E99,All_requests!$AC$5:$AL$1108,2,0),0) -> 4979 | H99: =IFERROR(VLOOKUP(E99,All_requests!$AC$5:$AL$1108,3,0),0) -> 6227 | I99: =IFERROR(VLOOKUP($E99,All_requests!$AC$5:$AL$1108,4,0),0) -> 1173
A100: 2018-04-01 | B100: 201804 | C100: SV | D100: Corporate | E100: 201804SVCorporate | F100: =IFERROR(VLOOKUP(E100,All_requests!$A$6:$D$739,2,0),0) -> 20438 | G100: =IFERROR(VLOOKUP(E100,All_requests!$AC$5:$AL$1108,2,0),0) -> 8378 | H100: =IFERROR(VLOOKUP(E100,All_requests!$AC$5:$AL$1108,3,0),0) -> 10026 | I100: =IFERROR(VLOOKUP($E100,All_requests!$AC$5:$AL$1108,4,0),0) -> 2035
A101: 2018-04-01 | B101: 201804 | C101: SV | D101: Guest | E101: 201804SVGuest | F101: =IFERROR(VLOOKUP(E101,All_requests!$A$6:$D$739,2,0),0) -> 16060 | G101: =IFERROR(VLOOKUP(E101,All_requests!$AC$5:$AL$1108,2,0),0) -> 9905 | H101: =IFERROR(VLOOKUP(E101,All_requests!$AC$5:$AL$1108,3,0),0) -> 5140 | I101: =IFERROR(VLOOKUP($E101,All_requests!$AC$5:$AL$1108,4,0),0) -> 1015
A102: 2018-04-01 | B102: 201804 | C102: SV | D102: Rep | E102: 201804SVRep | F102: =IFERROR(VLOOKUP(E102,All_requests!$A$6:$D$739,2,0),0) -> 2469 | G102: =IFERROR(VLOOKUP(E102,All_requests!$AC$5:$AL$1108,2,0),0) -> 930 | H102: =IFERROR(VLOOKUP(E102,All_requests!$AC$5:$AL$1108,3,0),0) -> 576 | I102: =IFERROR(VLOOKUP($E102,All_requests!$AC$5:$AL$1108,4,0),0) -> 963
A103: 2018-04-01 | B103: 201804 | C103: TH | D103: SMB | E103: 201804THSMB | F103: =IFERROR(VLOOKUP(E103,All_requests!$A$6:$D$739,2,0),0) -> 8145 | G103: =IFERROR(VLOOKUP(E103,All_requests!$AC$5:$AL$1108,2,0),0) -> 5941 | H103: =IFERROR(VLOOKUP(E103,All_requests!$AC$5:$AL$1108,3,0),0) -> 1756 | I103: =IFERROR(VLOOKUP($E103,All_requests!$AC$5:$AL$1108,4,0),0) -> 447
A104: 2018-04-01 | B104: 201804 | C104: TH | D104: Corporate | E104: 201804THCorporate | F104: =IFERROR(VLOOKUP(E104,All_requests!$A$6:$D$739,2,0),0) -> 3496 | G104: =IFERROR(VLOOKUP(E104,All_requests!$AC$5:$AL$1108,2,0),0) -> 995 | H104: =IFERROR(VLOOKUP(E104,All_requests!$AC$5:$AL$1108,3,0),0) -> 1950 | I104: =IFERROR(VLOOKUP($E104,All_requests!$AC$5:$AL$1108,4,0),0) -> 552
A105: 2018-04-01 | B105: 201804 | C105: TH | D105: Guest | E105: 201804THGuest | F105: =IFERROR(VLOOKUP(E105,All_requests!$A$6:$D$739,2,0),0) -> 52751 | G105: =IFERROR(VLOOKUP(E105,All_requests!$AC$5:$AL$1108,2,0),0) -> 47462 | H105: =IFERROR(VLOOKUP(E105,All_requests!$AC$5:$AL$1108,3,0),0) -> 4902 | I105: =IFERROR(VLOOKUP($E105,All_requests!$AC$5:$AL$1108,4,0),0) -> 386
A106: 2018-04-01 | B106: 201804 | C106: TH | D106: Rep | E106: =CONCATENATE(B106,C106,D106) -> 201804THRep | F106: =IFERROR(VLOOKUP(E106,All_requests!$A$6:$D$739,2,0),0) -> 218 | G106: =IFERROR(VLOOKUP(E106,All_requests!$AC$5:$AL$1108,2,0),0) -> 105 | H106: =IFERROR(VLOOKUP(E106,All_requests!$AC$5:$AL$1108,3,0),0) -> 113 | I106: =IFERROR(VLOOKUP($E106,All_requests!$AC$5:$AL$1108,4,0),0) -> 0
E3227: =CONCATENATE(B3227,C3227,D3227) -> 

Sheet All_requests (hidden)
F1: Email
F2: Referral
F3: (Other) | AA3: =IFERROR(VLOOKUP($D3,All_requests!BI6:BQ1048576,8,0),0) -> 0 | AD3: Session by channel | CP3: BOUNCE GLOBAL | CT3: BOUNCE ORGANIC | CX3: LANDING CAT + ORDERS
F4: Social | G4: nom pour rechchV>> | H4: Organic Search | I4: Direct | J4: others sessions | K4: Organic Search | L4: Direct | M4: others sessions | N4: Organic Search | O4: Direct | P4: others sessions
A5: CODE | B5: sessions | C5: transaction | D5: revenue | G5: CODE | H5: Organic sessions | I5: Direct sessions | J5: others sessions | K5: Organic orders | L5: Direct orders | M5: others orders | N5: Organic revenue | O5: Direct revenue | P5: others revenue | S5: CODE | T5: sessions with landing search | W5: CODE | X5: sessions with landing product detail | Z5: CODE | AA5: sessions with landing welcome | AC5: Étiquettes de lignes | AD5: Somme de Organic sessions | AE5: Somme de Direct sessions | AF5: Somme de others sessions | AG5: Somme de Organic orders | AH5: Somme de Direct orders | AI5: Somme de others orders | AJ5: Somme de Organic revenue | AK5: Somme de Direct revenue | AL5: Somme de others revenue | AO5: CODE | AP5: landing page | AQ5: Category | AR5: session organic by landing category | AT5: Somme de session organic by landing category | AU5: Étiquettes de colonnes | BC5: CODE | BD5: Page name | BE5: Category | BF5: landing cat then Add to cart | BI5: Somme de landing cat then Add to cart | BJ5: Étiquettes de colonnes | BS5: CODE | BT5: Landing page | BU5: Categories | BV5: Bounce | BW5: session | CA5: Étiquettes de colonnes | CP5: CODE | CQ5: bounce | CR5: sessions | CT5: CODE | CU5: bounce | CV5: Sessions | CX5: CODE | CY5: Landing page | CZ5: Category | DA5: Orders | DC5: Somme de Orders | DD5: Étiquettes de colonnes
A6: =CONCATENATE(General_data!C6,General_data!A6,General_data!B6) -> 201804ATSMB | B6: =General_data!D6 -> 2892 | C6: =General_data!E6 -> 987 | D6: =General_data!F6/0.3 -> 135533.0712 | G6: =CONCATENATE(Trafic_Entrant!D6,Trafic_Entrant!A6,Trafic_Entrant!B6) -> 201804ATSMB | H6: =IF(Trafic_Entrant!$C6=H$4,Trafic_Entrant!$E6,0) -> 0 | I6: =IF(Trafic_Entrant!$C6=I$4,Trafic_Entrant!$E6,0) -> 1442 | J6: =IF(OR(Trafic_Entrant!$C6=$F$1,Trafic_Entrant!C6=$F$2,Trafic_Entrant!C6=$F$3,Trafic_Entrant!C6=$F$4),Trafic_Entrant!$E6,0) -> 0 | K6: =IF(Trafic_Entrant!$C6=K$4,Trafic_Entrant!$F6,0) -> 0 | L6: =IF(Trafic_Entrant!$C6=L$4,Trafic_Entrant!$F6,0) -> 516 | M6: =IF(OR(Trafic_Entrant!$C6=$F$1,Trafic_Entrant!C6=$F$2,Trafic_Entrant!C6=$F$3,Trafic_Entrant!C6=$F$4),Trafic_Entrant!$F6,0) -> 0 | N6: =IF(Trafic_Entrant!$C6=N$4,Trafic_Entrant!$G6/0.3,0) -> 0 | O6: =IF(Trafic_Entrant!$C6=O$4,Trafic_Entrant!$G6/0.3,0) -> 72925.70095 | P6: =IF(OR(Trafic_Entrant!$C6=$F$1,Trafic_Entrant!$C6=$F$2,Trafic_Entrant!$C6=$F$3,Trafic_Entrant!$C6=$F$4),Trafic_Entrant!$G6/0.3,0) -> 0 | S6: =CONCATENATE(Organic_by_landing_search!D6,Organic_by_landing_search!A6,Organic_by_landing_search!B6) -> 201804ATSMB | T6: =Organic_by_landing_search!E6 -> 12 | W6: =CONCATENATE(Organic_by_landing_PDP!D6,Organic_by_landing_PDP!A6,Organic_by_landing_PDP!B6) -> 201804ATSMB | X6: =Organic_by_landing_PDP!E6 -> 32 | Z6: =CONCATENATE(Organic_by_landing_welcome!D6,Organic_by_landing_welcome!A6,Organic_by_landing_welcome!B6) -> 201804ATSMB | AA6: =Organic_by_landing_welcome!E6 -> 761 | AD6: 0 | AE6: 0 | AF6: 0 | AG6: 0 | AH6: 0 | AI6: 0 | AJ6: 0 | AK6: 0 | AL6: 0 | AO6: =CONCATENATE(Organic_by_landing_category!D6,Organic_by_landing_category!A6,Organic_by_landing_category!B6) -> 201804ATSMB | AP6: =Organic_by_landing_category!C6 -> /browse_catalogue/cat_l1/003 | AQ6: =IF(COUNTIF(AP6,"*/001*"),"Paper & Envelopes",IF(COUNTIF(AP6,"*/002*"),"Ink & Toners",IF(COUNTIF(AP6,"*/003*"),"Office Supplies",IF(COUNTIF(AP6,"*/004*"),"Technology",IF(COUNTIF(AP6,"*/005*"),"Furniture",IF(COUNTIF(AP6,"*/006*"),"Facilities Supplies",IF(COUNTIF(AP6,"*/007*"),"Category Specefics",IF(COUNTIF(AP6,"*/008*"),"Nespresso",0)))))))) -> Office Supplies | AR6: =Organic_by_landing_category!E6 -> 20 | AT6: Étiquettes de lignes | AU6: Facilities Supplies | AV6: Furniture | AW6: Ink & Toners | AX6: Office Supplies | AY6: Paper & Envelopes | AZ6: Technology | BA6: Total général | BC6: =CONCATENATE(Organic_by_ldg_category_ATC!E8,Organic_by_ldg_category_ATC!C8,Organic_by_ldg_category_ATC!D8) -> 201804AUcorporate | BD6: /browse_catalogue/cat_l3/001 | BE6: =IF(COUNTIF(BD6,"*/001*"),"Paper & Envelopes",IF(COUNTIF(BD6,"*/002*"),"Ink & Toners",IF(COUNTIF(BD6,"*/003*"),"Office Supplies",IF(COUNTIF(BD6,"*/004*"),"Technology",IF(COUNTIF(BD6,"*/005*"),"Furniture",IF(COUNTIF(BD6,"*/006*"),"Facilities Supplies",IF(COUNTIF(BD6,"*/007*"),"Category Specefics",IF(COUNTIF(BD6,"*/008*"),"Nespresso",0)))))))) -> Paper & Envelopes | BF6: 1 | BI6: Étiquettes de lignes | BJ6: Facilities Supplies | BK6: Furniture | BL6: Office Supplies | BM6: Paper & Envelopes | BN6: Technology | BO6: Ink & Toners | BP6: Total général | BS6: =CONCATENATE(Organic_landing_category_bounce!E8,Organic_landing_category_bounce!B8,Organic_landing_category_bounce!D8) -> 201804ATcorporate | BT6: =Organic_landing_category_bounce!C8 -> /browse_catalogue/cat_l1/001 | BU6: =IF(COUNTIF(BT6,"*/001*"),"Paper & Envelopes",IF(COUNTIF(BT6,"*/002*"),"Ink & Toners",IF(COUNTIF(BT6,"*/003*"),"Office Supplies",IF(COUNTIF(BT6,"*/004*"),"Technology",IF(COUNTIF(BT6,"*/005*"),"Furniture",IF(COUNTIF(BT6,"*/006*"),"Facilities Supplies",IF(COUNTIF(BT6,"*/007*"),"Category Specefics",IF(COUNTIF(BT6,"*/008*"),"Nespresso",0)))))))) -> Paper & Envelopes | BV6: =Organic_landing_category_bounce!F8 -> 0 | BW6: =Organic_landing_category_bounce!G8 -> 4 | CA6: Somme de Bounce | CG6: Somme de session | CM6: Total Somme de Bounce | CN6: Total Somme de session | CP6: =CONCATENATE(Bounce_rate_global!C8:C8,Bounce_rate_global!A8,Bounce_rate_global!B8) -> 201804ATSMB | CQ6: =Bounce_rate_global!D8 -> 342 | CR6: =Bounce_rate_global!E8 -> 2892 | CT6: =CONCATENATE(Bounce_rate_organic!D8,Bounce_rate_organic!C8,Bounce_rate_organic!B8) -> 201804ATSMB | CU6: =Bounce_rate_organic!E8 -> 56 | CV6: =Bounce_rate_organic!F8 -> 975 | CX6: =CONCATENATE(Organic_landing_cat_then_order!E7,Organic_landing_cat_then_order!C7,Organic_landing_cat_then_order!B7) -> 201804ATSMB | CY6: =Organic_landing_cat_then_order!D7 -> /browse_catalogue/cat_l1/003 | CZ6: =IF(COUNTIF(CY6,"*/001*"),"Paper & Envelopes",IF(COUNTIF(CY6,"*/002*"),"Ink & Toners",IF(COUNTIF(CY6,"*/003*"),"Office Supplies",IF(COUNTIF(CY6,"*/004*"),"Technology",IF(COUNTIF(CY6,"*/005*"),"Furniture",IF(COUNTIF(CY6,"*/006*"),"Facilities Supplies",IF(COUNTIF(CY6,"*/007*"),"Category Specefics",IF(COUNTIF(CY6,"*/008*"),"Nespresso",0)))))))) -> Office Supplies | DA6: =Organic_landing_cat_then_order!F7 -> 12 | DC6: Étiquettes de lignes | DD6: 0 | DE6: Facilities Supplies | DF6: Furniture | DG6: Ink & Toners | DH6: Office Supplies | DI6: Paper & Envelopes | DJ6: Technology | DK6: Total général
A7: =CONCATENATE(General_data!C7,General_data!A7,General_data!B7) -> 201804ATcorporate | B7: =General_data!D7 -> 1821 | C7: =General_data!E7 -> 729 | D7: =General_data!F7/0.3 -> 78901.95179 | G7: =CONCATENATE(Trafic_Entrant!D7,Trafic_Entrant!A7,Trafic_Entrant!B7) -> 201804ATSMB | H7: =IF(Trafic_Entrant!$C7=H$4,Trafic_Entrant!$E7,0) -> 0 | I7: =IF(Trafic_Entrant!$C7=I$4,Trafic_Entrant!$E7,0) -> 0 | J7: =IF(OR(Trafic_Entrant!$C7=$F$1,Trafic_Entrant!C7=$F$2,Trafic_Entrant!C7=$F$3,Trafic_Entrant!C7=$F$4),Trafic_Entrant!$E7,0) -> 447 | K7: =IF(Trafic_Entrant!$C7=K$4,Trafic_Entrant!$F7,0) -> 0 | L7: =IF(Trafic_Entrant!$C7=L$4,Trafic_Entrant!$F7,0) -> 0 | M7: =IF(OR(Trafic_Entrant!$C7=$F$1,Trafic_Entrant!C7=$F$2,Trafic_Entrant!C7=$F$3,Trafic_Entrant!C7=$F$4),Trafic_Entrant!$F7,0) -> 81 | N7: =IF(Trafic_Entrant!$C7=N$4,Trafic_Entrant!$G7/0.3,0) -> 0 | O7: =IF(Trafic_Entrant!$C7=O$4,Trafic_Entrant!$G7/0.3,0) -> 0 | P7: =IF(OR(Trafic_Entrant!$C7=$F$1,Trafic_Entrant!$C7=$F$2,Trafic_Entrant!$C7=$F$3,Trafic_Entrant!$C7=$F$4),Trafic_Entrant!$G7/0.3,0) -> 12208.95278 | S7: =CONCATENATE(Organic_by_landing_search!D7,Organic_by_landing_search!A7,Organic_by_landing_search!B7) -> 201804ATcorporate | T7: =Organic_by_landing_search!E7 -> 4 | W7: =CONCATENATE(Organic_by_landing_PDP!D7,Organic_by_landing_PDP!A7,Organic_by_landing_PDP!B7) -> 201804ATcorporate | X7: =Organic_by_landing_PDP!E7 -> 16 | Z7: =CONCATENATE(Organic_by_landing_welcome!D7,Organic_by_landing_welcome!A7,Organic_by_landing_welcome!B7) -> 201804ATcorporate | AA7: =Organic_by_landing_welcome!E7 -> 407 | AC7: 201804ATSMB | AD7: 975 | AE7: 1442 | AF7: 475 | AG7: 367 | AH7: 516 | AI7: 105 | AJ7: 47674.66494 | AK7: 72925.70095 | AL7: 14932.7053 | AO7: =CONCATENATE(Organic_by_landing_category!D7,Organic_by_landing_category!A7,Organic_by_landing_category!B7) -> 201804ATSMB | AP7: =Organic_by_landing_category!C7 -> /browse_catalogue/cat_l2/005001 | AQ7: Furniture | AR7: =Organic_by_landing_category!E7 -> 4 | AT7: 201804ATSMB | AU7: 8 | AV7: 4 | AX7: 24 | AZ7: 4 | BA7: 40 | BC7: =CONCATENATE(Organic_by_ldg_category_ATC!E9,Organic_by_ldg_category_ATC!C9,Organic_by_ldg_category_ATC!D9) -> 201804AUcorporate | BD7: /browse_catalogue/cat_l3/002 | BE7: Ink & Toners | BF7: 1 | BI7: 201804AUcorporate | BJ7: 5 | BK7: 1 | BL7: 13 | BM7: 5 | BN7: 5 | BO7: 1 | BP7: 30 | BS7: =CONCATENATE(Organic_landing_category_bounce!E9,Organic_landing_category_bounce!B9,Organic_landing_category_bounce!D9) -> 201804ATSMB | BT7: =Organic_landing_category_bounce!C9 -> /browse_catalogue/cat_l1/003 | BU7: =IF(COUNTIF(BT7,"*/001*"),"Paper & Envelopes",IF(COUNTIF(BT7,"*/002*"),"Ink & Toners",IF(COUNTIF(BT7,"*/003*"),"Office Supplies",IF(COUNTIF(BT7,"*/004*"),"Technology",IF(COUNTIF(BT7,"*/005*"),"Furniture",IF(COUNTIF(BT7,"*/006*"),"Facilities Supplies",IF(COUNTIF(BT7,"*/007*"),"Category Specefics",IF(COUNTIF(BT7,"*/008*"),"Nespresso",0)))))))) -> Office Supplies | BV7: =Organic_landing_category_bounce!F9 -> 0 | BW7: =Organic_landing_category_bounce!G9 -> 20 | BZ7: Étiquettes de lignes | CA7: Facilities Supplies | CB7: Furniture | CC7: Ink & Toners | CD7: Office Supplies | CE7: Paper & Envelopes | CF7: Technology | CG7: Facilities Supplies | CH7: Furniture | CI7: Ink & Toners | CJ7: Office Supplies | CK7: Paper & Envelopes | CL7: Technology | CP7: =CONCATENATE(Bounce_rate_global!C9:C9,Bounce_rate_global!A9,Bounce_rate_global!B9) -> 201804ATcorporate | CQ7: =Bounce_rate_global!D9 -> 290 | CR7: =Bounce_rate_global!E9 -> 1821 | CT7: =CONCATENATE(Bounce_rate_organic!D9,Bounce_rate_organic!C9,Bounce_rate_organic!B9) -> 201804AUSMB | CU7: =Bounce_rate_organic!E9 -> 407 | CV7: =Bounce_rate_organic!F9 -> 4084 | CX7: =CONCATENATE(Organic_landing_cat_then_order!E8,Organic_landing_cat_then_order!C8,Organic_landing_cat_then_order!B8) -> 201804ATcorporate | CY7: =Organic_landing_cat_then_order!D8 -> /browse_catalogue/cat_l1/003 | CZ7: =IF(COUNTIF(CY7,"*/001*"),"Paper & Envelopes",IF(COUNTIF(CY7,"*/002*"),"Ink & Toners",IF(COUNTIF(CY7,"*/003*"),"Office Supplies",IF(COUNTIF(CY7,"*/004*"),"Technology",IF(COUNTIF(CY7,"*/005*"),"Furniture",IF(COUNTIF(CY7,"*/006*"),"Facilities Supplies",IF(COUNTIF(CY7,"*/007*"),"Category Specefics",IF(COUNTIF(CY7,"*/008*"),"Nespresso",0)))))))) -> Office Supplies | DA7: =Organic_landing_cat_then_order!F8 -> 3 | DD7: 0 | DK7: 0
A8: =CONCATENATE(General_data!C8,General_data!A8,General_data!B8) -> 201804ATguest | B8: =General_data!D8 -> 2377 | C8: =General_data!E8 -> 0 | D8: =General_data!F8/0.3 -> 0 | G8: =CONCATENATE(Trafic_Entrant!D8,Trafic_Entrant!A8,Trafic_Entrant!B8) -> 201804ATSMB | H8: =IF(Trafic_Entrant!$C8=H$4,Trafic_Entrant!$E8,0) -> 975 | I8: =IF(Trafic_Entrant!$C8=I$4,Trafic_Entrant!$E8,0) -> 0 | J8: =IF(OR(Trafic_Entrant!$C8=$F$1,Trafic_Entrant!C8=$F$2,Trafic_Entrant!C8=$F$3,Trafic_Entrant!C8=$F$4),Trafic_Entrant!$E8,0) -> 0 | K8: =IF(Trafic_Entrant!$C8=K$4,Trafic_Entrant!$F8,0) -> 367 | L8: =IF(Trafic_Entrant!$C8=L$4,Trafic_Entrant!$F8,0) -> 0 | M8: =IF(OR(Trafic_Entrant!$C8=$F$1,Trafic_Entrant!C8=$F$2,Trafic_Entrant!C8=$F$3,Trafic_Entrant!C8=$F$4),Trafic_Entrant!$F8,0) -> 0 | N8: =IF(Trafic_Entrant!$C8=N$4,Trafic_Entrant!$G8/0.3,0) -> 47674.66494 | O8: =IF(Trafic_Entrant!$C8=O$4,Trafic_Entrant!$G8/0.3,0) -> 0 | P8: =IF(OR(Trafic_Entrant!$C8=$F$1,Trafic_Entrant!$C8=$F$2,Trafic_Entrant!$C8=$F$3,Trafic_Entrant!$C8=$F$4),Trafic_Entrant!$G8/0.3,0) -> 0 | S8: =CONCATENATE(Organic_by_landing_search!D8,Organic_by_landing_search!A8,Organic_by_landing_search!B8) -> 201804ATguest | T8: =Organic_by_landing_search!E8 -> 12 | W8: =CONCATENATE(Organic_by_landing_PDP!D8,Organic_by_landing_PDP!A8,Organic_by_landing_PDP!B8) -> 201804ATguest | X8: =Organic_by_landing_PDP!E8 -> 943 | Z8: =CONCATENATE(Organic_by_landing_welcome!D8,Organic_by_landing_welcome!A8,Organic_by_landing_welcome!B8) -> 201804ATguest | AA8: =Organic_by_landing_welcome!E8 -> 367 | AC8: 201804ATcorporate | AD8: 560 | AE8: 1003 | AF8: 258 | AG8: 193 | AH8: 455 | AI8: 80 | AJ8: 21766.12048 | AK8: 49751.11336 | AL8: 7384.71795 | AO8: =CONCATENATE(Organic_by_landing_category!D8,Organic_by_landing_category!A8,Organic_by_landing_category!B8) -> 201804ATSMB | AP8: =Organic_by_landing_category!C8 -> /browse_catalogue/cat_l3/003002001 | AQ8: Office Supplies | AR8: =Organic_by_landing_category!E8 -> 4 | AT8: 201804ATcorporate | AV8: 4 | AX8: 4 | AY8: 4 | BA8: 12 | BC8: =CONCATENATE(Organic_by_ldg_category_ATC!E10,Organic_by_ldg_category_ATC!C10,Organic_by_ldg_category_ATC!D10) -> 201804AUcorporate | BD8: /browse_catalogue/cat_l3/003 | BE8: Office Supplies | BF8: 1 | BI8: 201804BEcorporate | BJ8: 12 | BL8: 12 | BP8: 24 | BS8: =CONCATENATE(Organic_landing_category_bounce!E10,Organic_landing_category_bounce!B10,Organic_landing_category_bounce!D10) -> 201804ATcorporate | BT8: =Organic_landing_category_bounce!C10 -> /browse_catalogue/cat_l1/003 | BU8: Office Supplies | BV8: =Organic_landing_category_bounce!F10 -> 0 | BW8: =Organic_landing_category_bounce!G10 -> 4 | BZ8: 201804ATcorporate | CB8: 0 | CD8: 0 | CE8: 0 | CH8: 4 | CJ8: 4 | CK8: 4 | CM8: 0 | CN8: 12 | CP8: =CONCATENATE(Bounce_rate_global!C10:C10,Bounce_rate_global!A10,Bounce_rate_global!B10) -> 201804ATguest | CQ8: =Bounce_rate_global!D10 -> 1092 | CR8: =Bounce_rate_global!E10 -> 2377 | CT8: =CONCATENATE(Bounce_rate_organic!D10,Bounce_rate_organic!C10,Bounce_rate_organic!B10) -> 201804BESMB | CU8: =Bounce_rate_organic!E10 -> 959 | CV8: =Bounce_rate_organic!F10 -> 13840 | CX8: =CONCATENATE(Organic_landing_cat_then_order!E9,Organic_landing_cat_then_order!C9,Organic_landing_cat_then_order!B9) -> 201804AUSMB | CY8: =Organic_landing_cat_then_order!D9 -> /browse_catalogue/cat_l1/001 | CZ8: Paper & Envelopes | DA8: =Organic_landing_cat_then_order!F9 -> 3 | DC8: 201804ATSMB | DH8: 12 | DK8: 12
A9: =CONCATENATE(General_data!C9,General_data!A9,General_data!B9) -> 201804ATrep | B9: =General_data!D9 -> 943 | C9: =General_data!E9 -> 951 | D9: =General_data!F9/0.3 -> 189537.6478 | G9: =CONCATENATE(Trafic_Entrant!D9,Trafic_Entrant!A9,Trafic_Entrant!B9) -> 201804ATSMB | H9: =IF(Trafic_Entrant!$C9=H$4,Trafic_Entrant!$E9,0) -> 0 | I9: =IF(Trafic_Entrant!$C9=I$4,Trafic_Entrant!$E9,0) -> 0 | J9: =IF(OR(Trafic_Entrant!$C9=$F$1,Trafic_Entrant!C9=$F$2,Trafic_Entrant!C9=$F$3,Trafic_Entrant!C9=$F$4),Trafic_Entrant!$E9,0) -> 28 | K9: =IF(Trafic_Entrant!$C9=K$4,Trafic_Entrant!$F9,0) -> 0 | L9: =IF(Trafic_Entrant!$C9=L$4,Trafic_Entrant!$F9,0) -> 0 | M9: =IF(OR(Trafic_Entrant!$C9=$F$1,Trafic_Entrant!C9=$F$2,Trafic_Entrant!C9=$F$3,Trafic_Entrant!C9=$F$4),Trafic_Entrant!$F9,0) -> 24 | N9: =IF(Trafic_Entrant!$C9=N$4,Trafic_Entrant!$G9/0.3,0) -> 0 | O9: =IF(Trafic_Entrant!$C9=O$4,Trafic_Entrant!$G9/0.3,0) -> 0 | P9: =IF(OR(Trafic_Entrant!$C9=$F$1,Trafic_Entrant!$C9=$F$2,Trafic_Entrant!$C9=$F$3,Trafic_Entrant!$C9=$F$4),Trafic_Entrant!$G9/0.3,0) -> 2723.752513 | S9: =CONCATENATE(Organic_by_landing_search!D9,Organic_by_landing_search!A9,Organic_by_landing_search!B9) -> 201804ATrep | T9: =Organic_by_landing_search!E9 -> 16 | W9: =CONCATENATE(Organic_by_landing_PDP!D9,Organic_by_landing_PDP!A9,Organic_by_landing_PDP!B9) -> 201804ATrep | X9: =Organic_by_landing_PDP!E9 -> 8 | Z9: =CONCATENATE(Organic_by_landing_welcome!D9,Organic_by_landing_welcome!A9,Organic_by_landing_welcome!B9) -> 201804ATrep | AA9: =Organic_by_landing_welcome!E9 -> 568 | AC9: 201804ATguest | AD9: 1635 | AE9: 632 | AF9: 108 | AG9: 0 | AH9: 0 | AI9: 0 | AJ9: 0 | AK9: 0 | AL9: 0 | AO9: =CONCATENATE(Organic_by_landing_category!D9,Organic_by_landing_category!A9,Organic_by_landing_category!B9) -> 201804ATSMB | AP9: =Organic_by_landing_category!C9 -> /browse_catalogue/cat_l3/006004002 | AQ9: Facilities Supplies | AR9: =Organic_by_landing_category!E9 -> 8 | AT9: 201804ATguest | AU9: 64 | AV9: 16 | AX9: 200 | AZ9: 16 | BA9: 296 | BC9: =CONCATENATE(Organic_by_ldg_category_ATC!E11,Organic_by_ldg_category_ATC!C11,Organic_by_ldg_category_ATC!D11) -> 201804AUcorporate | BD9: /browse_catalogue/cat_l3/004 | BE9: Technology | BF9: 1 | BI9: 201804BESMB | BM9: 4 | BP9: 4 | BS9: =CONCATENATE(Organic_landing_category_bounce!E11,Organic_landing_category_bounce!B11,Organic_landing_category_bounce!D11) -> 201804ATguest | BT9: =Organic_landing_category_bounce!C11 -> /browse_catalogue/cat_l1/003 | BU9: Office Supplies | BV9: =Organic_landing_category_bounce!F11 -> 4 | BW9: =Organic_landing_category_bounce!G11 -> 28 | BZ9: 201804ATSMB | CA9: 0 | CB9: 4 | CD9: 4 | CF9: 0 | CG9: 8 | CH9: 4 | CJ9: 24 | CL9: 4 | CM9: 8 | CN9: 40 | CP9: =CONCATENATE(Bounce_rate_global!C11:C11,Bounce_rate_global!A11,Bounce_rate_global!B11) -> 201804ATrep | CQ9: =Bounce_rate_global!D11 -> 44 | CR9: =Bounce_rate_global!E11 -> 943 | CT9: =CONCATENATE(Bounce_rate_organic!D11,Bounce_rate_organic!C11,Bounce_rate_organic!B11) -> 201804CHSMB | CU9: =Bounce_rate_organic!E11 -> 1776 | CV9: =Bounce_rate_organic!F11 -> 22154 | CX9: =CONCATENATE(Organic_landing_cat_then_order!E10,Organic_landing_cat_then_order!C10,Organic_landing_cat_then_order!B10) -> 201804AUSMB | CY9: =Organic_landing_cat_then_order!D10 -> /browse_catalogue/cat_l1/003 | CZ9: Office Supplies | DA9: =Organic_landing_cat_then_order!F10 -> 3 | DC9: 201804ATcorporate | DH9: 3 | DK9: 3
A10: =CONCATENATE(General_data!C10,General_data!A10,General_data!B10) -> 201804AUSMB | B10: =General_data!D10 -> 8974 | C10: =General_data!E10 -> 3392 | D10: =General_data!F10/0.3 -> 403487.4631 | G10: =CONCATENATE(Trafic_Entrant!D10,Trafic_Entrant!A10,Trafic_Entrant!B10) -> 201804ATcorporate | H10: =IF(Trafic_Entrant!$C10=H$4,Trafic_Entrant!$E10,0) -> 0 | I10: =IF(Trafic_Entrant!$C10=I$4,Trafic_Entrant!$E10,0) -> 1003 | J10: =IF(OR(Trafic_Entrant!$C10=$F$1,Trafic_Entrant!C10=$F$2,Trafic_Entrant!C10=$F$3,Trafic_Entrant!C10=$F$4),Trafic_Entrant!$E10,0) -> 0 | K10: =IF(Trafic_Entrant!$C10=K$4,Trafic_Entrant!$F10,0) -> 0 | L10: =IF(Trafic_Entrant!$C10=L$4,Trafic_Entrant!$F10,0) -> 455 | M10: =IF(OR(Trafic_Entrant!$C10=$F$1,Trafic_Entrant!C10=$F$2,Trafic_Entrant!C10=$F$3,Trafic_Entrant!C10=$F$4),Trafic_Entrant!$F10,0) -> 0 | N10: =IF(Trafic_Entrant!$C10=N$4,Trafic_Entrant!$G10/0.3,0) -> 0 | O10: =IF(Trafic_Entrant!$C10=O$4,Trafic_Entrant!$G10/0.3,0) -> 49751.11336 | P10: =IF(OR(Trafic_Entrant!$C10=$F$1,Trafic_Entrant!$C10=$F$2,Trafic_Entrant!$C10=$F$3,Trafic_Entrant!$C10=$F$4),Trafic_Entrant!$G10/0.3,0) -> 0 | S10: =CONCATENATE(Organic_by_landing_search!D10,Organic_by_landing_search!A10,Organic_by_landing_search!B10) -> 201804AUSMB | T10: =Organic_by_landing_search!E10 -> 173 | W10: =CONCATENATE(Organic_by_landing_PDP!D10,Organic_by_landing_PDP!A10,Organic_by_landing_PDP!B10) -> 201804AUSMB | X10: =Organic_by_landing_PDP!E10 -> 117 | Z10: =CONCATENATE(Organic_by_landing_welcome!D10,Organic_by_landing_welcome!A10,Organic_by_landing_welcome!B10) -> 201804AUSMB | AA10: =Organic_by_landing_welcome!E10 -> 2622 | AC10: 201804ATrep | AD10: 669 | AE10: 274 | AF10: 0 | AG10: 701 | AH10: 250 | AI10: 0 | AJ10: 120668.171 | AK10: 68869.47679 | AL10: 0 | AO10: =CONCATENATE(Organic_by_landing_category!D10,Organic_by_landing_category!A10,Organic_by_landing_category!B10) -> 201804ATSMB | AP10: =Organic_by_landing_category!C10 -> /browse_catalogue/cat_l4/004006001002 | AQ10: Technology | AR10: =Organic_by_landing_category!E10 -> 4 | AT10: 201804AUSMB | AU10: 4 | AV10: 4 | AX10: 16 | BA10: 24 | BC10: =CONCATENATE(Organic_by_ldg_category_ATC!E12,Organic_by_ldg_category_ATC!C12,Organic_by_ldg_category_ATC!D12) -> 201804AUcorporate | BD10: /browse_catalogue/cat_l3/005 | BE10: Furniture | BF10: 1 | BI10: 201804CHSMB | BL10: 4 | BP10: 4 | BS10: =CONCATENATE(Organic_landing_category_bounce!E12,Organic_landing_category_bounce!B12,Organic_landing_category_bounce!D12) -> 201804ATguest | BT10: =Organic_landing_category_bounce!C12 -> /browse_catalogue/cat_l2/003005 | BU10: Office Supplies | BV10: =Organic_landing_category_bounce!F12 -> 0 | BW10: =Organic_landing_category_bounce!G12 -> 4 | BZ10: 201804ATguest | CA10: 24 | CB10: 8 | CD10: 56 | CF10: 12 | CG10: 64 | CH10: 16 | CJ10: 200 | CL10: 16 | CM10: 100 | CN10: 296 | CP10: =CONCATENATE(Bounce_rate_global!C12:C12,Bounce_rate_global!A12,Bounce_rate_global!B12) -> 201804AUSMB | CQ10: =Bounce_rate_global!D12 -> 943 | CR10: =Bounce_rate_global!E12 -> 8974 | CT10: =CONCATENATE(Bounce_rate_organic!D12,Bounce_rate_organic!C12,Bounce_rate_organic!B12) -> 201804CZSMB | CU10: =Bounce_rate_organic!E12 -> 209 | CV10: =Bounce_rate_organic!F12 -> 2731 | CX10: =CONCATENATE(Organic_landing_cat_then_order!E11,Organic_landing_cat_then_order!C11,Organic_landing_cat_then_order!B11) -> 201804AUSMB | CY10: =Organic_landing_cat_then_order!D11 -> /browse_catalogue/cat_l3/003004007 | CZ10: Office Supplies | DA10: =Organic_landing_cat_then_order!F11 -> 3 | DC10: 201804AUSMB | DH10: 6 | DI10: 3 | DK10: 9
A11: =CONCATENATE(General_data!C11,General_data!A11,General_data!B11) -> 201804AUcorporate | B11: =General_data!D11 -> 29042 | C11: =General_data!E11 -> 10755 | D11: =General_data!F11/0.3 -> 1358810.797 | G11: =CONCATENATE(Trafic_Entrant!D11,Trafic_Entrant!A11,Trafic_Entrant!B11) -> 201804ATcorporate | H11: =IF(Trafic_Entrant!$C11=H$4,Trafic_Entrant!$E11,0) -> 0 | I11: =IF(Trafic_Entrant!$C11=I$4,Trafic_Entrant!$E11,0) -> 0 | J11: =IF(OR(Trafic_Entrant!$C11=$F$1,Trafic_Entrant!C11=$F$2,Trafic_Entrant!C11=$F$3,Trafic_Entrant!C11=$F$4),Trafic_Entrant!$E11,0) -> 145 | K11: =IF(Trafic_Entrant!$C11=K$4,Trafic_Entrant!$F11,0) -> 0 | L11: =IF(Trafic_Entrant!$C11=L$4,Trafic_Entrant!$F11,0) -> 0 | M11: =IF(OR(Trafic_Entrant!$C11=$F$1,Trafic_Entrant!C11=$F$2,Trafic_Entrant!C11=$F$3,Trafic_Entrant!C11=$F$4),Trafic_Entrant!$F11,0) -> 60 | N11: =IF(Trafic_Entrant!$C11=N$4,Trafic_Entrant!$G11/0.3,0) -> 0 | O11: =IF(Trafic_Entrant!$C11=O$4,Trafic_Entrant!$G11/0.3,0) -> 0 | P11: =IF(OR(Trafic_Entrant!$C11=$F$1,Trafic_Entrant!$C11=$F$2,Trafic_Entrant!$C11=$F$3,Trafic_Entrant!$C11=$F$4),Trafic_Entrant!$G11/0.3,0) -> 6565.551327 | S11: =CONCATENATE(Organic_by_landing_search!D11,Organic_by_landing_search!A11,Organic_by_landing_search!B11) -> 201804AUcorporate | T11: =Organic_by_landing_search!E11 -> 375 | W11: =CONCATENATE(Organic_by_landing_PDP!D11,Organic_by_landing_PDP!A11,Organic_by_landing_PDP!B11) -> 201804AUcorporate | X11: =Organic_by_landing_PDP!E11 -> 403 | Z11: =CONCATENATE(Organic_by_landing_welcome!D11,Organic_by_landing_welcome!A11,Organic_by_landing_welcome!B11) -> 201804AUcorporate | AA11: =Organic_by_landing_welcome!E11 -> 5337 | AC11: 201804AUSMB | AD11: 4084 | AE11: 4403 | AF11: 488 | AG11: 1378 | AH11: 1873 | AI11: 141 | AJ11: 155009.2657 | AK11: 225242.8128 | AL11: 23235.38461 | AO11: =CONCATENATE(Organic_by_landing_category!D11,Organic_by_landing_category!A11,Organic_by_landing_category!B11) -> 201804ATcorporate | AP11: =Organic_by_landing_category!C11 -> /browse_catalogue/cat_l1/001 | AQ11: Paper & Envelopes | AR11: =Organic_by_landing_category!E11 -> 4 | AT11: 201804AUcorporate | AU11: 8 | AV11: 8 | AW11: 4 | AX11: 68 | AY11: 28 | AZ11: 12 | BA11: 128 | BC11: =CONCATENATE(Organic_by_ldg_category_ATC!E13,Organic_by_ldg_category_ATC!C13,Organic_by_ldg_category_ATC!D13) -> 201804AUcorporate | BD11: /browse_catalogue/cat_l3/006 | BE11: Facilities Supplies | BF11: 1 | BI11: 201804CZcorporate | BL11: 4 | BP11: 4 | BS11: =CONCATENATE(Organic_landing_category_bounce!E13,Organic_landing_category_bounce!B13,Organic_landing_category_bounce!D13) -> 201804ATSMB | BT11: =Organic_landing_category_bounce!C13 -> /browse_catalogue/cat_l2/005001 | BU11: Furniture | BV11: =Organic_landing_category_bounce!F13 -> 4 | BW11: =Organic_landing_category_bounce!G13 -> 4 | BZ11: 201804AUSMB | CA11: 0 | CB11: 0 | CD11: 8 | CG11: 4 | CH11: 4 | CJ11: 16 | CM11: 8 | CN11: 24 | CP11: =CONCATENATE(Bounce_rate_global!C13:C13,Bounce_rate_global!A13,Bounce_rate_global!B13) -> 201804AUcorporate | CQ11: =Bounce_rate_global!D13 -> 2799 | CR11: =Bounce_rate_global!E13 -> 29042 | CT11: =CONCATENATE(Bounce_rate_organic!D13,Bounce_rate_organic!C13,Bounce_rate_organic!B13) -> 201804DASMB | CU11: =Bounce_rate_organic!E13 -> 568 | CV11: =Bounce_rate_organic!F13 -> 6409 | CX11: =CONCATENATE(Organic_landing_cat_then_order!E12,Organic_landing_cat_then_order!C12,Organic_landing_cat_then_order!B12) -> 201804AUcorporate | CY11: =Organic_landing_cat_then_order!D12 -> /browse_catalogue/cat_l1/003 | CZ11: Office Supplies | DA11: =Organic_landing_cat_then_order!F12 -> 6 | DC11: 201804AUcorporate | DH11: 21 | DI11: 6 | DJ11: 3 | DK11: 30
A12: =CONCATENATE(General_data!C12,General_data!A12,General_data!B12) -> 201804AUguest | B12: =General_data!D12 -> 11158 | C12: =General_data!E12 -> 36 | D12: =General_data!F12/0.3 -> 9082.794717 | G12: =CONCATENATE(Trafic_Entrant!D12,Trafic_Entrant!A12,Trafic_Entrant!B12) -> 201804ATcorporate | H12: =IF(Trafic_Entrant!$C12=H$4,Trafic_Entrant!$E12,0) -> 560 | I12: =IF(Trafic_Entrant!$C12=I$4,Trafic_Entrant!$E12,0) -> 0 | J12: =IF(OR(Trafic_Entrant!$C12=$F$1,Trafic_Entrant!C12=$F$2,Trafic_Entrant!C12=$F$3,Trafic_Entrant!C12=$F$4),Trafic_Entrant!$E12,0) -> 0 | K12: =IF(Trafic_Entrant!$C12=K$4,Trafic_Entrant!$F12,0) -> 193 | L12: =IF(Trafic_Entrant!$C12=L$4,Trafic_Entrant!$F12,0) -> 0 | M12: =IF(OR(Trafic_Entrant!$C12=$F$1,Trafic_Entrant!C12=$F$2,Trafic_Entrant!C12=$F$3,Trafic_Entrant!C12=$F$4),Trafic_Entrant!$F12,0) -> 0 | N12: =IF(Trafic_Entrant!$C12=N$4,Trafic_Entrant!$G12/0.3,0) -> 21766.12048 | O12: =IF(Trafic_Entrant!$C12=O$4,Trafic_Entrant!$G12/0.3,0) -> 0 | P12: =IF(OR(Trafic_Entrant!$C12=$F$1,Trafic_Entrant!$C12=$F$2,Trafic_Entrant!$C12=$F$3,Trafic_Entrant!$C12=$F$4),Trafic_Entrant!$G12/0.3,0) -> 0 | S12: =CONCATENATE(Organic_by_landing_search!D12,Organic_by_landing_search!A12,Organic_by_landing_search!B12) -> 201804AUguest | T12: =Organic_by_landing_search!E12 -> 93 | W12: =CONCATENATE(Organic_by_landing_PDP!D12,Organic_by_landing_PDP!A12,Organic_by_landing_PDP!B12) -> 201804AUguest | X12: =Organic_by_landing_PDP!E12 -> 2167 | Z12: =CONCATENATE(Organic_by_landing_welcome!D12,Organic_by_landing_welcome!A12,Organic_by_landing_welcome!B12) -> 201804AUguest | AA12: =Organic_by_landing_welcome!E12 -> 2614 | AC12: 201804AUcorporate | AD12: 9079 | AE12: 17377 | AF12: 2586 | AG12: 2671 | AH12: 7150 | AI12: 935 | AJ12: 354529.6337 | AK12: 914553.2056 | AL12: 89727.95734 | AO12: =CONCATENATE(Organic_by_landing_category!D12,Organic_by_landing_category!A12,Organic_by_landing_category!B12) -> 201804ATcorporate | AP12: =Organic_by_landing_category!C12 -> /browse_catalogue/cat_l1/003 | AQ12: Office Supplies | AR12: =Organic_by_landing_category!E12 -> 4 | AT12: 201804AUguest | AU12: 28 | AV12: 100 | AW12: 4 | AX12: 606 | AY12: 52 | AZ12: 80 | BA12: 870 | BC12: =CONCATENATE(Organic_by_ldg_category_ATC!E8,Organic_by_ldg_category_ATC!C8,Organic_by_ldg_category_ATC!D8) -> 201804AUcorporate | BD12: =Organic_by_ldg_category_ATC!B8 -> /browse_catalogue/cat_l3/001001001 | BE12: =IF(COUNTIF(BD12,"*/001*"),"Paper & Envelopes",IF(COUNTIF(BD12,"*/002*"),"Ink & Toners",IF(COUNTIF(BD12,"*/003*"),"Office Supplies",IF(COUNTIF(BD12,"*/004*"),"Technology",IF(COUNTIF(BD12,"*/005*"),"Furniture",IF(COUNTIF(BD12,"*/006*"),"Facilities Supplies",IF(COUNTIF(BD12,"*/007*"),"Category Specefics",IF(COUNTIF(BD12,"*/008*"),"Nespresso",0)))))))) -> Paper & Envelopes | BF12: =Organic_by_ldg_category_ATC!F8 -> 4 | BI12: 201804CZSMB | BL12: 4 | BP12: 4 | BS12: =CONCATENATE(Organic_landing_category_bounce!E14,Organic_landing_category_bounce!B14,Organic_landing_category_bounce!D14) -> 201804ATguest | BT12: =Organic_landing_category_bounce!C14 -> /browse_catalogue/cat_l2/006005 | BU12: Facilities Supplies | BV12: =Organic_landing_category_bounce!F14 -> 0 | BW12: =Organic_landing_category_bounce!G14 -> 4 | BZ12: 201804AUcorporate | CA12: 4 | CB12: 0 | CC12: 0 | CD12: 4 | CE12: 4 | CF12: 0 | CG12: 8 | CH12: 8 | CI12: 4 | CJ12: 68 | CK12: 28 | CL12: 12 | CM12: 12 | CN12: 128 | CP12: =CONCATENATE(Bounce_rate_global!C14:C14,Bounce_rate_global!A14,Bounce_rate_global!B14) -> 201804AUguest | CQ12: =Bounce_rate_global!D14 -> 5007 | CR12: =Bounce_rate_global!E14 -> 11158 | CT12: =CONCATENATE(Bounce_rate_organic!D14,Bounce_rate_organic!C14,Bounce_rate_organic!B14) -> 201804DESMB | CU12: =Bounce_rate_organic!E14 -> 1623 | CV12: =Bounce_rate_organic!F14 -> 15625 | CX12: =CONCATENATE(Organic_landing_cat_then_order!E13,Organic_landing_cat_then_order!C13,Organic_landing_cat_then_order!B13) -> 201804AUcorporate | CY12: =Organic_landing_cat_then_order!D13 -> /browse_catalogue/cat_l2/003001 | CZ12: Office Supplies | DA12: =Organic_landing_cat_then_order!F13 -> 6 | DC12: 201804BESMB | DE12: 9 | DF12: 3 | DG12: 3 | DH12: 38 | DK12: 53
A13: =CONCATENATE(General_data!C13,General_data!A13,General_data!B13) -> 201804AUrep | B13: =General_data!D13 -> 1132 | C13: =General_data!E13 -> 918 | D13: =General_data!F13/0.3 -> 139458.8592 | G13: =CONCATENATE(Trafic_Entrant!D13,Trafic_Entrant!A13,Trafic_Entrant!B13) -> 201804ATcorporate | H13: =IF(Trafic_Entrant!$C13=H$4,Trafic_Entrant!$E13,0) -> 0 | I13: =IF(Trafic_Entrant!$C13=I$4,Trafic_Entrant!$E13,0) -> 0 | J13: =IF(OR(Trafic_Entrant!$C13=$F$1,Trafic_Entrant!C13=$F$2,Trafic_Entrant!C13=$F$3,Trafic_Entrant!C13=$F$4),Trafic_Entrant!$E13,0) -> 113 | K13: =IF(Trafic_Entrant!$C13=K$4,Trafic_Entrant!$F13,0) -> 0 | L13: =IF(Trafic_Entrant!$C13=L$4,Trafic_Entrant!$F13,0) -> 0 | M13: =IF(OR(Trafic_Entrant!$C13=$F$1,Trafic_Entrant!C13=$F$2,Trafic_Entrant!C13=$F$3,Trafic_Entrant!C13=$F$4),Trafic_Entrant!$F13,0) -> 20 | N13: =IF(Trafic_Entrant!$C13=N$4,Trafic_Entrant!$G13/0.3,0) -> 0 | O13: =IF(Trafic_Entrant!$C13=O$4,Trafic_Entrant!$G13/0.3,0) -> 0 | P13: =IF(OR(Trafic_Entrant!$C13=$F$1,Trafic_Entrant!$C13=$F$2,Trafic_Entrant!$C13=$F$3,Trafic_Entrant!$C13=$F$4),Trafic_Entrant!$G13/0.3,0) -> 819.1666233 | S13: =CONCATENATE(Organic_by_landing_search!D13,Organic_by_landing_search!A13,Organic_by_landing_search!B13) -> 201804BESMB | T13: =Organic_by_landing_search!E13 -> 318 | W13: =CONCATENATE(Organic_by_landing_PDP!D13,Organic_by_landing_PDP!A13,Organic_by_landing_PDP!B13) -> 201804AUrep | X13: =Organic_by_landing_PDP!E13 -> 4 | Z13: =CONCATENATE(Organic_by_landing_welcome!D13,Organic_by_landing_welcome!A13,Organic_by_landing_welcome!B13) -> 201804AUrep | AA13: =Organic_by_landing_welcome!E13 -> 242 | AC13: 201804AUguest | AD13: 6175 | AE13: 4048 | AF13: 934 | AG13: 8 | AH13: 28 | AI13: 0 | AJ13: 146.2346433 | AK13: 8936.560073 | AL13: 0 | AO13: =CONCATENATE(Organic_by_landing_category!D13,Organic_by_landing_category!A13,Organic_by_landing_category!B13) -> 201804ATcorporate | AP13: =Organic_by_landing_category!C13 -> /browse_catalogue/cat_l4/005004002004 | AQ13: Furniture | AR13: =Organic_by_landing_category!E13 -> 4 | AT13: 201804BESMB | AU13: 36 | AV13: 12 | AW13: 4 | AX13: 104 | AY13: 8 | AZ13: 4 | BA13: 168 | BC13: =CONCATENATE(Organic_by_ldg_category_ATC!E9,Organic_by_ldg_category_ATC!C9,Organic_by_ldg_category_ATC!D9) -> 201804AUcorporate | BD13: =Organic_by_ldg_category_ATC!B9 -> /browse_catalogue/cat_l3/003001004 | BE13: =IF(COUNTIF(BD13,"*/001*"),"Paper & Envelopes",IF(COUNTIF(BD13,"*/002*"),"Ink & Toners",IF(COUNTIF(BD13,"*/003*"),"Office Supplies",IF(COUNTIF(BD13,"*/004*"),"Technology",IF(COUNTIF(BD13,"*/005*"),"Furniture",IF(COUNTIF(BD13,"*/006*"),"Facilities Supplies",IF(COUNTIF(BD13,"*/007*"),"Category Specefics",IF(COUNTIF(BD13,"*/008*"),"Nespresso",0)))))))) -> Office Supplies | BF13: =Organic_by_ldg_category_ATC!F9 -> 4 | BI13: 201804DASMB | BL13: 4 | BP13: 4 | BS13: =CONCATENATE(Organic_landing_category_bounce!E15,Organic_landing_category_bounce!B15,Organic_landing_category_bounce!D15) -> 201804ATguest | BT13: =Organic_landing_category_bounce!C15 -> /browse_catalogue/cat_l3/003001001 | BU13: Office Supplies | BV13: =Organic_landing_category_bounce!F15 -> 4 | BW13: =Organic_landing_category_bounce!G15 -> 16 | BZ13: 201804AUguest | CA13: 8 | CB13: 48 | CC13: 4 | CD13: 232 | CE13: 28 | CF13: 28 | CG13: 28 | CH13: 100 | CI13: 4 | CJ13: 606 | CK13: 52 | CL13: 80 | CM13: 348 | CN13: 870 | CP13: =CONCATENATE(Bounce_rate_global!C15:C15,Bounce_rate_global!A15,Bounce_rate_global!B15) -> 201804AUrep | CQ13: =Bounce_rate_global!D15 -> 129 | CR13: =Bounce_rate_global!E15 -> 1132 | CT13: =CONCATENATE(Bounce_rate_organic!D15,Bounce_rate_organic!C15,Bounce_rate_organic!B15) -> 201804ENSMB | CU13: =Bounce_rate_organic!E15 -> 3488 | CV13: =Bounce_rate_organic!F15 -> 43148 | CX13: =CONCATENATE(Organic_landing_cat_then_order!E14,Organic_landing_cat_then_order!C14,Organic_landing_cat_then_order!B14) -> 201804AUcorporate | CY13: =Organic_landing_cat_then_order!D14 -> /browse_catalogue/cat_l2/003003 | CZ13: Office Supplies | DA13: =Organic_landing_cat_then_order!F14 -> 3 | DC13: 201804BEcorporate | DE13: 15 | DH13: 107 | DI13: 9 | DJ13: 3 | DK13: 134
A14: =CONCATENATE(General_data!C14,General_data!A14,General_data!B14) -> 201804BESMB | B14: =General_data!D14 -> 24954 | C14: =General_data!E14 -> 9985 | D14: =General_data!F14/0.3 -> 2518053.076 | G14: =CONCATENATE(Trafic_Entrant!D14,Trafic_Entrant!A14,Trafic_Entrant!B14) -> 201804ATguest | H14: =IF(Trafic_Entrant!$C14=H$4,Trafic_Entrant!$E14,0) -> 0 | I14: =IF(Trafic_Entrant!$C14=I$4,Trafic_Entrant!$E14,0) -> 632 | J14: =IF(OR(Trafic_Entrant!$C14=$F$1,Trafic_Entrant!C14=$F$2,Trafic_Entrant!C14=$F$3,Trafic_Entrant!C14=$F$4),Trafic_Entrant!$E14,0) -> 0 | K14: =IF(Trafic_Entrant!$C14=K$4,Trafic_Entrant!$F14,0) -> 0 | L14: =IF(Trafic_Entrant!$C14=L$4,Trafic_Entrant!$F14,0) -> 0 | M14: =IF(OR(Trafic_Entrant!$C14=$F$1,Trafic_Entrant!C14=$F$2,Trafic_Entrant!C14=$F$3,Trafic_Entrant!C14=$F$4),Trafic_Entrant!$F14,0) -> 0 | N14: =IF(Trafic_Entrant!$C14=N$4,Trafic_Entrant!$G14/0.3,0) -> 0 | O14: =IF(Trafic_Entrant!$C14=O$4,Trafic_Entrant!$G14/0.3,0) -> 0 | P14: =IF(OR(Trafic_Entrant!$C14=$F$1,Trafic_Entrant!$C14=$F$2,Trafic_Entrant!$C14=$F$3,Trafic_Entrant!$C14=$F$4),Trafic_Entrant!$G14/0.3,0) -> 0 | S14: =CONCATENATE(Organic_by_landing_search!D14,Organic_by_landing_search!A14,Organic_by_landing_search!B14) -> 201804BEcorporate | T14: =Organic_by_landing_search!E14 -> 306 | W14: =CONCATENATE(Organic_by_landing_PDP!D14,Organic_by_landing_PDP!A14,Organic_by_landing_PDP!B14) -> 201804BESMB | X14: =Organic_by_landing_PDP!E14 -> 439 | Z14: =CONCATENATE(Organic_by_landing_welcome!D14,Organic_by_landing_welcome!A14,Organic_by_landing_welcome!B14) -> 201804BESMB | AA14: =Organic_by_landing_welcome!E14 -> 10300 | AC14: 201804AUrep | AD14: 338 | AE14: 628 | AF14: 165 | AG14: 238 | AH14: 491 | AI14: 189 | AJ14: 38064.6785 | AK14: 71566.832 | AL14: 29827.34867 | AO14: =CONCATENATE(Organic_by_landing_category!D14,Organic_by_landing_category!A14,Organic_by_landing_category!B14) -> 201804ATguest | AP14: =Organic_by_landing_category!C14 -> /browse_catalogue/cat_l1/003 | AQ14: Office Supplies | AR14: =Organic_by_landing_category!E14 -> 28 | AT14: 201804BEcorporate | AU14: 56 | AV14: 20 | AW14: 4 | AX14: 289 | AY14: 20 | AZ14: 20 | BA14: 409 | BC14: =CONCATENATE(Organic_by_ldg_category_ATC!E10,Organic_by_ldg_category_ATC!C10,Organic_by_ldg_category_ATC!D10) -> 201804AUcorporate | BD14: =Organic_by_ldg_category_ATC!B10 -> /browse_catalogue/cat_l3/003002006 | BE14: Office Supplies | BF14: =Organic_by_ldg_category_ATC!F10 -> 4 | BI14: 201804DAcorporate | BL14: 4 | BP14: 4 | BS14: =CONCATENATE(Organic_landing_category_bounce!E16,Organic_landing_category_bounce!B16,Organic_landing_category_bounce!D16) -> 201804ATguest | BT14: =Organic_landing_category_bounce!C16 -> /browse_catalogue/cat_l3/003001002 | BU14: Office Supplies | BV14: =Organic_landing_category_bounce!F16 -> 4 | BW14: =Organic_landing_category_bounce!G16 -> 4 | BZ14: 201804BESMB | CA14: 8 | CB14: 8 | CC14: 0 | CD14: 12 | CE14: 0 | CF14: 0 | CG14: 36 | CH14: 12 | CI14: 4 | CJ14: 104 | CK14: 8 | CL14: 4 | CM14: 28 | CN14: 168 | CP14: =CONCATENATE(Bounce_rate_global!C16:C16,Bounce_rate_global!A16,Bounce_rate_global!B16) -> 201804BESMB | CQ14: =Bounce_rate_global!D16 -> 2082 | CR14: =Bounce_rate_global!E16 -> 24954 | CT14: =CONCATENATE(Bounce_rate_organic!D16,Bounce_rate_organic!C16,Bounce_rate_organic!B16) -> 201804FISMB | CU14: =Bounce_rate_organic!E16 -> 479 | CV14: =Bounce_rate_organic!F16 -> 3827 | CX14: =CONCATENATE(Organic_landing_cat_then_order!E15,Organic_landing_cat_then_order!C15,Organic_landing_cat_then_order!B15) -> 201804AUcorporate | CY14: =Organic_landing_cat_then_order!D15 -> /browse_catalogue/cat_l3/001002001 | CZ14: Paper & Envelopes | DA14: =Organic_landing_cat_then_order!F15 -> 3 | DC14: 201804BEguest | DH14: 3 | DK14: 3
A15: =CONCATENATE(General_data!C15,General_data!A15,General_data!B15) -> 201804BEcorporate | B15: =General_data!D15 -> 42911 | C15: =General_data!E15 -> 14984 | D15: =General_data!F15/0.3 -> 3064409.48 | G15: =CONCATENATE(Trafic_Entrant!D15,Trafic_Entrant!A15,Trafic_Entrant!B15) -> 201804ATguest | H15: =IF(Trafic_Entrant!$C15=H$4,Trafic_Entrant!$E15,0) -> 0 | I15: =IF(Trafic_Entrant!$C15=I$4,Trafic_Entrant!$E15,0) -> 0 | J15: =IF(OR(Trafic_Entrant!$C15=$F$1,Trafic_Entrant!C15=$F$2,Trafic_Entrant!C15=$F$3,Trafic_Entrant!C15=$F$4),Trafic_Entrant!$E15,0) -> 64 | K15: =IF(Trafic_Entrant!$C15=K$4,Trafic_Entrant!$F15,0) -> 0 | L15: =IF(Trafic_Entrant!$C15=L$4,Trafic_Entrant!$F15,0) -> 0 | M15: =IF(OR(Trafic_Entrant!$C15=$F$1,Trafic_Entrant!C15=$F$2,Trafic_Entrant!C15=$F$3,Trafic_Entrant!C15=$F$4),Trafic_Entrant!$F15,0) -> 0 | N15: =IF(Trafic_Entrant!$C15=N$4,Trafic_Entrant!$G15/0.3,0) -> 0 | O15: =IF(Trafic_Entrant!$C15=O$4,Trafic_Entrant!$G15/0.3,0) -> 0 | P15: =IF(OR(Trafic_Entrant!$C15=$F$1,Trafic_Entrant!$C15=$F$2,Trafic_Entrant!$C15=$F$3,Trafic_Entrant!$C15=$F$4),Trafic_Entrant!$G15/0.3,0) -> 0 | S15: =CONCATENATE(Organic_by_landing_search!D15,Organic_by_landing_search!A15,Organic_by_landing_search!B15) -> 201804BEguest | T15: =Organic_by_landing_search!E15 -> 274 | W15: =CONCATENATE(Organic_by_landing_PDP!D15,Organic_by_landing_PDP!A15,Organic_by_landing_PDP!B15) -> 201804BEcorporate | X15: =Organic_by_landing_PDP!E15 -> 540 | Z15: =CONCATENATE(Organic_by_landing_welcome!D15,Organic_by_landing_welcome!A15,Organic_by_landing_welcome!B15) -> 201804BEcorporate | AA15: =Organic_by_landing_welcome!E15 -> 14046 | AC15: 201804BESMB | AD15: 13840 | AE15: 8898 | AF15: 2215 | AG15: 5410 | AH15: 3766 | AI15: 810 | AJ15: 1328335.137 | AK15: 1014577.94 | AL15: 175139.9989 | AO15: =CONCATENATE(Organic_by_landing_category!D15,Organic_by_landing_category!A15,Organic_by_landing_category!B15) -> 201804ATguest | AP15: =Organic_by_landing_category!C15 -> /browse_catalogue/cat_l2/003005 | AQ15: Office Supplies | AR15: =Organic_by_landing_category!E15 -> 4 | AT15: 201804BEguest | AU15: 168 | AV15: 176 | AW15: 20 | AX15: 1163 | AY15: 76 | AZ15: 72 | BA15: 1675 | BC15: =CONCATENATE(Organic_by_ldg_category_ATC!E11,Organic_by_ldg_category_ATC!C11,Organic_by_ldg_category_ATC!D11) -> 201804AUcorporate | BD15: =Organic_by_ldg_category_ATC!B11 -> /browse_catalogue/cat_l3/003002007 | BE15: Office Supplies | BF15: =Organic_by_ldg_category_ATC!F11 -> 4 | BI15: 201804DESMB | BL15: 4 | BP15: 4 | BS15: =CONCATENATE(Organic_landing_category_bounce!E17,Organic_landing_category_bounce!B17,Organic_landing_category_bounce!D17) -> 201804ATguest | BT15: =Organic_landing_category_bounce!C17 -> /browse_catalogue/cat_l3/003001004 | BU15: Office Supplies | BV15: =Organic_landing_category_bounce!F17 -> 0 | BW15: =Organic_landing_category_bounce!G17 -> 4 | BZ15: 201804BEguest | CA15: 72 | CB15: 48 | CC15: 4 | CD15: 312 | CE15: 20 | CF15: 44 | CG15: 168 | CH15: 176 | CI15: 20 | CJ15: 1163 | CK15: 76 | CL15: 72 | CM15: 500 | CN15: 1675 | CP15: =CONCATENATE(Bounce_rate_global!C17:C17,Bounce_rate_global!A17,Bounce_rate_global!B17) -> 201804BEcorporate | CQ15: =Bounce_rate_global!D17 -> 3400 | CR15: =Bounce_rate_global!E17 -> 42911 | CT15: =CONCATENATE(Bounce_rate_organic!D17,Bounce_rate_organic!C17,Bounce_rate_organic!B17) -> 201804FRSMB | CU15: =Bounce_rate_organic!E17 -> 2646 | CV15: =Bounce_rate_organic!F17 -> 40272 | CX15: =CONCATENATE(Organic_landing_cat_then_order!E16,Organic_landing_cat_then_order!C16,Organic_landing_cat_then_order!B16) -> 201804AUcorporate | CY15: =Organic_landing_cat_then_order!D16 -> /browse_catalogue/cat_l3/001007002 | CZ15: Paper & Envelopes | DA15: =Organic_landing_cat_then_order!F16 -> 3 | DC15: 201804CHSMB | DE15: 21 | DF15: 15 | DH15: 32 | DI15: 3 | DJ15: 3 | DK15: 74
A16: =CONCATENATE(General_data!C16,General_data!A16,General_data!B16) -> 201804BEguest | B16: =General_data!D16 -> 22235 | C16: =General_data!E16 -> 222 | D16: =General_data!F16/0.3 -> 66736.77024 | G16: =CONCATENATE(Trafic_Entrant!D16,Trafic_Entrant!A16,Trafic_Entrant!B16) -> 201804ATguest | H16: =IF(Trafic_Entrant!$C16=H$4,Trafic_Entrant!$E16,0) -> 1635 | I16: =IF(Trafic_Entrant!$C16=I$4,Trafic_Entrant!$E16,0) -> 0 | J16: =IF(OR(Trafic_Entrant!$C16=$F$1,Trafic_Entrant!C16=$F$2,Trafic_Entrant!C16=$F$3,Trafic_Entrant!C16=$F$4),Trafic_Entrant!$E16,0) -> 0 | K16: =IF(Trafic_Entrant!$C16=K$4,Trafic_Entrant!$F16,0) -> 0 | L16: =IF(Trafic_Entrant!$C16=L$4,Trafic_Entrant!$F16,0) -> 0 | M16: =IF(OR(Trafic_Entrant!$C16=$F$1,Trafic_Entrant!C16=$F$2,Trafic_Entrant!C16=$F$3,Trafic_Entrant!C16=$F$4),Trafic_Entrant!$F16,0) -> 0 | N16: =IF(Trafic_Entrant!$C16=N$4,Trafic_Entrant!$G16/0.3,0) -> 0 | O16: =IF(Trafic_Entrant!$C16=O$4,Trafic_Entrant!$G16/0.3,0) -> 0 | P16: =IF(OR(Trafic_Entrant!$C16=$F$1,Trafic_Entrant!$C16=$F$2,Trafic_Entrant!$C16=$F$3,Trafic_Entrant!$C16=$F$4),Trafic_Entrant!$G16/0.3,0) -> 0 | S16: =CONCATENATE(Organic_by_landing_search!D16,Organic_by_landing_search!A16,Organic_by_landing_search!B16) -> 201804BErep | T16: =Organic_by_landing_search!E16 -> 4 | W16: =CONCATENATE(Organic_by_landing_PDP!D16,Organic_by_landing_PDP!A16,Organic_by_landing_PDP!B16) -> 201804BEguest | X16: =Organic_by_landing_PDP!E16 -> 3750 | Z16: =CONCATENATE(Organic_by_landing_welcome!D16,Organic_by_landing_welcome!A16,Organic_by_landing_welcome!B16) -> 201804BEguest | AA16: =Organic_by_landing_welcome!E16 -> 9317 | AC16: 201804BEcorporate | AD16: 19681 | AE16: 19177 | AF16: 4052 | AG16: 5796 | AH16: 7770 | AI16: 1418 | AJ16: 1238708.561 | AK16: 1588424.829 | AL16: 237276.0899 | AO16: =CONCATENATE(Organic_by_landing_category!D16,Organic_by_landing_category!A16,Organic_by_landing_category!B16) -> 201804ATguest | AP16: =Organic_by_landing_category!C16 -> /browse_catalogue/cat_l2/006005 | AQ16: Facilities Supplies | AR16: =Organic_by_landing_category!E16 -> 4 | AT16: 201804CHSMB | AU16: 56 | AV16: 97 | AX16: 132 | AY16: 24 | AZ16: 12 | BA16: 321 | BC16: =CONCATENATE(Organic_by_ldg_category_ATC!E12,Organic_by_ldg_category_ATC!C12,Organic_by_ldg_category_ATC!D12) -> 201804AUcorporate | BD16: =Organic_by_ldg_category_ATC!B12 -> /browse_catalogue/cat_l3/004001001 | BE16: Technology | BF16: =Organic_by_ldg_category_ATC!F12 -> 4 | BI16: 201804DEcorporate | BL16: 8 | BP16: 8 | BS16: =CONCATENATE(Organic_landing_category_bounce!E18,Organic_landing_category_bounce!B18,Organic_landing_category_bounce!D18) -> 201804ATguest | BT16: =Organic_landing_category_bounce!C18 -> /browse_catalogue/cat_l3/003001005 | BU16: Office Supplies | BV16: =Organic_landing_category_bounce!F18 -> 0 | BW16: =Organic_landing_category_bounce!G18 -> 8 | BZ16: 201804BEcorporate | CA16: 12 | CB16: 8 | CC16: 0 | CD16: 24 | CE16: 0 | CF16: 4 | CG16: 56 | CH16: 20 | CI16: 4 | CJ16: 289 | CK16: 20 | CL16: 20 | CM16: 48 | CN16: 409 | CP16: =CONCATENATE(Bounce_rate_global!C18:C18,Bounce_rate_global!A18,Bounce_rate_global!B18) -> 201804BEguest | CQ16: =Bounce_rate_global!D18 -> 7226 | CR16: =Bounce_rate_global!E18 -> 22235 | CT16: =CONCATENATE(Bounce_rate_organic!D18,Bounce_rate_organic!C18,Bounce_rate_organic!B18) -> 201804HKSMB | CU16: =Bounce_rate_organic!E18 -> 556 | CV16: =Bounce_rate_organic!F18 -> 3927 | CX16: =CONCATENATE(Organic_landing_cat_then_order!E17,Organic_landing_cat_then_order!C17,Organic_landing_cat_then_order!B17) -> 201804AUcorporate | CY16: =Organic_landing_cat_then_order!D17 -> /browse_catalogue/cat_l3/003001008 | CZ16: Office Supplies | DA16: =Organic_landing_cat_then_order!F17 -> 3 | DC16: 201804CHcorporate | DE16: 3 | DH16: 21 | DK16: 24
A17: =CONCATENATE(General_data!C17,General_data!A17,General_data!B17) -> 201804BErep | B17: =General_data!D17 -> 435 | C17: =General_data!E17 -> 125 | D17: =General_data!F17/0.3 -> 19209.79967 | G17: =CONCATENATE(Trafic_Entrant!D17,Trafic_Entrant!A17,Trafic_Entrant!B17) -> 201804ATguest | H17: =IF(Trafic_Entrant!$C17=H$4,Trafic_Entrant!$E17,0) -> 0 | I17: =IF(Trafic_Entrant!$C17=I$4,Trafic_Entrant!$E17,0) -> 0 | J17: =IF(OR(Trafic_Entrant!$C17=$F$1,Trafic_Entrant!C17=$F$2,Trafic_Entrant!C17=$F$3,Trafic_Entrant!C17=$F$4),Trafic_Entrant!$E17,0) -> 44 | K17: =IF(Trafic_Entrant!$C17=K$4,Trafic_Entrant!$F17,0) -> 0 | L17: =IF(Trafic_Entrant!$C17=L$4,Trafic_Entrant!$F17,0) -> 0 | M17: =IF(OR(Trafic_Entrant!$C17=$F$1,Trafic_Entrant!C17=$F$2,Trafic_Entrant!C17=$F$3,Trafic_Entrant!C17=$F$4),Trafic_Entrant!$F17,0) -> 0 | N17: =IF(Trafic_Entrant!$C17=N$4,Trafic_Entrant!$G17/0.3,0) -> 0 | O17: =IF(Trafic_Entrant!$C17=O$4,Trafic_Entrant!$G17/0.3,0) -> 0 | P17: =IF(OR(Trafic_Entrant!$C17=$F$1,Trafic_Entrant!$C17=$F$2,Trafic_Entrant!$C17=$F$3,Trafic_Entrant!$C17=$F$4),Trafic_Entrant!$G17/0.3,0) -> 0 | S17: =CONCATENATE(Organic_by_landing_search!D17,Organic_by_landing_search!A17,Organic_by_landing_search!B17) -> 201804CHSMB | T17: =Organic_by_landing_search!E17 -> 512 | W17: =CONCATENATE(Organic_by_landing_PDP!D17,Organic_by_landing_PDP!A17,Organic_by_landing_PDP!B17) -> 201804BErep | X17: =Organic_by_landing_PDP!E17 -> 8 | Z17: =CONCATENATE(Organic_by_landing_welcome!D17,Organic_by_landing_welcome!A17,Organic_by_landing_welcome!B17) -> 201804BErep | AA17: =Organic_by_landing_welcome!E17 -> 157 | AC17: 201804BEguest | AD17: 16011 | AE17: 5200 | AF17: 1022 | AG17: 129 | AH17: 28 | AI17: 64 | AJ17: 28011.04079 | AK17: 3841.127473 | AL17: 34884.60198 | AO17: =CONCATENATE(Organic_by_landing_category!D17,Organic_by_landing_category!A17,Organic_by_landing_category!B17) -> 201804ATguest | AP17: =Organic_by_landing_category!C17 -> /browse_catalogue/cat_l3/003001001 | AQ17: Office Supplies | AR17: =Organic_by_landing_category!E17 -> 16 | AT17: 201804CHcorporate | AU17: 20 | AV17: 12 | AW17: 4 | AX17: 80 | AY17: 4 | AZ17: 8 | BA17: 128 | BC17: =CONCATENATE(Organic_by_ldg_category_ATC!E13,Organic_by_ldg_category_ATC!C13,Organic_by_ldg_category_ATC!D13) -> 201804AUcorporate | BD17: =Organic_by_ldg_category_ATC!B13 -> /browse_catalogue/cat_l3/006001001 | BE17: Facilities Supplies | BF17: =Organic_by_ldg_category_ATC!F13 -> 4 | BI17: 201804ENcorporate | BJ17: 4 | BK17: 4 | BL17: 4 | BM17: 8 | BP17: 20 | BS17: =CONCATENATE(Organic_landing_category_bounce!E19,Organic_landing_category_bounce!B19,Organic_landing_category_bounce!D19) -> 201804ATguest | BT17: =Organic_landing_category_bounce!C19 -> /browse_catalogue/cat_l3/003001007 | BU17: Office Supplies | BV17: =Organic_landing_category_bounce!F19 -> 4 | BW17: =Organic_landing_category_bounce!G19 -> 4 | BZ17: 201804CHSMB | CA17: 8 | CB17: 4 | CD17: 12 | CE17: 4 | CF17: 4 | CG17: 56 | CH17: 97 | CJ17: 132 | CK17: 24 | CL17: 12 | CM17: 32 | CN17: 321 | CP17: =CONCATENATE(Bounce_rate_global!C19:C19,Bounce_rate_global!A19,Bounce_rate_global!B19) -> 201804BErep | CQ17: =Bounce_rate_global!D19 -> 52 | CR17: =Bounce_rate_global!E19 -> 435 | CT17: =CONCATENATE(Bounce_rate_organic!D19,Bounce_rate_organic!C19,Bounce_rate_organic!B19) -> 201804HUSMB | CU17: =Bounce_rate_organic!E19 -> 242 | CV17: =Bounce_rate_organic!F19 -> 2441 | CX17: =CONCATENATE(Organic_landing_cat_then_order!E18,Organic_landing_cat_then_order!C18,Organic_landing_cat_then_order!B18) -> 201804AUcorporate | CY17: =Organic_landing_cat_then_order!D18 -> /browse_catalogue/cat_l3/003002006 | CZ17: Office Supplies | DA17: =Organic_landing_cat_then_order!F18 -> 3 | DC17: 201804CZSMB | DH17: 6 | DI17: 3 | DK17: 9
A18: =CONCATENATE(General_data!C18,General_data!A18,General_data!B18) -> 201804CHSMB | B18: =General_data!D18 -> 45758 | C18: =General_data!E18 -> 21606 | D18: =General_data!F18/0.3 -> 4895989.984 | G18: =CONCATENATE(Trafic_Entrant!D18,Trafic_Entrant!A18,Trafic_Entrant!B18) -> 201804ATrep | H18: =IF(Trafic_Entrant!$C18=H$4,Trafic_Entrant!$E18,0) -> 0 | I18: =IF(Trafic_Entrant!$C18=I$4,Trafic_Entrant!$E18,0) -> 274 | J18: =IF(OR(Trafic_Entrant!$C18=$F$1,Trafic_Entrant!C18=$F$2,Trafic_Entrant!C18=$F$3,Trafic_Entrant!C18=$F$4),Trafic_Entrant!$E18,0) -> 0 | K18: =IF(Trafic_Entrant!$C18=K$4,Trafic_Entrant!$F18,0) -> 0 | L18: =IF(Trafic_Entrant!$C18=L$4,Trafic_Entrant!$F18,0) -> 250 | M18: =IF(OR(Trafic_Entrant!$C18=$F$1,Trafic_Entrant!C18=$F$2,Trafic_Entrant!C18=$F$3,Trafic_Entrant!C18=$F$4),Trafic_Entrant!$F18,0) -> 0 | N18: =IF(Trafic_Entrant!$C18=N$4,Trafic_Entrant!$G18/0.3,0) -> 0 | O18: =IF(Trafic_Entrant!$C18=O$4,Trafic_Entrant!$G18/0.3,0) -> 68869.47679 | P18: =IF(OR(Trafic_Entrant!$C18=$F$1,Trafic_Entrant!$C18=$F$2,Trafic_Entrant!$C18=$F$3,Trafic_Entrant!$C18=$F$4),Trafic_Entrant!$G18/0.3,0) -> 0 | S18: =CONCATENATE(Organic_by_landing_search!D18,Organic_by_landing_search!A18,Organic_by_landing_search!B18) -> 201804CHcorporate | T18: =Organic_by_landing_search!E18 -> 270 | W18: =CONCATENATE(Organic_by_landing_PDP!D18,Organic_by_landing_PDP!A18,Organic_by_landing_PDP!B18) -> 201804CHSMB | X18: =Organic_by_landing_PDP!E18 -> 850 | Z18: =CONCATENATE(Organic_by_landing_welcome!D18,Organic_by_landing_welcome!A18,Organic_by_landing_welcome!B18) -> 201804CHSMB | AA18: =Organic_by_landing_welcome!E18 -> 16809 | AC18: 201804BErep | AD18: 222 | AE18: 149 | AF18: 64 | AG18: 81 | AH18: 28 | AI18: 16 | AJ18: 11614.81866 | AK18: 6352.200113 | AL18: 1242.7809 | AO18: =CONCATENATE(Organic_by_landing_category!D18,Organic_by_landing_category!A18,Organic_by_landing_category!B18) -> 201804ATguest | AP18: =Organic_by_landing_category!C18 -> /browse_catalogue/cat_l3/003001002 | AQ18: Office Supplies | AR18: =Organic_by_landing_category!E18 -> 4 | AT18: 201804CHguest | AU18: 404 | AV18: 196 | AW18: 12 | AX18: 1430 | AY18: 184 | AZ18: 108 | BA18: 2334 | BC18: =CONCATENATE(Organic_by_ldg_category_ATC!E14,Organic_by_ldg_category_ATC!C14,Organic_by_ldg_category_ATC!D14) -> 201804BEcorporate | BD18: =Organic_by_ldg_category_ATC!B14 -> /browse_catalogue/cat_l2/006002 | BE18: Facilities Supplies | BF18: =Organic_by_ldg_category_ATC!F14 -> 4 | BI18: 201804ENSMB | BM18: 16 | BP18: 16 | BS18: =CONCATENATE(Organic_landing_category_bounce!E20,Organic_landing_category_bounce!B20,Organic_landing_category_bounce!D20) -> 201804ATSMB | BT18: =Organic_landing_category_bounce!C20 -> /browse_catalogue/cat_l3/003002001 | BU18: Office Supplies | BV18: =Organic_landing_category_bounce!F20 -> 4 | BW18: =Organic_landing_category_bounce!G20 -> 4 | BZ18: 201804CHcorporate | CA18: 4 | CB18: 4 | CC18: 0 | CD18: 16 | CE18: 0 | CF18: 4 | CG18: 20 | CH18: 12 | CI18: 4 | CJ18: 80 | CK18: 4 | CL18: 8 | CM18: 28 | CN18: 128 | CP18: =CONCATENATE(Bounce_rate_global!C20:C20,Bounce_rate_global!A20,Bounce_rate_global!B20) -> 201804CHSMB | CQ18: =Bounce_rate_global!D20 -> 3790 | CR18: =Bounce_rate_global!E20 -> 45758 | CT18: =CONCATENATE(Bounce_rate_organic!D20,Bounce_rate_organic!C20,Bounce_rate_organic!B20) -> 201804IRSMB | CU18: =Bounce_rate_organic!E20 -> 314 | CV18: =Bounce_rate_organic!F20 -> 3738 | CX18: =CONCATENATE(Organic_landing_cat_then_order!E19,Organic_landing_cat_then_order!C19,Organic_landing_cat_then_order!B19) -> 201804AUcorporate | CY18: =Organic_landing_cat_then_order!D19 -> /browse_catalogue/cat_l3/004001001 | CZ18: Technology | DA18: =Organic_landing_cat_then_order!F19 -> 3 | DC18: 201804CZcorporate | DE18: 3 | DK18: 3
A19: =CONCATENATE(General_data!C19,General_data!A19,General_data!B19) -> 201804CHcorporate | B19: =General_data!D19 -> 43358 | C19: =General_data!E19 -> 20644 | D19: =General_data!F19/0.3 -> 3850524.069 | G19: =CONCATENATE(Trafic_Entrant!D19,Trafic_Entrant!A19,Trafic_Entrant!B19) -> 201804ATrep | H19: =IF(Trafic_Entrant!$C19=H$4,Trafic_Entrant!$E19,0) -> 669 | I19: =IF(Trafic_Entrant!$C19=I$4,Trafic_Entrant!$E19,0) -> 0 | J19: =IF(OR(Trafic_Entrant!$C19=$F$1,Trafic_Entrant!C19=$F$2,Trafic_Entrant!C19=$F$3,Trafic_Entrant!C19=$F$4),Trafic_Entrant!$E19,0) -> 0 | K19: =IF(Trafic_Entrant!$C19=K$4,Trafic_Entrant!$F19,0) -> 701 | L19: =IF(Trafic_Entrant!$C19=L$4,Trafic_Entrant!$F19,0) -> 0 | M19: =IF(OR(Trafic_Entrant!$C19=$F$1,Trafic_Entrant!C19=$F$2,Trafic_Entrant!C19=$F$3,Trafic_Entrant!C19=$F$4),Trafic_Entrant!$F19,0) -> 0 | N19: =IF(Trafic_Entrant!$C19=N$4,Trafic_Entrant!$G19/0.3,0) -> 120668.171 | O19: =IF(Trafic_Entrant!$C19=O$4,Trafic_Entrant!$G19/0.3,0) -> 0 | P19: =IF(OR(Trafic_Entrant!$C19=$F$1,Trafic_Entrant!$C19=$F$2,Trafic_Entrant!$C19=$F$3,Trafic_Entrant!$C19=$F$4),Trafic_Entrant!$G19/0.3,0) -> 0 | S19: =CONCATENATE(Organic_by_landing_search!D19,Organic_by_landing_search!A19,Organic_by_landing_search!B19) -> 201804CHguest | T19: =Organic_by_landing_search!E19 -> 242 | W19: =CONCATENATE(Organic_by_landing_PDP!D19,Organic_by_landing_PDP!A19,Organic_by_landing_PDP!B19) -> 201804CHcorporate | X19: =Organic_by_landing_PDP!E19 -> 495 | Z19: =CONCATENATE(Organic_by_landing_welcome!D19,Organic_by_landing_welcome!A19,Organic_by_landing_welcome!B19) -> 201804CHcorporate | AA19: =Organic_by_landing_welcome!E19 -> 10477 | AC19: 201804CHSMB | AD19: 22154 | AE19: 21377 | AF19: 2227 | AG19: 9651 | AH19: 11045 | AI19: 911 | AJ19: 2097667.846 | AK19: 2578134.363 | AL19: 220187.775 | AO19: =CONCATENATE(Organic_by_landing_category!D19,Organic_by_landing_category!A19,Organic_by_landing_category!B19) -> 201804ATguest | AP19: =Organic_by_landing_category!C19 -> /browse_catalogue/cat_l3/003001004 | AQ19: Office Supplies | AR19: =Organic_by_landing_category!E19 -> 4 | AT19: 201804CZSMB | AU19: 8 | AX19: 28 | AY19: 8 | BA19: 44 | BC19: =CONCATENATE(Organic_by_ldg_category_ATC!E15,Organic_by_ldg_category_ATC!C15,Organic_by_ldg_category_ATC!D15) -> 201804BESMB | BD19: =Organic_by_ldg_category_ATC!B15 -> /browse_catalogue/cat_l3/001001001 | BE19: Paper & Envelopes | BF19: =Organic_by_ldg_category_ATC!F15 -> 4 | BI19: 201804FIcorporate | BJ19: 4 | BL19: 4 | BP19: 8 | BS19: =CONCATENATE(Organic_landing_category_bounce!E21,Organic_landing_category_bounce!B21,Organic_landing_category_bounce!D21) -> 201804ATguest | BT19: =Organic_landing_category_bounce!C21 -> /browse_catalogue/cat_l3/003002001 | BU19: Office Supplies | BV19: =Organic_landing_category_bounce!F21 -> 4 | BW19: =Organic_landing_category_bounce!G21 -> 8 | BZ19: 201804CHguest | CA19: 200 | CB19: 84 | CC19: 4 | CD19: 528 | CE19: 108 | CF19: 44 | CG19: 404 | CH19: 196 | CI19: 12 | CJ19: 1430 | CK19: 184 | CL19: 108 | CM19: 968 | CN19: 2334 | CP19: =CONCATENATE(Bounce_rate_global!C21:C21,Bounce_rate_global!A21,Bounce_rate_global!B21) -> 201804CHcorporate | CQ19: =Bounce_rate_global!D21 -> 3311 | CR19: =Bounce_rate_global!E21 -> 43358 | CT19: =CONCATENATE(Bounce_rate_organic!D21,Bounce_rate_organic!C21,Bounce_rate_organic!B21) -> 201804ITSMB | CU19: =Bounce_rate_organic!E21 -> 1567 | CV19: =Bounce_rate_organic!F21 -> 20426 | CX19: =CONCATENATE(Organic_landing_cat_then_order!E20,Organic_landing_cat_then_order!C20,Organic_landing_cat_then_order!B20) -> 201804BESMB | CY19: =Organic_landing_cat_then_order!D20 -> /browse_catalogue/cat_l1/003 | CZ19: Office Supplies | DA19: =Organic_landing_cat_then_order!F20 -> 17 | DC19: 201804DASMB | DE19: 3 | DF19: 3 | DH19: 3 | DK19: 9
A20: =CONCATENATE(General_data!C20,General_data!A20,General_data!B20) -> 201804CHguest | B20: =General_data!D20 -> 34875 | C20: =General_data!E20 -> 113 | D20: =General_data!F20/0.3 -> 24962.18742 | G20: =CONCATENATE(Trafic_Entrant!D20,Trafic_Entrant!A20,Trafic_Entrant!B20) -> 201804AUSMB | H20: =IF(Trafic_Entrant!$C20=H$4,Trafic_Entrant!$E20,0) -> 0 | I20: =IF(Trafic_Entrant!$C20=I$4,Trafic_Entrant!$E20,0) -> 0 | J20: =IF(OR(Trafic_Entrant!$C20=$F$1,Trafic_Entrant!C20=$F$2,Trafic_Entrant!C20=$F$3,Trafic_Entrant!C20=$F$4),Trafic_Entrant!$E20,0) -> 4 | K20: =IF(Trafic_Entrant!$C20=K$4,Trafic_Entrant!$F20,0) -> 0 | L20: =IF(Trafic_Entrant!$C20=L$4,Trafic_Entrant!$F20,0) -> 0 | M20: =IF(OR(Trafic_Entrant!$C20=$F$1,Trafic_Entrant!C20=$F$2,Trafic_Entrant!C20=$F$3,Trafic_Entrant!C20=$F$4),Trafic_Entrant!$F20,0) -> 0 | N20: =IF(Trafic_Entrant!$C20=N$4,Trafic_Entrant!$G20/0.3,0) -> 0 | O20: =IF(Trafic_Entrant!$C20=O$4,Trafic_Entrant!$G20/0.3,0) -> 0 | P20: =IF(OR(Trafic_Entrant!$C20=$F$1,Trafic_Entrant!$C20=$F$2,Trafic_Entrant!$C20=$F$3,Trafic_Entrant!$C20=$F$4),Trafic_Entrant!$G20/0.3,0) -> 0 | S20: =CONCATENATE(Organic_by_landing_search!D20,Organic_by_landing_search!A20,Organic_by_landing_search!B20) -> 201804CHrep | T20: =Organic_by_landing_search!E20 -> 16 | W20: =CONCATENATE(Organic_by_landing_PDP!D20,Organic_by_landing_PDP!A20,Organic_by_landing_PDP!B20) -> 201804CHguest | X20: =Organic_by_landing_PDP!E20 -> 7263 | Z20: =CONCATENATE(Organic_by_landing_welcome!D20,Organic_by_landing_welcome!A20,Organic_by_landing_welcome!B20) -> 201804CHguest | AA20: =Organic_by_landing_welcome!E20 -> 10727 | AC20: 201804CHcorporate | AD20: 14110 | AE20: 23653 | AF20: 5595 | AG20: 5800 | AH20: 12475 | AI20: 2368 | AJ20: 1144175.084 | AK20: 2431717.163 | AL20: 274631.8214 | AO20: =CONCATENATE(Organic_by_landing_category!D20,Organic_by_landing_category!A20,Organic_by_landing_category!B20) -> 201804ATguest | AP20: =Organic_by_landing_category!C20 -> /browse_catalogue/cat_l3/003001005 | AQ20: Office Supplies | AR20: =Organic_by_landing_category!E20 -> 8 | AT20: 201804CZcorporate | AX20: 8 | BA20: 8 | BC20: =CONCATENATE(Organic_by_ldg_category_ATC!E16,Organic_by_ldg_category_ATC!C16,Organic_by_ldg_category_ATC!D16) -> 201804BEcorporate | BD20: =Organic_by_ldg_category_ATC!B16 -> /browse_catalogue/cat_l3/003001001 | BE20: Office Supplies | BF20: =Organic_by_ldg_category_ATC!F16 -> 4 | BI20: 201804FRcorporate | BJ20: 4 | BL20: 76 | BM20: 24 | BP20: 104 | BS20: =CONCATENATE(Organic_landing_category_bounce!E22,Organic_landing_category_bounce!B22,Organic_landing_category_bounce!D22) -> 201804ATguest | BT20: =Organic_landing_category_bounce!C22 -> /browse_catalogue/cat_l3/003002005 | BU20: Office Supplies | BV20: =Organic_landing_category_bounce!F22 -> 0 | BW20: =Organic_landing_category_bounce!G22 -> 4 | BZ20: 201804CZSMB | CA20: 4 | CD20: 0 | CE20: 4 | CG20: 8 | CJ20: 28 | CK20: 8 | CM20: 8 | CN20: 44 | CP20: =CONCATENATE(Bounce_rate_global!C22:C22,Bounce_rate_global!A22,Bounce_rate_global!B22) -> 201804CHguest | CQ20: =Bounce_rate_global!D22 -> 13486 | CR20: =Bounce_rate_global!E22 -> 34875 | CT20: =CONCATENATE(Bounce_rate_organic!D22,Bounce_rate_organic!C22,Bounce_rate_organic!B22) -> 201804KRSMB | CU20: =Bounce_rate_organic!E22 -> 447 | CV20: =Bounce_rate_organic!F22 -> 5518 | CX20: =CONCATENATE(Organic_landing_cat_then_order!E21,Organic_landing_cat_then_order!C21,Organic_landing_cat_then_order!B21) -> 201804BESMB | CY20: =Organic_landing_cat_then_order!D21 -> /browse_catalogue/cat_l2/002003 | CZ20: Ink & Toners | DA20: =Organic_landing_cat_then_order!F21 -> 3 | DC20: 201804DAcorporate | DH20: 41 | DI20: 3 | DK20: 44
A21: =CONCATENATE(General_data!C21,General_data!A21,General_data!B21) -> 201804CHrep | B21: =General_data!D21 -> 367 | C21: =General_data!E21 -> 20 | D21: =General_data!F21/0.3 -> 8096.58572 | G21: =CONCATENATE(Trafic_Entrant!D21,Trafic_Entrant!A21,Trafic_Entrant!B21) -> 201804AUSMB | H21: =IF(Trafic_Entrant!$C21=H$4,Trafic_Entrant!$E21,0) -> 0 | I21: =IF(Trafic_Entrant!$C21=I$4,Trafic_Entrant!$E21,0) -> 4403 | J21: =IF(OR(Trafic_Entrant!$C21=$F$1,Trafic_Entrant!C21=$F$2,Trafic_Entrant!C21=$F$3,Trafic_Entrant!C21=$F$4),Trafic_Entrant!$E21,0) -> 0 | K21: =IF(Trafic_Entrant!$C21=K$4,Trafic_Entrant!$F21,0) -> 0 | L21: =IF(Trafic_Entrant!$C21=L$4,Trafic_Entrant!$F21,0) -> 1873 | M21: =IF(OR(Trafic_Entrant!$C21=$F$1,Trafic_Entrant!C21=$F$2,Trafic_Entrant!C21=$F$3,Trafic_Entrant!C21=$F$4),Trafic_Entrant!$F21,0) -> 0 | N21: =IF(Trafic_Entrant!$C21=N$4,Trafic_Entrant!$G21/0.3,0) -> 0 | O21: =IF(Trafic_Entrant!$C21=O$4,Trafic_Entrant!$G21/0.3,0) -> 225242.8128 | P21: =IF(OR(Trafic_Entrant!$C21=$F$1,Trafic_Entrant!$C21=$F$2,Trafic_Entrant!$C21=$F$3,Trafic_Entrant!$C21=$F$4),Trafic_Entrant!$G21/0.3,0) -> 0 | S21: =CONCATENATE(Organic_by_landing_search!D21,Organic_by_landing_search!A21,Organic_by_landing_search!B21) -> 201804CZSMB | T21: =Organic_by_landing_search!E21 -> 48 | W21: =CONCATENATE(Organic_by_landing_PDP!D21,Organic_by_landing_PDP!A21,Organic_by_landing_PDP!B21) -> 201804CHrep | X21: =Organic_by_landing_PDP!E21 -> 12 | Z21: =CONCATENATE(Organic_by_landing_welcome!D21,Organic_by_landing_welcome!A21,Organic_by_landing_welcome!B21) -> 201804CHrep | AA21: =Organic_by_landing_welcome!E21 -> 209 | AC21: 201804CHguest | AD21: 21864 | AE21: 11750 | AF21: 1261 | AG21: 44 | AH21: 68 | AI21: 0 | AJ21: 6706.207337 | AK21: 18255.98008 | AL21: 0 | AO21: =CONCATENATE(Organic_by_landing_category!D21,Organic_by_landing_category!A21,Organic_by_landing_category!B21) -> 201804ATguest | AP21: =Organic_by_landing_category!C21 -> /browse_catalogue/cat_l3/003001007 | AQ21: Office Supplies | AR21: =Organic_by_landing_category!E21 -> 4 | AT21: 201804CZguest | AU21: 48 | AV21: 36 | AX21: 229 | AY21: 16 | AZ21: 20 | BA21: 349 | BC21: =CONCATENATE(Organic_by_ldg_category_ATC!E17,Organic_by_ldg_category_ATC!C17,Organic_by_ldg_category_ATC!D17) -> 201804BEcorporate | BD21: =Organic_by_ldg_category_ATC!B17 -> /browse_catalogue/cat_l3/003001006 | BE21: Office Supplies | BF21: =Organic_by_ldg_category_ATC!F17 -> 8 | BI21: 201804FRguest | BL21: 4 | BP21: 4 | BS21: =CONCATENATE(Organic_landing_category_bounce!E23,Organic_landing_category_bounce!B23,Organic_landing_category_bounce!D23) -> 201804ATguest | BT21: =Organic_landing_category_bounce!C23 -> /browse_catalogue/cat_l3/003002007 | BU21: Office Supplies | BV21: =Organic_landing_category_bounce!F23 -> 0 | BW21: =Organic_landing_category_bounce!G23 -> 4 | BZ21: 201804CZguest | CA21: 32 | CB21: 12 | CD21: 64 | CE21: 12 | CF21: 8 | CG21: 48 | CH21: 36 | CJ21: 229 | CK21: 16 | CL21: 20 | CM21: 128 | CN21: 349 | CP21: =CONCATENATE(Bounce_rate_global!C23:C23,Bounce_rate_global!A23,Bounce_rate_global!B23) -> 201804CHrep | CQ21: =Bounce_rate_global!D23 -> 32 | CR21: =Bounce_rate_global!E23 -> 367 | CT21: =CONCATENATE(Bounce_rate_organic!D23,Bounce_rate_organic!C23,Bounce_rate_organic!B23) -> 201804LUSMB | CU21: =Bounce_rate_organic!E23 -> 213 | CV21: =Bounce_rate_organic!F23 -> 1402 | CX21: =CONCATENATE(Organic_landing_cat_then_order!E22,Organic_landing_cat_then_order!C22,Organic_landing_cat_then_order!B22) -> 201804BESMB | CY21: =Organic_landing_cat_then_order!D22 -> /browse_catalogue/cat_l2/006001 | CZ21: Facilities Supplies | DA21: =Organic_landing_cat_then_order!F22 -> 3 | DC21: 201804DESMB | DG21: 3 | DH21: 52 | DI21: 6 | DK21: 61
A22: =CONCATENATE(General_data!C22,General_data!A22,General_data!B22) -> 201804CZSMB | B22: =General_data!D22 -> 6948 | C22: =General_data!E22 -> 2336 | D22: =General_data!F22/0.3 -> 332444.3717 | G22: =CONCATENATE(Trafic_Entrant!D22,Trafic_Entrant!A22,Trafic_Entrant!B22) -> 201804AUSMB | H22: =IF(Trafic_Entrant!$C22=H$4,Trafic_Entrant!$E22,0) -> 0 | I22: =IF(Trafic_Entrant!$C22=I$4,Trafic_Entrant!$E22,0) -> 0 | J22: =IF(OR(Trafic_Entrant!$C22=$F$1,Trafic_Entrant!C22=$F$2,Trafic_Entrant!C22=$F$3,Trafic_Entrant!C22=$F$4),Trafic_Entrant!$E22,0) -> 383 | K22: =IF(Trafic_Entrant!$C22=K$4,Trafic_Entrant!$F22,0) -> 0 | L22: =IF(Trafic_Entrant!$C22=L$4,Trafic_Entrant!$F22,0) -> 0 | M22: =IF(OR(Trafic_Entrant!$C22=$F$1,Trafic_Entrant!C22=$F$2,Trafic_Entrant!C22=$F$3,Trafic_Entrant!C22=$F$4),Trafic_Entrant!$F22,0) -> 93 | N22: =IF(Trafic_Entrant!$C22=N$4,Trafic_Entrant!$G22/0.3,0) -> 0 | O22: =IF(Trafic_Entrant!$C22=O$4,Trafic_Entrant!$G22/0.3,0) -> 0 | P22: =IF(OR(Trafic_Entrant!$C22=$F$1,Trafic_Entrant!$C22=$F$2,Trafic_Entrant!$C22=$F$3,Trafic_Entrant!$C22=$F$4),Trafic_Entrant!$G22/0.3,0) -> 13093.72594 | S22: =CONCATENATE(Organic_by_landing_search!D22,Organic_by_landing_search!A22,Organic_by_landing_search!B22) -> 201804CZcorporate | T22: =Organic_by_landing_search!E22 -> 36 | W22: =CONCATENATE(Organic_by_landing_PDP!D22,Organic_by_landing_PDP!A22,Organic_by_landing_PDP!B22) -> 201804CZSMB | X22: =Organic_by_landing_PDP!E22 -> 73 | Z22: =CONCATENATE(Organic_by_landing_welcome!D22,Organic_by_landing_welcome!A22,Organic_by_landing_welcome!B22) -> 201804CZSMB | AA22: =Organic_by_landing_welcome!E22 -> 2304 | AC22: 201804CHrep | AD22: 258 | AE22: 109 | AF22: 0 | AG22: 8 | AH22: 12 | AI22: 0 | AJ22: 6274.404833 | AK22: 1822.180887 | AL22: 0 | AO22: =CONCATENATE(Organic_by_landing_category!D22,Organic_by_landing_category!A22,Organic_by_landing_category!B22) -> 201804ATguest | AP22: =Organic_by_landing_category!C22 -> /browse_catalogue/cat_l3/003002001 | AQ22: Office Supplies | AR22: =Organic_by_landing_category!E22 -> 8 | AT22: 201804CZrep | AU22: 4 | BA22: 4 | BC22: =CONCATENATE(Organic_by_ldg_category_ATC!E18,Organic_by_ldg_category_ATC!C18,Organic_by_ldg_category_ATC!D18) -> 201804BEcorporate | BD22: =Organic_by_ldg_category_ATC!B18 -> /browse_catalogue/cat_l3/006001003 | BE22: Facilities Supplies | BF22: =Organic_by_ldg_category_ATC!F18 -> 4 | BI22: 201804FRSMB | BK22: 4 | BL22: 8 | BM22: 12 | BP22: 24 | BS22: =CONCATENATE(Organic_landing_category_bounce!E24,Organic_landing_category_bounce!B24,Organic_landing_category_bounce!D24) -> 201804ATguest | BT22: =Organic_landing_category_bounce!C24 -> /browse_catalogue/cat_l3/003003001 | BU22: Office Supplies | BV22: =Organic_landing_category_bounce!F24 -> 0 | BW22: =Organic_landing_category_bounce!G24 -> 4 | BZ22: 201804CZrep | CA22: 0 | CG22: 4 | CM22: 0 | CN22: 4 | CP22: =CONCATENATE(Bounce_rate_global!C24:C24,Bounce_rate_global!A24,Bounce_rate_global!B24) -> 201804CZSMB | CQ22: =Bounce_rate_global!D24 -> 644 | CR22: =Bounce_rate_global!E24 -> 6948 | CT22: =CONCATENATE(Bounce_rate_organic!D24,Bounce_rate_organic!C24,Bounce_rate_organic!B24) -> 201804MYSMB | CU22: =Bounce_rate_organic!E24 -> 749 | CV22: =Bounce_rate_organic!F24 -> 4697 | CX22: =CONCATENATE(Organic_landing_cat_then_order!E23,Organic_landing_cat_then_order!C23,Organic_landing_cat_then_order!B23) -> 201804BESMB | CY22: =Organic_landing_cat_then_order!D23 -> /browse_catalogue/cat_l3/003002001 | CZ22: Office Supplies | DA22: =Organic_landing_cat_then_order!F23 -> 6 | DC22: 201804DEcorporate | DH22: 84 | DI22: 3 | DJ22: 3 | DK22: 90
A23: =CONCATENATE(General_data!C23,General_data!A23,General_data!B23) -> 201804CZcorporate | B23: =General_data!D23 -> 5470 | C23: =General_data!E23 -> 2082 | D23: =General_data!F23/0.3 -> 210285.7043 | G23: =CONCATENATE(Trafic_Entrant!D23,Trafic_Entrant!A23,Trafic_Entrant!B23) -> 201804AUSMB | H23: =IF(Trafic_Entrant!$C23=H$4,Trafic_Entrant!$E23,0) -> 4084 | I23: =IF(Trafic_Entrant!$C23=I$4,Trafic_Entrant!$E23,0) -> 0 | J23: =IF(OR(Trafic_Entrant!$C23=$F$1,Trafic_Entrant!C23=$F$2,Trafic_Entrant!C23=$F$3,Trafic_Entrant!C23=$F$4),Trafic_Entrant!$E23,0) -> 0 | K23: =IF(Trafic_Entrant!$C23=K$4,Trafic_Entrant!$F23,0) -> 1378 | L23: =IF(Trafic_Entrant!$C23=L$4,Trafic_Entrant!$F23,0) -> 0 | M23: =IF(OR(Trafic_Entrant!$C23=$F$1,Trafic_Entrant!C23=$F$2,Trafic_Entrant!C23=$F$3,Trafic_Entrant!C23=$F$4),Trafic_Entrant!$F23,0) -> 0 | N23: =IF(Trafic_Entrant!$C23=N$4,Trafic_Entrant!$G23/0.3,0) -> 155009.2657 | O23: =IF(Trafic_Entrant!$C23=O$4,Trafic_Entrant!$G23/0.3,0) -> 0 | P23: =IF(OR(Trafic_Entrant!$C23=$F$1,Trafic_Entrant!$C23=$F$2,Trafic_Entrant!$C23=$F$3,Trafic_Entrant!$C23=$F$4),Trafic_Entrant!$G23/0.3,0) -> 0 | S23: =CONCATENATE(Organic_by_landing_search!D23,Organic_by_landing_search!A23,Organic_by_landing_search!B23) -> 201804CZguest | T23: =Organic_by_landing_search!E23 -> 40 | W23: =CONCATENATE(Organic_by_landing_PDP!D23,Organic_by_landing_PDP!A23,Organic_by_landing_PDP!B23) -> 201804CZcorporate | X23: =Organic_by_landing_PDP!E23 -> 81 | Z23: =CONCATENATE(Organic_by_landing_welcome!D23,Organic_by_landing_welcome!A23,Organic_by_landing_welcome!B23) -> 201804CZcorporate | AA23: =Organic_by_landing_welcome!E23 -> 1357 | AC23: 201804CZSMB | AD23: 2731 | AE23: 3214 | AF23: 1003 | AG23: 890 | AH23: 1196 | AI23: 249 | AJ23: 110713.1968 | AK23: 177633.4837 | AL23: 44097.69119 | AO23: =CONCATENATE(Organic_by_landing_category!D23,Organic_by_landing_category!A23,Organic_by_landing_category!B23) -> 201804ATguest | AP23: =Organic_by_landing_category!C23 -> /browse_catalogue/cat_l3/003002005 | AQ23: Office Supplies | AR23: =Organic_by_landing_category!E23 -> 4 | AT23: 201804DASMB | AU23: 12 | AV23: 16 | AX23: 48 | AY23: 8 | AZ23: 4 | BA23: 88 | BC23: =CONCATENATE(Organic_by_ldg_category_ATC!E19,Organic_by_ldg_category_ATC!C19,Organic_by_ldg_category_ATC!D19) -> 201804BEcorporate | BD23: =Organic_by_ldg_category_ATC!B19 -> /browse_catalogue/cat_l3/006002001 | BE23: Facilities Supplies | BF23: =Organic_by_ldg_category_ATC!F19 -> 4 | BI23: 201804HKSMB | BJ23: 4 | BM23: 8 | BP23: 12 | BS23: =CONCATENATE(Organic_landing_category_bounce!E25,Organic_landing_category_bounce!B25,Organic_landing_category_bounce!D25) -> 201804ATguest | BT23: =Organic_landing_category_bounce!C25 -> /browse_catalogue/cat_l3/003003003 | BU23: Office Supplies | BV23: =Organic_landing_category_bounce!F25 -> 0 | BW23: =Organic_landing_category_bounce!G25 -> 8 | BZ23: 201804CZcorporate | CD23: 0 | CJ23: 8 | CM23: 0 | CN23: 8 | CP23: =CONCATENATE(Bounce_rate_global!C25:C25,Bounce_rate_global!A25,Bounce_rate_global!B25) -> 201804CZcorporate | CQ23: =Bounce_rate_global!D25 -> 556 | CR23: =Bounce_rate_global!E25 -> 5470 | CT23: =CONCATENATE(Bounce_rate_organic!D25,Bounce_rate_organic!C25,Bounce_rate_organic!B25) -> 201804NLSMB | CU23: =Bounce_rate_organic!E25 -> 463 | CV23: =Bounce_rate_organic!F25 -> 7327 | CX23: =CONCATENATE(Organic_landing_cat_then_order!E24,Organic_landing_cat_then_order!C24,Organic_landing_cat_then_order!B24) -> 201804BESMB | CY23: =Organic_landing_cat_then_order!D24 -> /browse_catalogue/cat_l3/003003003 | CZ23: Office Supplies | DA23: =Organic_landing_cat_then_order!F24 -> 3 | DC23: 201804ENSMB | DE23: 18 | DF23: 3 | DG23: 3 | DH23: 24 | DI23: 15 | DJ23: 6 | DK23: 69
A24: =CONCATENATE(General_data!C24,General_data!A24,General_data!B24) -> 201804CZguest | B24: =General_data!D24 -> 5345 | C24: =General_data!E24 -> 0 | D24: =General_data!F24/0.3 -> 0 | G24: =CONCATENATE(Trafic_Entrant!D24,Trafic_Entrant!A24,Trafic_Entrant!B24) -> 201804AUSMB | H24: =IF(Trafic_Entrant!$C24=H$4,Trafic_Entrant!$E24,0) -> 0 | I24: =IF(Trafic_Entrant!$C24=I$4,Trafic_Entrant!$E24,0) -> 0 | J24: =IF(OR(Trafic_Entrant!$C24=$F$1,Trafic_Entrant!C24=$F$2,Trafic_Entrant!C24=$F$3,Trafic_Entrant!C24=$F$4),Trafic_Entrant!$E24,0) -> 101 | K24: =IF(Trafic_Entrant!$C24=K$4,Trafic_Entrant!$F24,0) -> 0 | L24: =IF(Trafic_Entrant!$C24=L$4,Trafic_Entrant!$F24,0) -> 0 | M24: =IF(OR(Trafic_Entrant!$C24=$F$1,Trafic_Entrant!C24=$F$2,Trafic_Entrant!C24=$F$3,Trafic_Entrant!C24=$F$4),Trafic_Entrant!$F24,0) -> 48 | N24: =IF(Trafic_Entrant!$C24=N$4,Trafic_Entrant!$G24/0.3,0) -> 0 | O24: =IF(Trafic_Entrant!$C24=O$4,Trafic_Entrant!$G24/0.3,0) -> 0 | P24: =IF(OR(Trafic_Entrant!$C24=$F$1,Trafic_Entrant!$C24=$F$2,Trafic_Entrant!$C24=$F$3,Trafic_Entrant!$C24=$F$4),Trafic_Entrant!$G24/0.3,0) -> 10141.65867 | S24: =CONCATENATE(Organic_by_landing_search!D24,Organic_by_landing_search!A24,Organic_by_landing_search!B24) -> 201804CZrep | T24: =Organic_by_landing_search!E24 -> 113 | W24: =CONCATENATE(Organic_by_landing_PDP!D24,Organic_by_landing_PDP!A24,Organic_by_landing_PDP!B24) -> 201804CZguest | X24: =Organic_by_landing_PDP!E24 -> 842 | Z24: =CONCATENATE(Organic_by_landing_welcome!D24,Organic_by_landing_welcome!A24,Organic_by_landing_welcome!B24) -> 201804CZguest | AA24: =Organic_by_landing_welcome!E24 -> 1321 | AC24: 201804CZcorporate | AD24: 1764 | AE24: 3142 | AF24: 564 | AG24: 487 | AH24: 1309 | AI24: 286 | AJ24: 50090.40578 | AK24: 128828.0327 | AL24: 31367.26577 | AO24: =CONCATENATE(Organic_by_landing_category!D24,Organic_by_landing_category!A24,Organic_by_landing_category!B24) -> 201804ATguest | AP24: =Organic_by_landing_category!C24 -> /browse_catalogue/cat_l3/003002007 | AQ24: Office Supplies | AR24: =Organic_by_landing_category!E24 -> 4 | AT24: 201804DAcorporate | AU24: 16 | AV24: 12 | AW24: 4 | AX24: 96 | AY24: 20 | AZ24: 4 | BA24: 152 | BC24: =CONCATENATE(Organic_by_ldg_category_ATC!E20,Organic_by_ldg_category_ATC!C20,Organic_by_ldg_category_ATC!D20) -> 201804CHSMB | BD24: =Organic_by_ldg_category_ATC!B20 -> /browse_catalogue/cat_l3/003002007 | BE24: Office Supplies | BF24: =Organic_by_ldg_category_ATC!F20 -> 4 | BI24: 201804HUSMB | BM24: 4 | BP24: 4 | BS24: =CONCATENATE(Organic_landing_category_bounce!E26,Organic_landing_category_bounce!B26,Organic_landing_category_bounce!D26) -> 201804ATguest | BT24: =Organic_landing_category_bounce!C26 -> /browse_catalogue/cat_l3/003003004 | BU24: Office Supplies | BV24: =Organic_landing_category_bounce!F26 -> 0 | BW24: =Organic_landing_category_bounce!G26 -> 4 | BZ24: 201804DAguest | CA24: 124 | CB24: 128 | CC24: 16 | CD24: 838 | CE24: 172 | CF24: 92 | CG24: 256 | CH24: 320 | CI24: 24 | CJ24: 1841 | CK24: 256 | CL24: 220 | CM24: 1370 | CN24: 2917 | CP24: =CONCATENATE(Bounce_rate_global!C26:C26,Bounce_rate_global!A26,Bounce_rate_global!B26) -> 201804CZguest | CQ24: =Bounce_rate_global!D26 -> 1942 | CR24: =Bounce_rate_global!E26 -> 5345 | CT24: =CONCATENATE(Bounce_rate_organic!D26,Bounce_rate_organic!C26,Bounce_rate_organic!B26) -> 201804NOSMB | CU24: =Bounce_rate_organic!E26 -> 286 | CV24: =Bounce_rate_organic!F26 -> 3460 | CX24: =CONCATENATE(Organic_landing_cat_then_order!E25,Organic_landing_cat_then_order!C25,Organic_landing_cat_then_order!B25) -> 201804BESMB | CY24: =Organic_landing_cat_then_order!D25 -> /browse_catalogue/cat_l3/003003004 | CZ24: Office Supplies | DA24: =Organic_landing_cat_then_order!F25 -> 3 | DC24: 201804ENcorporate | DE24: 47 | DF24: 18 | DG24: 6 | DH24: 62 | DI24: 15 | DJ24: 3 | DK24: 151
A25: =CONCATENATE(General_data!C25,General_data!A25,General_data!B25) -> 201804CZrep | B25: =General_data!D25 -> 2904 | C25: =General_data!E25 -> 1563 | D25: =General_data!F25/0.3 -> 330742.5847 | G25: =CONCATENATE(Trafic_Entrant!D25,Trafic_Entrant!A25,Trafic_Entrant!B25) -> 201804AUcorporate | H25: =IF(Trafic_Entrant!$C25=H$4,Trafic_Entrant!$E25,0) -> 0 | I25: =IF(Trafic_Entrant!$C25=I$4,Trafic_Entrant!$E25,0) -> 17377 | J25: =IF(OR(Trafic_Entrant!$C25=$F$1,Trafic_Entrant!C25=$F$2,Trafic_Entrant!C25=$F$3,Trafic_Entrant!C25=$F$4),Trafic_Entrant!$E25,0) -> 0 | K25: =IF(Trafic_Entrant!$C25=K$4,Trafic_Entrant!$F25,0) -> 0 | L25: =IF(Trafic_Entrant!$C25=L$4,Trafic_Entrant!$F25,0) -> 7150 | M25: =IF(OR(Trafic_Entrant!$C25=$F$1,Trafic_Entrant!C25=$F$2,Trafic_Entrant!C25=$F$3,Trafic_Entrant!C25=$F$4),Trafic_Entrant!$F25,0) -> 0 | N25: =IF(Trafic_Entrant!$C25=N$4,Trafic_Entrant!$G25/0.3,0) -> 0 | O25: =IF(Trafic_Entrant!$C25=O$4,Trafic_Entrant!$G25/0.3,0) -> 914553.2056 | P25: =IF(OR(Trafic_Entrant!$C25=$F$1,Trafic_Entrant!$C25=$F$2,Trafic_Entrant!$C25=$F$3,Trafic_Entrant!$C25=$F$4),Trafic_Entrant!$G25/0.3,0) -> 0 | S25: =CONCATENATE(Organic_by_landing_search!D25,Organic_by_landing_search!A25,Organic_by_landing_search!B25) -> 201804DASMB | T25: =Organic_by_landing_search!E25 -> 189 | W25: =CONCATENATE(Organic_by_landing_PDP!D25,Organic_by_landing_PDP!A25,Organic_by_landing_PDP!B25) -> 201804CZrep | X25: =Organic_by_landing_PDP!E25 -> 56 | Z25: =CONCATENATE(Organic_by_landing_welcome!D25,Organic_by_landing_welcome!A25,Organic_by_landing_welcome!B25) -> 201804CZrep | AA25: =Organic_by_landing_welcome!E25 -> 798 | AC25: 201804CZguest | AD25: 2598 | AE25: 2248 | AF25: 500 | AG25: 0 | AH25: 0 | AI25: 0 | AJ25: 0 | AK25: 0 | AL25: 0 | AO25: =CONCATENATE(Organic_by_landing_category!D25,Organic_by_landing_category!A25,Organic_by_landing_category!B25) -> 201804ATguest | AP25: =Organic_by_landing_category!C25 -> /browse_catalogue/cat_l3/003003001 | AQ25: Office Supplies | AR25: =Organic_by_landing_category!E25 -> 4 | AT25: 201804DAguest | AU25: 256 | AV25: 320 | AW25: 24 | AX25: 1841 | AY25: 256 | AZ25: 220 | BA25: 2917 | BC25: =CONCATENATE(Organic_by_ldg_category_ATC!E21,Organic_by_ldg_category_ATC!C21,Organic_by_ldg_category_ATC!D21) -> 201804CZcorporate | BD25: =Organic_by_ldg_category_ATC!B21 -> /browse_catalogue/cat_l2/003002 | BE25: Office Supplies | BF25: =Organic_by_ldg_category_ATC!F21 -> 4 | BI25: 201804IRSMB | BL25: 8 | BM25: 4 | BP25: 12 | BS25: =CONCATENATE(Organic_landing_category_bounce!E27,Organic_landing_category_bounce!B27,Organic_landing_category_bounce!D27) -> 201804ATguest | BT25: =Organic_landing_category_bounce!C27 -> /browse_catalogue/cat_l3/003003006 | BU25: Office Supplies | BV25: =Organic_landing_category_bounce!F27 -> 8 | BW25: =Organic_landing_category_bounce!G27 -> 12 | BZ25: 201804DASMB | CA25: 4 | CB25: 0 | CD25: 16 | CE25: 0 | CF25: 4 | CG25: 12 | CH25: 16 | CJ25: 48 | CK25: 8 | CL25: 4 | CM25: 24 | CN25: 88 | CP25: =CONCATENATE(Bounce_rate_global!C27:C27,Bounce_rate_global!A27,Bounce_rate_global!B27) -> 201804CZrep | CQ25: =Bounce_rate_global!D27 -> 294 | CR25: =Bounce_rate_global!E27 -> 2904 | CT25: =CONCATENATE(Bounce_rate_organic!D27,Bounce_rate_organic!C27,Bounce_rate_organic!B27) -> 201804PLSMB | CU25: =Bounce_rate_organic!E27 -> 2207 | CV25: =Bounce_rate_organic!F27 -> 22589 | CX25: =CONCATENATE(Organic_landing_cat_then_order!E26,Organic_landing_cat_then_order!C26,Organic_landing_cat_then_order!B26) -> 201804BESMB | CY25: =Organic_landing_cat_then_order!D26 -> /browse_catalogue/cat_l3/003005001 | CZ25: Office Supplies | DA25: =Organic_landing_cat_then_order!F26 -> 6 | DC25: 201804ENrep | DG25: 3 | DK25: 3
A26: =CONCATENATE(General_data!C26,General_data!A26,General_data!B26) -> 201804DASMB | B26: =General_data!D26 -> 14646 | C26: =General_data!E26 -> 5712 | D26: =General_data!F26/0.3 -> 923537.8996 | G26: =CONCATENATE(Trafic_Entrant!D26,Trafic_Entrant!A26,Trafic_Entrant!B26) -> 201804AUcorporate | H26: =IF(Trafic_Entrant!$C26=H$4,Trafic_Entrant!$E26,0) -> 0 | I26: =IF(Trafic_Entrant!$C26=I$4,Trafic_Entrant!$E26,0) -> 0 | J26: =IF(OR(Trafic_Entrant!$C26=$F$1,Trafic_Entrant!C26=$F$2,Trafic_Entrant!C26=$F$3,Trafic_Entrant!C26=$F$4),Trafic_Entrant!$E26,0) -> 777 | K26: =IF(Trafic_Entrant!$C26=K$4,Trafic_Entrant!$F26,0) -> 0 | L26: =IF(Trafic_Entrant!$C26=L$4,Trafic_Entrant!$F26,0) -> 0 | M26: =IF(OR(Trafic_Entrant!$C26=$F$1,Trafic_Entrant!C26=$F$2,Trafic_Entrant!C26=$F$3,Trafic_Entrant!C26=$F$4),Trafic_Entrant!$F26,0) -> 274 | N26: =IF(Trafic_Entrant!$C26=N$4,Trafic_Entrant!$G26/0.3,0) -> 0 | O26: =IF(Trafic_Entrant!$C26=O$4,Trafic_Entrant!$G26/0.3,0) -> 0 | P26: =IF(OR(Trafic_Entrant!$C26=$F$1,Trafic_Entrant!$C26=$F$2,Trafic_Entrant!$C26=$F$3,Trafic_Entrant!$C26=$F$4),Trafic_Entrant!$G26/0.3,0) -> 31677.2838 | S26: =CONCATENATE(Organic_by_landing_search!D26,Organic_by_landing_search!A26,Organic_by_landing_search!B26) -> 201804DAcorporate | T26: =Organic_by_landing_search!E26 -> 218 | W26: =CONCATENATE(Organic_by_landing_PDP!D26,Organic_by_landing_PDP!A26,Organic_by_landing_PDP!B26) -> 201804DASMB | X26: =Organic_by_landing_PDP!E26 -> 290 | Z26: =CONCATENATE(Organic_by_landing_welcome!D26,Organic_by_landing_welcome!A26,Organic_by_landing_welcome!B26) -> 201804DASMB | AA26: =Organic_by_landing_welcome!E26 -> 4769 | AC26: 201804CZrep | AD26: 1656 | AE26: 814 | AF26: 435 | AG26: 906 | AH26: 391 | AI26: 266 | AJ26: 194362.2671 | AK26: 82396.43817 | AL26: 53983.87939 | AO26: =CONCATENATE(Organic_by_landing_category!D26,Organic_by_landing_category!A26,Organic_by_landing_category!B26) -> 201804ATguest | AP26: =Organic_by_landing_category!C26 -> /browse_catalogue/cat_l3/003003003 | AQ26: Office Supplies | AR26: =Organic_by_landing_category!E26 -> 8 | AT26: 201804DArep | AZ26: 4 | BA26: 4 | BC26: =CONCATENATE(Organic_by_ldg_category_ATC!E22,Organic_by_ldg_category_ATC!C22,Organic_by_ldg_category_ATC!D22) -> 201804CZSMB | BD26: =Organic_by_ldg_category_ATC!B22 -> /browse_catalogue/cat_l3/003002006 | BE26: Office Supplies | BF26: =Organic_by_ldg_category_ATC!F22 -> 4 | BI26: 201804ITSMB | BL26: 4 | BP26: 4 | BS26: =CONCATENATE(Organic_landing_category_bounce!E28,Organic_landing_category_bounce!B28,Organic_landing_category_bounce!D28) -> 201804ATguest | BT26: =Organic_landing_category_bounce!C28 -> /browse_catalogue/cat_l3/003003008 | BU26: Office Supplies | BV26: =Organic_landing_category_bounce!F28 -> 4 | BW26: =Organic_landing_category_bounce!G28 -> 8 | BZ26: 201804DAcorporate | CA26: 4 | CB26: 4 | CC26: 0 | CD26: 32 | CE26: 0 | CF26: 0 | CG26: 16 | CH26: 12 | CI26: 4 | CJ26: 96 | CK26: 20 | CL26: 4 | CM26: 40 | CN26: 152 | CP26: =CONCATENATE(Bounce_rate_global!C28:C28,Bounce_rate_global!A28,Bounce_rate_global!B28) -> 201804DASMB | CQ26: =Bounce_rate_global!D28 -> 1333 | CR26: =Bounce_rate_global!E28 -> 14646 | CT26: =CONCATENATE(Bounce_rate_organic!D28,Bounce_rate_organic!C28,Bounce_rate_organic!B28) -> 201804PTSMB | CU26: =Bounce_rate_organic!E28 -> 137 | CV26: =Bounce_rate_organic!F28 -> 761 | CX26: =CONCATENATE(Organic_landing_cat_then_order!E27,Organic_landing_cat_then_order!C27,Organic_landing_cat_then_order!B27) -> 201804BESMB | CY26: =Organic_landing_cat_then_order!D27 -> /browse_catalogue/cat_l3/003008002 | CZ26: Office Supplies | DA26: =Organic_landing_cat_then_order!F27 -> 3 | DC26: 201804FISMB | DE26: 3 | DF26: 3 | DH26: 12 | DI26: 3 | DK26: 21
A27: =CONCATENATE(General_data!C27,General_data!A27,General_data!B27) -> 201804DAcorporate | B27: =General_data!D27 -> 26657 | C27: =General_data!E27 -> 12124 | D27: =General_data!F27/0.3 -> 1763050.697 | G27: =CONCATENATE(Trafic_Entrant!D27,Trafic_Entrant!A27,Trafic_Entrant!B27) -> 201804AUcorporate | H27: =IF(Trafic_Entrant!$C27=H$4,Trafic_Entrant!$E27,0) -> 9079 | I27: =IF(Trafic_Entrant!$C27=I$4,Trafic_Entrant!$E27,0) -> 0 | J27: =IF(OR(Trafic_Entrant!$C27=$F$1,Trafic_Entrant!C27=$F$2,Trafic_Entrant!C27=$F$3,Trafic_Entrant!C27=$F$4),Trafic_Entrant!$E27,0) -> 0 | K27: =IF(Trafic_Entrant!$C27=K$4,Trafic_Entrant!$F27,0) -> 2671 | L27: =IF(Trafic_Entrant!$C27=L$4,Trafic_Entrant!$F27,0) -> 0 | M27: =IF(OR(Trafic_Entrant!$C27=$F$1,Trafic_Entrant!C27=$F$2,Trafic_Entrant!C27=$F$3,Trafic_Entrant!C27=$F$4),Trafic_Entrant!$F27,0) -> 0 | N27: =IF(Trafic_Entrant!$C27=N$4,Trafic_Entrant!$G27/0.3,0) -> 354529.6337 | O27: =IF(Trafic_Entrant!$C27=O$4,Trafic_Entrant!$G27/0.3,0) -> 0 | P27: =IF(OR(Trafic_Entrant!$C27=$F$1,Trafic_Entrant!$C27=$F$2,Trafic_Entrant!$C27=$F$3,Trafic_Entrant!$C27=$F$4),Trafic_Entrant!$G27/0.3,0) -> 0 | S27: =CONCATENATE(Organic_by_landing_search!D27,Organic_by_landing_search!A27,Organic_by_landing_search!B27) -> 201804DAguest | T27: =Organic_by_landing_search!E27 -> 165 | W27: =CONCATENATE(Organic_by_landing_PDP!D27,Organic_by_landing_PDP!A27,Organic_by_landing_PDP!B27) -> 201804DAcorporate | X27: =Organic_by_landing_PDP!E27 -> 560 | Z27: =CONCATENATE(Organic_by_landing_welcome!D27,Organic_by_landing_welcome!A27,Organic_by_landing_welcome!B27) -> 201804DAcorporate | AA27: =Organic_by_landing_welcome!E27 -> 7363 | AC27: 201804DASMB | AD27: 6409 | AE27: 6723 | AF27: 1514 | AG27: 2493 | AH27: 2808 | AI27: 411 | AJ27: 390581.6799 | AK27: 447789.654 | AL27: 85166.56568 | AO27: =CONCATENATE(Organic_by_landing_category!D27,Organic_by_landing_category!A27,Organic_by_landing_category!B27) -> 201804ATguest | AP27: =Organic_by_landing_category!C27 -> /browse_catalogue/cat_l3/003003004 | AQ27: Office Supplies | AR27: =Organic_by_landing_category!E27 -> 4 | AT27: 201804DESMB | AU27: 20 | AV27: 8 | AW27: 8 | AX27: 161 | AY27: 12 | AZ27: 4 | BA27: 213 | BC27: =CONCATENATE(Organic_by_ldg_category_ATC!E23,Organic_by_ldg_category_ATC!C23,Organic_by_ldg_category_ATC!D23) -> 201804DASMB | BD27: =Organic_by_ldg_category_ATC!B23 -> /browse_catalogue/cat_l3/003001003 | BE27: Office Supplies | BF27: =Organic_by_ldg_category_ATC!F23 -> 4 | BI27: 201804KRSMB | BL27: 8 | BP27: 8 | BS27: =CONCATENATE(Organic_landing_category_bounce!E29,Organic_landing_category_bounce!B29,Organic_landing_category_bounce!D29) -> 201804ATguest | BT27: =Organic_landing_category_bounce!C29 -> /browse_catalogue/cat_l3/003004001 | BU27: Office Supplies | BV27: =Organic_landing_category_bounce!F29 -> 8 | BW27: =Organic_landing_category_bounce!G29 -> 40 | BZ27: 201804DArep | CF27: 4 | CL27: 4 | CM27: 4 | CN27: 4 | CP27: =CONCATENATE(Bounce_rate_global!C29:C29,Bounce_rate_global!A29,Bounce_rate_global!B29) -> 201804DAcorporate | CQ27: =Bounce_rate_global!D29 -> 2207 | CR27: =Bounce_rate_global!E29 -> 26657 | CT27: =CONCATENATE(Bounce_rate_organic!D29,Bounce_rate_organic!C29,Bounce_rate_organic!B29) -> 201804SGSMB | CU27: =Bounce_rate_organic!E29 -> 314 | CV27: =Bounce_rate_organic!F29 -> 3359 | CX27: =CONCATENATE(Organic_landing_cat_then_order!E28,Organic_landing_cat_then_order!C28,Organic_landing_cat_then_order!B28) -> 201804BESMB | CY27: =Organic_landing_cat_then_order!D28 -> /browse_catalogue/cat_l3/005004001 | CZ27: Furniture | DA27: =Organic_landing_cat_then_order!F28 -> 3 | DC27: 201804FIcorporate | DE27: 18 | DH27: 3 | DI27: 6 | DK27: 27
A28: =CONCATENATE(General_data!C28,General_data!A28,General_data!B28) -> 201804DAguest | B28: =General_data!D28 -> 22303 | C28: =General_data!E28 -> 105 | D28: =General_data!F28/0.3 -> 31203.51249 | G28: =CONCATENATE(Trafic_Entrant!D28,Trafic_Entrant!A28,Trafic_Entrant!B28) -> 201804AUcorporate | H28: =IF(Trafic_Entrant!$C28=H$4,Trafic_Entrant!$E28,0) -> 0 | I28: =IF(Trafic_Entrant!$C28=I$4,Trafic_Entrant!$E28,0) -> 0 | J28: =IF(OR(Trafic_Entrant!$C28=$F$1,Trafic_Entrant!C28=$F$2,Trafic_Entrant!C28=$F$3,Trafic_Entrant!C28=$F$4),Trafic_Entrant!$E28,0) -> 1805 | K28: =IF(Trafic_Entrant!$C28=K$4,Trafic_Entrant!$F28,0) -> 0 | L28: =IF(Trafic_Entrant!$C28=L$4,Trafic_Entrant!$F28,0) -> 0 | M28: =IF(OR(Trafic_Entrant!$C28=$F$1,Trafic_Entrant!C28=$F$2,Trafic_Entrant!C28=$F$3,Trafic_Entrant!C28=$F$4),Trafic_Entrant!$F28,0) -> 661 | N28: =IF(Trafic_Entrant!$C28=N$4,Trafic_Entrant!$G28/0.3,0) -> 0 | O28: =IF(Trafic_Entrant!$C28=O$4,Trafic_Entrant!$G28/0.3,0) -> 0 | P28: =IF(OR(Trafic_Entrant!$C28=$F$1,Trafic_Entrant!$C28=$F$2,Trafic_Entrant!$C28=$F$3,Trafic_Entrant!$C28=$F$4),Trafic_Entrant!$G28/0.3,0) -> 58050.67354 | S28: =CONCATENATE(Organic_by_landing_search!D28,Organic_by_landing_search!A28,Organic_by_landing_search!B28) -> 201804DArep | T28: =Organic_by_landing_search!E28 -> 36 | W28: =CONCATENATE(Organic_by_landing_PDP!D28,Organic_by_landing_PDP!A28,Organic_by_landing_PDP!B28) -> 201804DAguest | X28: =Organic_by_landing_PDP!E28 -> 5289 | Z28: =CONCATENATE(Organic_by_landing_welcome!D28,Organic_by_landing_welcome!A28,Organic_by_landing_welcome!B28) -> 201804DAguest | AA28: =Organic_by_landing_welcome!E28 -> 5829 | AC28: 201804DAcorporate | AD28: 10453 | AE28: 14009 | AF28: 2175 | AG28: 4455 | AH28: 6715 | AI28: 947 | AJ28: 592067.0512 | AK28: 1023226.071 | AL28: 147275.7842 | AO28: =CONCATENATE(Organic_by_landing_category!D28,Organic_by_landing_category!A28,Organic_by_landing_category!B28) -> 201804ATguest | AP28: =Organic_by_landing_category!C28 -> /browse_catalogue/cat_l3/003003006 | AQ28: Office Supplies | AR28: =Organic_by_landing_category!E28 -> 12 | AT28: 201804DEcorporate | AU28: 8 | AV28: 8 | AX28: 281 | AY28: 16 | AZ28: 12 | BA28: 325 | BC28: =CONCATENATE(Organic_by_ldg_category_ATC!E24,Organic_by_ldg_category_ATC!C24,Organic_by_ldg_category_ATC!D24) -> 201804DAcorporate | BD28: =Organic_by_ldg_category_ATC!B24 -> /browse_catalogue/cat_l3/003001006 | BE28: Office Supplies | BF28: =Organic_by_ldg_category_ATC!F24 -> 4 | BI28: 201804LUSMB | BL28: 4 | BP28: 4 | BS28: =CONCATENATE(Organic_landing_category_bounce!E30,Organic_landing_category_bounce!B30,Organic_landing_category_bounce!D30) -> 201804ATguest | BT28: =Organic_landing_category_bounce!C30 -> /browse_catalogue/cat_l3/003005001 | BU28: Office Supplies | BV28: =Organic_landing_category_bounce!F30 -> 8 | BW28: =Organic_landing_category_bounce!G30 -> 24 | BZ28: 201804DESMB | CA28: 12 | CB28: 0 | CC28: 0 | CD28: 20 | CE28: 0 | CF28: 0 | CG28: 20 | CH28: 8 | CI28: 8 | CJ28: 161 | CK28: 12 | CL28: 4 | CM28: 32 | CN28: 213 | CP28: =CONCATENATE(Bounce_rate_global!C30:C30,Bounce_rate_global!A30,Bounce_rate_global!B30) -> 201804DAguest | CQ28: =Bounce_rate_global!D30 -> 8910 | CR28: =Bounce_rate_global!E30 -> 22303 | CT28: =CONCATENATE(Bounce_rate_organic!D30,Bounce_rate_organic!C30,Bounce_rate_organic!B30) -> 201804SKSMB | CU28: =Bounce_rate_organic!E30 -> 419 | CV28: =Bounce_rate_organic!F30 -> 3384 | CX28: =CONCATENATE(Organic_landing_cat_then_order!E29,Organic_landing_cat_then_order!C29,Organic_landing_cat_then_order!B29) -> 201804BESMB | CY28: =Organic_landing_cat_then_order!D29 -> /browse_catalogue/cat_l3/006002001 | CZ28: Facilities Supplies | DA28: =Organic_landing_cat_then_order!F29 -> 6 | DC28: 201804FRSMB | DE28: 3 | DG28: 3 | DH28: 151 | DI28: 18 | DJ28: 3 | DK28: 178
A29: =CONCATENATE(General_data!C29,General_data!A29,General_data!B29) -> 201804DArep | B29: =General_data!D29 -> 1502 | C29: =General_data!E29 -> 661 | D29: =General_data!F29/0.3 -> 210702.8427 | G29: =CONCATENATE(Trafic_Entrant!D29,Trafic_Entrant!A29,Trafic_Entrant!B29) -> 201804AUcorporate | H29: =IF(Trafic_Entrant!$C29=H$4,Trafic_Entrant!$E29,0) -> 0 | I29: =IF(Trafic_Entrant!$C29=I$4,Trafic_Entrant!$E29,0) -> 0 | J29: =IF(OR(Trafic_Entrant!$C29=$F$1,Trafic_Entrant!C29=$F$2,Trafic_Entrant!C29=$F$3,Trafic_Entrant!C29=$F$4),Trafic_Entrant!$E29,0) -> 4 | K29: =IF(Trafic_Entrant!$C29=K$4,Trafic_Entrant!$F29,0) -> 0 | L29: =IF(Trafic_Entrant!$C29=L$4,Trafic_Entrant!$F29,0) -> 0 | M29: =IF(OR(Trafic_Entrant!$C29=$F$1,Trafic_Entrant!C29=$F$2,Trafic_Entrant!C29=$F$3,Trafic_Entrant!C29=$F$4),Trafic_Entrant!$F29,0) -> 0 | N29: =IF(Trafic_Entrant!$C29=N$4,Trafic_Entrant!$G29/0.3,0) -> 0 | O29: =IF(Trafic_Entrant!$C29=O$4,Trafic_Entrant!$G29/0.3,0) -> 0 | P29: =IF(OR(Trafic_Entrant!$C29=$F$1,Trafic_Entrant!$C29=$F$2,Trafic_Entrant!$C29=$F$3,Trafic_Entrant!$C29=$F$4),Trafic_Entrant!$G29/0.3,0) -> 0 | S29: =CONCATENATE(Organic_by_landing_search!D29,Organic_by_landing_search!A29,Organic_by_landing_search!B29) -> 201804DESMB | T29: =Organic_by_landing_search!E29 -> 314 | W29: =CONCATENATE(Organic_by_landing_PDP!D29,Organic_by_landing_PDP!A29,Organic_by_landing_PDP!B29) -> 201804DArep | X29: =Organic_by_landing_PDP!E29 -> 44 | Z29: =CONCATENATE(Organic_by_landing_welcome!D29,Organic_by_landing_welcome!A29,Organic_by_landing_welcome!B29) -> 201804DArep | AA29: =Organic_by_landing_welcome!E29 -> 568 | AC29: 201804DAguest | AD29: 15327 | AE29: 5635 | AF29: 829 | AG29: 36 | AH29: 56 | AI29: 12 | AJ29: 9940.03094 | AK29: 20106.24611 | AL29: 1157.235437 | AO29: =CONCATENATE(Organic_by_landing_category!D29,Organic_by_landing_category!A29,Organic_by_landing_category!B29) -> 201804ATguest | AP29: =Organic_by_landing_category!C29 -> /browse_catalogue/cat_l3/003003008 | AQ29: Office Supplies | AR29: =Organic_by_landing_category!E29 -> 8 | AT29: 201804DEguest | AU29: 164 | AV29: 180 | AW29: 52 | AX29: 2274 | AY29: 268 | AZ29: 180 | BA29: 3118 | BC29: =CONCATENATE(Organic_by_ldg_category_ATC!E25,Organic_by_ldg_category_ATC!C25,Organic_by_ldg_category_ATC!D25) -> 201804DESMB | BD29: =Organic_by_ldg_category_ATC!B25 -> /browse_catalogue/cat_l3/003002004 | BE29: Office Supplies | BF29: =Organic_by_ldg_category_ATC!F25 -> 4 | BI29: 201804MYSMB | BJ29: 8 | BL29: 4 | BP29: 12 | BS29: =CONCATENATE(Organic_landing_category_bounce!E31,Organic_landing_category_bounce!B31,Organic_landing_category_bounce!D31) -> 201804ATguest | BT29: =Organic_landing_category_bounce!C31 -> /browse_catalogue/cat_l3/004001009 | BU29: Technology | BV29: =Organic_landing_category_bounce!F31 -> 12 | BW29: =Organic_landing_category_bounce!G31 -> 12 | BZ29: 201804DEcorporate | CA29: 0 | CB29: 0 | CD29: 12 | CE29: 0 | CF29: 4 | CG29: 8 | CH29: 8 | CJ29: 281 | CK29: 16 | CL29: 12 | CM29: 16 | CN29: 325 | CP29: =CONCATENATE(Bounce_rate_global!C31:C31,Bounce_rate_global!A31,Bounce_rate_global!B31) -> 201804DArep | CQ29: =Bounce_rate_global!D31 -> 137 | CR29: =Bounce_rate_global!E31 -> 1502 | CT29: =CONCATENATE(Bounce_rate_organic!D31,Bounce_rate_organic!C31,Bounce_rate_organic!B31) -> 201804SPSMB | CU29: =Bounce_rate_organic!E31 -> 1656 | CV29: =Bounce_rate_organic!F31 -> 25985 | CX29: =CONCATENATE(Organic_landing_cat_then_order!E30,Organic_landing_cat_then_order!C30,Organic_landing_cat_then_order!B30) -> 201804BEcorporate | CY29: =Organic_landing_cat_then_order!D30 -> /browse_catalogue/cat_l1/003 | CZ29: Office Supplies | DA29: =Organic_landing_cat_then_order!F30 -> 92 | DC29: 201804FRcorporate | DE29: 27 | DG29: 6 | DH29: 298 | DI29: 15 | DJ29: 9 | DK29: 355
A30: =CONCATENATE(General_data!C30,General_data!A30,General_data!B30) -> 201804DESMB | B30: =General_data!D30 -> 35503 | C30: =General_data!E30 -> 13502 | D30: =General_data!F30/0.3 -> 2100023.93 | G30: =CONCATENATE(Trafic_Entrant!D30,Trafic_Entrant!A30,Trafic_Entrant!B30) -> 201804AUguest | H30: =IF(Trafic_Entrant!$C30=H$4,Trafic_Entrant!$E30,0) -> 0 | I30: =IF(Trafic_Entrant!$C30=I$4,Trafic_Entrant!$E30,0) -> 4048 | J30: =IF(OR(Trafic_Entrant!$C30=$F$1,Trafic_Entrant!C30=$F$2,Trafic_Entrant!C30=$F$3,Trafic_Entrant!C30=$F$4),Trafic_Entrant!$E30,0) -> 0 | K30: =IF(Trafic_Entrant!$C30=K$4,Trafic_Entrant!$F30,0) -> 0 | L30: =IF(Trafic_Entrant!$C30=L$4,Trafic_Entrant!$F30,0) -> 28 | M30: =IF(OR(Trafic_Entrant!$C30=$F$1,Trafic_Entrant!C30=$F$2,Trafic_Entrant!C30=$F$3,Trafic_Entrant!C30=$F$4),Trafic_Entrant!$F30,0) -> 0 | N30: =IF(Trafic_Entrant!$C30=N$4,Trafic_Entrant!$G30/0.3,0) -> 0 | O30: =IF(Trafic_Entrant!$C30=O$4,Trafic_Entrant!$G30/0.3,0) -> 8936.560073 | P30: =IF(OR(Trafic_Entrant!$C30=$F$1,Trafic_Entrant!$C30=$F$2,Trafic_Entrant!$C30=$F$3,Trafic_Entrant!$C30=$F$4),Trafic_Entrant!$G30/0.3,0) -> 0 | S30: =CONCATENATE(Organic_by_landing_search!D30,Organic_by_landing_search!A30,Organic_by_landing_search!B30) -> 201804DEcorporate | T30: =Organic_by_landing_search!E30 -> 294 | W30: =CONCATENATE(Organic_by_landing_PDP!D30,Organic_by_landing_PDP!A30,Organic_by_landing_PDP!B30) -> 201804DESMB | X30: =Organic_by_landing_PDP!E30 -> 604 | Z30: =CONCATENATE(Organic_by_landing_welcome!D30,Organic_by_landing_welcome!A30,Organic_by_landing_welcome!B30) -> 201804DESMB | AA30: =Organic_by_landing_welcome!E30 -> 11331 | AC30: 201804DArep | AD30: 781 | AE30: 713 | AF30: 8 | AG30: 419 | AH30: 242 | AI30: 0 | AJ30: 119820.6899 | AK30: 90882.15277 | AL30: 0 | AO30: =CONCATENATE(Organic_by_landing_category!D30,Organic_by_landing_category!A30,Organic_by_landing_category!B30) -> 201804ATguest | AP30: =Organic_by_landing_category!C30 -> /browse_catalogue/cat_l3/003004001 | AQ30: Office Supplies | AR30: =Organic_by_landing_category!E30 -> 40 | AT30: 201804DErep | AV30: 4 | AX30: 4 | AY30: 8 | BA30: 16 | BC30: =CONCATENATE(Organic_by_ldg_category_ATC!E26,Organic_by_ldg_category_ATC!C26,Organic_by_ldg_category_ATC!D26) -> 201804DEcorporate | BD30: =Organic_by_ldg_category_ATC!B26 -> /browse_catalogue/cat_l3/003003003 | BE30: Office Supplies | BF30: =Organic_by_ldg_category_ATC!F26 -> 4 | BI30: 201804NLcorporate | BL30: 8 | BP30: 8 | BS30: =CONCATENATE(Organic_landing_category_bounce!E32,Organic_landing_category_bounce!B32,Organic_landing_category_bounce!D32) -> 201804ATguest | BT30: =Organic_landing_category_bounce!C32 -> /browse_catalogue/cat_l3/005003004 | BU30: Furniture | BV30: =Organic_landing_category_bounce!F32 -> 8 | BW30: =Organic_landing_category_bounce!G32 -> 8 | BZ30: 201804DEguest | CA30: 52 | CB30: 44 | CC30: 12 | CD30: 409 | CE30: 80 | CF30: 40 | CG30: 164 | CH30: 180 | CI30: 52 | CJ30: 2274 | CK30: 268 | CL30: 180 | CM30: 637 | CN30: 3118 | CP30: =CONCATENATE(Bounce_rate_global!C32:C32,Bounce_rate_global!A32,Bounce_rate_global!B32) -> 201804DESMB | CQ30: =Bounce_rate_global!D32 -> 3581 | CR30: =Bounce_rate_global!E32 -> 35503 | CT30: =CONCATENATE(Bounce_rate_organic!D32,Bounce_rate_organic!C32,Bounce_rate_organic!B32) -> 201804SVSMB | CU30: =Bounce_rate_organic!E32 -> 375 | CV30: =Bounce_rate_organic!F32 -> 4979 | CX30: =CONCATENATE(Organic_landing_cat_then_order!E31,Organic_landing_cat_then_order!C31,Organic_landing_cat_then_order!B31) -> 201804BEcorporate | CY30: =Organic_landing_cat_then_order!D31 -> /browse_catalogue/cat_l1/006 | CZ30: Facilities Supplies | DA30: =Organic_landing_cat_then_order!F31 -> 6 | DC30: 201804FRguest | DH30: 6 | DK30: 6
A31: =CONCATENATE(General_data!C31,General_data!A31,General_data!B31) -> 201804DEcliqz.com/tracking | B31: =General_data!D31 -> 4 | C31: =General_data!E31 -> 0 | D31: =General_data!F31/0.3 -> 0 | G31: =CONCATENATE(Trafic_Entrant!D31,Trafic_Entrant!A31,Trafic_Entrant!B31) -> 201804AUguest | H31: =IF(Trafic_Entrant!$C31=H$4,Trafic_Entrant!$E31,0) -> 0 | I31: =IF(Trafic_Entrant!$C31=I$4,Trafic_Entrant!$E31,0) -> 0 | J31: =IF(OR(Trafic_Entrant!$C31=$F$1,Trafic_Entrant!C31=$F$2,Trafic_Entrant!C31=$F$3,Trafic_Entrant!C31=$F$4),Trafic_Entrant!$E31,0) -> 379 | K31: =IF(Trafic_Entrant!$C31=K$4,Trafic_Entrant!$F31,0) -> 0 | L31: =IF(Trafic_Entrant!$C31=L$4,Trafic_Entrant!$F31,0) -> 0 | M31: =IF(OR(Trafic_Entrant!$C31=$F$1,Trafic_Entrant!C31=$F$2,Trafic_Entrant!C31=$F$3,Trafic_Entrant!C31=$F$4),Trafic_Entrant!$F31,0) -> 0 | N31: =IF(Trafic_Entrant!$C31=N$4,Trafic_Entrant!$G31/0.3,0) -> 0 | O31: =IF(Trafic_Entrant!$C31=O$4,Trafic_Entrant!$G31/0.3,0) -> 0 | P31: =IF(OR(Trafic_Entrant!$C31=$F$1,Trafic_Entrant!$C31=$F$2,Trafic_Entrant!$C31=$F$3,Trafic_Entrant!$C31=$F$4),Trafic_Entrant!$G31/0.3,0) -> 0 | S31: =CONCATENATE(Organic_by_landing_search!D31,Organic_by_landing_search!A31,Organic_by_landing_search!B31) -> 201804DEguest | T31: =Organic_by_landing_search!E31 -> 499 | W31: =CONCATENATE(Organic_by_landing_PDP!D31,Organic_by_landing_PDP!A31,Organic_by_landing_PDP!B31) -> 201804DEcorporate | X31: =Organic_by_landing_PDP!E31 -> 536 | Z31: =CONCATENATE(Organic_by_landing_welcome!D31,Organic_by_landing_welcome!A31,Organic_by_landing_welcome!B31) -> 201804DEcorporate | AA31: =Organic_by_landing_welcome!E31 -> 15870 | AC31: 201804DESMB | AD31: 15625 | AE31: 18299 | AF31: 1579 | AG31: 5675 | AH31: 7234 | AI31: 592 | AJ31: 925881.8383 | AK31: 1084438.312 | AL31: 89703.78013 | AO31: =CONCATENATE(Organic_by_landing_category!D31,Organic_by_landing_category!A31,Organic_by_landing_category!B31) -> 201804ATguest | AP31: =Organic_by_landing_category!C31 -> /browse_catalogue/cat_l3/003005001 | AQ31: Office Supplies | AR31: =Organic_by_landing_category!E31 -> 24 | AT31: 201804ENSMB | AU31: 84 | AV31: 68 | AW31: 8 | AX31: 140 | AY31: 76 | AZ31: 36 | BA31: 412 | BC31: =CONCATENATE(Organic_by_ldg_category_ATC!E27,Organic_by_ldg_category_ATC!C27,Organic_by_ldg_category_ATC!D27) -> 201804DEcorporate | BD31: =Organic_by_ldg_category_ATC!B27 -> /browse_catalogue/cat_l3/003008003 | BE31: Office Supplies | BF31: =Organic_by_ldg_category_ATC!F27 -> 4 | BI31: 201804PLcorporate | BL31: 8 | BP31: 8 | BS31: =CONCATENATE(Organic_landing_category_bounce!E33,Organic_landing_category_bounce!B33,Organic_landing_category_bounce!D33) -> 201804ATguest | BT31: =Organic_landing_category_bounce!C33 -> /browse_catalogue/cat_l3/005004001 | BU31: Furniture | BV31: =Organic_landing_category_bounce!F33 -> 0 | BW31: =Organic_landing_category_bounce!G33 -> 4 | BZ31: 201804DErep | CB31: 0 | CD31: 0 | CE31: 0 | CH31: 4 | CJ31: 4 | CK31: 8 | CM31: 0 | CN31: 16 | CP31: =CONCATENATE(Bounce_rate_global!C33:C33,Bounce_rate_global!A33,Bounce_rate_global!B33) -> 201804DEcliqz.com/tracking | CQ31: =Bounce_rate_global!D33 -> 0 | CR31: =Bounce_rate_global!E33 -> 4 | CT31: =CONCATENATE(Bounce_rate_organic!D33,Bounce_rate_organic!C33,Bounce_rate_organic!B33) -> 201804THSMB | CU31: =Bounce_rate_organic!E33 -> 862 | CV31: =Bounce_rate_organic!F33 -> 5941 | CX31: =CONCATENATE(Organic_landing_cat_then_order!E32,Organic_landing_cat_then_order!C32,Organic_landing_cat_then_order!B32) -> 201804BEcorporate | CY31: =Organic_landing_cat_then_order!D32 -> /browse_catalogue/cat_l2/003002 | CZ31: Office Supplies | DA31: =Organic_landing_cat_then_order!F32 -> 3 | DC31: 201804FRrep | DH31: 9 | DK31: 9
A32: =CONCATENATE(General_data!C32,General_data!A32,General_data!B32) -> 201804DEcorporate | B32: =General_data!D32 -> 70490 | C32: =General_data!E32 -> 30504 | D32: =General_data!F32/0.3 -> 3866160.672 | G32: =CONCATENATE(Trafic_Entrant!D32,Trafic_Entrant!A32,Trafic_Entrant!B32) -> 201804AUguest | H32: =IF(Trafic_Entrant!$C32=H$4,Trafic_Entrant!$E32,0) -> 6175 | I32: =IF(Trafic_Entrant!$C32=I$4,Trafic_Entrant!$E32,0) -> 0 | J32: =IF(OR(Trafic_Entrant!$C32=$F$1,Trafic_Entrant!C32=$F$2,Trafic_Entrant!C32=$F$3,Trafic_Entrant!C32=$F$4),Trafic_Entrant!$E32,0) -> 0 | K32: =IF(Trafic_Entrant!$C32=K$4,Trafic_Entrant!$F32,0) -> 8 | L32: =IF(Trafic_Entrant!$C32=L$4,Trafic_Entrant!$F32,0) -> 0 | M32: =IF(OR(Trafic_Entrant!$C32=$F$1,Trafic_Entrant!C32=$F$2,Trafic_Entrant!C32=$F$3,Trafic_Entrant!C32=$F$4),Trafic_Entrant!$F32,0) -> 0 | N32: =IF(Trafic_Entrant!$C32=N$4,Trafic_Entrant!$G32/0.3,0) -> 146.2346433 | O32: =IF(Trafic_Entrant!$C32=O$4,Trafic_Entrant!$G32/0.3,0) -> 0 | P32: =IF(OR(Trafic_Entrant!$C32=$F$1,Trafic_Entrant!$C32=$F$2,Trafic_Entrant!$C32=$F$3,Trafic_Entrant!$C32=$F$4),Trafic_Entrant!$G32/0.3,0) -> 0 | S32: =CONCATENATE(Organic_by_landing_search!D32,Organic_by_landing_search!A32,Organic_by_landing_search!B32) -> 201804DErep | T32: =Organic_by_landing_search!E32 -> 141 | W32: =CONCATENATE(Organic_by_landing_PDP!D32,Organic_by_landing_PDP!A32,Organic_by_landing_PDP!B32) -> 201804DEguest | X32: =Organic_by_landing_PDP!E32 -> 6453 | Z32: =CONCATENATE(Organic_by_landing_welcome!D32,Organic_by_landing_welcome!A32,Organic_by_landing_welcome!B32) -> 201804DEguest | AA32: =Organic_by_landing_welcome!E32 -> 15955 | AC32: 201804DEcliqz.com/tracking | AD32: 0 | AE32: 0 | AF32: 4 | AG32: 0 | AH32: 0 | AI32: 0 | AJ32: 0 | AK32: 0 | AL32: 0 | AO32: =CONCATENATE(Organic_by_landing_category!D32,Organic_by_landing_category!A32,Organic_by_landing_category!B32) -> 201804ATguest | AP32: =Organic_by_landing_category!C32 -> /browse_catalogue/cat_l3/004001009 | AQ32: Technology | AR32: =Organic_by_landing_category!E32 -> 12 | AT32: 201804ENcorporate | AU32: 177 | AV32: 68 | AW32: 24 | AX32: 280 | AY32: 68 | AZ32: 60 | BA32: 677 | BC32: =CONCATENATE(Organic_by_ldg_category_ATC!E28,Organic_by_ldg_category_ATC!C28,Organic_by_ldg_category_ATC!D28) -> 201804ENcorporate | BD32: =Organic_by_ldg_category_ATC!B28 -> /browse_catalogue/cat_l1/003 | BE32: Office Supplies | BF32: =Organic_by_ldg_category_ATC!F28 -> 4 | BI32: 201804PLSMB | BM32: 20 | BP32: 20 | BS32: =CONCATENATE(Organic_landing_category_bounce!E34,Organic_landing_category_bounce!B34,Organic_landing_category_bounce!D34) -> 201804ATguest | BT32: =Organic_landing_category_bounce!C34 -> /browse_catalogue/cat_l3/006001003 | BU32: Facilities Supplies | BV32: =Organic_landing_category_bounce!F34 -> 0 | BW32: =Organic_landing_category_bounce!G34 -> 4 | BZ32: 201804ENSMB | CA32: 12 | CB32: 24 | CC32: 0 | CD32: 24 | CE32: 8 | CF32: 12 | CG32: 84 | CH32: 68 | CI32: 8 | CJ32: 140 | CK32: 76 | CL32: 36 | CM32: 80 | CN32: 412 | CP32: =CONCATENATE(Bounce_rate_global!C34:C34,Bounce_rate_global!A34,Bounce_rate_global!B34) -> 201804DEcorporate | CQ32: =Bounce_rate_global!D34 -> 5752 | CR32: =Bounce_rate_global!E34 -> 70490 | CT32: =CONCATENATE(Bounce_rate_organic!D34,Bounce_rate_organic!C34,Bounce_rate_organic!B34) -> 201804ATcorporate | CU32: =Bounce_rate_organic!E34 -> 109 | CV32: =Bounce_rate_organic!F34 -> 560 | CX32: =CONCATENATE(Organic_landing_cat_then_order!E33,Organic_landing_cat_then_order!C33,Organic_landing_cat_then_order!B33) -> 201804BEcorporate | CY32: =Organic_landing_cat_then_order!D33 -> /browse_catalogue/cat_l2/003010 | CZ32: Office Supplies | DA32: =Organic_landing_cat_then_order!F33 -> 3 | DC32: 201804HKSMB | DE32: 3 | DF32: 6 | DH32: 33 | DI32: 3 | DJ32: 3 | DK32: 48
A33: =CONCATENATE(General_data!C33,General_data!A33,General_data!B33) -> 201804DEguest | B33: =General_data!D33 -> 45493 | C33: =General_data!E33 -> 165 | D33: =General_data!F33/0.3 -> 31808.93409 | G33: =CONCATENATE(Trafic_Entrant!D33,Trafic_Entrant!A33,Trafic_Entrant!B33) -> 201804AUguest | H33: =IF(Trafic_Entrant!$C33=H$4,Trafic_Entrant!$E33,0) -> 0 | I33: =IF(Trafic_Entrant!$C33=I$4,Trafic_Entrant!$E33,0) -> 0 | J33: =IF(OR(Trafic_Entrant!$C33=$F$1,Trafic_Entrant!C33=$F$2,Trafic_Entrant!C33=$F$3,Trafic_Entrant!C33=$F$4),Trafic_Entrant!$E33,0) -> 487 | K33: =IF(Trafic_Entrant!$C33=K$4,Trafic_Entrant!$F33,0) -> 0 | L33: =IF(Trafic_Entrant!$C33=L$4,Trafic_Entrant!$F33,0) -> 0 | M33: =IF(OR(Trafic_Entrant!$C33=$F$1,Trafic_Entrant!C33=$F$2,Trafic_Entrant!C33=$F$3,Trafic_Entrant!C33=$F$4),Trafic_Entrant!$F33,0) -> 0 | N33: =IF(Trafic_Entrant!$C33=N$4,Trafic_Entrant!$G33/0.3,0) -> 0 | O33: =IF(Trafic_Entrant!$C33=O$4,Trafic_Entrant!$G33/0.3,0) -> 0 | P33: =IF(OR(Trafic_Entrant!$C33=$F$1,Trafic_Entrant!$C33=$F$2,Trafic_Entrant!$C33=$F$3,Trafic_Entrant!$C33=$F$4),Trafic_Entrant!$G33/0.3,0) -> 0 | S33: =CONCATENATE(Organic_by_landing_search!D33,Organic_by_landing_search!A33,Organic_by_landing_search!B33) -> 201804ENSMB | T33: =Organic_by_landing_search!E33 -> 983 | W33: =CONCATENATE(Organic_by_landing_PDP!D33,Organic_by_landing_PDP!A33,Organic_by_landing_PDP!B33) -> 201804DErep | X33: =Organic_by_landing_PDP!E33 -> 85 | Z33: =CONCATENATE(Organic_by_landing_welcome!D33,Organic_by_landing_welcome!A33,Organic_by_landing_welcome!B33) -> 201804DErep | AA33: =Organic_by_landing_welcome!E33 -> 620 | AC33: 201804DEcorporate | AD33: 21723 | AE33: 41771 | AF33: 6996 | AG33: 8721 | AH33: 19181 | AI33: 2602 | AJ33: 1104648.674 | AK33: 2464226.616 | AL33: 297285.3821 | AO33: =CONCATENATE(Organic_by_landing_category!D33,Organic_by_landing_category!A33,Organic_by_landing_category!B33) -> 201804ATguest | AP33: =Organic_by_landing_category!C33 -> /browse_catalogue/cat_l3/005003004 | AQ33: Furniture | AR33: =Organic_by_landing_category!E33 -> 8 | AT33: 201804ENguest | AU33: 324 | AV33: 486 | AW33: 80 | AX33: 1660 | AY33: 108 | AZ33: 244 | BA33: 2902 | BC33: =CONCATENATE(Organic_by_ldg_category_ATC!E29,Organic_by_ldg_category_ATC!C29,Organic_by_ldg_category_ATC!D29) -> 201804ENSMB | BD33: =Organic_by_ldg_category_ATC!B29 -> /browse_catalogue/cat_l2/001001 | BE33: Paper & Envelopes | BF33: =Organic_by_ldg_category_ATC!F29 -> 4 | BI33: 201804SGSMB | BL33: 8 | BM33: 4 | BP33: 12 | BS33: =CONCATENATE(Organic_landing_category_bounce!E35,Organic_landing_category_bounce!B35,Organic_landing_category_bounce!D35) -> 201804ATSMB | BT33: =Organic_landing_category_bounce!C35 -> /browse_catalogue/cat_l3/006004002 | BU33: Facilities Supplies | BV33: =Organic_landing_category_bounce!F35 -> 0 | BW33: =Organic_landing_category_bounce!G35 -> 8 | BZ33: 201804ENcorporate | CA33: 20 | CB33: 8 | CC33: 8 | CD33: 52 | CE33: 16 | CF33: 4 | CG33: 177 | CH33: 68 | CI33: 24 | CJ33: 280 | CK33: 68 | CL33: 60 | CM33: 108 | CN33: 677 | CP33: =CONCATENATE(Bounce_rate_global!C35:C35,Bounce_rate_global!A35,Bounce_rate_global!B35) -> 201804DEguest | CQ33: =Bounce_rate_global!D35 -> 14392 | CR33: =Bounce_rate_global!E35 -> 45493 | CT33: =CONCATENATE(Bounce_rate_organic!D35,Bounce_rate_organic!C35,Bounce_rate_organic!B35) -> 201804AUcorporate | CU33: =Bounce_rate_organic!E35 -> 1229 | CV33: =Bounce_rate_organic!F35 -> 9079 | CX33: =CONCATENATE(Organic_landing_cat_then_order!E34,Organic_landing_cat_then_order!C34,Organic_landing_cat_then_order!B34) -> 201804BEcorporate | CY33: =Organic_landing_cat_then_order!D34 -> /browse_catalogue/cat_l3/001001001 | CZ33: Paper & Envelopes | DA33: =Organic_landing_cat_then_order!F34 -> 6 | DC33: 201804HKcorporate | DE33: 3 | DH33: 6 | DK33: 9
A34: =CONCATENATE(General_data!C34,General_data!A34,General_data!B34) -> 201804DErep | B34: =General_data!D34 -> 1913 | C34: =General_data!E34 -> 16 | D34: =General_data!F34/0.3 -> 516.5274533 | G34: =CONCATENATE(Trafic_Entrant!D34,Trafic_Entrant!A34,Trafic_Entrant!B34) -> 201804AUguest | H34: =IF(Trafic_Entrant!$C34=H$4,Trafic_Entrant!$E34,0) -> 0 | I34: =IF(Trafic_Entrant!$C34=I$4,Trafic_Entrant!$E34,0) -> 0 | J34: =IF(OR(Trafic_Entrant!$C34=$F$1,Trafic_Entrant!C34=$F$2,Trafic_Entrant!C34=$F$3,Trafic_Entrant!C34=$F$4),Trafic_Entrant!$E34,0) -> 68 | K34: =IF(Trafic_Entrant!$C34=K$4,Trafic_Entrant!$F34,0) -> 0 | L34: =IF(Trafic_Entrant!$C34=L$4,Trafic_Entrant!$F34,0) -> 0 | M34: =IF(OR(Trafic_Entrant!$C34=$F$1,Trafic_Entrant!C34=$F$2,Trafic_Entrant!C34=$F$3,Trafic_Entrant!C34=$F$4),Trafic_Entrant!$F34,0) -> 0 | N34: =IF(Trafic_Entrant!$C34=N$4,Trafic_Entrant!$G34/0.3,0) -> 0 | O34: =IF(Trafic_Entrant!$C34=O$4,Trafic_Entrant!$G34/0.3,0) -> 0 | P34: =IF(OR(Trafic_Entrant!$C34=$F$1,Trafic_Entrant!$C34=$F$2,Trafic_Entrant!$C34=$F$3,Trafic_Entrant!$C34=$F$4),Trafic_Entrant!$G34/0.3,0) -> 0 | S34: =CONCATENATE(Organic_by_landing_search!D34,Organic_by_landing_search!A34,Organic_by_landing_search!B34) -> 201804ENcorporate | T34: =Organic_by_landing_search!E34 -> 1531 | W34: =CONCATENATE(Organic_by_landing_PDP!D34,Organic_by_landing_PDP!A34,Organic_by_landing_PDP!B34) -> 201804ENSMB | X34: =Organic_by_landing_PDP!E34 -> 1196 | Z34: =CONCATENATE(Organic_by_landing_welcome!D34,Organic_by_landing_welcome!A34,Organic_by_landing_welcome!B34) -> 201804ENSMB | AA34: =Organic_by_landing_welcome!E34 -> 29554 | AC34: 201804DEguest | AD34: 27012 | AE34: 16716 | AF34: 1765 | AG34: 20 | AH34: 141 | AI34: 4 | AJ34: 2722.141303 | AK34: 28889.41942 | AL34: 197.37337 | AO34: =CONCATENATE(Organic_by_landing_category!D34,Organic_by_landing_category!A34,Organic_by_landing_category!B34) -> 201804ATguest | AP34: =Organic_by_landing_category!C34 -> /browse_catalogue/cat_l3/005004001 | AQ34: Furniture | AR34: =Organic_by_landing_category!E34 -> 4 | AT34: 201804ENrep | AU34: 4 | AW34: 4 | AX34: 4 | BA34: 12 | BC34: =CONCATENATE(Organic_by_ldg_category_ATC!E30,Organic_by_ldg_category_ATC!C30,Organic_by_ldg_category_ATC!D30) -> 201804ENcorporate | BD34: =Organic_by_ldg_category_ATC!B30 -> /browse_catalogue/cat_l2/006001 | BE34: Facilities Supplies | BF34: =Organic_by_ldg_category_ATC!F30 -> 4 | BI34: 201804SKSMB | BL34: 8 | BP34: 8 | BS34: =CONCATENATE(Organic_landing_category_bounce!E36,Organic_landing_category_bounce!B36,Organic_landing_category_bounce!D36) -> 201804ATguest | BT34: =Organic_landing_category_bounce!C36 -> /browse_catalogue/cat_l3/006004002 | BU34: Facilities Supplies | BV34: =Organic_landing_category_bounce!F36 -> 4 | BW34: =Organic_landing_category_bounce!G36 -> 4 | BZ34: 201804ENguest | CA34: 136 | CB34: 128 | CC34: 16 | CD34: 488 | CE34: 28 | CF34: 80 | CG34: 324 | CH34: 486 | CI34: 80 | CJ34: 1660 | CK34: 108 | CL34: 244 | CM34: 876 | CN34: 2902 | CP34: =CONCATENATE(Bounce_rate_global!C36:C36,Bounce_rate_global!A36,Bounce_rate_global!B36) -> 201804DErep | CQ34: =Bounce_rate_global!D36 -> 326 | CR34: =Bounce_rate_global!E36 -> 1913 | CT34: =CONCATENATE(Bounce_rate_organic!D36,Bounce_rate_organic!C36,Bounce_rate_organic!B36) -> 201804BEcorporate | CU34: =Bounce_rate_organic!E36 -> 1486 | CV34: =Bounce_rate_organic!F36 -> 19681 | CX34: =CONCATENATE(Organic_landing_cat_then_order!E35,Organic_landing_cat_then_order!C35,Organic_landing_cat_then_order!B35) -> 201804BEcorporate | CY34: =Organic_landing_cat_then_order!D35 -> /browse_catalogue/cat_l3/001001002 | CZ34: Paper & Envelopes | DA34: =Organic_landing_cat_then_order!F35 -> 3 | DC34: 201804IRSMB | DH34: 136 | DI34: 12 | DK34: 148
A35: =CONCATENATE(General_data!C35,General_data!A35,General_data!B35) -> 201804ENSMB | B35: =General_data!D35 -> 88935 | C35: =General_data!E35 -> 34577 | D35: =General_data!F35/0.3 -> 4579339.236 | G35: =CONCATENATE(Trafic_Entrant!D35,Trafic_Entrant!A35,Trafic_Entrant!B35) -> 201804AUrep | H35: =IF(Trafic_Entrant!$C35=H$4,Trafic_Entrant!$E35,0) -> 0 | I35: =IF(Trafic_Entrant!$C35=I$4,Trafic_Entrant!$E35,0) -> 628 | J35: =IF(OR(Trafic_Entrant!$C35=$F$1,Trafic_Entrant!C35=$F$2,Trafic_Entrant!C35=$F$3,Trafic_Entrant!C35=$F$4),Trafic_Entrant!$E35,0) -> 0 | K35: =IF(Trafic_Entrant!$C35=K$4,Trafic_Entrant!$F35,0) -> 0 | L35: =IF(Trafic_Entrant!$C35=L$4,Trafic_Entrant!$F35,0) -> 491 | M35: =IF(OR(Trafic_Entrant!$C35=$F$1,Trafic_Entrant!C35=$F$2,Trafic_Entrant!C35=$F$3,Trafic_Entrant!C35=$F$4),Trafic_Entrant!$F35,0) -> 0 | N35: =IF(Trafic_Entrant!$C35=N$4,Trafic_Entrant!$G35/0.3,0) -> 0 | O35: =IF(Trafic_Entrant!$C35=O$4,Trafic_Entrant!$G35/0.3,0) -> 71566.832 | P35: =IF(OR(Trafic_Entrant!$C35=$F$1,Trafic_Entrant!$C35=$F$2,Trafic_Entrant!$C35=$F$3,Trafic_Entrant!$C35=$F$4),Trafic_Entrant!$G35/0.3,0) -> 0 | S35: =CONCATENATE(Organic_by_landing_search!D35,Organic_by_landing_search!A35,Organic_by_landing_search!B35) -> 201804ENguest | T35: =Organic_by_landing_search!E35 -> 1100 | W35: =CONCATENATE(Organic_by_landing_PDP!D35,Organic_by_landing_PDP!A35,Organic_by_landing_PDP!B35) -> 201804ENcorporate | X35: =Organic_by_landing_PDP!E35 -> 1241 | Z35: =CONCATENATE(Organic_by_landing_welcome!D35,Organic_by_landing_welcome!A35,Organic_by_landing_welcome!B35) -> 201804ENcorporate | AA35: =Organic_by_landing_welcome!E35 -> 35422 | AC35: 201804DErep | AD35: 1148 | AE35: 689 | AF35: 77 | AG35: 0 | AH35: 16 | AI35: 0 | AJ35: 0 | AK35: 516.5274533 | AL35: 0 | AO35: =CONCATENATE(Organic_by_landing_category!D35,Organic_by_landing_category!A35,Organic_by_landing_category!B35) -> 201804ATguest | AP35: =Organic_by_landing_category!C35 -> /browse_catalogue/cat_l3/006001003 | AQ35: Facilities Supplies | AR35: =Organic_by_landing_category!E35 -> 4 | AT35: 201804FISMB | AU35: 8 | AV35: 8 | AX35: 28 | AY35: 8 | AZ35: 8 | BA35: 60 | BC35: =CONCATENATE(Organic_by_ldg_category_ATC!E31,Organic_by_ldg_category_ATC!C31,Organic_by_ldg_category_ATC!D31) -> 201804ENSMB | BD35: =Organic_by_ldg_category_ATC!B31 -> /browse_catalogue/cat_l3/001001001 | BE35: Paper & Envelopes | BF35: =Organic_by_ldg_category_ATC!F31 -> 8 | BI35: 201804SPSMB | BJ35: 4 | BL35: 8 | BM35: 4 | BP35: 16 | BS35: =CONCATENATE(Organic_landing_category_bounce!E37,Organic_landing_category_bounce!B37,Organic_landing_category_bounce!D37) -> 201804ATguest | BT35: =Organic_landing_category_bounce!C37 -> /browse_catalogue/cat_l3/006004004 | BU35: Facilities Supplies | BV35: =Organic_landing_category_bounce!F37 -> 0 | BW35: =Organic_landing_category_bounce!G37 -> 4 | BZ35: 201804ENrep | CA35: 4 | CC35: 0 | CD35: 0 | CG35: 4 | CI35: 4 | CJ35: 4 | CM35: 4 | CN35: 12 | CP35: =CONCATENATE(Bounce_rate_global!C37:C37,Bounce_rate_global!A37,Bounce_rate_global!B37) -> 201804ENSMB | CQ35: =Bounce_rate_global!D37 -> 7919 | CR35: =Bounce_rate_global!E37 -> 88935 | CT35: =CONCATENATE(Bounce_rate_organic!D37,Bounce_rate_organic!C37,Bounce_rate_organic!B37) -> 201804CHcorporate | CU35: =Bounce_rate_organic!E37 -> 1341 | CV35: =Bounce_rate_organic!F37 -> 14110 | CX35: =CONCATENATE(Organic_landing_cat_then_order!E36,Organic_landing_cat_then_order!C36,Organic_landing_cat_then_order!B36) -> 201804BEcorporate | CY35: =Organic_landing_cat_then_order!D36 -> /browse_catalogue/cat_l3/003001005 | CZ35: Office Supplies | DA35: =Organic_landing_cat_then_order!F36 -> 3 | DC35: 201804IRcorporate | DH35: 72 | DI35: 3 | DK35: 75
A36: =CONCATENATE(General_data!C36,General_data!A36,General_data!B36) -> 201804ENcorporate | B36: =General_data!D36 -> 173096 | C36: =General_data!E36 -> 79469 | D36: =General_data!F36/0.3 -> 9406755.787 | G36: =CONCATENATE(Trafic_Entrant!D36,Trafic_Entrant!A36,Trafic_Entrant!B36) -> 201804AUrep | H36: =IF(Trafic_Entrant!$C36=H$4,Trafic_Entrant!$E36,0) -> 338 | I36: =IF(Trafic_Entrant!$C36=I$4,Trafic_Entrant!$E36,0) -> 0 | J36: =IF(OR(Trafic_Entrant!$C36=$F$1,Trafic_Entrant!C36=$F$2,Trafic_Entrant!C36=$F$3,Trafic_Entrant!C36=$F$4),Trafic_Entrant!$E36,0) -> 0 | K36: =IF(Trafic_Entrant!$C36=K$4,Trafic_Entrant!$F36,0) -> 238 | L36: =IF(Trafic_Entrant!$C36=L$4,Trafic_Entrant!$F36,0) -> 0 | M36: =IF(OR(Trafic_Entrant!$C36=$F$1,Trafic_Entrant!C36=$F$2,Trafic_Entrant!C36=$F$3,Trafic_Entrant!C36=$F$4),Trafic_Entrant!$F36,0) -> 0 | N36: =IF(Trafic_Entrant!$C36=N$4,Trafic_Entrant!$G36/0.3,0) -> 38064.6785 | O36: =IF(Trafic_Entrant!$C36=O$4,Trafic_Entrant!$G36/0.3,0) -> 0 | P36: =IF(OR(Trafic_Entrant!$C36=$F$1,Trafic_Entrant!$C36=$F$2,Trafic_Entrant!$C36=$F$3,Trafic_Entrant!$C36=$F$4),Trafic_Entrant!$G36/0.3,0) -> 0 | S36: =CONCATENATE(Organic_by_landing_search!D36,Organic_by_landing_search!A36,Organic_by_landing_search!B36) -> 201804ENrep | T36: =Organic_by_landing_search!E36 -> 153 | W36: =CONCATENATE(Organic_by_landing_PDP!D36,Organic_by_landing_PDP!A36,Organic_by_landing_PDP!B36) -> 201804ENguest | X36: =Organic_by_landing_PDP!E36 -> 7134 | Z36: =CONCATENATE(Organic_by_landing_welcome!D36,Organic_by_landing_welcome!A36,Organic_by_landing_welcome!B36) -> 201804ENguest | AA36: =Organic_by_landing_welcome!E36 -> 26819 | AC36: 201804ENSMB | AD36: 43148 | AE36: 41863 | AF36: 3923 | AG36: 15895 | AH36: 17433 | AI36: 1249 | AJ36: 2090468.369 | AK36: 2327919.835 | AL36: 160951.0318 | AO36: =CONCATENATE(Organic_by_landing_category!D36,Organic_by_landing_category!A36,Organic_by_landing_category!B36) -> 201804ATguest | AP36: =Organic_by_landing_category!C36 -> /browse_catalogue/cat_l3/006004002 | AQ36: Facilities Supplies | AR36: =Organic_by_landing_category!E36 -> 4 | AT36: 201804FIcorporate | AU36: 48 | AX36: 16 | AY36: 16 | AZ36: 24 | BA36: 104 | BC36: =CONCATENATE(Organic_by_ldg_category_ATC!E32,Organic_by_ldg_category_ATC!C32,Organic_by_ldg_category_ATC!D32) -> 201804ENcorporate | BD36: =Organic_by_ldg_category_ATC!B32 -> /browse_catalogue/cat_l3/001001001 | BE36: Paper & Envelopes | BF36: =Organic_by_ldg_category_ATC!F32 -> 8 | BI36: 201804SPcorporate | BJ36: 4 | BM36: 4 | BP36: 8 | BS36: =CONCATENATE(Organic_landing_category_bounce!E38,Organic_landing_category_bounce!B38,Organic_landing_category_bounce!D38) -> 201804ATguest | BT36: =Organic_landing_category_bounce!C38 -> /browse_catalogue/cat_l3/006006001 | BU36: Facilities Supplies | BV36: =Organic_landing_category_bounce!F38 -> 4 | BW36: =Organic_landing_category_bounce!G38 -> 4 | BZ36: 201804FIcorporate | CA36: 16 | CD36: 0 | CE36: 0 | CF36: 20 | CG36: 48 | CJ36: 16 | CK36: 16 | CL36: 24 | CM36: 36 | CN36: 104 | CP36: =CONCATENATE(Bounce_rate_global!C38:C38,Bounce_rate_global!A38,Bounce_rate_global!B38) -> 201804ENcorporate | CQ36: =Bounce_rate_global!D38 -> 12664 | CR36: =Bounce_rate_global!E38 -> 173096 | CT36: =CONCATENATE(Bounce_rate_organic!D38,Bounce_rate_organic!C38,Bounce_rate_organic!B38) -> 201804CZcorporate | CU36: =Bounce_rate_organic!E38 -> 109 | CV36: =Bounce_rate_organic!F38 -> 1764 | CX36: =CONCATENATE(Organic_landing_cat_then_order!E37,Organic_landing_cat_then_order!C37,Organic_landing_cat_then_order!B37) -> 201804BEcorporate | CY36: =Organic_landing_cat_then_order!D37 -> /browse_catalogue/cat_l3/003004005 | CZ36: Office Supplies | DA36: =Organic_landing_cat_then_order!F37 -> 3 | DC36: 201804ITSMB | DE36: 6 | DF36: 6 | DH36: 52 | DI36: 3 | DJ36: 3 | DK36: 70
A37: =CONCATENATE(General_data!C37,General_data!A37,General_data!B37) -> 201804ENguest | B37: =General_data!D37 -> 67578 | C37: =General_data!E37 -> 201 | D37: =General_data!F37/0.3 -> 25193.28582 | G37: =CONCATENATE(Trafic_Entrant!D37,Trafic_Entrant!A37,Trafic_Entrant!B37) -> 201804AUrep | H37: =IF(Trafic_Entrant!$C37=H$4,Trafic_Entrant!$E37,0) -> 0 | I37: =IF(Trafic_Entrant!$C37=I$4,Trafic_Entrant!$E37,0) -> 0 | J37: =IF(OR(Trafic_Entrant!$C37=$F$1,Trafic_Entrant!C37=$F$2,Trafic_Entrant!C37=$F$3,Trafic_Entrant!C37=$F$4),Trafic_Entrant!$E37,0) -> 165 | K37: =IF(Trafic_Entrant!$C37=K$4,Trafic_Entrant!$F37,0) -> 0 | L37: =IF(Trafic_Entrant!$C37=L$4,Trafic_Entrant!$F37,0) -> 0 | M37: =IF(OR(Trafic_Entrant!$C37=$F$1,Trafic_Entrant!C37=$F$2,Trafic_Entrant!C37=$F$3,Trafic_Entrant!C37=$F$4),Trafic_Entrant!$F37,0) -> 189 | N37: =IF(Trafic_Entrant!$C37=N$4,Trafic_Entrant!$G37/0.3,0) -> 0 | O37: =IF(Trafic_Entrant!$C37=O$4,Trafic_Entrant!$G37/0.3,0) -> 0 | P37: =IF(OR(Trafic_Entrant!$C37=$F$1,Trafic_Entrant!$C37=$F$2,Trafic_Entrant!$C37=$F$3,Trafic_Entrant!$C37=$F$4),Trafic_Entrant!$G37/0.3,0) -> 29827.34867 | S37: =CONCATENATE(Organic_by_landing_search!D37,Organic_by_landing_search!A37,Organic_by_landing_search!B37) -> 201804FISMB | T37: =Organic_by_landing_search!E37 -> 173 | W37: =CONCATENATE(Organic_by_landing_PDP!D37,Organic_by_landing_PDP!A37,Organic_by_landing_PDP!B37) -> 201804ENrep | X37: =Organic_by_landing_PDP!E37 -> 181 | Z37: =CONCATENATE(Organic_by_landing_welcome!D37,Organic_by_landing_welcome!A37,Organic_by_landing_welcome!B37) -> 201804ENrep | AA37: =Organic_by_landing_welcome!E37 -> 1398 | AC37: 201804ENcorporate | AD37: 57005 | AE37: 98812 | AF37: 17279 | AG37: 23197 | AH37: 47442 | AI37: 8829 | AJ37: 2846667.619 | AK37: 5635632.977 | AL37: 924455.1902 | AO37: =CONCATENATE(Organic_by_landing_category!D37,Organic_by_landing_category!A37,Organic_by_landing_category!B37) -> 201804ATguest | AP37: =Organic_by_landing_category!C37 -> /browse_catalogue/cat_l3/006004004 | AQ37: Facilities Supplies | AR37: =Organic_by_landing_category!E37 -> 4 | AT37: 201804FIguest | AU37: 140 | AV37: 68 | AW37: 8 | AX37: 656 | AY37: 72 | AZ37: 160 | BA37: 1104 | BC37: =CONCATENATE(Organic_by_ldg_category_ATC!E33,Organic_by_ldg_category_ATC!C33,Organic_by_ldg_category_ATC!D33) -> 201804ENSMB | BD37: =Organic_by_ldg_category_ATC!B33 -> /browse_catalogue/cat_l3/001007001 | BE37: Paper & Envelopes | BF37: =Organic_by_ldg_category_ATC!F33 -> 4 | BI37: 201804SVcorporate | BM37: 4 | BP37: 4 | BS37: =CONCATENATE(Organic_landing_category_bounce!E39,Organic_landing_category_bounce!B39,Organic_landing_category_bounce!D39) -> 201804ATguest | BT37: =Organic_landing_category_bounce!C39 -> /browse_catalogue/cat_l3/006010004 | BU37: Facilities Supplies | BV37: =Organic_landing_category_bounce!F39 -> 0 | BW37: =Organic_landing_category_bounce!G39 -> 4 | BZ37: 201804FIguest | CA37: 72 | CB37: 32 | CC37: 0 | CD37: 312 | CE37: 56 | CF37: 84 | CG37: 140 | CH37: 68 | CI37: 8 | CJ37: 656 | CK37: 72 | CL37: 160 | CM37: 556 | CN37: 1104 | CP37: =CONCATENATE(Bounce_rate_global!C39:C39,Bounce_rate_global!A39,Bounce_rate_global!B39) -> 201804ENguest | CQ37: =Bounce_rate_global!D39 -> 19524 | CR37: =Bounce_rate_global!E39 -> 67578 | CT37: =CONCATENATE(Bounce_rate_organic!D39,Bounce_rate_organic!C39,Bounce_rate_organic!B39) -> 201804DAcorporate | CU37: =Bounce_rate_organic!E39 -> 890 | CV37: =Bounce_rate_organic!F39 -> 10453 | CX37: =CONCATENATE(Organic_landing_cat_then_order!E38,Organic_landing_cat_then_order!C38,Organic_landing_cat_then_order!B38) -> 201804BEcorporate | CY37: =Organic_landing_cat_then_order!D38 -> /browse_catalogue/cat_l3/003007003 | CZ37: Office Supplies | DA37: =Organic_landing_cat_then_order!F38 -> 3 | DC37: 201804ITcorporate | DE37: 3 | DF37: 6 | DH37: 32 | DI37: 3 | DK37: 44
A38: =CONCATENATE(General_data!C38,General_data!A38,General_data!B38) -> 201804ENrep | B38: =General_data!D38 -> 6594 | C38: =General_data!E38 -> 4258 | D38: =General_data!F38/0.3 -> 669605.459 | G38: =CONCATENATE(Trafic_Entrant!D38,Trafic_Entrant!A38,Trafic_Entrant!B38) -> 201804BESMB | H38: =IF(Trafic_Entrant!$C38=H$4,Trafic_Entrant!$E38,0) -> 0 | I38: =IF(Trafic_Entrant!$C38=I$4,Trafic_Entrant!$E38,0) -> 0 | J38: =IF(OR(Trafic_Entrant!$C38=$F$1,Trafic_Entrant!C38=$F$2,Trafic_Entrant!C38=$F$3,Trafic_Entrant!C38=$F$4),Trafic_Entrant!$E38,0) -> 197 | K38: =IF(Trafic_Entrant!$C38=K$4,Trafic_Entrant!$F38,0) -> 0 | L38: =IF(Trafic_Entrant!$C38=L$4,Trafic_Entrant!$F38,0) -> 0 | M38: =IF(OR(Trafic_Entrant!$C38=$F$1,Trafic_Entrant!C38=$F$2,Trafic_Entrant!C38=$F$3,Trafic_Entrant!C38=$F$4),Trafic_Entrant!$F38,0) -> 141 | N38: =IF(Trafic_Entrant!$C38=N$4,Trafic_Entrant!$G38/0.3,0) -> 0 | O38: =IF(Trafic_Entrant!$C38=O$4,Trafic_Entrant!$G38/0.3,0) -> 0 | P38: =IF(OR(Trafic_Entrant!$C38=$F$1,Trafic_Entrant!$C38=$F$2,Trafic_Entrant!$C38=$F$3,Trafic_Entrant!$C38=$F$4),Trafic_Entrant!$G38/0.3,0) -> 41018.21444 | S38: =CONCATENATE(Organic_by_landing_search!D38,Organic_by_landing_search!A38,Organic_by_landing_search!B38) -> 201804FIcorporate | T38: =Organic_by_landing_search!E38 -> 209 | W38: =CONCATENATE(Organic_by_landing_PDP!D38,Organic_by_landing_PDP!A38,Organic_by_landing_PDP!B38) -> 201804FISMB | X38: =Organic_by_landing_PDP!E38 -> 354 | Z38: =CONCATENATE(Organic_by_landing_welcome!D38,Organic_by_landing_welcome!A38,Organic_by_landing_welcome!B38) -> 201804FISMB | AA38: =Organic_by_landing_welcome!E38 -> 2634 | AC38: 201804ENguest | AD38: 42085 | AE38: 22706 | AF38: 2787 | AG38: 32 | AH38: 165 | AI38: 4 | AJ38: 2007.108107 | AK38: 22182.94263 | AL38: 1003.23508 | AO38: =CONCATENATE(Organic_by_landing_category!D38,Organic_by_landing_category!A38,Organic_by_landing_category!B38) -> 201804ATguest | AP38: =Organic_by_landing_category!C38 -> /browse_catalogue/cat_l3/006006001 | AQ38: Facilities Supplies | AR38: =Organic_by_landing_category!E38 -> 4 | AT38: 201804FRSMB | AU38: 60 | AV38: 60 | AW38: 20 | AX38: 506 | AY38: 52 | AZ38: 24 | BA38: 722 | BC38: =CONCATENATE(Organic_by_ldg_category_ATC!E34,Organic_by_ldg_category_ATC!C34,Organic_by_ldg_category_ATC!D34) -> 201804ENcorporate | BD38: =Organic_by_ldg_category_ATC!B34 -> /browse_catalogue/cat_l3/005004005 | BE38: Furniture | BF38: =Organic_by_ldg_category_ATC!F34 -> 4 | BI38: 201804SVSMB | BL38: 4 | BP38: 4 | BS38: =CONCATENATE(Organic_landing_category_bounce!E40,Organic_landing_category_bounce!B40,Organic_landing_category_bounce!D40) -> 201804ATguest | BT38: =Organic_landing_category_bounce!C40 -> /browse_catalogue/cat_l4/003006003002 | BU38: Office Supplies | BV38: =Organic_landing_category_bounce!F40 -> 0 | BW38: =Organic_landing_category_bounce!G40 -> 4 | BZ38: 201804FISMB | CA38: 0 | CB38: 0 | CD38: 0 | CE38: 4 | CF38: 4 | CG38: 8 | CH38: 8 | CJ38: 28 | CK38: 8 | CL38: 8 | CM38: 8 | CN38: 60 | CP38: =CONCATENATE(Bounce_rate_global!C40:C40,Bounce_rate_global!A40,Bounce_rate_global!B40) -> 201804ENrep | CQ38: =Bounce_rate_global!D40 -> 975 | CR38: =Bounce_rate_global!E40 -> 6594 | CT38: =CONCATENATE(Bounce_rate_organic!D40,Bounce_rate_organic!C40,Bounce_rate_organic!B40) -> 201804DEcorporate | CU38: =Bounce_rate_organic!E40 -> 1535 | CV38: =Bounce_rate_organic!F40 -> 21723 | CX38: =CONCATENATE(Organic_landing_cat_then_order!E39,Organic_landing_cat_then_order!C39,Organic_landing_cat_then_order!B39) -> 201804BEcorporate | CY38: =Organic_landing_cat_then_order!D39 -> /browse_catalogue/cat_l3/004001008 | CZ38: Technology | DA38: =Organic_landing_cat_then_order!F39 -> 3 | DC38: 201804KRSMB | DE38: 3 | DH38: 6 | DK38: 9
A39: =CONCATENATE(General_data!C39,General_data!A39,General_data!B39) -> 201804FISMB | B39: =General_data!D39 -> 7710 | C39: =General_data!E39 -> 2364 | D39: =General_data!F39/0.3 -> 681569.1864 | G39: =CONCATENATE(Trafic_Entrant!D39,Trafic_Entrant!A39,Trafic_Entrant!B39) -> 201804BESMB | H39: =IF(Trafic_Entrant!$C39=H$4,Trafic_Entrant!$E39,0) -> 0 | I39: =IF(Trafic_Entrant!$C39=I$4,Trafic_Entrant!$E39,0) -> 8898 | J39: =IF(OR(Trafic_Entrant!$C39=$F$1,Trafic_Entrant!C39=$F$2,Trafic_Entrant!C39=$F$3,Trafic_Entrant!C39=$F$4),Trafic_Entrant!$E39,0) -> 0 | K39: =IF(Trafic_Entrant!$C39=K$4,Trafic_Entrant!$F39,0) -> 0 | L39: =IF(Trafic_Entrant!$C39=L$4,Trafic_Entrant!$F39,0) -> 3766 | M39: =IF(OR(Trafic_Entrant!$C39=$F$1,Trafic_Entrant!C39=$F$2,Trafic_Entrant!C39=$F$3,Trafic_Entrant!C39=$F$4),Trafic_Entrant!$F39,0) -> 0 | N39: =IF(Trafic_Entrant!$C39=N$4,Trafic_Entrant!$G39/0.3,0) -> 0 | O39: =IF(Trafic_Entrant!$C39=O$4,Trafic_Entrant!$G39/0.3,0) -> 1014577.94 | P39: =IF(OR(Trafic_Entrant!$C39=$F$1,Trafic_Entrant!$C39=$F$2,Trafic_Entrant!$C39=$F$3,Trafic_Entrant!$C39=$F$4),Trafic_Entrant!$G39/0.3,0) -> 0 | S39: =CONCATENATE(Organic_by_landing_search!D39,Organic_by_landing_search!A39,Organic_by_landing_search!B39) -> 201804FIguest | T39: =Organic_by_landing_search!E39 -> 56 | W39: =CONCATENATE(Organic_by_landing_PDP!D39,Organic_by_landing_PDP!A39,Organic_by_landing_PDP!B39) -> 201804FIcorporate | X39: =Organic_by_landing_PDP!E39 -> 258 | Z39: =CONCATENATE(Organic_by_landing_welcome!D39,Organic_by_landing_welcome!A39,Organic_by_landing_welcome!B39) -> 201804FIcorporate | AA39: =Organic_by_landing_welcome!E39 -> 4644 | AC39: 201804ENrep | AD39: 2731 | AE39: 3444 | AF39: 419 | AG39: 1809 | AH39: 2107 | AI39: 342 | AJ39: 249370.4018 | AK39: 331070.0952 | AL39: 89164.96199 | AO39: =CONCATENATE(Organic_by_landing_category!D39,Organic_by_landing_category!A39,Organic_by_landing_category!B39) -> 201804ATguest | AP39: =Organic_by_landing_category!C39 -> /browse_catalogue/cat_l3/006010004 | AQ39: Facilities Supplies | AR39: =Organic_by_landing_category!E39 -> 4 | AT39: 201804FRcorporate | AU39: 144 | AV39: 84 | AW39: 52 | AX39: 1676 | AY39: 116 | AZ39: 76 | BA39: 2148 | BC39: =CONCATENATE(Organic_by_ldg_category_ATC!E35,Organic_by_ldg_category_ATC!C35,Organic_by_ldg_category_ATC!D35) -> 201804FIcorporate | BD39: =Organic_by_ldg_category_ATC!B35 -> /browse_catalogue/cat_l3/003008001 | BE39: Office Supplies | BF39: =Organic_by_ldg_category_ATC!F35 -> 4 | BI39: 201804THSMB | BL39: 4 | BM39: 4 | BP39: 8 | BS39: =CONCATENATE(Organic_landing_category_bounce!E41,Organic_landing_category_bounce!B41,Organic_landing_category_bounce!D41) -> 201804ATguest | BT39: =Organic_landing_category_bounce!C41 -> /browse_catalogue/cat_l4/003006004002 | BU39: Office Supplies | BV39: =Organic_landing_category_bounce!F41 -> 4 | BW39: =Organic_landing_category_bounce!G41 -> 4 | BZ39: 201804FRcorporate | CA39: 8 | CB39: 12 | CC39: 0 | CD39: 84 | CE39: 8 | CF39: 28 | CG39: 144 | CH39: 84 | CI39: 52 | CJ39: 1676 | CK39: 116 | CL39: 76 | CM39: 140 | CN39: 2148 | CP39: =CONCATENATE(Bounce_rate_global!C41:C41,Bounce_rate_global!A41,Bounce_rate_global!B41) -> 201804FISMB | CQ39: =Bounce_rate_global!D41 -> 947 | CR39: =Bounce_rate_global!E41 -> 7710 | CT39: =CONCATENATE(Bounce_rate_organic!D41,Bounce_rate_organic!C41,Bounce_rate_organic!B41) -> 201804ENcorporate | CU39: =Bounce_rate_organic!E41 -> 4302 | CV39: =Bounce_rate_organic!F41 -> 57005 | CX39: =CONCATENATE(Organic_landing_cat_then_order!E40,Organic_landing_cat_then_order!C40,Organic_landing_cat_then_order!B40) -> 201804BEcorporate | CY39: =Organic_landing_cat_then_order!D40 -> /browse_catalogue/cat_l3/006001003 | CZ39: Facilities Supplies | DA39: =Organic_landing_cat_then_order!F40 -> 6 | DC39: 201804KRcorporate | DH39: 61 | DK39: 61
A40: =CONCATENATE(General_data!C40,General_data!A40,General_data!B40) -> 201804FIcorporate | B40: =General_data!D40 -> 17051 | C40: =General_data!E40 -> 5309 | D40: =General_data!F40/0.3 -> 1145891.144 | G40: =CONCATENATE(Trafic_Entrant!D40,Trafic_Entrant!A40,Trafic_Entrant!B40) -> 201804BESMB | H40: =IF(Trafic_Entrant!$C40=H$4,Trafic_Entrant!$E40,0) -> 0 | I40: =IF(Trafic_Entrant!$C40=I$4,Trafic_Entrant!$E40,0) -> 0 | J40: =IF(OR(Trafic_Entrant!$C40=$F$1,Trafic_Entrant!C40=$F$2,Trafic_Entrant!C40=$F$3,Trafic_Entrant!C40=$F$4),Trafic_Entrant!$E40,0) -> 1486 | K40: =IF(Trafic_Entrant!$C40=K$4,Trafic_Entrant!$F40,0) -> 0 | L40: =IF(Trafic_Entrant!$C40=L$4,Trafic_Entrant!$F40,0) -> 0 | M40: =IF(OR(Trafic_Entrant!$C40=$F$1,Trafic_Entrant!C40=$F$2,Trafic_Entrant!C40=$F$3,Trafic_Entrant!C40=$F$4),Trafic_Entrant!$F40,0) -> 383 | N40: =IF(Trafic_Entrant!$C40=N$4,Trafic_Entrant!$G40/0.3,0) -> 0 | O40: =IF(Trafic_Entrant!$C40=O$4,Trafic_Entrant!$G40/0.3,0) -> 0 | P40: =IF(OR(Trafic_Entrant!$C40=$F$1,Trafic_Entrant!$C40=$F$2,Trafic_Entrant!$C40=$F$3,Trafic_Entrant!$C40=$F$4),Trafic_Entrant!$G40/0.3,0) -> 76183.56998 | S40: =CONCATENATE(Organic_by_landing_search!D40,Organic_by_landing_search!A40,Organic_by_landing_search!B40) -> 201804FIrep | T40: =Organic_by_landing_search!E40 -> 145 | W40: =CONCATENATE(Organic_by_landing_PDP!D40,Organic_by_landing_PDP!A40,Organic_by_landing_PDP!B40) -> 201804FIguest | X40: =Organic_by_landing_PDP!E40 -> 3488 | Z40: =CONCATENATE(Organic_by_landing_welcome!D40,Organic_by_landing_welcome!A40,Organic_by_landing_welcome!B40) -> 201804FIguest | AA40: =Organic_by_landing_welcome!E40 -> 3130 | AC40: 201804FISMB | AD40: 3827 | AE40: 3009 | AF40: 874 | AG40: 1051 | AH40: 1184 | AI40: 129 | AJ40: 225692.9584 | AK40: 431882.6081 | AL40: 23993.61995 | AO40: =CONCATENATE(Organic_by_landing_category!D40,Organic_by_landing_category!A40,Organic_by_landing_category!B40) -> 201804ATguest | AP40: =Organic_by_landing_category!C40 -> /browse_catalogue/cat_l4/003006003002 | AQ40: Office Supplies | AR40: =Organic_by_landing_category!E40 -> 4 | AT40: 201804FRguest | AU40: 604 | AV40: 1083 | AW40: 88 | AX40: 4926 | AY40: 466 | AZ40: 597 | BA40: 7764 | BC40: =CONCATENATE(Organic_by_ldg_category_ATC!E36,Organic_by_ldg_category_ATC!C36,Organic_by_ldg_category_ATC!D36) -> 201804FIcorporate | BD40: =Organic_by_ldg_category_ATC!B36 -> /browse_catalogue/cat_l3/006001005 | BE40: Facilities Supplies | BF40: =Organic_by_ldg_category_ATC!F36 -> 4 | BI40: 201804THcorporate | BJ40: 4 | BP40: 4 | BS40: =CONCATENATE(Organic_landing_category_bounce!E42,Organic_landing_category_bounce!B42,Organic_landing_category_bounce!D42) -> 201804ATguest | BT40: =Organic_landing_category_bounce!C42 -> /browse_catalogue/cat_l4/003008001005 | BU40: Office Supplies | BV40: =Organic_landing_category_bounce!F42 -> 4 | BW40: =Organic_landing_category_bounce!G42 -> 4 | BZ40: 201804FRguest | CA40: 184 | CB40: 332 | CC40: 44 | CD40: 1242 | CE40: 212 | CF40: 200 | CG40: 604 | CH40: 1083 | CI40: 88 | CJ40: 4926 | CK40: 466 | CL40: 597 | CM40: 2214 | CN40: 7764 | CP40: =CONCATENATE(Bounce_rate_global!C42:C42,Bounce_rate_global!A42,Bounce_rate_global!B42) -> 201804FIcorporate | CQ40: =Bounce_rate_global!D42 -> 2155 | CR40: =Bounce_rate_global!E42 -> 17051 | CT40: =CONCATENATE(Bounce_rate_organic!D42,Bounce_rate_organic!C42,Bounce_rate_organic!B42) -> 201804FIcorporate | CU40: =Bounce_rate_organic!E42 -> 874 | CV40: =Bounce_rate_organic!F42 -> 6582 | CX40: =CONCATENATE(Organic_landing_cat_then_order!E41,Organic_landing_cat_then_order!C41,Organic_landing_cat_then_order!B41) -> 201804BEcorporate | CY40: =Organic_landing_cat_then_order!D41 -> /browse_catalogue/cat_l3/006001005 | CZ40: Facilities Supplies | DA40: =Organic_landing_cat_then_order!F41 -> 3 | DC40: 201804LUSMB | DH40: 6 | DK40: 6
A41: =CONCATENATE(General_data!C41,General_data!A41,General_data!B41) -> 201804FIguest | B41: =General_data!D41 -> 11399 | C41: =General_data!E41 -> 8 | D41: =General_data!F41/0.3 -> 4369.470477 | G41: =CONCATENATE(Trafic_Entrant!D41,Trafic_Entrant!A41,Trafic_Entrant!B41) -> 201804BESMB | H41: =IF(Trafic_Entrant!$C41=H$4,Trafic_Entrant!$E41,0) -> 13840 | I41: =IF(Trafic_Entrant!$C41=I$4,Trafic_Entrant!$E41,0) -> 0 | J41: =IF(OR(Trafic_Entrant!$C41=$F$1,Trafic_Entrant!C41=$F$2,Trafic_Entrant!C41=$F$3,Trafic_Entrant!C41=$F$4),Trafic_Entrant!$E41,0) -> 0 | K41: =IF(Trafic_Entrant!$C41=K$4,Trafic_Entrant!$F41,0) -> 5410 | L41: =IF(Trafic_Entrant!$C41=L$4,Trafic_Entrant!$F41,0) -> 0 | M41: =IF(OR(Trafic_Entrant!$C41=$F$1,Trafic_Entrant!C41=$F$2,Trafic_Entrant!C41=$F$3,Trafic_Entrant!C41=$F$4),Trafic_Entrant!$F41,0) -> 0 | N41: =IF(Trafic_Entrant!$C41=N$4,Trafic_Entrant!$G41/0.3,0) -> 1328335.137 | O41: =IF(Trafic_Entrant!$C41=O$4,Trafic_Entrant!$G41/0.3,0) -> 0 | P41: =IF(OR(Trafic_Entrant!$C41=$F$1,Trafic_Entrant!$C41=$F$2,Trafic_Entrant!$C41=$F$3,Trafic_Entrant!$C41=$F$4),Trafic_Entrant!$G41/0.3,0) -> 0 | S41: =CONCATENATE(Organic_by_landing_search!D41,Organic_by_landing_search!A41,Organic_by_landing_search!B41) -> 201804FRSMB | T41: =Organic_by_landing_search!E41 -> 620 | W41: =CONCATENATE(Organic_by_landing_PDP!D41,Organic_by_landing_PDP!A41,Organic_by_landing_PDP!B41) -> 201804FIrep | X41: =Organic_by_landing_PDP!E41 -> 153 | Z41: =CONCATENATE(Organic_by_landing_welcome!D41,Organic_by_landing_welcome!A41,Organic_by_landing_welcome!B41) -> 201804FIrep | AA41: =Organic_by_landing_welcome!E41 -> 491 | AC41: 201804FIcorporate | AD41: 6582 | AE41: 8431 | AF41: 2038 | AG41: 1772 | AH41: 2763 | AI41: 773 | AJ41: 401578.411 | AK41: 614199.911 | AL41: 130112.8225 | AO41: =CONCATENATE(Organic_by_landing_category!D41,Organic_by_landing_category!A41,Organic_by_landing_category!B41) -> 201804ATguest | AP41: =Organic_by_landing_category!C41 -> /browse_catalogue/cat_l4/003006004002 | AQ41: Office Supplies | AR41: =Organic_by_landing_category!E41 -> 4 | AT41: 201804FRrep | AV41: 12 | AX41: 20 | AZ41: 4 | BA41: 36 | BC41: =CONCATENATE(Organic_by_ldg_category_ATC!E37,Organic_by_ldg_category_ATC!C37,Organic_by_ldg_category_ATC!D37) -> 201804FRcorporate | BD41: =Organic_by_ldg_category_ATC!B37 -> /browse_catalogue/cat_l1/003 | BE41: Office Supplies | BF41: =Organic_by_ldg_category_ATC!F37 -> 12 | BI41: Total général | BJ41: 53 | BK41: 9 | BL41: 229 | BM41: 125 | BN41: 5 | BO41: 1 | BP41: 422 | BS41: =CONCATENATE(Organic_landing_category_bounce!E43,Organic_landing_category_bounce!B43,Organic_landing_category_bounce!D43) -> 201804ATguest | BT41: =Organic_landing_category_bounce!C43 -> /browse_catalogue/cat_l4/003010002002 | BU41: Office Supplies | BV41: =Organic_landing_category_bounce!F43 -> 0 | BW41: =Organic_landing_category_bounce!G43 -> 4 | BZ41: 201804FRSMB | CA41: 20 | CB41: 8 | CC41: 4 | CD41: 32 | CE41: 16 | CF41: 4 | CG41: 60 | CH41: 60 | CI41: 20 | CJ41: 506 | CK41: 52 | CL41: 24 | CM41: 84 | CN41: 722 | CP41: =CONCATENATE(Bounce_rate_global!C43:C43,Bounce_rate_global!A43,Bounce_rate_global!B43) -> 201804FIguest | CQ41: =Bounce_rate_global!D43 -> 4922 | CR41: =Bounce_rate_global!E43 -> 11399 | CT41: =CONCATENATE(Bounce_rate_organic!D43,Bounce_rate_organic!C43,Bounce_rate_organic!B43) -> 201804FRcorporate | CU41: =Bounce_rate_organic!E43 -> 6392 | CV41: =Bounce_rate_organic!F43 -> 93893 | CX41: =CONCATENATE(Organic_landing_cat_then_order!E42,Organic_landing_cat_then_order!C42,Organic_landing_cat_then_order!B42) -> 201804BEguest | CY41: =Organic_landing_cat_then_order!D42 -> /browse_catalogue/cat_l2/003002 | CZ41: Office Supplies | DA41: =Organic_landing_cat_then_order!F42 -> 3 | DC41: 201804LUcorporate | DH41: 3 | DK41: 3
A42: =CONCATENATE(General_data!C42,General_data!A42,General_data!B42) -> 201804FIrep | B42: =General_data!D42 -> 1317 | C42: =General_data!E42 -> 93 | D42: =General_data!F42/0.3 -> 16327.61138 | G42: =CONCATENATE(Trafic_Entrant!D42,Trafic_Entrant!A42,Trafic_Entrant!B42) -> 201804BESMB | H42: =IF(Trafic_Entrant!$C42=H$4,Trafic_Entrant!$E42,0) -> 0 | I42: =IF(Trafic_Entrant!$C42=I$4,Trafic_Entrant!$E42,0) -> 0 | J42: =IF(OR(Trafic_Entrant!$C42=$F$1,Trafic_Entrant!C42=$F$2,Trafic_Entrant!C42=$F$3,Trafic_Entrant!C42=$F$4),Trafic_Entrant!$E42,0) -> 532 | K42: =IF(Trafic_Entrant!$C42=K$4,Trafic_Entrant!$F42,0) -> 0 | L42: =IF(Trafic_Entrant!$C42=L$4,Trafic_Entrant!$F42,0) -> 0 | M42: =IF(OR(Trafic_Entrant!$C42=$F$1,Trafic_Entrant!C42=$F$2,Trafic_Entrant!C42=$F$3,Trafic_Entrant!C42=$F$4),Trafic_Entrant!$F42,0) -> 286 | N42: =IF(Trafic_Entrant!$C42=N$4,Trafic_Entrant!$G42/0.3,0) -> 0 | O42: =IF(Trafic_Entrant!$C42=O$4,Trafic_Entrant!$G42/0.3,0) -> 0 | P42: =IF(OR(Trafic_Entrant!$C42=$F$1,Trafic_Entrant!$C42=$F$2,Trafic_Entrant!$C42=$F$3,Trafic_Entrant!$C42=$F$4),Trafic_Entrant!$G42/0.3,0) -> 57938.21448 | S42: =CONCATENATE(Organic_by_landing_search!D42,Organic_by_landing_search!A42,Organic_by_landing_search!B42) -> 201804FRcorporate | T42: =Organic_by_landing_search!E42 -> 1434 | W42: =CONCATENATE(Organic_by_landing_PDP!D42,Organic_by_landing_PDP!A42,Organic_by_landing_PDP!B42) -> 201804FRSMB | X42: =Organic_by_landing_PDP!E42 -> 1249 | Z42: =CONCATENATE(Organic_by_landing_welcome!D42,Organic_by_landing_welcome!A42,Organic_by_landing_welcome!B42) -> 201804FRSMB | AA42: =Organic_by_landing_welcome!E42 -> 29272 | AC42: 201804FIguest | AD42: 8056 | AE42: 2868 | AF42: 475 | AG42: 0 | AH42: 8 | AI42: 0 | AJ42: 0 | AK42: 4369.470477 | AL42: 0 | AO42: =CONCATENATE(Organic_by_landing_category!D42,Organic_by_landing_category!A42,Organic_by_landing_category!B42) -> 201804ATguest | AP42: =Organic_by_landing_category!C42 -> /browse_catalogue/cat_l4/003008001005 | AQ42: Office Supplies | AR42: =Organic_by_landing_category!E42 -> 4 | AT42: 201804HKSMB | AU42: 40 | AV42: 8 | AX42: 96 | AY42: 48 | AZ42: 8 | BA42: 200 | BC42: =CONCATENATE(Organic_by_ldg_category_ATC!E38,Organic_by_ldg_category_ATC!C38,Organic_by_ldg_category_ATC!D38) -> 201804FRguest | BD42: =Organic_by_ldg_category_ATC!B38 -> /browse_catalogue/cat_l1/003 | BE42: Office Supplies | BF42: =Organic_by_ldg_category_ATC!F38 -> 4 | BS42: =CONCATENATE(Organic_landing_category_bounce!E44,Organic_landing_category_bounce!B44,Organic_landing_category_bounce!D44) -> 201804ATguest | BT42: =Organic_landing_category_bounce!C44 -> /browse_catalogue/cat_l4/004001001003 | BU42: Technology | BV42: =Organic_landing_category_bounce!F44 -> 0 | BW42: =Organic_landing_category_bounce!G44 -> 4 | BZ42: 201804FRrep | CB42: 12 | CD42: 8 | CF42: 0 | CH42: 12 | CJ42: 20 | CL42: 4 | CM42: 20 | CN42: 36 | CP42: =CONCATENATE(Bounce_rate_global!C44:C44,Bounce_rate_global!A44,Bounce_rate_global!B44) -> 201804FIrep | CQ42: =Bounce_rate_global!D44 -> 254 | CR42: =Bounce_rate_global!E44 -> 1317 | CT42: =CONCATENATE(Bounce_rate_organic!D44,Bounce_rate_organic!C44,Bounce_rate_organic!B44) -> 201804HKcorporate | CU42: =Bounce_rate_organic!E44 -> 189 | CV42: =Bounce_rate_organic!F44 -> 1688 | CX42: =CONCATENATE(Organic_landing_cat_then_order!E43,Organic_landing_cat_then_order!C43,Organic_landing_cat_then_order!B43) -> 201804CHSMB | CY42: =Organic_landing_cat_then_order!D43 -> /browse_catalogue/cat_l1/003 | CZ42: Office Supplies | DA42: =Organic_landing_cat_then_order!F43 -> 14 | DC42: 201804MYSMB | DE42: 9 | DH42: 148 | DK42: 157
A43: =CONCATENATE(General_data!C43,General_data!A43,General_data!B43) -> 201804FR004|004005|004005002 | B43: =General_data!D43 -> 4 | C43: =General_data!E43 -> 0 | D43: =General_data!F43/0.3 -> 0 | G43: =CONCATENATE(Trafic_Entrant!D43,Trafic_Entrant!A43,Trafic_Entrant!B43) -> 201804BEcorporate | H43: =IF(Trafic_Entrant!$C43=H$4,Trafic_Entrant!$E43,0) -> 0 | I43: =IF(Trafic_Entrant!$C43=I$4,Trafic_Entrant!$E43,0) -> 19177 | J43: =IF(OR(Trafic_Entrant!$C43=$F$1,Trafic_Entrant!C43=$F$2,Trafic_Entrant!C43=$F$3,Trafic_Entrant!C43=$F$4),Trafic_Entrant!$E43,0) -> 0 | K43: =IF(Trafic_Entrant!$C43=K$4,Trafic_Entrant!$F43,0) -> 0 | L43: =IF(Trafic_Entrant!$C43=L$4,Trafic_Entrant!$F43,0) -> 7770 | M43: =IF(OR(Trafic_Entrant!$C43=$F$1,Trafic_Entrant!C43=$F$2,Trafic_Entrant!C43=$F$3,Trafic_Entrant!C43=$F$4),Trafic_Entrant!$F43,0) -> 0 | N43: =IF(Trafic_Entrant!$C43=N$4,Trafic_Entrant!$G43/0.3,0) -> 0 | O43: =IF(Trafic_Entrant!$C43=O$4,Trafic_Entrant!$G43/0.3,0) -> 1588424.829 | P43: =IF(OR(Trafic_Entrant!$C43=$F$1,Trafic_Entrant!$C43=$F$2,Trafic_Entrant!$C43=$F$3,Trafic_Entrant!$C43=$F$4),Trafic_Entrant!$G43/0.3,0) -> 0 | S43: =CONCATENATE(Organic_by_landing_search!D43,Organic_by_landing_search!A43,Organic_by_landing_search!B43) -> 201804FRguest | T43: =Organic_by_landing_search!E43 -> 1132 | W43: =CONCATENATE(Organic_by_landing_PDP!D43,Organic_by_landing_PDP!A43,Organic_by_landing_PDP!B43) -> 201804FRcorporate | X43: =Organic_by_landing_PDP!E43 -> 1788 | Z43: =CONCATENATE(Organic_by_landing_welcome!D43,Organic_by_landing_welcome!A43,Organic_by_landing_welcome!B43) -> 201804FRcorporate | AA43: =Organic_by_landing_welcome!E43 -> 61721 | AC43: 201804FIrep | AD43: 914 | AE43: 395 | AF43: 8 | AG43: 77 | AH43: 12 | AI43: 4 | AJ43: 11760.76754 | AK43: 2853.72355 | AL43: 1713.120297 | AO43: =CONCATENATE(Organic_by_landing_category!D43,Organic_by_landing_category!A43,Organic_by_landing_category!B43) -> 201804ATguest | AP43: =Organic_by_landing_category!C43 -> /browse_catalogue/cat_l4/003010002002 | AQ43: Office Supplies | AR43: =Organic_by_landing_category!E43 -> 4 | AT43: 201804HKcorporate | AV43: 8 | AX43: 12 | AY43: 4 | BA43: 24 | BC43: =CONCATENATE(Organic_by_ldg_category_ATC!E39,Organic_by_ldg_category_ATC!C39,Organic_by_ldg_category_ATC!D39) -> 201804FRcorporate | BD43: =Organic_by_ldg_category_ATC!B39 -> /browse_catalogue/cat_l2/003004 | BE43: Office Supplies | BF43: =Organic_by_ldg_category_ATC!F39 -> 4 | BS43: =CONCATENATE(Organic_landing_category_bounce!E45,Organic_landing_category_bounce!B45,Organic_landing_category_bounce!D45) -> 201804ATSMB | BT43: =Organic_landing_category_bounce!C45 -> /browse_catalogue/cat_l4/004006001002 | BU43: Technology | BV43: =Organic_landing_category_bounce!F45 -> 0 | BW43: =Organic_landing_category_bounce!G45 -> 4 | BZ43: 201804HKguest | CA43: 260 | CB43: 92 | CC43: 28 | CD43: 593 | CE43: 181 | CF43: 104 | CG43: 560 | CH43: 164 | CI43: 44 | CJ43: 1382 | CK43: 249 | CL43: 208 | CM43: 1258 | CN43: 2607 | CP43: =CONCATENATE(Bounce_rate_global!C45:C45,Bounce_rate_global!A45,Bounce_rate_global!B45) -> 201804FR004|004005|004005002 | CQ43: =Bounce_rate_global!D45 -> 0 | CR43: =Bounce_rate_global!E45 -> 4 | CT43: =CONCATENATE(Bounce_rate_organic!D45,Bounce_rate_organic!C45,Bounce_rate_organic!B45) -> 201804HUcorporate | CU43: =Bounce_rate_organic!E45 -> 28 | CV43: =Bounce_rate_organic!F45 -> 681 | CX43: =CONCATENATE(Organic_landing_cat_then_order!E44,Organic_landing_cat_then_order!C44,Organic_landing_cat_then_order!B44) -> 201804CHSMB | CY43: =Organic_landing_cat_then_order!D44 -> /browse_catalogue/cat_l1/004 | CZ43: Technology | DA43: =Organic_landing_cat_then_order!F44 -> 3 | DC43: 201804MYcorporate | DH43: 6 | DK43: 6
A44: =CONCATENATE(General_data!C44,General_data!A44,General_data!B44) -> 201804FRSMB | B44: =General_data!D44 -> 70003 | C44: =General_data!E44 -> 25127 | D44: =General_data!F44/0.3 -> 5581536.72 | G44: =CONCATENATE(Trafic_Entrant!D44,Trafic_Entrant!A44,Trafic_Entrant!B44) -> 201804BEcorporate | H44: =IF(Trafic_Entrant!$C44=H$4,Trafic_Entrant!$E44,0) -> 0 | I44: =IF(Trafic_Entrant!$C44=I$4,Trafic_Entrant!$E44,0) -> 0 | J44: =IF(OR(Trafic_Entrant!$C44=$F$1,Trafic_Entrant!C44=$F$2,Trafic_Entrant!C44=$F$3,Trafic_Entrant!C44=$F$4),Trafic_Entrant!$E44,0) -> 2658 | K44: =IF(Trafic_Entrant!$C44=K$4,Trafic_Entrant!$F44,0) -> 0 | L44: =IF(Trafic_Entrant!$C44=L$4,Trafic_Entrant!$F44,0) -> 0 | M44: =IF(OR(Trafic_Entrant!$C44=$F$1,Trafic_Entrant!C44=$F$2,Trafic_Entrant!C44=$F$3,Trafic_Entrant!C44=$F$4),Trafic_Entrant!$F44,0) -> 914 | N44: =IF(Trafic_Entrant!$C44=N$4,Trafic_Entrant!$G44/0.3,0) -> 0 | O44: =IF(Trafic_Entrant!$C44=O$4,Trafic_Entrant!$G44/0.3,0) -> 0 | P44: =IF(OR(Trafic_Entrant!$C44=$F$1,Trafic_Entrant!$C44=$F$2,Trafic_Entrant!$C44=$F$3,Trafic_Entrant!$C44=$F$4),Trafic_Entrant!$G44/0.3,0) -> 176896.4876 | S44: =CONCATENATE(Organic_by_landing_search!D44,Organic_by_landing_search!A44,Organic_by_landing_search!B44) -> 201804FRrep | T44: =Organic_by_landing_search!E44 -> 28 | W44: =CONCATENATE(Organic_by_landing_PDP!D44,Organic_by_landing_PDP!A44,Organic_by_landing_PDP!B44) -> 201804FRguest | X44: =Organic_by_landing_PDP!E44 -> 13864 | Z44: =CONCATENATE(Organic_by_landing_welcome!D44,Organic_by_landing_welcome!A44,Organic_by_landing_welcome!B44) -> 201804FRguest | AA44: =Organic_by_landing_welcome!E44 -> 34790 | AC44: 201804FR004|004005|004005002 | AD44: 0 | AE44: 4 | AF44: 0 | AG44: 0 | AH44: 0 | AI44: 0 | AJ44: 0 | AK44: 0 | AL44: 0 | AO44: =CONCATENATE(Organic_by_landing_category!D44,Organic_by_landing_category!A44,Organic_by_landing_category!B44) -> 201804ATguest | AP44: =Organic_by_landing_category!C44 -> /browse_catalogue/cat_l4/004001001003 | AQ44: Technology | AR44: =Organic_by_landing_category!E44 -> 4 | AT44: 201804HKguest | AU44: 560 | AV44: 164 | AW44: 44 | AX44: 1382 | AY44: 249 | AZ44: 208 | BA44: 2607 | BC44: =CONCATENATE(Organic_by_ldg_category_ATC!E40,Organic_by_ldg_category_ATC!C40,Organic_by_ldg_category_ATC!D40) -> 201804FRcorporate | BD44: =Organic_by_ldg_category_ATC!B40 -> /browse_catalogue/cat_l2/006010 | BE44: Facilities Supplies | BF44: =Organic_by_ldg_category_ATC!F40 -> 4 | BS44: =CONCATENATE(Organic_landing_category_bounce!E46,Organic_landing_category_bounce!B46,Organic_landing_category_bounce!D46) -> 201804ATcorporate | BT44: =Organic_landing_category_bounce!C46 -> /browse_catalogue/cat_l4/005004002004 | BU44: Furniture | BV44: =Organic_landing_category_bounce!F46 -> 0 | BW44: =Organic_landing_category_bounce!G46 -> 4 | BZ44: 201804HKSMB | CA44: 0 | CB44: 4 | CD44: 0 | CE44: 16 | CF44: 0 | CG44: 40 | CH44: 8 | CJ44: 96 | CK44: 48 | CL44: 8 | CM44: 20 | CN44: 200 | CP44: =CONCATENATE(Bounce_rate_global!C46:C46,Bounce_rate_global!A46,Bounce_rate_global!B46) -> 201804FRSMB | CQ44: =Bounce_rate_global!D46 -> 5216 | CR44: =Bounce_rate_global!E46 -> 70003 | CT44: =CONCATENATE(Bounce_rate_organic!D46,Bounce_rate_organic!C46,Bounce_rate_organic!B46) -> 201804IRcorporate | CU44: =Bounce_rate_organic!E46 -> 189 | CV44: =Bounce_rate_organic!F46 -> 2232 | CX44: =CONCATENATE(Organic_landing_cat_then_order!E45,Organic_landing_cat_then_order!C45,Organic_landing_cat_then_order!B45) -> 201804CHSMB | CY44: =Organic_landing_cat_then_order!D45 -> /browse_catalogue/cat_l1/006 | CZ44: Facilities Supplies | DA44: =Organic_landing_cat_then_order!F45 -> 3 | DC44: 201804NLSMB | DF44: 3 | DG44: 3 | DH44: 20 | DJ44: 3 | DK44: 29
A45: =CONCATENATE(General_data!C45,General_data!A45,General_data!B45) -> 201804FRcorporate | B45: =General_data!D45 -> 206082 | C45: =General_data!E45 -> 72247 | D45: =General_data!F45/0.3 -> 14152604.1 | G45: =CONCATENATE(Trafic_Entrant!D45,Trafic_Entrant!A45,Trafic_Entrant!B45) -> 201804BEcorporate | H45: =IF(Trafic_Entrant!$C45=H$4,Trafic_Entrant!$E45,0) -> 19681 | I45: =IF(Trafic_Entrant!$C45=I$4,Trafic_Entrant!$E45,0) -> 0 | J45: =IF(OR(Trafic_Entrant!$C45=$F$1,Trafic_Entrant!C45=$F$2,Trafic_Entrant!C45=$F$3,Trafic_Entrant!C45=$F$4),Trafic_Entrant!$E45,0) -> 0 | K45: =IF(Trafic_Entrant!$C45=K$4,Trafic_Entrant!$F45,0) -> 5796 | L45: =IF(Trafic_Entrant!$C45=L$4,Trafic_Entrant!$F45,0) -> 0 | M45: =IF(OR(Trafic_Entrant!$C45=$F$1,Trafic_Entrant!C45=$F$2,Trafic_Entrant!C45=$F$3,Trafic_Entrant!C45=$F$4),Trafic_Entrant!$F45,0) -> 0 | N45: =IF(Trafic_Entrant!$C45=N$4,Trafic_Entrant!$G45/0.3,0) -> 1238708.561 | O45: =IF(Trafic_Entrant!$C45=O$4,Trafic_Entrant!$G45/0.3,0) -> 0 | P45: =IF(OR(Trafic_Entrant!$C45=$F$1,Trafic_Entrant!$C45=$F$2,Trafic_Entrant!$C45=$F$3,Trafic_Entrant!$C45=$F$4),Trafic_Entrant!$G45/0.3,0) -> 0 | S45: =CONCATENATE(Organic_by_landing_search!D45,Organic_by_landing_search!A45,Organic_by_landing_search!B45) -> 201804HKSMB | T45: =Organic_by_landing_search!E45 -> 44 | W45: =CONCATENATE(Organic_by_landing_PDP!D45,Organic_by_landing_PDP!A45,Organic_by_landing_PDP!B45) -> 201804FRrep | X45: =Organic_by_landing_PDP!E45 -> 169 | Z45: =CONCATENATE(Organic_by_landing_welcome!D45,Organic_by_landing_welcome!A45,Organic_by_landing_welcome!B45) -> 201804FRrep | AA45: =Organic_by_landing_welcome!E45 -> 5224 | AC45: 201804FRSMB | AD45: 40272 | AE45: 25389 | AF45: 4342 | AG45: 13655 | AH45: 10143 | AI45: 1330 | AJ45: 3051847.343 | AK45: 2258836.855 | AL45: 270852.5226 | AO45: =CONCATENATE(Organic_by_landing_category!D45,Organic_by_landing_category!A45,Organic_by_landing_category!B45) -> 201804ATguest | AP45: =Organic_by_landing_category!C45 -> /browse_catalogue/cat_l4/005004004001 | AQ45: Furniture | AR45: =Organic_by_landing_category!E45 -> 4 | AT45: 201804HUSMB | AX45: 12 | AY45: 12 | BA45: 24 | BC45: =CONCATENATE(Organic_by_ldg_category_ATC!E41,Organic_by_ldg_category_ATC!C41,Organic_by_ldg_category_ATC!D41) -> 201804FRSMB | BD45: =Organic_by_ldg_category_ATC!B41 -> /browse_catalogue/cat_l3/001001001 | BE45: Paper & Envelopes | BF45: =Organic_by_ldg_category_ATC!F41 -> 12 | BS45: =CONCATENATE(Organic_landing_category_bounce!E47,Organic_landing_category_bounce!B47,Organic_landing_category_bounce!D47) -> 201804ATguest | BT45: =Organic_landing_category_bounce!C47 -> /browse_catalogue/cat_l4/005004004001 | BU45: Furniture | BV45: =Organic_landing_category_bounce!F47 -> 0 | BW45: =Organic_landing_category_bounce!G47 -> 4 | BZ45: 201804HKcorporate | CB45: 4 | CD45: 0 | CE45: 0 | CH45: 8 | CJ45: 12 | CK45: 4 | CM45: 4 | CN45: 24 | CP45: =CONCATENATE(Bounce_rate_global!C47:C47,Bounce_rate_global!A47,Bounce_rate_global!B47) -> 201804FRcorporate | CQ45: =Bounce_rate_global!D47 -> 14356 | CR45: =Bounce_rate_global!E47 -> 206082 | CT45: =CONCATENATE(Bounce_rate_organic!D47,Bounce_rate_organic!C47,Bounce_rate_organic!B47) -> 201804ITcorporate | CU45: =Bounce_rate_organic!E47 -> 826 | CV45: =Bounce_rate_organic!F47 -> 11661 | CX45: =CONCATENATE(Organic_landing_cat_then_order!E46,Organic_landing_cat_then_order!C46,Organic_landing_cat_then_order!B46) -> 201804CHSMB | CY45: =Organic_landing_cat_then_order!D46 -> /browse_catalogue/cat_l2/003008 | CZ45: Office Supplies | DA45: =Organic_landing_cat_then_order!F46 -> 3 | DC45: 201804NLcorporate | DH45: 41 | DI45: 9 | DK45: 50
A46: =CONCATENATE(General_data!C46,General_data!A46,General_data!B46) -> 201804FRguest | B46: =General_data!D46 -> 92548 | C46: =General_data!E46 -> 604 | D46: =General_data!F46/0.3 -> 227350.4919 | G46: =CONCATENATE(Trafic_Entrant!D46,Trafic_Entrant!A46,Trafic_Entrant!B46) -> 201804BEcorporate | H46: =IF(Trafic_Entrant!$C46=H$4,Trafic_Entrant!$E46,0) -> 0 | I46: =IF(Trafic_Entrant!$C46=I$4,Trafic_Entrant!$E46,0) -> 0 | J46: =IF(OR(Trafic_Entrant!$C46=$F$1,Trafic_Entrant!C46=$F$2,Trafic_Entrant!C46=$F$3,Trafic_Entrant!C46=$F$4),Trafic_Entrant!$E46,0) -> 1394 | K46: =IF(Trafic_Entrant!$C46=K$4,Trafic_Entrant!$F46,0) -> 0 | L46: =IF(Trafic_Entrant!$C46=L$4,Trafic_Entrant!$F46,0) -> 0 | M46: =IF(OR(Trafic_Entrant!$C46=$F$1,Trafic_Entrant!C46=$F$2,Trafic_Entrant!C46=$F$3,Trafic_Entrant!C46=$F$4),Trafic_Entrant!$F46,0) -> 504 | N46: =IF(Trafic_Entrant!$C46=N$4,Trafic_Entrant!$G46/0.3,0) -> 0 | O46: =IF(Trafic_Entrant!$C46=O$4,Trafic_Entrant!$G46/0.3,0) -> 0 | P46: =IF(OR(Trafic_Entrant!$C46=$F$1,Trafic_Entrant!$C46=$F$2,Trafic_Entrant!$C46=$F$3,Trafic_Entrant!$C46=$F$4),Trafic_Entrant!$G46/0.3,0) -> 60379.60223 | S46: =CONCATENATE(Organic_by_landing_search!D46,Organic_by_landing_search!A46,Organic_by_landing_search!B46) -> 201804HKcorporate | T46: =Organic_by_landing_search!E46 -> 24 | W46: =CONCATENATE(Organic_by_landing_PDP!D46,Organic_by_landing_PDP!A46,Organic_by_landing_PDP!B46) -> 201804HKSMB | X46: =Organic_by_landing_PDP!E46 -> 161 | Z46: =CONCATENATE(Organic_by_landing_welcome!D46,Organic_by_landing_welcome!A46,Organic_by_landing_welcome!B46) -> 201804HKSMB | AA46: =Organic_by_landing_welcome!E46 -> 2908 | AC46: 201804FRcorporate | AD46: 93893 | AE46: 91964 | AF46: 20224 | AG46: 29638 | AH46: 35410 | AI46: 7198 | AJ46: 5892756.31 | AK46: 6991901.785 | AL46: 1267946.002 | AO46: =CONCATENATE(Organic_by_landing_category!D46,Organic_by_landing_category!A46,Organic_by_landing_category!B46) -> 201804ATguest | AP46: =Organic_by_landing_category!C46 -> /browse_catalogue/cat_l4/006001002001 | AQ46: Facilities Supplies | AR46: =Organic_by_landing_category!E46 -> 4 | AT46: 201804HUguest | AU46: 108 | AV46: 56 | AX46: 264 | AY46: 28 | AZ46: 20 | BA46: 476 | BC46: =CONCATENATE(Organic_by_ldg_category_ATC!E42,Organic_by_ldg_category_ATC!C42,Organic_by_ldg_category_ATC!D42) -> 201804FRcorporate | BD46: =Organic_by_ldg_category_ATC!B42 -> /browse_catalogue/cat_l3/001001001 | BE46: Paper & Envelopes | BF46: =Organic_by_ldg_category_ATC!F42 -> 12 | BS46: =CONCATENATE(Organic_landing_category_bounce!E48,Organic_landing_category_bounce!B48,Organic_landing_category_bounce!D48) -> 201804ATguest | BT46: =Organic_landing_category_bounce!C48 -> /browse_catalogue/cat_l4/006001002001 | BU46: Facilities Supplies | BV46: =Organic_landing_category_bounce!F48 -> 0 | BW46: =Organic_landing_category_bounce!G48 -> 4 | BZ46: 201804HUSMB | CD46: 4 | CE46: 4 | CJ46: 12 | CK46: 12 | CM46: 8 | CN46: 24 | CP46: =CONCATENATE(Bounce_rate_global!C48:C48,Bounce_rate_global!A48,Bounce_rate_global!B48) -> 201804FRguest | CQ46: =Bounce_rate_global!D48 -> 31592 | CR46: =Bounce_rate_global!E48 -> 92548 | CT46: =CONCATENATE(Bounce_rate_organic!D48,Bounce_rate_organic!C48,Bounce_rate_organic!B48) -> 201804KRcorporate | CU46: =Bounce_rate_organic!E48 -> 286 | CV46: =Bounce_rate_organic!F48 -> 2099 | CX46: =CONCATENATE(Organic_landing_cat_then_order!E47,Organic_landing_cat_then_order!C47,Organic_landing_cat_then_order!B47) -> 201804CHSMB | CY46: =Organic_landing_cat_then_order!D47 -> /browse_catalogue/cat_l3/001001001 | CZ46: Paper & Envelopes | DA46: =Organic_landing_cat_then_order!F47 -> 3 | DC46: 201804NOSMB | DE46: 9 | DH46: 6 | DK46: 15
A47: =CONCATENATE(General_data!C47,General_data!A47,General_data!B47) -> 201804FRrep | B47: =General_data!D47 -> 13595 | C47: =General_data!E47 -> 9365 | D47: =General_data!F47/0.3 -> 2565178.855 | G47: =CONCATENATE(Trafic_Entrant!D47,Trafic_Entrant!A47,Trafic_Entrant!B47) -> 201804BEguest | H47: =IF(Trafic_Entrant!$C47=H$4,Trafic_Entrant!$E47,0) -> 0 | I47: =IF(Trafic_Entrant!$C47=I$4,Trafic_Entrant!$E47,0) -> 0 | J47: =IF(OR(Trafic_Entrant!$C47=$F$1,Trafic_Entrant!C47=$F$2,Trafic_Entrant!C47=$F$3,Trafic_Entrant!C47=$F$4),Trafic_Entrant!$E47,0) -> 56 | K47: =IF(Trafic_Entrant!$C47=K$4,Trafic_Entrant!$F47,0) -> 0 | L47: =IF(Trafic_Entrant!$C47=L$4,Trafic_Entrant!$F47,0) -> 0 | M47: =IF(OR(Trafic_Entrant!$C47=$F$1,Trafic_Entrant!C47=$F$2,Trafic_Entrant!C47=$F$3,Trafic_Entrant!C47=$F$4),Trafic_Entrant!$F47,0) -> 4 | N47: =IF(Trafic_Entrant!$C47=N$4,Trafic_Entrant!$G47/0.3,0) -> 0 | O47: =IF(Trafic_Entrant!$C47=O$4,Trafic_Entrant!$G47/0.3,0) -> 0 | P47: =IF(OR(Trafic_Entrant!$C47=$F$1,Trafic_Entrant!$C47=$F$2,Trafic_Entrant!$C47=$F$3,Trafic_Entrant!$C47=$F$4),Trafic_Entrant!$G47/0.3,0) -> 1488.893407 | S47: =CONCATENATE(Organic_by_landing_search!D47,Organic_by_landing_search!A47,Organic_by_landing_search!B47) -> 201804HKguest | T47: =Organic_by_landing_search!E47 -> 28 | W47: =CONCATENATE(Organic_by_landing_PDP!D47,Organic_by_landing_PDP!A47,Organic_by_landing_PDP!B47) -> 201804HKcorporate | X47: =Organic_by_landing_PDP!E47 -> 77 | Z47: =CONCATENATE(Organic_by_landing_welcome!D47,Organic_by_landing_welcome!A47,Organic_by_landing_welcome!B47) -> 201804HKcorporate | AA47: =Organic_by_landing_welcome!E47 -> 1253 | AC47: 201804FRguest | AD47: 63502 | AE47: 24229 | AF47: 4818 | AG47: 218 | AH47: 383 | AI47: 4 | AJ47: 53268.79018 | AK47: 172835.6984 | AL47: 1246.00332 | AO47: =CONCATENATE(Organic_by_landing_category!D47,Organic_by_landing_category!A47,Organic_by_landing_category!B47) -> 201804ATguest | AP47: =Organic_by_landing_category!C47 -> /browse_catalogue/cat_l4/006001002002 | AQ47: Facilities Supplies | AR47: =Organic_by_landing_category!E47 -> 4 | AT47: 201804IRSMB | AU47: 12 | AV47: 4 | AX47: 467 | AY47: 8 | AZ47: 4 | BA47: 495 | BC47: =CONCATENATE(Organic_by_ldg_category_ATC!E43,Organic_by_ldg_category_ATC!C43,Organic_by_ldg_category_ATC!D43) -> 201804FRcorporate | BD47: =Organic_by_ldg_category_ATC!B43 -> /browse_catalogue/cat_l3/001001002 | BE47: Paper & Envelopes | BF47: =Organic_by_ldg_category_ATC!F43 -> 4 | BS47: =CONCATENATE(Organic_landing_category_bounce!E49,Organic_landing_category_bounce!B49,Organic_landing_category_bounce!D49) -> 201804ATguest | BT47: =Organic_landing_category_bounce!C49 -> /browse_catalogue/cat_l4/006001002002 | BU47: Facilities Supplies | BV47: =Organic_landing_category_bounce!F49 -> 0 | BW47: =Organic_landing_category_bounce!G49 -> 4 | BZ47: 201804HUguest | CA47: 44 | CB47: 16 | CD47: 96 | CE47: 12 | CF47: 8 | CG47: 108 | CH47: 56 | CJ47: 264 | CK47: 28 | CL47: 20 | CM47: 176 | CN47: 476 | CP47: =CONCATENATE(Bounce_rate_global!C49:C49,Bounce_rate_global!A49,Bounce_rate_global!B49) -> 201804FRrep | CQ47: =Bounce_rate_global!D49 -> 1309 | CR47: =Bounce_rate_global!E49 -> 13595 | CT47: =CONCATENATE(Bounce_rate_organic!D49,Bounce_rate_organic!C49,Bounce_rate_organic!B49) -> 201804LUcorporate | CU47: =Bounce_rate_organic!E49 -> 64 | CV47: =Bounce_rate_organic!F49 -> 685 | CX47: =CONCATENATE(Organic_landing_cat_then_order!E48,Organic_landing_cat_then_order!C48,Organic_landing_cat_then_order!B48) -> 201804CHSMB | CY47: =Organic_landing_cat_then_order!D48 -> /browse_catalogue/cat_l3/003001004 | CZ47: Office Supplies | DA47: =Organic_landing_cat_then_order!F48 -> 3 | DC47: 201804NOcorporate | DI47: 3 | DK47: 3
A48: =CONCATENATE(General_data!C48,General_data!A48,General_data!B48) -> 201804HKSMB | B48: =General_data!D48 -> 9107 | C48: =General_data!E48 -> 2735 | D48: =General_data!F48/0.3 -> 154723.7207 | G48: =CONCATENATE(Trafic_Entrant!D48,Trafic_Entrant!A48,Trafic_Entrant!B48) -> 201804BEguest | H48: =IF(Trafic_Entrant!$C48=H$4,Trafic_Entrant!$E48,0) -> 0 | I48: =IF(Trafic_Entrant!$C48=I$4,Trafic_Entrant!$E48,0) -> 5200 | J48: =IF(OR(Trafic_Entrant!$C48=$F$1,Trafic_Entrant!C48=$F$2,Trafic_Entrant!C48=$F$3,Trafic_Entrant!C48=$F$4),Trafic_Entrant!$E48,0) -> 0 | K48: =IF(Trafic_Entrant!$C48=K$4,Trafic_Entrant!$F48,0) -> 0 | L48: =IF(Trafic_Entrant!$C48=L$4,Trafic_Entrant!$F48,0) -> 28 | M48: =IF(OR(Trafic_Entrant!$C48=$F$1,Trafic_Entrant!C48=$F$2,Trafic_Entrant!C48=$F$3,Trafic_Entrant!C48=$F$4),Trafic_Entrant!$F48,0) -> 0 | N48: =IF(Trafic_Entrant!$C48=N$4,Trafic_Entrant!$G48/0.3,0) -> 0 | O48: =IF(Trafic_Entrant!$C48=O$4,Trafic_Entrant!$G48/0.3,0) -> 3841.127473 | P48: =IF(OR(Trafic_Entrant!$C48=$F$1,Trafic_Entrant!$C48=$F$2,Trafic_Entrant!$C48=$F$3,Trafic_Entrant!$C48=$F$4),Trafic_Entrant!$G48/0.3,0) -> 0 | S48: =CONCATENATE(Organic_by_landing_search!D48,Organic_by_landing_search!A48,Organic_by_landing_search!B48) -> 201804HKrep | T48: =Organic_by_landing_search!E48 -> 16 | W48: =CONCATENATE(Organic_by_landing_PDP!D48,Organic_by_landing_PDP!A48,Organic_by_landing_PDP!B48) -> 201804HKguest | X48: =Organic_by_landing_PDP!E48 -> 5345 | Z48: =CONCATENATE(Organic_by_landing_welcome!D48,Organic_by_landing_welcome!A48,Organic_by_landing_welcome!B48) -> 201804HKguest | AA48: =Organic_by_landing_welcome!E48 -> 2046 | AC48: 201804FRrep | AD48: 7170 | AE48: 5643 | AF48: 781 | AG48: 4721 | AH48: 4125 | AI48: 520 | AJ48: 1243263.589 | AK48: 1193047.238 | AL48: 128868.0276 | AO48: =CONCATENATE(Organic_by_landing_category!D48,Organic_by_landing_category!A48,Organic_by_landing_category!B48) -> 201804ATguest | AP48: =Organic_by_landing_category!C48 -> /browse_catalogue/cat_l4/006001003002 | AQ48: Facilities Supplies | AR48: =Organic_by_landing_category!E48 -> 8 | AT48: 201804IRcorporate | AU48: 4 | AV48: 4 | AW48: 4 | AX48: 266 | AY48: 12 | AZ48: 8 | BA48: 298 | BC48: =CONCATENATE(Organic_by_ldg_category_ATC!E44,Organic_by_ldg_category_ATC!C44,Organic_by_ldg_category_ATC!D44) -> 201804FRcorporate | BD48: =Organic_by_ldg_category_ATC!B44 -> /browse_catalogue/cat_l3/001002001 | BE48: Paper & Envelopes | BF48: =Organic_by_ldg_category_ATC!F44 -> 4 | BS48: =CONCATENATE(Organic_landing_category_bounce!E50,Organic_landing_category_bounce!B50,Organic_landing_category_bounce!D50) -> 201804ATguest | BT48: =Organic_landing_category_bounce!C50 -> /browse_catalogue/cat_l4/006001003002 | BU48: Facilities Supplies | BV48: =Organic_landing_category_bounce!F50 -> 0 | BW48: =Organic_landing_category_bounce!G50 -> 8 | BZ48: 201804IRSMB | CA48: 8 | CB48: 0 | CD48: 12 | CE48: 0 | CF48: 0 | CG48: 12 | CH48: 4 | CJ48: 467 | CK48: 8 | CL48: 4 | CM48: 20 | CN48: 495 | CP48: =CONCATENATE(Bounce_rate_global!C50:C50,Bounce_rate_global!A50,Bounce_rate_global!B50) -> 201804HKSMB | CQ48: =Bounce_rate_global!D50 -> 1245 | CR48: =Bounce_rate_global!E50 -> 9107 | CT48: =CONCATENATE(Bounce_rate_organic!D50,Bounce_rate_organic!C50,Bounce_rate_organic!B50) -> 201804MYcorporate | CU48: =Bounce_rate_organic!E50 -> 32 | CV48: =Bounce_rate_organic!F50 -> 234 | CX48: =CONCATENATE(Organic_landing_cat_then_order!E49,Organic_landing_cat_then_order!C49,Organic_landing_cat_then_order!B49) -> 201804CHSMB | CY48: =Organic_landing_cat_then_order!D49 -> /browse_catalogue/cat_l3/003003002 | CZ48: Office Supplies | DA48: =Organic_landing_cat_then_order!F49 -> 3 | DC48: 201804NOrep | DJ48: 3 | DK48: 3
A49: =CONCATENATE(General_data!C49,General_data!A49,General_data!B49) -> 201804HKcorporate | B49: =General_data!D49 -> 6525 | C49: =General_data!E49 -> 2695 | D49: =General_data!F49/0.3 -> 150641.1154 | G49: =CONCATENATE(Trafic_Entrant!D49,Trafic_Entrant!A49,Trafic_Entrant!B49) -> 201804BEguest | H49: =IF(Trafic_Entrant!$C49=H$4,Trafic_Entrant!$E49,0) -> 0 | I49: =IF(Trafic_Entrant!$C49=I$4,Trafic_Entrant!$E49,0) -> 0 | J49: =IF(OR(Trafic_Entrant!$C49=$F$1,Trafic_Entrant!C49=$F$2,Trafic_Entrant!C49=$F$3,Trafic_Entrant!C49=$F$4),Trafic_Entrant!$E49,0) -> 342 | K49: =IF(Trafic_Entrant!$C49=K$4,Trafic_Entrant!$F49,0) -> 0 | L49: =IF(Trafic_Entrant!$C49=L$4,Trafic_Entrant!$F49,0) -> 0 | M49: =IF(OR(Trafic_Entrant!$C49=$F$1,Trafic_Entrant!C49=$F$2,Trafic_Entrant!C49=$F$3,Trafic_Entrant!C49=$F$4),Trafic_Entrant!$F49,0) -> 60 | N49: =IF(Trafic_Entrant!$C49=N$4,Trafic_Entrant!$G49/0.3,0) -> 0 | O49: =IF(Trafic_Entrant!$C49=O$4,Trafic_Entrant!$G49/0.3,0) -> 0 | P49: =IF(OR(Trafic_Entrant!$C49=$F$1,Trafic_Entrant!$C49=$F$2,Trafic_Entrant!$C49=$F$3,Trafic_Entrant!$C49=$F$4),Trafic_Entrant!$G49/0.3,0) -> 33395.70858 | S49: =CONCATENATE(Organic_by_landing_search!D49,Organic_by_landing_search!A49,Organic_by_landing_search!B49) -> 201804HUSMB | T49: =Organic_by_landing_search!E49 -> 44 | W49: =CONCATENATE(Organic_by_landing_PDP!D49,Organic_by_landing_PDP!A49,Organic_by_landing_PDP!B49) -> 201804HKrep | X49: =Organic_by_landing_PDP!E49 -> 16 | Z49: =CONCATENATE(Organic_by_landing_welcome!D49,Organic_by_landing_welcome!A49,Organic_by_landing_welcome!B49) -> 201804HKrep | AA49: =Organic_by_landing_welcome!E49 -> 568 | AC49: 201804HKSMB | AD49: 3927 | AE49: 4660 | AF49: 519 | AG49: 866 | AH49: 1692 | AI49: 178 | AJ49: 52163.99278 | AK49: 95009.61202 | AL49: 7550.115893 | AO49: =CONCATENATE(Organic_by_landing_category!D49,Organic_by_landing_category!A49,Organic_by_landing_category!B49) -> 201804ATguest | AP49: =Organic_by_landing_category!C49 -> /browse_catalogue/cat_l4/006002001003 | AQ49: Facilities Supplies | AR49: =Organic_by_landing_category!E49 -> 4 | AT49: 201804IRguest | AU49: 128 | AV49: 124 | AW49: 4 | AX49: 1695 | AY49: 101 | AZ49: 208 | BA49: 2260 | BC49: =CONCATENATE(Organic_by_ldg_category_ATC!E45,Organic_by_ldg_category_ATC!C45,Organic_by_ldg_category_ATC!D45) -> 201804FRcorporate | BD49: =Organic_by_ldg_category_ATC!B45 -> /browse_catalogue/cat_l3/001007004 | BE49: Paper & Envelopes | BF49: =Organic_by_ldg_category_ATC!F45 -> 4 | BS49: =CONCATENATE(Organic_landing_category_bounce!E51,Organic_landing_category_bounce!B51,Organic_landing_category_bounce!D51) -> 201804ATguest | BT49: =Organic_landing_category_bounce!C51 -> /browse_catalogue/cat_l4/006002001003 | BU49: Facilities Supplies | BV49: =Organic_landing_category_bounce!F51 -> 4 | BW49: =Organic_landing_category_bounce!G51 -> 4 | BZ49: 201804IRguest | CA49: 60 | CB49: 48 | CC49: 0 | CD49: 285 | CE49: 56 | CF49: 80 | CG49: 128 | CH49: 124 | CI49: 4 | CJ49: 1695 | CK49: 101 | CL49: 208 | CM49: 529 | CN49: 2260 | CP49: =CONCATENATE(Bounce_rate_global!C51:C51,Bounce_rate_global!A51,Bounce_rate_global!B51) -> 201804HKcorporate | CQ49: =Bounce_rate_global!D51 -> 745 | CR49: =Bounce_rate_global!E51 -> 6525 | CT49: =CONCATENATE(Bounce_rate_organic!D51,Bounce_rate_organic!C51,Bounce_rate_organic!B51) -> 201804NLcorporate | CU49: =Bounce_rate_organic!E51 -> 777 | CV49: =Bounce_rate_organic!F51 -> 7770 | CX49: =CONCATENATE(Organic_landing_cat_then_order!E50,Organic_landing_cat_then_order!C50,Organic_landing_cat_then_order!B50) -> 201804CHSMB | CY49: =Organic_landing_cat_then_order!D50 -> /browse_catalogue/cat_l3/003003008 | CZ49: Office Supplies | DA49: =Organic_landing_cat_then_order!F50 -> 3 | DC49: 201804PLSMB | DE49: 6 | DH49: 70 | DI49: 12 | DK49: 88
A50: =CONCATENATE(General_data!C50,General_data!A50,General_data!B50) -> 201804HKguest | B50: =General_data!D50 -> 13200 | C50: =General_data!E50 -> 0 | D50: =General_data!F50/0.3 -> 0 | G50: =CONCATENATE(Trafic_Entrant!D50,Trafic_Entrant!A50,Trafic_Entrant!B50) -> 201804BEguest | H50: =IF(Trafic_Entrant!$C50=H$4,Trafic_Entrant!$E50,0) -> 16011 | I50: =IF(Trafic_Entrant!$C50=I$4,Trafic_Entrant!$E50,0) -> 0 | J50: =IF(OR(Trafic_Entrant!$C50=$F$1,Trafic_Entrant!C50=$F$2,Trafic_Entrant!C50=$F$3,Trafic_Entrant!C50=$F$4),Trafic_Entrant!$E50,0) -> 0 | K50: =IF(Trafic_Entrant!$C50=K$4,Trafic_Entrant!$F50,0) -> 129 | L50: =IF(Trafic_Entrant!$C50=L$4,Trafic_Entrant!$F50,0) -> 0 | M50: =IF(OR(Trafic_Entrant!$C50=$F$1,Trafic_Entrant!C50=$F$2,Trafic_Entrant!C50=$F$3,Trafic_Entrant!C50=$F$4),Trafic_Entrant!$F50,0) -> 0 | N50: =IF(Trafic_Entrant!$C50=N$4,Trafic_Entrant!$G50/0.3,0) -> 28011.04079 | O50: =IF(Trafic_Entrant!$C50=O$4,Trafic_Entrant!$G50/0.3,0) -> 0 | P50: =IF(OR(Trafic_Entrant!$C50=$F$1,Trafic_Entrant!$C50=$F$2,Trafic_Entrant!$C50=$F$3,Trafic_Entrant!$C50=$F$4),Trafic_Entrant!$G50/0.3,0) -> 0 | S50: =CONCATENATE(Organic_by_landing_search!D50,Organic_by_landing_search!A50,Organic_by_landing_search!B50) -> 201804HUcorporate | T50: =Organic_by_landing_search!E50 -> 8 | W50: =CONCATENATE(Organic_by_landing_PDP!D50,Organic_by_landing_PDP!A50,Organic_by_landing_PDP!B50) -> 201804HUSMB | X50: =Organic_by_landing_PDP!E50 -> 85 | Z50: =CONCATENATE(Organic_by_landing_welcome!D50,Organic_by_landing_welcome!A50,Organic_by_landing_welcome!B50) -> 201804HUSMB | AA50: =Organic_by_landing_welcome!E50 -> 1639 | AC50: 201804HKcorporate | AD50: 1688 | AE50: 4342 | AF50: 495 | AG50: 1035 | AH50: 1470 | AI50: 190 | AJ50: 50279.90658 | AK50: 87607.6708 | AL50: 12753.53799 | AO50: =CONCATENATE(Organic_by_landing_category!D50,Organic_by_landing_category!A50,Organic_by_landing_category!B50) -> 201804ATguest | AP50: =Organic_by_landing_category!C50 -> /browse_catalogue/cat_l4/006002002003 | AQ50: Facilities Supplies | AR50: =Organic_by_landing_category!E50 -> 4 | AT50: 201804ITSMB | AU50: 36 | AV50: 24 | AW50: 8 | AX50: 273 | AY50: 16 | AZ50: 16 | BA50: 373 | BC50: =CONCATENATE(Organic_by_ldg_category_ATC!E46,Organic_by_ldg_category_ATC!C46,Organic_by_ldg_category_ATC!D46) -> 201804FRcorporate | BD50: =Organic_by_ldg_category_ATC!B46 -> /browse_catalogue/cat_l3/003001001 | BE50: Office Supplies | BF50: =Organic_by_ldg_category_ATC!F46 -> 8 | BS50: =CONCATENATE(Organic_landing_category_bounce!E52,Organic_landing_category_bounce!B52,Organic_landing_category_bounce!D52) -> 201804ATguest | BT50: =Organic_landing_category_bounce!C52 -> /browse_catalogue/cat_l4/006002002003 | BU50: Facilities Supplies | BV50: =Organic_landing_category_bounce!F52 -> 4 | BW50: =Organic_landing_category_bounce!G52 -> 4 | BZ50: 201804IRcorporate | CA50: 0 | CB50: 4 | CC50: 0 | CD50: 8 | CE50: 0 | CF50: 4 | CG50: 4 | CH50: 4 | CI50: 4 | CJ50: 266 | CK50: 12 | CL50: 8 | CM50: 16 | CN50: 298 | CP50: =CONCATENATE(Bounce_rate_global!C52:C52,Bounce_rate_global!A52,Bounce_rate_global!B52) -> 201804HKguest | CQ50: =Bounce_rate_global!D52 -> 6977 | CR50: =Bounce_rate_global!E52 -> 13200 | CT50: =CONCATENATE(Bounce_rate_organic!D52,Bounce_rate_organic!C52,Bounce_rate_organic!B52) -> 201804NOcorporate | CU50: =Bounce_rate_organic!E52 -> 197 | CV50: =Bounce_rate_organic!F52 -> 2687 | CX50: =CONCATENATE(Organic_landing_cat_then_order!E51,Organic_landing_cat_then_order!C51,Organic_landing_cat_then_order!B51) -> 201804CHSMB | CY50: =Organic_landing_cat_then_order!D51 -> /browse_catalogue/cat_l3/003005001 | CZ50: Office Supplies | DA50: =Organic_landing_cat_then_order!F51 -> 3 | DC50: 201804PLcorporate | DE50: 9 | DH50: 107 | DI50: 6 | DJ50: 3 | DK50: 125
A51: =CONCATENATE(General_data!C51,General_data!A51,General_data!B51) -> 201804HKrep | B51: =General_data!D51 -> 1998 | C51: =General_data!E51 -> 1583 | D51: =General_data!F51/0.3 -> 117541.1946 | G51: =CONCATENATE(Trafic_Entrant!D51,Trafic_Entrant!A51,Trafic_Entrant!B51) -> 201804BEguest | H51: =IF(Trafic_Entrant!$C51=H$4,Trafic_Entrant!$E51,0) -> 0 | I51: =IF(Trafic_Entrant!$C51=I$4,Trafic_Entrant!$E51,0) -> 0 | J51: =IF(OR(Trafic_Entrant!$C51=$F$1,Trafic_Entrant!C51=$F$2,Trafic_Entrant!C51=$F$3,Trafic_Entrant!C51=$F$4),Trafic_Entrant!$E51,0) -> 608 | K51: =IF(Trafic_Entrant!$C51=K$4,Trafic_Entrant!$F51,0) -> 0 | L51: =IF(Trafic_Entrant!$C51=L$4,Trafic_Entrant!$F51,0) -> 0 | M51: =IF(OR(Trafic_Entrant!$C51=$F$1,Trafic_Entrant!C51=$F$2,Trafic_Entrant!C51=$F$3,Trafic_Entrant!C51=$F$4),Trafic_Entrant!$F51,0) -> 0 | N51: =IF(Trafic_Entrant!$C51=N$4,Trafic_Entrant!$G51/0.3,0) -> 0 | O51: =IF(Trafic_Entrant!$C51=O$4,Trafic_Entrant!$G51/0.3,0) -> 0 | P51: =IF(OR(Trafic_Entrant!$C51=$F$1,Trafic_Entrant!$C51=$F$2,Trafic_Entrant!$C51=$F$3,Trafic_Entrant!$C51=$F$4),Trafic_Entrant!$G51/0.3,0) -> 0 | S51: =CONCATENATE(Organic_by_landing_search!D51,Organic_by_landing_search!A51,Organic_by_landing_search!B51) -> 201804HUguest | T51: =Organic_by_landing_search!E51 -> 77 | W51: =CONCATENATE(Organic_by_landing_PDP!D51,Organic_by_landing_PDP!A51,Organic_by_landing_PDP!B51) -> 201804HUcorporate | X51: =Organic_by_landing_PDP!E51 -> 44 | Z51: =CONCATENATE(Organic_by_landing_welcome!D51,Organic_by_landing_welcome!A51,Organic_by_landing_welcome!B51) -> 201804HUcorporate | AA51: =Organic_by_landing_welcome!E51 -> 483 | AC51: 201804HKguest | AD51: 10288 | AE51: 2469 | AF51: 443 | AG51: 0 | AH51: 0 | AI51: 0 | AJ51: 0 | AK51: 0 | AL51: 0 | AO51: =CONCATENATE(Organic_by_landing_category!D51,Organic_by_landing_category!A51,Organic_by_landing_category!B51) -> 201804ATguest | AP51: =Organic_by_landing_category!C51 -> /browse_catalogue/cat_l4/006002004002 | AQ51: Facilities Supplies | AR51: =Organic_by_landing_category!E51 -> 4 | AT51: 201804ITcorporate | AU51: 20 | AV51: 12 | AW51: 16 | AX51: 157 | AY51: 12 | AZ51: 12 | BA51: 229 | BC51: =CONCATENATE(Organic_by_ldg_category_ATC!E47,Organic_by_ldg_category_ATC!C47,Organic_by_ldg_category_ATC!D47) -> 201804FRcorporate | BD51: =Organic_by_ldg_category_ATC!B47 -> /browse_catalogue/cat_l3/003001005 | BE51: Office Supplies | BF51: =Organic_by_ldg_category_ATC!F47 -> 4 | BS51: =CONCATENATE(Organic_landing_category_bounce!E53,Organic_landing_category_bounce!B53,Organic_landing_category_bounce!D53) -> 201804ATguest | BT51: =Organic_landing_category_bounce!C53 -> /browse_catalogue/cat_l4/006002004002 | BU51: Facilities Supplies | BV51: =Organic_landing_category_bounce!F53 -> 4 | BW51: =Organic_landing_category_bounce!G53 -> 4 | BZ51: 201804ITSMB | CA51: 4 | CB51: 4 | CC51: 0 | CD51: 32 | CE51: 0 | CF51: 4 | CG51: 36 | CH51: 24 | CI51: 8 | CJ51: 273 | CK51: 16 | CL51: 16 | CM51: 44 | CN51: 373 | CP51: =CONCATENATE(Bounce_rate_global!C53:C53,Bounce_rate_global!A53,Bounce_rate_global!B53) -> 201804HKrep | CQ51: =Bounce_rate_global!D53 -> 254 | CR51: =Bounce_rate_global!E53 -> 1998 | CT51: =CONCATENATE(Bounce_rate_organic!D53,Bounce_rate_organic!C53,Bounce_rate_organic!B53) -> 201804PLcorporate | CU51: =Bounce_rate_organic!E53 -> 2099 | CV51: =Bounce_rate_organic!F53 -> 24555 | CX51: =CONCATENATE(Organic_landing_cat_then_order!E52,Organic_landing_cat_then_order!C52,Organic_landing_cat_then_order!B52) -> 201804CHSMB | CY51: =Organic_landing_cat_then_order!D52 -> /browse_catalogue/cat_l3/005003006 | CZ51: Furniture | DA51: =Organic_landing_cat_then_order!F52 -> 3 | DC51: 201804PTSMB | DH51: 3 | DK51: 3
A52: =CONCATENATE(General_data!C52,General_data!A52,General_data!B52) -> 201804HUSMB | B52: =General_data!D52 -> 5313 | C52: =General_data!E52 -> 1700 | D52: =General_data!F52/0.3 -> 209273.987 | G52: =CONCATENATE(Trafic_Entrant!D52,Trafic_Entrant!A52,Trafic_Entrant!B52) -> 201804BEguest | H52: =IF(Trafic_Entrant!$C52=H$4,Trafic_Entrant!$E52,0) -> 0 | I52: =IF(Trafic_Entrant!$C52=I$4,Trafic_Entrant!$E52,0) -> 0 | J52: =IF(OR(Trafic_Entrant!$C52=$F$1,Trafic_Entrant!C52=$F$2,Trafic_Entrant!C52=$F$3,Trafic_Entrant!C52=$F$4),Trafic_Entrant!$E52,0) -> 16 | K52: =IF(Trafic_Entrant!$C52=K$4,Trafic_Entrant!$F52,0) -> 0 | L52: =IF(Trafic_Entrant!$C52=L$4,Trafic_Entrant!$F52,0) -> 0 | M52: =IF(OR(Trafic_Entrant!$C52=$F$1,Trafic_Entrant!C52=$F$2,Trafic_Entrant!C52=$F$3,Trafic_Entrant!C52=$F$4),Trafic_Entrant!$F52,0) -> 0 | N52: =IF(Trafic_Entrant!$C52=N$4,Trafic_Entrant!$G52/0.3,0) -> 0 | O52: =IF(Trafic_Entrant!$C52=O$4,Trafic_Entrant!$G52/0.3,0) -> 0 | P52: =IF(OR(Trafic_Entrant!$C52=$F$1,Trafic_Entrant!$C52=$F$2,Trafic_Entrant!$C52=$F$3,Trafic_Entrant!$C52=$F$4),Trafic_Entrant!$G52/0.3,0) -> 0 | S52: =CONCATENATE(Organic_by_landing_search!D52,Organic_by_landing_search!A52,Organic_by_landing_search!B52) -> 201804HUrep | T52: =Organic_by_landing_search!E52 -> 12 | W52: =CONCATENATE(Organic_by_landing_PDP!D52,Organic_by_landing_PDP!A52,Organic_by_landing_PDP!B52) -> 201804HUguest | X52: =Organic_by_landing_PDP!E52 -> 1837 | Z52: =CONCATENATE(Organic_by_landing_welcome!D52,Organic_by_landing_welcome!A52,Organic_by_landing_welcome!B52) -> 201804HUguest | AA52: =Organic_by_landing_welcome!E52 -> 1257 | AC52: 201804HKrep | AD52: 749 | AE52: 1245 | AF52: 4 | AG52: 342 | AH52: 1241 | AI52: 0 | AJ52: 25737.56307 | AK52: 91803.63152 | AL52: 0 | AO52: =CONCATENATE(Organic_by_landing_category!D52,Organic_by_landing_category!A52,Organic_by_landing_category!B52) -> 201804ATguest | AP52: =Organic_by_landing_category!C52 -> /browse_catalogue/cat_l4/006004003009 | AQ52: Facilities Supplies | AR52: =Organic_by_landing_category!E52 -> 4 | AT52: 201804ITguest | AU52: 480 | AV52: 200 | AW52: 104 | AX52: 1373 | AY52: 144 | AZ52: 144 | BA52: 2445 | BC52: =CONCATENATE(Organic_by_ldg_category_ATC!E48,Organic_by_ldg_category_ATC!C48,Organic_by_ldg_category_ATC!D48) -> 201804FRcorporate | BD52: =Organic_by_ldg_category_ATC!B48 -> /browse_catalogue/cat_l3/003002001 | BE52: Office Supplies | BF52: =Organic_by_ldg_category_ATC!F48 -> 4 | BS52: =CONCATENATE(Organic_landing_category_bounce!E54,Organic_landing_category_bounce!B54,Organic_landing_category_bounce!D54) -> 201804ATguest | BT52: =Organic_landing_category_bounce!C54 -> /browse_catalogue/cat_l4/006004003009 | BU52: Facilities Supplies | BV52: =Organic_landing_category_bounce!F54 -> 0 | BW52: =Organic_landing_category_bounce!G54 -> 4 | BZ52: 201804ITcorporate | CA52: 4 | CB52: 4 | CC52: 0 | CD52: 8 | CE52: 0 | CF52: 0 | CG52: 20 | CH52: 12 | CI52: 16 | CJ52: 157 | CK52: 12 | CL52: 12 | CM52: 16 | CN52: 229 | CP52: =CONCATENATE(Bounce_rate_global!C54:C54,Bounce_rate_global!A54,Bounce_rate_global!B54) -> 201804HUSMB | CQ52: =Bounce_rate_global!D54 -> 467 | CR52: =Bounce_rate_global!E54 -> 5313 | CT52: =CONCATENATE(Bounce_rate_organic!D54,Bounce_rate_organic!C54,Bounce_rate_organic!B54) -> 201804PTcorporate | CU52: =Bounce_rate_organic!E54 -> 44 | CV52: =Bounce_rate_organic!F54 -> 491 | CX52: =CONCATENATE(Organic_landing_cat_then_order!E53,Organic_landing_cat_then_order!C53,Organic_landing_cat_then_order!B53) -> 201804CHSMB | CY52: =Organic_landing_cat_then_order!D53 -> /browse_catalogue/cat_l3/005004005 | CZ52: Furniture | DA52: =Organic_landing_cat_then_order!F53 -> 12 | DC52: 201804SGSMB | DH52: 12 | DI52: 3 | DK52: 15
A53: =CONCATENATE(General_data!C53,General_data!A53,General_data!B53) -> 201804HUcorporate | B53: =General_data!D53 -> 2159 | C53: =General_data!E53 -> 818 | D53: =General_data!F53/0.3 -> 81069.69107 | G53: =CONCATENATE(Trafic_Entrant!D53,Trafic_Entrant!A53,Trafic_Entrant!B53) -> 201804BErep | H53: =IF(Trafic_Entrant!$C53=H$4,Trafic_Entrant!$E53,0) -> 0 | I53: =IF(Trafic_Entrant!$C53=I$4,Trafic_Entrant!$E53,0) -> 0 | J53: =IF(OR(Trafic_Entrant!$C53=$F$1,Trafic_Entrant!C53=$F$2,Trafic_Entrant!C53=$F$3,Trafic_Entrant!C53=$F$4),Trafic_Entrant!$E53,0) -> 4 | K53: =IF(Trafic_Entrant!$C53=K$4,Trafic_Entrant!$F53,0) -> 0 | L53: =IF(Trafic_Entrant!$C53=L$4,Trafic_Entrant!$F53,0) -> 0 | M53: =IF(OR(Trafic_Entrant!$C53=$F$1,Trafic_Entrant!C53=$F$2,Trafic_Entrant!C53=$F$3,Trafic_Entrant!C53=$F$4),Trafic_Entrant!$F53,0) -> 4 | N53: =IF(Trafic_Entrant!$C53=N$4,Trafic_Entrant!$G53/0.3,0) -> 0 | O53: =IF(Trafic_Entrant!$C53=O$4,Trafic_Entrant!$G53/0.3,0) -> 0 | P53: =IF(OR(Trafic_Entrant!$C53=$F$1,Trafic_Entrant!$C53=$F$2,Trafic_Entrant!$C53=$F$3,Trafic_Entrant!$C53=$F$4),Trafic_Entrant!$G53/0.3,0) -> 0 | S53: =CONCATENATE(Organic_by_landing_search!D53,Organic_by_landing_search!A53,Organic_by_landing_search!B53) -> 201804IRSMB | T53: =Organic_by_landing_search!E53 -> 137 | W53: =CONCATENATE(Organic_by_landing_PDP!D53,Organic_by_landing_PDP!A53,Organic_by_landing_PDP!B53) -> 201804HUrep | X53: =Organic_by_landing_PDP!E53 -> 12 | Z53: =CONCATENATE(Organic_by_landing_welcome!D53,Organic_by_landing_welcome!A53,Organic_by_landing_welcome!B53) -> 201804HUrep | AA53: =Organic_by_landing_welcome!E53 -> 354 | AC53: 201804HUSMB | AD53: 2441 | AE53: 2175 | AF53: 696 | AG53: 781 | AH53: 673 | AI53: 246 | AJ53: 85309.28525 | AK53: 107648.8819 | AL53: 16315.81976 | AO53: =CONCATENATE(Organic_by_landing_category!D53,Organic_by_landing_category!A53,Organic_by_landing_category!B53) -> 201804ATguest | AP53: =Organic_by_landing_category!C53 -> /browse_catalogue/cat_l4/006006005002 | AQ53: Facilities Supplies | AR53: =Organic_by_landing_category!E53 -> 8 | AT53: 201804KRSMB | AU53: 16 | AV53: 12 | AX53: 96 | BA53: 124 | BC53: =CONCATENATE(Organic_by_ldg_category_ATC!E49,Organic_by_ldg_category_ATC!C49,Organic_by_ldg_category_ATC!D49) -> 201804FRSMB | BD53: =Organic_by_ldg_category_ATC!B49 -> /browse_catalogue/cat_l3/003002006 | BE53: Office Supplies | BF53: =Organic_by_ldg_category_ATC!F49 -> 4 | BS53: =CONCATENATE(Organic_landing_category_bounce!E55,Organic_landing_category_bounce!B55,Organic_landing_category_bounce!D55) -> 201804ATguest | BT53: =Organic_landing_category_bounce!C55 -> /browse_catalogue/cat_l4/006006005002 | BU53: Facilities Supplies | BV53: =Organic_landing_category_bounce!F55 -> 4 | BW53: =Organic_landing_category_bounce!G55 -> 8 | BZ53: 201804ITguest | CA53: 252 | CB53: 52 | CC53: 40 | CD53: 429 | CE53: 80 | CF53: 68 | CG53: 480 | CH53: 200 | CI53: 104 | CJ53: 1373 | CK53: 144 | CL53: 144 | CM53: 921 | CN53: 2445 | CP53: =CONCATENATE(Bounce_rate_global!C55:C55,Bounce_rate_global!A55,Bounce_rate_global!B55) -> 201804HUcorporate | CQ53: =Bounce_rate_global!D55 -> 157 | CR53: =Bounce_rate_global!E55 -> 2159 | CT53: =CONCATENATE(Bounce_rate_organic!D55,Bounce_rate_organic!C55,Bounce_rate_organic!B55) -> 201804SGcorporate | CU53: =Bounce_rate_organic!E55 -> 52 | CV53: =Bounce_rate_organic!F55 -> 600 | CX53: =CONCATENATE(Organic_landing_cat_then_order!E54,Organic_landing_cat_then_order!C54,Organic_landing_cat_then_order!B54) -> 201804CHSMB | CY53: =Organic_landing_cat_then_order!D54 -> /browse_catalogue/cat_l3/006001002 | CZ53: Facilities Supplies | DA53: =Organic_landing_cat_then_order!F54 -> 3 | DC53: 201804SGcorporate | DH53: 3 | DK53: 3
A54: =CONCATENATE(General_data!C54,General_data!A54,General_data!B54) -> 201804HUguest | B54: =General_data!D54 -> 6147 | C54: =General_data!E54 -> 4 | D54: =General_data!F54/0.3 -> 23.16619667 | G54: =CONCATENATE(Trafic_Entrant!D54,Trafic_Entrant!A54,Trafic_Entrant!B54) -> 201804BErep | H54: =IF(Trafic_Entrant!$C54=H$4,Trafic_Entrant!$E54,0) -> 0 | I54: =IF(Trafic_Entrant!$C54=I$4,Trafic_Entrant!$E54,0) -> 149 | J54: =IF(OR(Trafic_Entrant!$C54=$F$1,Trafic_Entrant!C54=$F$2,Trafic_Entrant!C54=$F$3,Trafic_Entrant!C54=$F$4),Trafic_Entrant!$E54,0) -> 0 | K54: =IF(Trafic_Entrant!$C54=K$4,Trafic_Entrant!$F54,0) -> 0 | L54: =IF(Trafic_Entrant!$C54=L$4,Trafic_Entrant!$F54,0) -> 28 | M54: =IF(OR(Trafic_Entrant!$C54=$F$1,Trafic_Entrant!C54=$F$2,Trafic_Entrant!C54=$F$3,Trafic_Entrant!C54=$F$4),Trafic_Entrant!$F54,0) -> 0 | N54: =IF(Trafic_Entrant!$C54=N$4,Trafic_Entrant!$G54/0.3,0) -> 0 | O54: =IF(Trafic_Entrant!$C54=O$4,Trafic_Entrant!$G54/0.3,0) -> 6352.200113 | P54: =IF(OR(Trafic_Entrant!$C54=$F$1,Trafic_Entrant!$C54=$F$2,Trafic_Entrant!$C54=$F$3,Trafic_Entrant!$C54=$F$4),Trafic_Entrant!$G54/0.3,0) -> 0 | S54: =CONCATENATE(Organic_by_landing_search!D54,Organic_by_landing_search!A54,Organic_by_landing_search!B54) -> 201804IRcorporate | T54: =Organic_by_landing_search!E54 -> 77 | W54: =CONCATENATE(Organic_by_landing_PDP!D54,Organic_by_landing_PDP!A54,Organic_by_landing_PDP!B54) -> 201804IRSMB | X54: =Organic_by_landing_PDP!E54 -> 149 | Z54: =CONCATENATE(Organic_by_landing_welcome!D54,Organic_by_landing_welcome!A54,Organic_by_landing_welcome!B54) -> 201804IRSMB | AA54: =Organic_by_landing_welcome!E54 -> 2091 | AC54: 201804HUcorporate | AD54: 681 | AE54: 1225 | AF54: 253 | AG54: 298 | AH54: 439 | AI54: 80 | AJ54: 23444.71556 | AK54: 48791.93459 | AL54: 8833.04092 | AO54: =CONCATENATE(Organic_by_landing_category!D54,Organic_by_landing_category!A54,Organic_by_landing_category!B54) -> 201804AUSMB | AP54: =Organic_by_landing_category!C54 -> /browse_catalogue/cat_l1/003 | AQ54: Office Supplies | AR54: =Organic_by_landing_category!E54 -> 4 | AT54: 201804KRcorporate | AU54: 8 | AW54: 4 | AX54: 250 | AY54: 4 | BA54: 266 | BC54: =CONCATENATE(Organic_by_ldg_category_ATC!E50,Organic_by_ldg_category_ATC!C50,Organic_by_ldg_category_ATC!D50) -> 201804FRcorporate | BD54: =Organic_by_ldg_category_ATC!B50 -> /browse_catalogue/cat_l3/003002007 | BE54: Office Supplies | BF54: =Organic_by_ldg_category_ATC!F50 -> 8 | BS54: =CONCATENATE(Organic_landing_category_bounce!E56,Organic_landing_category_bounce!B56,Organic_landing_category_bounce!D56) -> 201804AUSMB | BT54: =Organic_landing_category_bounce!C56 -> /browse_catalogue/cat_l1/003 | BU54: Office Supplies | BV54: =Organic_landing_category_bounce!F56 -> 0 | BW54: =Organic_landing_category_bounce!G56 -> 4 | BZ54: 201804KRguest | CA54: 160 | CB54: 44 | CC54: 8 | CD54: 400 | CE54: 124 | CF54: 88 | CG54: 272 | CH54: 60 | CI54: 8 | CJ54: 584 | CK54: 184 | CL54: 140 | CM54: 824 | CN54: 1248 | CP54: =CONCATENATE(Bounce_rate_global!C56:C56,Bounce_rate_global!A56,Bounce_rate_global!B56) -> 201804HUguest | CQ54: =Bounce_rate_global!D56 -> 2509 | CR54: =Bounce_rate_global!E56 -> 6147 | CT54: =CONCATENATE(Bounce_rate_organic!D56,Bounce_rate_organic!C56,Bounce_rate_organic!B56) -> 201804SKcorporate | CU54: =Bounce_rate_organic!E56 -> 117 | CV54: =Bounce_rate_organic!F56 -> 1410 | CX54: =CONCATENATE(Organic_landing_cat_then_order!E55,Organic_landing_cat_then_order!C55,Organic_landing_cat_then_order!B55) -> 201804CHSMB | CY54: =Organic_landing_cat_then_order!D55 -> /browse_catalogue/cat_l3/006010001 | CZ54: Facilities Supplies | DA54: =Organic_landing_cat_then_order!F55 -> 3 | DC54: 201804SKSMB | DH54: 23 | DK54: 23
A55: =CONCATENATE(General_data!C55,General_data!A55,General_data!B55) -> 201804HUrep | B55: =General_data!D55 -> 1688 | C55: =General_data!E55 -> 1390 | D55: =General_data!F55/0.3 -> 160713.4774 | G55: =CONCATENATE(Trafic_Entrant!D55,Trafic_Entrant!A55,Trafic_Entrant!B55) -> 201804BErep | H55: =IF(Trafic_Entrant!$C55=H$4,Trafic_Entrant!$E55,0) -> 0 | I55: =IF(Trafic_Entrant!$C55=I$4,Trafic_Entrant!$E55,0) -> 0 | J55: =IF(OR(Trafic_Entrant!$C55=$F$1,Trafic_Entrant!C55=$F$2,Trafic_Entrant!C55=$F$3,Trafic_Entrant!C55=$F$4),Trafic_Entrant!$E55,0) -> 12 | K55: =IF(Trafic_Entrant!$C55=K$4,Trafic_Entrant!$F55,0) -> 0 | L55: =IF(Trafic_Entrant!$C55=L$4,Trafic_Entrant!$F55,0) -> 0 | M55: =IF(OR(Trafic_Entrant!$C55=$F$1,Trafic_Entrant!C55=$F$2,Trafic_Entrant!C55=$F$3,Trafic_Entrant!C55=$F$4),Trafic_Entrant!$F55,0) -> 4 | N55: =IF(Trafic_Entrant!$C55=N$4,Trafic_Entrant!$G55/0.3,0) -> 0 | O55: =IF(Trafic_Entrant!$C55=O$4,Trafic_Entrant!$G55/0.3,0) -> 0 | P55: =IF(OR(Trafic_Entrant!$C55=$F$1,Trafic_Entrant!$C55=$F$2,Trafic_Entrant!$C55=$F$3,Trafic_Entrant!$C55=$F$4),Trafic_Entrant!$G55/0.3,0) -> 650.6607867 | S55: =CONCATENATE(Organic_by_landing_search!D55,Organic_by_landing_search!A55,Organic_by_landing_search!B55) -> 201804IRguest | T55: =Organic_by_landing_search!E55 -> 262 | W55: =CONCATENATE(Organic_by_landing_PDP!D55,Organic_by_landing_PDP!A55,Organic_by_landing_PDP!B55) -> 201804IRcorporate | X55: =Organic_by_landing_PDP!E55 -> 73 | Z55: =CONCATENATE(Organic_by_landing_welcome!D55,Organic_by_landing_welcome!A55,Organic_by_landing_welcome!B55) -> 201804IRcorporate | AA55: =Organic_by_landing_welcome!E55 -> 1261 | AC55: 201804HUguest | AD55: 3919 | AE55: 2030 | AF55: 197 | AG55: 0 | AH55: 4 | AI55: 0 | AJ55: 0 | AK55: 23.16619667 | AL55: 0 | AO55: =CONCATENATE(Organic_by_landing_category!D55,Organic_by_landing_category!A55,Organic_by_landing_category!B55) -> 201804AUSMB | AP55: =Organic_by_landing_category!C55 -> /browse_catalogue/cat_l1/005 | AQ55: Furniture | AR55: =Organic_by_landing_category!E55 -> 4 | AT55: 201804KRguest | AU55: 272 | AV55: 60 | AW55: 8 | AX55: 584 | AY55: 184 | AZ55: 140 | BA55: 1248 | BC55: =CONCATENATE(Organic_by_ldg_category_ATC!E51,Organic_by_ldg_category_ATC!C51,Organic_by_ldg_category_ATC!D51) -> 201804FRcorporate | BD55: =Organic_by_ldg_category_ATC!B51 -> /browse_catalogue/cat_l3/003002008 | BE55: Office Supplies | BF55: =Organic_by_ldg_category_ATC!F51 -> 4 | BS55: =CONCATENATE(Organic_landing_category_bounce!E57,Organic_landing_category_bounce!B57,Organic_landing_category_bounce!D57) -> 201804AUcorporate | BT55: =Organic_landing_category_bounce!C57 -> /browse_catalogue/cat_l1/003 | BU55: Office Supplies | BV55: =Organic_landing_category_bounce!F57 -> 0 | BW55: =Organic_landing_category_bounce!G57 -> 12 | BZ55: 201804KRSMB | CA55: 8 | CB55: 4 | CD55: 8 | CG55: 16 | CH55: 12 | CJ55: 96 | CM55: 20 | CN55: 124 | CP55: =CONCATENATE(Bounce_rate_global!C57:C57,Bounce_rate_global!A57,Bounce_rate_global!B57) -> 201804HUrep | CQ55: =Bounce_rate_global!D57 -> 141 | CR55: =Bounce_rate_global!E57 -> 1688 | CT55: =CONCATENATE(Bounce_rate_organic!D57,Bounce_rate_organic!C57,Bounce_rate_organic!B57) -> 201804SPcorporate | CU55: =Bounce_rate_organic!E57 -> 1289 | CV55: =Bounce_rate_organic!F57 -> 16338 | CX55: =CONCATENATE(Organic_landing_cat_then_order!E56,Organic_landing_cat_then_order!C56,Organic_landing_cat_then_order!B56) -> 201804CHSMB | CY55: =Organic_landing_cat_then_order!D56 -> /browse_catalogue/cat_l4/003006004003 | CZ55: Office Supplies | DA55: =Organic_landing_cat_then_order!F56 -> 3 | DC55: 201804SKcorporate | DE55: 3 | DH55: 3 | DK55: 6
A56: =CONCATENATE(General_data!C56,General_data!A56,General_data!B56) -> 201804IRSMB | B56: =General_data!D56 -> 8535 | C56: =General_data!E56 -> 3875 | D56: =General_data!F56/0.3 -> 659151.7338 | G56: =CONCATENATE(Trafic_Entrant!D56,Trafic_Entrant!A56,Trafic_Entrant!B56) -> 201804BErep | H56: =IF(Trafic_Entrant!$C56=H$4,Trafic_Entrant!$E56,0) -> 222 | I56: =IF(Trafic_Entrant!$C56=I$4,Trafic_Entrant!$E56,0) -> 0 | J56: =IF(OR(Trafic_Entrant!$C56=$F$1,Trafic_Entrant!C56=$F$2,Trafic_Entrant!C56=$F$3,Trafic_Entrant!C56=$F$4),Trafic_Entrant!$E56,0) -> 0 | K56: =IF(Trafic_Entrant!$C56=K$4,Trafic_Entrant!$F56,0) -> 81 | L56: =IF(Trafic_Entrant!$C56=L$4,Trafic_Entrant!$F56,0) -> 0 | M56: =IF(OR(Trafic_Entrant!$C56=$F$1,Trafic_Entrant!C56=$F$2,Trafic_Entrant!C56=$F$3,Trafic_Entrant!C56=$F$4),Trafic_Entrant!$F56,0) -> 0 | N56: =IF(Trafic_Entrant!$C56=N$4,Trafic_Entrant!$G56/0.3,0) -> 11614.81866 | O56: =IF(Trafic_Entrant!$C56=O$4,Trafic_Entrant!$G56/0.3,0) -> 0 | P56: =IF(OR(Trafic_Entrant!$C56=$F$1,Trafic_Entrant!$C56=$F$2,Trafic_Entrant!$C56=$F$3,Trafic_Entrant!$C56=$F$4),Trafic_Entrant!$G56/0.3,0) -> 0 | S56: =CONCATENATE(Organic_by_landing_search!D56,Organic_by_landing_search!A56,Organic_by_landing_search!B56) -> 201804ITSMB | T56: =Organic_by_landing_search!E56 -> 354 | W56: =CONCATENATE(Organic_by_landing_PDP!D56,Organic_by_landing_PDP!A56,Organic_by_landing_PDP!B56) -> 201804IRguest | X56: =Organic_by_landing_PDP!E56 -> 2501 | Z56: =CONCATENATE(Organic_by_landing_welcome!D56,Organic_by_landing_welcome!A56,Organic_by_landing_welcome!B56) -> 201804IRguest | AA56: =Organic_by_landing_welcome!E56 -> 963 | AC56: 201804HUrep | AD56: 451 | AE56: 1075 | AF56: 161 | AG56: 383 | AH56: 918 | AI56: 89 | AJ56: 43858.07974 | AK56: 108663.793 | AL56: 8191.604643 | AO56: =CONCATENATE(Organic_by_landing_category!D56,Organic_by_landing_category!A56,Organic_by_landing_category!B56) -> 201804AUSMB | AP56: =Organic_by_landing_category!C56 -> /browse_catalogue/cat_l3/003004007 | AQ56: Office Supplies | AR56: =Organic_by_landing_category!E56 -> 4 | AT56: 201804KRrep | AX56: 4 | BA56: 4 | BC56: =CONCATENATE(Organic_by_ldg_category_ATC!E52,Organic_by_ldg_category_ATC!C52,Organic_by_ldg_category_ATC!D52) -> 201804FRcorporate | BD56: =Organic_by_ldg_category_ATC!B52 -> /browse_catalogue/cat_l3/003003002 | BE56: Office Supplies | BF56: =Organic_by_ldg_category_ATC!F52 -> 4 | BS56: =CONCATENATE(Organic_landing_category_bounce!E58,Organic_landing_category_bounce!B58,Organic_landing_category_bounce!D58) -> 201804AUguest | BT56: =Organic_landing_category_bounce!C58 -> /browse_catalogue/cat_l1/003 | BU56: Office Supplies | BV56: =Organic_landing_category_bounce!F58 -> 32 | BW56: =Organic_landing_category_bounce!G58 -> 161 | BZ56: 201804KRcorporate | CA56: 0 | CC56: 0 | CD56: 117 | CE56: 0 | CG56: 8 | CI56: 4 | CJ56: 250 | CK56: 4 | CM56: 117 | CN56: 266 | CP56: =CONCATENATE(Bounce_rate_global!C58:C58,Bounce_rate_global!A58,Bounce_rate_global!B58) -> 201804IRSMB | CQ56: =Bounce_rate_global!D58 -> 769 | CR56: =Bounce_rate_global!E58 -> 8535 | CT56: =CONCATENATE(Bounce_rate_organic!D58,Bounce_rate_organic!C58,Bounce_rate_organic!B58) -> 201804SVcorporate | CU56: =Bounce_rate_organic!E58 -> 725 | CV56: =Bounce_rate_organic!F58 -> 8378 | CX56: =CONCATENATE(Organic_landing_cat_then_order!E57,Organic_landing_cat_then_order!C57,Organic_landing_cat_then_order!B57) -> 201804CHSMB | CY56: =Organic_landing_cat_then_order!D57 -> /browse_catalogue/cat_l4/006001002001 | CZ56: Facilities Supplies | DA56: =Organic_landing_cat_then_order!F57 -> 6 | DC56: 201804SPSMB | DE56: 6 | DH56: 96 | DI56: 6 | DK56: 108
A57: =CONCATENATE(General_data!C57,General_data!A57,General_data!B57) -> 201804IRcorporate | B57: =General_data!D57 -> 7017 | C57: =General_data!E57 -> 2300 | D57: =General_data!F57/0.3 -> 385906.9653 | G57: =CONCATENATE(Trafic_Entrant!D57,Trafic_Entrant!A57,Trafic_Entrant!B57) -> 201804BErep | H57: =IF(Trafic_Entrant!$C57=H$4,Trafic_Entrant!$E57,0) -> 0 | I57: =IF(Trafic_Entrant!$C57=I$4,Trafic_Entrant!$E57,0) -> 0 | J57: =IF(OR(Trafic_Entrant!$C57=$F$1,Trafic_Entrant!C57=$F$2,Trafic_Entrant!C57=$F$3,Trafic_Entrant!C57=$F$4),Trafic_Entrant!$E57,0) -> 48 | K57: =IF(Trafic_Entrant!$C57=K$4,Trafic_Entrant!$F57,0) -> 0 | L57: =IF(Trafic_Entrant!$C57=L$4,Trafic_Entrant!$F57,0) -> 0 | M57: =IF(OR(Trafic_Entrant!$C57=$F$1,Trafic_Entrant!C57=$F$2,Trafic_Entrant!C57=$F$3,Trafic_Entrant!C57=$F$4),Trafic_Entrant!$F57,0) -> 8 | N57: =IF(Trafic_Entrant!$C57=N$4,Trafic_Entrant!$G57/0.3,0) -> 0 | O57: =IF(Trafic_Entrant!$C57=O$4,Trafic_Entrant!$G57/0.3,0) -> 0 | P57: =IF(OR(Trafic_Entrant!$C57=$F$1,Trafic_Entrant!$C57=$F$2,Trafic_Entrant!$C57=$F$3,Trafic_Entrant!$C57=$F$4),Trafic_Entrant!$G57/0.3,0) -> 592.1201133 | S57: =CONCATENATE(Organic_by_landing_search!D57,Organic_by_landing_search!A57,Organic_by_landing_search!B57) -> 201804ITcorporate | T57: =Organic_by_landing_search!E57 -> 141 | W57: =CONCATENATE(Organic_by_landing_PDP!D57,Organic_by_landing_PDP!A57,Organic_by_landing_PDP!B57) -> 201804IRrep | X57: =Organic_by_landing_PDP!E57 -> 4 | Z57: =CONCATENATE(Organic_by_landing_welcome!D57,Organic_by_landing_welcome!A57,Organic_by_landing_welcome!B57) -> 201804ITSMB | AA57: =Organic_by_landing_welcome!E57 -> 14952 | AC57: 201804IRSMB | AD57: 3738 | AE57: 4556 | AF57: 241 | AG57: 1780 | AH57: 2006 | AI57: 88 | AJ57: 281831.987 | AK57: 366098.3322 | AL57: 11221.41459 | AO57: =CONCATENATE(Organic_by_landing_category!D57,Organic_by_landing_category!A57,Organic_by_landing_category!B57) -> 201804AUSMB | AP57: =Organic_by_landing_category!C57 -> /browse_catalogue/cat_l3/003005001 | AQ57: Office Supplies | AR57: =Organic_by_landing_category!E57 -> 8 | AT57: 201804LUSMB | AX57: 24 | BA57: 24 | BC57: =CONCATENATE(Organic_by_ldg_category_ATC!E53,Organic_by_ldg_category_ATC!C53,Organic_by_ldg_category_ATC!D53) -> 201804FRcorporate | BD57: =Organic_by_ldg_category_ATC!B53 -> /browse_catalogue/cat_l3/003003006 | BE57: Office Supplies | BF57: =Organic_by_ldg_category_ATC!F53 -> 4 | BS57: =CONCATENATE(Organic_landing_category_bounce!E59,Organic_landing_category_bounce!B59,Organic_landing_category_bounce!D59) -> 201804AUSMB | BT57: =Organic_landing_category_bounce!C59 -> /browse_catalogue/cat_l1/005 | BU57: Furniture | BV57: =Organic_landing_category_bounce!F59 -> 0 | BW57: =Organic_landing_category_bounce!G59 -> 4 | BZ57: 201804KRrep | CD57: 0 | CJ57: 4 | CM57: 0 | CN57: 4 | CP57: =CONCATENATE(Bounce_rate_global!C59:C59,Bounce_rate_global!A59,Bounce_rate_global!B59) -> 201804IRcorporate | CQ57: =Bounce_rate_global!D59 -> 471 | CR57: =Bounce_rate_global!E59 -> 7017 | CT57: =CONCATENATE(Bounce_rate_organic!D59,Bounce_rate_organic!C59,Bounce_rate_organic!B59) -> 201804THcorporate | CU57: =Bounce_rate_organic!E59 -> 85 | CV57: =Bounce_rate_organic!F59 -> 995 | CX57: =CONCATENATE(Organic_landing_cat_then_order!E58,Organic_landing_cat_then_order!C58,Organic_landing_cat_then_order!B58) -> 201804CHSMB | CY57: =Organic_landing_cat_then_order!D58 -> /browse_catalogue/cat_l4/006001003001 | CZ57: Facilities Supplies | DA57: =Organic_landing_cat_then_order!F58 -> 3 | DC57: 201804SPcorporate | DE57: 6 | DG57: 3 | DH57: 40 | DI57: 3 | DJ57: 6 | DK57: 58
A58: =CONCATENATE(General_data!C58,General_data!A58,General_data!B58) -> 201804IRguest | B58: =General_data!D58 -> 8483 | C58: =General_data!E58 -> 0 | D58: =General_data!F58/0.3 -> 0 | G58: =CONCATENATE(Trafic_Entrant!D58,Trafic_Entrant!A58,Trafic_Entrant!B58) -> 201804CHSMB | H58: =IF(Trafic_Entrant!$C58=H$4,Trafic_Entrant!$E58,0) -> 0 | I58: =IF(Trafic_Entrant!$C58=I$4,Trafic_Entrant!$E58,0) -> 21377 | J58: =IF(OR(Trafic_Entrant!$C58=$F$1,Trafic_Entrant!C58=$F$2,Trafic_Entrant!C58=$F$3,Trafic_Entrant!C58=$F$4),Trafic_Entrant!$E58,0) -> 0 | K58: =IF(Trafic_Entrant!$C58=K$4,Trafic_Entrant!$F58,0) -> 0 | L58: =IF(Trafic_Entrant!$C58=L$4,Trafic_Entrant!$F58,0) -> 11045 | M58: =IF(OR(Trafic_Entrant!$C58=$F$1,Trafic_Entrant!C58=$F$2,Trafic_Entrant!C58=$F$3,Trafic_Entrant!C58=$F$4),Trafic_Entrant!$F58,0) -> 0 | N58: =IF(Trafic_Entrant!$C58=N$4,Trafic_Entrant!$G58/0.3,0) -> 0 | O58: =IF(Trafic_Entrant!$C58=O$4,Trafic_Entrant!$G58/0.3,0) -> 2578134.363 | P58: =IF(OR(Trafic_Entrant!$C58=$F$1,Trafic_Entrant!$C58=$F$2,Trafic_Entrant!$C58=$F$3,Trafic_Entrant!$C58=$F$4),Trafic_Entrant!$G58/0.3,0) -> 0 | S58: =CONCATENATE(Organic_by_landing_search!D58,Organic_by_landing_search!A58,Organic_by_landing_search!B58) -> 201804ITguest | T58: =Organic_by_landing_search!E58 -> 109 | W58: =CONCATENATE(Organic_by_landing_PDP!D58,Organic_by_landing_PDP!A58,Organic_by_landing_PDP!B58) -> 201804ITSMB | X58: =Organic_by_landing_PDP!E58 -> 512 | Z58: =CONCATENATE(Organic_by_landing_welcome!D58,Organic_by_landing_welcome!A58,Organic_by_landing_welcome!B58) -> 201804ITcorporate | AA58: =Organic_by_landing_welcome!E58 -> 8302 | AC58: 201804IRcorporate | AD58: 2232 | AE58: 4475 | AF58: 310 | AG58: 705 | AH58: 1535 | AI58: 60 | AJ58: 110287.9093 | AK58: 256632.1405 | AL58: 18986.91545 | AO58: =CONCATENATE(Organic_by_landing_category!D58,Organic_by_landing_category!A58,Organic_by_landing_category!B58) -> 201804AUSMB | AP58: =Organic_by_landing_category!C58 -> /browse_catalogue/cat_l4/006002001002 | AQ58: Facilities Supplies | AR58: =Organic_by_landing_category!E58 -> 4 | AT58: 201804LUcorporate | AX58: 32 | BA58: 32 | BC58: =CONCATENATE(Organic_by_ldg_category_ATC!E54,Organic_by_ldg_category_ATC!C54,Organic_by_ldg_category_ATC!D54) -> 201804FRcorporate | BD58: =Organic_by_ldg_category_ATC!B54 -> /browse_catalogue/cat_l3/003004003 | BE58: Office Supplies | BF58: =Organic_by_ldg_category_ATC!F54 -> 4 | BS58: =CONCATENATE(Organic_landing_category_bounce!E60,Organic_landing_category_bounce!B60,Organic_landing_category_bounce!D60) -> 201804AUguest | BT58: =Organic_landing_category_bounce!C60 -> /browse_catalogue/cat_l2/001003 | BU58: Paper & Envelopes | BV58: =Organic_landing_category_bounce!F60 -> 0 | BW58: =Organic_landing_category_bounce!G60 -> 4 | BZ58: 201804LUguest | CA58: 8 | CB58: 4 | CC58: 4 | CD58: 132 | CE58: 4 | CF58: 20 | CG58: 36 | CH58: 24 | CI58: 4 | CJ58: 309 | CK58: 28 | CL58: 32 | CM58: 172 | CN58: 433 | CP58: =CONCATENATE(Bounce_rate_global!C60:C60,Bounce_rate_global!A60,Bounce_rate_global!B60) -> 201804IRguest | CQ58: =Bounce_rate_global!D60 -> 3271 | CR58: =Bounce_rate_global!E60 -> 8483 | CT58: =CONCATENATE(Bounce_rate_organic!D60,Bounce_rate_organic!C60,Bounce_rate_organic!B60) -> 201804ATguest | CU58: =Bounce_rate_organic!E60 -> 794 | CV58: =Bounce_rate_organic!F60 -> 1635 | CX58: =CONCATENATE(Organic_landing_cat_then_order!E59,Organic_landing_cat_then_order!C59,Organic_landing_cat_then_order!B59) -> 201804CHSMB | CY58: =Organic_landing_cat_then_order!D59 -> /browse_catalogue/cat_l4/006003002001 | CZ58: Facilities Supplies | DA58: =Organic_landing_cat_then_order!F59 -> 3 | DC58: 201804SPguest | DH58: 6 | DI58: 3 | DK58: 9
A59: =CONCATENATE(General_data!C59,General_data!A59,General_data!B59) -> 201804IRrep | B59: =General_data!D59 -> 4 | C59: =General_data!E59 -> 0 | D59: =General_data!F59/0.3 -> 0 | G59: =CONCATENATE(Trafic_Entrant!D59,Trafic_Entrant!A59,Trafic_Entrant!B59) -> 201804CHSMB | H59: =IF(Trafic_Entrant!$C59=H$4,Trafic_Entrant!$E59,0) -> 0 | I59: =IF(Trafic_Entrant!$C59=I$4,Trafic_Entrant!$E59,0) -> 0 | J59: =IF(OR(Trafic_Entrant!$C59=$F$1,Trafic_Entrant!C59=$F$2,Trafic_Entrant!C59=$F$3,Trafic_Entrant!C59=$F$4),Trafic_Entrant!$E59,0) -> 1748 | K59: =IF(Trafic_Entrant!$C59=K$4,Trafic_Entrant!$F59,0) -> 0 | L59: =IF(Trafic_Entrant!$C59=L$4,Trafic_Entrant!$F59,0) -> 0 | M59: =IF(OR(Trafic_Entrant!$C59=$F$1,Trafic_Entrant!C59=$F$2,Trafic_Entrant!C59=$F$3,Trafic_Entrant!C59=$F$4),Trafic_Entrant!$F59,0) -> 661 | N59: =IF(Trafic_Entrant!$C59=N$4,Trafic_Entrant!$G59/0.3,0) -> 0 | O59: =IF(Trafic_Entrant!$C59=O$4,Trafic_Entrant!$G59/0.3,0) -> 0 | P59: =IF(OR(Trafic_Entrant!$C59=$F$1,Trafic_Entrant!$C59=$F$2,Trafic_Entrant!$C59=$F$3,Trafic_Entrant!$C59=$F$4),Trafic_Entrant!$G59/0.3,0) -> 145309.1844 | S59: =CONCATENATE(Organic_by_landing_search!D59,Organic_by_landing_search!A59,Organic_by_landing_search!B59) -> 201804KRSMB | T59: =Organic_by_landing_search!E59 -> 77 | W59: =CONCATENATE(Organic_by_landing_PDP!D59,Organic_by_landing_PDP!A59,Organic_by_landing_PDP!B59) -> 201804ITcorporate | X59: =Organic_by_landing_PDP!E59 -> 205 | Z59: =CONCATENATE(Organic_by_landing_welcome!D59,Organic_by_landing_welcome!A59,Organic_by_landing_welcome!B59) -> 201804ITguest | AA59: =Organic_by_landing_welcome!E59 -> 7174 | AC59: 201804IRguest | AD59: 6457 | AE59: 1861 | AF59: 165 | AG59: 0 | AH59: 0 | AI59: 0 | AJ59: 0 | AK59: 0 | AL59: 0 | AO59: =CONCATENATE(Organic_by_landing_category!D59,Organic_by_landing_category!A59,Organic_by_landing_category!B59) -> 201804AUcorporate | AP59: =Organic_by_landing_category!C59 -> /browse_catalogue/cat_l1/003 | AQ59: Office Supplies | AR59: =Organic_by_landing_category!E59 -> 12 | AT59: 201804LUguest | AU59: 36 | AV59: 24 | AW59: 4 | AX59: 309 | AY59: 28 | AZ59: 32 | BA59: 433 | BC59: =CONCATENATE(Organic_by_ldg_category_ATC!E55,Organic_by_ldg_category_ATC!C55,Organic_by_ldg_category_ATC!D55) -> 201804FRcorporate | BD59: =Organic_by_ldg_category_ATC!B55 -> /browse_catalogue/cat_l3/003007001 | BE59: Office Supplies | BF59: =Organic_by_ldg_category_ATC!F55 -> 4 | BS59: =CONCATENATE(Organic_landing_category_bounce!E61,Organic_landing_category_bounce!B61,Organic_landing_category_bounce!D61) -> 201804AUguest | BT59: =Organic_landing_category_bounce!C61 -> /browse_catalogue/cat_l2/001007 | BU59: Paper & Envelopes | BV59: =Organic_landing_category_bounce!F61 -> 4 | BW59: =Organic_landing_category_bounce!G61 -> 8 | BZ59: 201804LUSMB | CD59: 0 | CJ59: 24 | CM59: 0 | CN59: 24 | CP59: =CONCATENATE(Bounce_rate_global!C61:C61,Bounce_rate_global!A61,Bounce_rate_global!B61) -> 201804IRrep | CQ59: =Bounce_rate_global!D61 -> 0 | CR59: =Bounce_rate_global!E61 -> 4 | CT59: =CONCATENATE(Bounce_rate_organic!D61,Bounce_rate_organic!C61,Bounce_rate_organic!B61) -> 201804AUguest | CU59: =Bounce_rate_organic!E61 -> 2594 | CV59: =Bounce_rate_organic!F61 -> 6175 | CX59: =CONCATENATE(Organic_landing_cat_then_order!E60,Organic_landing_cat_then_order!C60,Organic_landing_cat_then_order!B60) -> 201804CHcorporate | CY59: =Organic_landing_cat_then_order!D60 -> /browse_catalogue/cat_l1/003 | CZ59: Office Supplies | DA59: =Organic_landing_cat_then_order!F60 -> 12 | DC59: 201804SPrep | DI59: 3 | DK59: 3
A60: =CONCATENATE(General_data!C60,General_data!A60,General_data!B60) -> 201804ITSMB | B60: =General_data!D60 -> 40965 | C60: =General_data!E60 -> 15282 | D60: =General_data!F60/0.3 -> 3109218.545 | G60: =CONCATENATE(Trafic_Entrant!D60,Trafic_Entrant!A60,Trafic_Entrant!B60) -> 201804CHSMB | H60: =IF(Trafic_Entrant!$C60=H$4,Trafic_Entrant!$E60,0) -> 22154 | I60: =IF(Trafic_Entrant!$C60=I$4,Trafic_Entrant!$E60,0) -> 0 | J60: =IF(OR(Trafic_Entrant!$C60=$F$1,Trafic_Entrant!C60=$F$2,Trafic_Entrant!C60=$F$3,Trafic_Entrant!C60=$F$4),Trafic_Entrant!$E60,0) -> 0 | K60: =IF(Trafic_Entrant!$C60=K$4,Trafic_Entrant!$F60,0) -> 9651 | L60: =IF(Trafic_Entrant!$C60=L$4,Trafic_Entrant!$F60,0) -> 0 | M60: =IF(OR(Trafic_Entrant!$C60=$F$1,Trafic_Entrant!C60=$F$2,Trafic_Entrant!C60=$F$3,Trafic_Entrant!C60=$F$4),Trafic_Entrant!$F60,0) -> 0 | N60: =IF(Trafic_Entrant!$C60=N$4,Trafic_Entrant!$G60/0.3,0) -> 2097667.846 | O60: =IF(Trafic_Entrant!$C60=O$4,Trafic_Entrant!$G60/0.3,0) -> 0 | P60: =IF(OR(Trafic_Entrant!$C60=$F$1,Trafic_Entrant!$C60=$F$2,Trafic_Entrant!$C60=$F$3,Trafic_Entrant!$C60=$F$4),Trafic_Entrant!$G60/0.3,0) -> 0 | S60: =CONCATENATE(Organic_by_landing_search!D60,Organic_by_landing_search!A60,Organic_by_landing_search!B60) -> 201804KRcorporate | T60: =Organic_by_landing_search!E60 -> 32 | W60: =CONCATENATE(Organic_by_landing_PDP!D60,Organic_by_landing_PDP!A60,Organic_by_landing_PDP!B60) -> 201804ITguest | X60: =Organic_by_landing_PDP!E60 -> 5132 | Z60: =CONCATENATE(Organic_by_landing_welcome!D60,Organic_by_landing_welcome!A60,Organic_by_landing_welcome!B60) -> 201804ITrep | AA60: =Organic_by_landing_welcome!E60 -> 4 | AC60: 201804IRrep | AD60: 4 | AE60: 0 | AF60: 0 | AG60: 0 | AH60: 0 | AI60: 0 | AJ60: 0 | AK60: 0 | AL60: 0 | AO60: =CONCATENATE(Organic_by_landing_category!D60,Organic_by_landing_category!A60,Organic_by_landing_category!B60) -> 201804AUcorporate | AP60: =Organic_by_landing_category!C60 -> /browse_catalogue/cat_l2/003001 | AQ60: Office Supplies | AR60: =Organic_by_landing_category!E60 -> 16 | AT60: 201804MYSMB | AU60: 24 | AV60: 4 | AX60: 572 | BA60: 600 | BC60: =CONCATENATE(Organic_by_ldg_category_ATC!E56,Organic_by_ldg_category_ATC!C56,Organic_by_ldg_category_ATC!D56) -> 201804FRcorporate | BD60: =Organic_by_ldg_category_ATC!B56 -> /browse_catalogue/cat_l3/003008002 | BE60: Office Supplies | BF60: =Organic_by_ldg_category_ATC!F56 -> 12 | BS60: =CONCATENATE(Organic_landing_category_bounce!E62,Organic_landing_category_bounce!B62,Organic_landing_category_bounce!D62) -> 201804AUcorporate | BT60: =Organic_landing_category_bounce!C62 -> /browse_catalogue/cat_l2/003001 | BU60: Office Supplies | BV60: =Organic_landing_category_bounce!F62 -> 0 | BW60: =Organic_landing_category_bounce!G62 -> 16 | BZ60: 201804LUcorporate | CD60: 4 | CJ60: 32 | CM60: 4 | CN60: 32 | CP60: =CONCATENATE(Bounce_rate_global!C62:C62,Bounce_rate_global!A62,Bounce_rate_global!B62) -> 201804ITSMB | CQ60: =Bounce_rate_global!D62 -> 3891 | CR60: =Bounce_rate_global!E62 -> 40965 | CT60: =CONCATENATE(Bounce_rate_organic!D62,Bounce_rate_organic!C62,Bounce_rate_organic!B62) -> 201804BEguest | CU60: =Bounce_rate_organic!E62 -> 4580 | CV60: =Bounce_rate_organic!F62 -> 16011 | CX60: =CONCATENATE(Organic_landing_cat_then_order!E61,Organic_landing_cat_then_order!C61,Organic_landing_cat_then_order!B61) -> 201804CHcorporate | CY60: =Organic_landing_cat_then_order!D61 -> /browse_catalogue/cat_l3/003001003 | CZ60: Office Supplies | DA60: =Organic_landing_cat_then_order!F61 -> 9 | DC60: 201804SVSMB | DE60: 3 | DH60: 15 | DI60: 3 | DK60: 21
A61: =CONCATENATE(General_data!C61,General_data!A61,General_data!B61) -> 201804ITcorporate | B61: =General_data!D61 -> 31040 | C61: =General_data!E61 -> 11512 | D61: =General_data!F61/0.3 -> 1956514.719 | G61: =CONCATENATE(Trafic_Entrant!D61,Trafic_Entrant!A61,Trafic_Entrant!B61) -> 201804CHSMB | H61: =IF(Trafic_Entrant!$C61=H$4,Trafic_Entrant!$E61,0) -> 0 | I61: =IF(Trafic_Entrant!$C61=I$4,Trafic_Entrant!$E61,0) -> 0 | J61: =IF(OR(Trafic_Entrant!$C61=$F$1,Trafic_Entrant!C61=$F$2,Trafic_Entrant!C61=$F$3,Trafic_Entrant!C61=$F$4),Trafic_Entrant!$E61,0) -> 479 | K61: =IF(Trafic_Entrant!$C61=K$4,Trafic_Entrant!$F61,0) -> 0 | L61: =IF(Trafic_Entrant!$C61=L$4,Trafic_Entrant!$F61,0) -> 0 | M61: =IF(OR(Trafic_Entrant!$C61=$F$1,Trafic_Entrant!C61=$F$2,Trafic_Entrant!C61=$F$3,Trafic_Entrant!C61=$F$4),Trafic_Entrant!$F61,0) -> 250 | N61: =IF(Trafic_Entrant!$C61=N$4,Trafic_Entrant!$G61/0.3,0) -> 0 | O61: =IF(Trafic_Entrant!$C61=O$4,Trafic_Entrant!$G61/0.3,0) -> 0 | P61: =IF(OR(Trafic_Entrant!$C61=$F$1,Trafic_Entrant!$C61=$F$2,Trafic_Entrant!$C61=$F$3,Trafic_Entrant!$C61=$F$4),Trafic_Entrant!$G61/0.3,0) -> 74878.59064 | S61: =CONCATENATE(Organic_by_landing_search!D61,Organic_by_landing_search!A61,Organic_by_landing_search!B61) -> 201804KRguest | T61: =Organic_by_landing_search!E61 -> 28 | W61: =CONCATENATE(Organic_by_landing_PDP!D61,Organic_by_landing_PDP!A61,Organic_by_landing_PDP!B61) -> 201804KRSMB | X61: =Organic_by_landing_PDP!E61 -> 64 | Z61: =CONCATENATE(Organic_by_landing_welcome!D61,Organic_by_landing_welcome!A61,Organic_by_landing_welcome!B61) -> 201804KRSMB | AA61: =Organic_by_landing_welcome!E61 -> 4785 | AC61: 201804ITSMB | AD61: 20426 | AE61: 14163 | AF61: 6377 | AG61: 7198 | AH61: 5881 | AI61: 2203 | AJ61: 1444360.469 | AK61: 1209051.802 | AL61: 455806.2746 | AO61: =CONCATENATE(Organic_by_landing_category!D61,Organic_by_landing_category!A61,Organic_by_landing_category!B61) -> 201804AUcorporate | AP61: =Organic_by_landing_category!C61 -> /browse_catalogue/cat_l2/003003 | AQ61: Office Supplies | AR61: =Organic_by_landing_category!E61 -> 4 | AT61: 201804MYcorporate | AX61: 36 | BA61: 36 | BC61: =CONCATENATE(Organic_by_ldg_category_ATC!E57,Organic_by_ldg_category_ATC!C57,Organic_by_ldg_category_ATC!D57) -> 201804FRSMB | BD61: =Organic_by_ldg_category_ATC!B57 -> /browse_catalogue/cat_l3/005004001 | BE61: Furniture | BF61: =Organic_by_ldg_category_ATC!F57 -> 4 | BS61: =CONCATENATE(Organic_landing_category_bounce!E63,Organic_landing_category_bounce!B63,Organic_landing_category_bounce!D63) -> 201804AUguest | BT61: =Organic_landing_category_bounce!C63 -> /browse_catalogue/cat_l2/003001 | BU61: Office Supplies | BV61: =Organic_landing_category_bounce!F63 -> 8 | BW61: =Organic_landing_category_bounce!G63 -> 36 | BZ61: 201804MYguest | CA61: 0 | CB61: 0 | CC61: 4 | CD61: 217 | CE61: 24 | CF61: 4 | CG61: 4 | CH61: 4 | CI61: 16 | CJ61: 572 | CK61: 76 | CL61: 4 | CM61: 249 | CN61: 676 | CP61: =CONCATENATE(Bounce_rate_global!C63:C63,Bounce_rate_global!A63,Bounce_rate_global!B63) -> 201804ITcorporate | CQ61: =Bounce_rate_global!D63 -> 2522 | CR61: =Bounce_rate_global!E63 -> 31040 | CT61: =CONCATENATE(Bounce_rate_organic!D63,Bounce_rate_organic!C63,Bounce_rate_organic!B63) -> 201804CHguest | CU61: =Bounce_rate_organic!E63 -> 8056 | CV61: =Bounce_rate_organic!F63 -> 21864 | CX61: =CONCATENATE(Organic_landing_cat_then_order!E62,Organic_landing_cat_then_order!C62,Organic_landing_cat_then_order!B62) -> 201804CHcorporate | CY61: =Organic_landing_cat_then_order!D62 -> /browse_catalogue/cat_l3/006005001 | CZ61: Facilities Supplies | DA61: =Organic_landing_cat_then_order!F62 -> 3 | DC61: 201804SVcorporate | DE61: 3 | DH61: 9 | DI61: 6 | DK61: 18
A62: =CONCATENATE(General_data!C62,General_data!A62,General_data!B62) -> 201804ITguest | B62: =General_data!D62 -> 25397 | C62: =General_data!E62 -> 68 | D62: =General_data!F62/0.3 -> 5931.539723 | G62: =CONCATENATE(Trafic_Entrant!D62,Trafic_Entrant!A62,Trafic_Entrant!B62) -> 201804CHcorporate | H62: =IF(Trafic_Entrant!$C62=H$4,Trafic_Entrant!$E62,0) -> 0 | I62: =IF(Trafic_Entrant!$C62=I$4,Trafic_Entrant!$E62,0) -> 0 | J62: =IF(OR(Trafic_Entrant!$C62=$F$1,Trafic_Entrant!C62=$F$2,Trafic_Entrant!C62=$F$3,Trafic_Entrant!C62=$F$4),Trafic_Entrant!$E62,0) -> 4 | K62: =IF(Trafic_Entrant!$C62=K$4,Trafic_Entrant!$F62,0) -> 0 | L62: =IF(Trafic_Entrant!$C62=L$4,Trafic_Entrant!$F62,0) -> 0 | M62: =IF(OR(Trafic_Entrant!$C62=$F$1,Trafic_Entrant!C62=$F$2,Trafic_Entrant!C62=$F$3,Trafic_Entrant!C62=$F$4),Trafic_Entrant!$F62,0) -> 0 | N62: =IF(Trafic_Entrant!$C62=N$4,Trafic_Entrant!$G62/0.3,0) -> 0 | O62: =IF(Trafic_Entrant!$C62=O$4,Trafic_Entrant!$G62/0.3,0) -> 0 | P62: =IF(OR(Trafic_Entrant!$C62=$F$1,Trafic_Entrant!$C62=$F$2,Trafic_Entrant!$C62=$F$3,Trafic_Entrant!$C62=$F$4),Trafic_Entrant!$G62/0.3,0) -> 0 | S62: =CONCATENATE(Organic_by_landing_search!D62,Organic_by_landing_search!A62,Organic_by_landing_search!B62) -> 201804LUSMB | T62: =Organic_by_landing_search!E62 -> 8 | W62: =CONCATENATE(Organic_by_landing_PDP!D62,Organic_by_landing_PDP!A62,Organic_by_landing_PDP!B62) -> 201804KRcorporate | X62: =Organic_by_landing_PDP!E62 -> 40 | Z62: =CONCATENATE(Organic_by_landing_welcome!D62,Organic_by_landing_welcome!A62,Organic_by_landing_welcome!B62) -> 201804KRcorporate | AA62: =Organic_by_landing_welcome!E62 -> 1394 | AC62: 201804ITcorporate | AD62: 11661 | AE62: 15379 | AF62: 4000 | AG62: 3774 | AH62: 6461 | AI62: 1276 | AJ62: 692721.3455 | AK62: 1024081.132 | AL62: 239712.2412 | AO62: =CONCATENATE(Organic_by_landing_category!D62,Organic_by_landing_category!A62,Organic_by_landing_category!B62) -> 201804AUcorporate | AP62: =Organic_by_landing_category!C62 -> /browse_catalogue/cat_l2/003008 | AQ62: Office Supplies | AR62: =Organic_by_landing_category!E62 -> 4 | AT62: 201804MYguest | AU62: 4 | AV62: 4 | AW62: 16 | AX62: 572 | AY62: 76 | AZ62: 4 | BA62: 676 | BC62: =CONCATENATE(Organic_by_ldg_category_ATC!E58,Organic_by_ldg_category_ATC!C58,Organic_by_ldg_category_ATC!D58) -> 201804FRcorporate | BD62: =Organic_by_ldg_category_ATC!B58 -> /browse_catalogue/cat_l4/003002005002 | BE62: Office Supplies | BF62: =Organic_by_ldg_category_ATC!F58 -> 4 | BS62: =CONCATENATE(Organic_landing_category_bounce!E64,Organic_landing_category_bounce!B64,Organic_landing_category_bounce!D64) -> 201804AUcorporate | BT62: =Organic_landing_category_bounce!C64 -> /browse_catalogue/cat_l2/003003 | BU62: Office Supplies | BV62: =Organic_landing_category_bounce!F64 -> 0 | BW62: =Organic_landing_category_bounce!G64 -> 4 | BZ62: 201804MYSMB | CA62: 0 | CB62: 4 | CD62: 20 | CG62: 24 | CH62: 4 | CJ62: 572 | CM62: 24 | CN62: 600 | CP62: =CONCATENATE(Bounce_rate_global!C64:C64,Bounce_rate_global!A64,Bounce_rate_global!B64) -> 201804ITguest | CQ62: =Bounce_rate_global!D64 -> 11383 | CR62: =Bounce_rate_global!E64 -> 25397 | CT62: =CONCATENATE(Bounce_rate_organic!D64,Bounce_rate_organic!C64,Bounce_rate_organic!B64) -> 201804CZguest | CU62: =Bounce_rate_organic!E64 -> 975 | CV62: =Bounce_rate_organic!F64 -> 2598 | CX62: =CONCATENATE(Organic_landing_cat_then_order!E63,Organic_landing_cat_then_order!C63,Organic_landing_cat_then_order!B63) -> 201804CZSMB | CY62: =Organic_landing_cat_then_order!D63 -> /browse_catalogue/cat_l1/001 | CZ62: Paper & Envelopes | DA62: =Organic_landing_cat_then_order!F63 -> 3 | DC62: 201804SVrep | DH62: 6 | DK62: 6
A63: =CONCATENATE(General_data!C63,General_data!A63,General_data!B63) -> 201804ITrep | B63: =General_data!D63 -> 36 | C63: =General_data!E63 -> 32 | D63: =General_data!F63/0.3 -> 7082.61585 | G63: =CONCATENATE(Trafic_Entrant!D63,Trafic_Entrant!A63,Trafic_Entrant!B63) -> 201804CHcorporate | H63: =IF(Trafic_Entrant!$C63=H$4,Trafic_Entrant!$E63,0) -> 0 | I63: =IF(Trafic_Entrant!$C63=I$4,Trafic_Entrant!$E63,0) -> 23653 | J63: =IF(OR(Trafic_Entrant!$C63=$F$1,Trafic_Entrant!C63=$F$2,Trafic_Entrant!C63=$F$3,Trafic_Entrant!C63=$F$4),Trafic_Entrant!$E63,0) -> 0 | K63: =IF(Trafic_Entrant!$C63=K$4,Trafic_Entrant!$F63,0) -> 0 | L63: =IF(Trafic_Entrant!$C63=L$4,Trafic_Entrant!$F63,0) -> 12475 | M63: =IF(OR(Trafic_Entrant!$C63=$F$1,Trafic_Entrant!C63=$F$2,Trafic_Entrant!C63=$F$3,Trafic_Entrant!C63=$F$4),Trafic_Entrant!$F63,0) -> 0 | N63: =IF(Trafic_Entrant!$C63=N$4,Trafic_Entrant!$G63/0.3,0) -> 0 | O63: =IF(Trafic_Entrant!$C63=O$4,Trafic_Entrant!$G63/0.3,0) -> 2431717.163 | P63: =IF(OR(Trafic_Entrant!$C63=$F$1,Trafic_Entrant!$C63=$F$2,Trafic_Entrant!$C63=$F$3,Trafic_Entrant!$C63=$F$4),Trafic_Entrant!$G63/0.3,0) -> 0 | S63: =CONCATENATE(Organic_by_landing_search!D63,Organic_by_landing_search!A63,Organic_by_landing_search!B63) -> 201804LUguest | T63: =Organic_by_landing_search!E63 -> 28 | W63: =CONCATENATE(Organic_by_landing_PDP!D63,Organic_by_landing_PDP!A63,Organic_by_landing_PDP!B63) -> 201804KRguest | X63: =Organic_by_landing_PDP!E63 -> 2465 | Z63: =CONCATENATE(Organic_by_landing_welcome!D63,Organic_by_landing_welcome!A63,Organic_by_landing_welcome!B63) -> 201804KRguest | AA63: =Organic_by_landing_welcome!E63 -> 1833 | AC63: 201804ITguest | AD63: 15580 | AE63: 7182 | AF63: 2634 | AG63: 16 | AH63: 40 | AI63: 12 | AJ63: 1388.05844 | AK63: 2377.34211 | AL63: 2166.139177 | AO63: =CONCATENATE(Organic_by_landing_category!D63,Organic_by_landing_category!A63,Organic_by_landing_category!B63) -> 201804AUcorporate | AP63: =Organic_by_landing_category!C63 -> /browse_catalogue/cat_l2/004007 | AQ63: Technology | AR63: =Organic_by_landing_category!E63 -> 4 | AT63: 201804MYrep | AX63: 4 | BA63: 4 | BC63: =CONCATENATE(Organic_by_ldg_category_ATC!E59,Organic_by_ldg_category_ATC!C59,Organic_by_ldg_category_ATC!D59) -> 201804FRSMB | BD63: =Organic_by_ldg_category_ATC!B59 -> /browse_catalogue/cat_l4/003008002010 | BE63: Office Supplies | BF63: =Organic_by_ldg_category_ATC!F59 -> 4 | BS63: =CONCATENATE(Organic_landing_category_bounce!E65,Organic_landing_category_bounce!B65,Organic_landing_category_bounce!D65) -> 201804AUguest | BT63: =Organic_landing_category_bounce!C65 -> /browse_catalogue/cat_l2/003003 | BU63: Office Supplies | BV63: =Organic_landing_category_bounce!F65 -> 0 | BW63: =Organic_landing_category_bounce!G65 -> 4 | BZ63: 201804MYcorporate | CD63: 4 | CJ63: 36 | CM63: 4 | CN63: 36 | CP63: =CONCATENATE(Bounce_rate_global!C65:C65,Bounce_rate_global!A65,Bounce_rate_global!B65) -> 201804ITrep | CQ63: =Bounce_rate_global!D65 -> 0 | CR63: =Bounce_rate_global!E65 -> 36 | CT63: =CONCATENATE(Bounce_rate_organic!D65,Bounce_rate_organic!C65,Bounce_rate_organic!B65) -> 201804DAguest | CU63: =Bounce_rate_organic!E65 -> 6175 | CV63: =Bounce_rate_organic!F65 -> 15327 | CX63: =CONCATENATE(Organic_landing_cat_then_order!E64,Organic_landing_cat_then_order!C64,Organic_landing_cat_then_order!B64) -> 201804CZSMB | CY63: =Organic_landing_cat_then_order!D64 -> /browse_catalogue/cat_l3/003002006 | CZ63: Office Supplies | DA63: =Organic_landing_cat_then_order!F64 -> 3 | DC63: 201804THSMB | DE63: 6 | DH63: 15 | DI63: 3 | DJ63: 3 | DK63: 27
A64: =CONCATENATE(General_data!C64,General_data!A64,General_data!B64) -> 201804KRSMB | B64: =General_data!D64 -> 16958 | C64: =General_data!E64 -> 4942 | D64: =General_data!F64/0.3 -> 352815.6111 | G64: =CONCATENATE(Trafic_Entrant!D64,Trafic_Entrant!A64,Trafic_Entrant!B64) -> 201804CHcorporate | H64: =IF(Trafic_Entrant!$C64=H$4,Trafic_Entrant!$E64,0) -> 0 | I64: =IF(Trafic_Entrant!$C64=I$4,Trafic_Entrant!$E64,0) -> 0 | J64: =IF(OR(Trafic_Entrant!$C64=$F$1,Trafic_Entrant!C64=$F$2,Trafic_Entrant!C64=$F$3,Trafic_Entrant!C64=$F$4),Trafic_Entrant!$E64,0) -> 2022 | K64: =IF(Trafic_Entrant!$C64=K$4,Trafic_Entrant!$F64,0) -> 0 | L64: =IF(Trafic_Entrant!$C64=L$4,Trafic_Entrant!$F64,0) -> 0 | M64: =IF(OR(Trafic_Entrant!$C64=$F$1,Trafic_Entrant!C64=$F$2,Trafic_Entrant!C64=$F$3,Trafic_Entrant!C64=$F$4),Trafic_Entrant!$F64,0) -> 725 | N64: =IF(Trafic_Entrant!$C64=N$4,Trafic_Entrant!$G64/0.3,0) -> 0 | O64: =IF(Trafic_Entrant!$C64=O$4,Trafic_Entrant!$G64/0.3,0) -> 0 | P64: =IF(OR(Trafic_Entrant!$C64=$F$1,Trafic_Entrant!$C64=$F$2,Trafic_Entrant!$C64=$F$3,Trafic_Entrant!$C64=$F$4),Trafic_Entrant!$G64/0.3,0) -> 106714.1671 | S64: =CONCATENATE(Organic_by_landing_search!D64,Organic_by_landing_search!A64,Organic_by_landing_search!B64) -> 201804MYSMB | T64: =Organic_by_landing_search!E64 -> 258 | W64: =CONCATENATE(Organic_by_landing_PDP!D64,Organic_by_landing_PDP!A64,Organic_by_landing_PDP!B64) -> 201804LUSMB | X64: =Organic_by_landing_PDP!E64 -> 40 | Z64: =CONCATENATE(Organic_by_landing_welcome!D64,Organic_by_landing_welcome!A64,Organic_by_landing_welcome!B64) -> 201804KRrep | AA64: =Organic_by_landing_welcome!E64 -> 367 | AC64: 201804ITrep | AD64: 20 | AE64: 16 | AF64: 0 | AG64: 16 | AH64: 16 | AI64: 0 | AJ64: 2970.67063 | AK64: 4111.94522 | AL64: 0 | AO64: =CONCATENATE(Organic_by_landing_category!D64,Organic_by_landing_category!A64,Organic_by_landing_category!B64) -> 201804AUcorporate | AP64: =Organic_by_landing_category!C64 -> /browse_catalogue/cat_l2/005001 | AQ64: Furniture | AR64: =Organic_by_landing_category!E64 -> 4 | AT64: 201804NLSMB | AU64: 8 | AV64: 8 | AX64: 76 | AY64: 24 | AZ64: 4 | BA64: 120 | BC64: =CONCATENATE(Organic_by_ldg_category_ATC!E60,Organic_by_ldg_category_ATC!C60,Organic_by_ldg_category_ATC!D60) -> 201804HKSMB | BD64: =Organic_by_ldg_category_ATC!B60 -> /browse_catalogue/cat_l3/001001001 | BE64: Paper & Envelopes | BF64: =Organic_by_ldg_category_ATC!F60 -> 4 | BS64: =CONCATENATE(Organic_landing_category_bounce!E66,Organic_landing_category_bounce!B66,Organic_landing_category_bounce!D66) -> 201804AUguest | BT64: =Organic_landing_category_bounce!C66 -> /browse_catalogue/cat_l2/003006 | BU64: Office Supplies | BV64: =Organic_landing_category_bounce!F66 -> 0 | BW64: =Organic_landing_category_bounce!G66 -> 4 | BZ64: 201804MYrep | CD64: 4 | CJ64: 4 | CM64: 4 | CN64: 4 | CP64: =CONCATENATE(Bounce_rate_global!C66:C66,Bounce_rate_global!A66,Bounce_rate_global!B66) -> 201804KRSMB | CQ64: =Bounce_rate_global!D66 -> 1402 | CR64: =Bounce_rate_global!E66 -> 16958 | CT64: =CONCATENATE(Bounce_rate_organic!D66,Bounce_rate_organic!C66,Bounce_rate_organic!B66) -> 201804DEguest | CU64: =Bounce_rate_organic!E66 -> 7524 | CV64: =Bounce_rate_organic!F66 -> 27012 | CX64: =CONCATENATE(Organic_landing_cat_then_order!E65,Organic_landing_cat_then_order!C65,Organic_landing_cat_then_order!B65) -> 201804CZSMB | CY64: =Organic_landing_cat_then_order!D65 -> /browse_catalogue/cat_l3/003003010 | CZ64: Office Supplies | DA64: =Organic_landing_cat_then_order!F65 -> 3 | DC64: 201804THcorporate | DE64: 3 | DK64: 3
A65: =CONCATENATE(General_data!C65,General_data!A65,General_data!B65) -> 201804KRcorporate | B65: =General_data!D65 -> 7210 | C65: =General_data!E65 -> 2397 | D65: =General_data!F65/0.3 -> 205903.8393 | G65: =CONCATENATE(Trafic_Entrant!D65,Trafic_Entrant!A65,Trafic_Entrant!B65) -> 201804CHcorporate | H65: =IF(Trafic_Entrant!$C65=H$4,Trafic_Entrant!$E65,0) -> 14110 | I65: =IF(Trafic_Entrant!$C65=I$4,Trafic_Entrant!$E65,0) -> 0 | J65: =IF(OR(Trafic_Entrant!$C65=$F$1,Trafic_Entrant!C65=$F$2,Trafic_Entrant!C65=$F$3,Trafic_Entrant!C65=$F$4),Trafic_Entrant!$E65,0) -> 0 | K65: =IF(Trafic_Entrant!$C65=K$4,Trafic_Entrant!$F65,0) -> 5800 | L65: =IF(Trafic_Entrant!$C65=L$4,Trafic_Entrant!$F65,0) -> 0 | M65: =IF(OR(Trafic_Entrant!$C65=$F$1,Trafic_Entrant!C65=$F$2,Trafic_Entrant!C65=$F$3,Trafic_Entrant!C65=$F$4),Trafic_Entrant!$F65,0) -> 0 | N65: =IF(Trafic_Entrant!$C65=N$4,Trafic_Entrant!$G65/0.3,0) -> 1144175.084 | O65: =IF(Trafic_Entrant!$C65=O$4,Trafic_Entrant!$G65/0.3,0) -> 0 | P65: =IF(OR(Trafic_Entrant!$C65=$F$1,Trafic_Entrant!$C65=$F$2,Trafic_Entrant!$C65=$F$3,Trafic_Entrant!$C65=$F$4),Trafic_Entrant!$G65/0.3,0) -> 0 | S65: =CONCATENATE(Organic_by_landing_search!D65,Organic_by_landing_search!A65,Organic_by_landing_search!B65) -> 201804MYcorporate | T65: =Organic_by_landing_search!E65 -> 4 | W65: =CONCATENATE(Organic_by_landing_PDP!D65,Organic_by_landing_PDP!A65,Organic_by_landing_PDP!B65) -> 201804LUcorporate | X65: =Organic_by_landing_PDP!E65 -> 12 | Z65: =CONCATENATE(Organic_by_landing_welcome!D65,Organic_by_landing_welcome!A65,Organic_by_landing_welcome!B65) -> 201804LUSMB | AA65: =Organic_by_landing_welcome!E65 -> 1104 | AC65: 201804KRSMB | AD65: 5518 | AE65: 9277 | AF65: 2163 | AG65: 1635 | AH65: 2610 | AI65: 697 | AJ65: 124995.8412 | AK65: 182543.3944 | AL65: 45276.3754 | AO65: =CONCATENATE(Organic_by_landing_category!D65,Organic_by_landing_category!A65,Organic_by_landing_category!B65) -> 201804AUcorporate | AP65: =Organic_by_landing_category!C65 -> /browse_catalogue/cat_l2/005004 | AQ65: Furniture | AR65: =Organic_by_landing_category!E65 -> 4 | AT65: 201804NLcorporate | AU65: 16 | AV65: 4 | AX65: 92 | AY65: 16 | AZ65: 12 | BA65: 140 | BC65: =CONCATENATE(Organic_by_ldg_category_ATC!E61,Organic_by_ldg_category_ATC!C61,Organic_by_ldg_category_ATC!D61) -> 201804HKSMB | BD65: =Organic_by_ldg_category_ATC!B61 -> /browse_catalogue/cat_l3/001007002 | BE65: Paper & Envelopes | BF65: =Organic_by_ldg_category_ATC!F61 -> 4 | BS65: =CONCATENATE(Organic_landing_category_bounce!E67,Organic_landing_category_bounce!B67,Organic_landing_category_bounce!D67) -> 201804AUcorporate | BT65: =Organic_landing_category_bounce!C67 -> /browse_catalogue/cat_l2/003008 | BU65: Office Supplies | BV65: =Organic_landing_category_bounce!F67 -> 0 | BW65: =Organic_landing_category_bounce!G67 -> 4 | BZ65: 201804NLSMB | CA65: 4 | CB65: 0 | CD65: 8 | CE65: 4 | CF65: 0 | CG65: 8 | CH65: 8 | CJ65: 76 | CK65: 24 | CL65: 4 | CM65: 16 | CN65: 120 | CP65: =CONCATENATE(Bounce_rate_global!C67:C67,Bounce_rate_global!A67,Bounce_rate_global!B67) -> 201804KRcorporate | CQ65: =Bounce_rate_global!D67 -> 785 | CR65: =Bounce_rate_global!E67 -> 7210 | CT65: =CONCATENATE(Bounce_rate_organic!D67,Bounce_rate_organic!C67,Bounce_rate_organic!B67) -> 201804ENguest | CU65: =Bounce_rate_organic!E67 -> 10360 | CV65: =Bounce_rate_organic!F67 -> 42085 | CX65: =CONCATENATE(Organic_landing_cat_then_order!E66,Organic_landing_cat_then_order!C66,Organic_landing_cat_then_order!B66) -> 201804CZcorporate | CY65: =Organic_landing_cat_then_order!D66 -> /browse_catalogue/cat_l1/006 | CZ65: Facilities Supplies | DA65: =Organic_landing_cat_then_order!F66 -> 3 | DC65: Total général | DD65: 0 | DE65: 251 | DF65: 66 | DG65: 33 | DH65: 2030 | DI65: 192 | DJ65: 57 | DK65: 2629
A66: =CONCATENATE(General_data!C66,General_data!A66,General_data!B66) -> 201804KRguest | B66: =General_data!D66 -> 9667 | C66: =General_data!E66 -> 28 | D66: =General_data!F66/0.3 -> 1895.112307 | G66: =CONCATENATE(Trafic_Entrant!D66,Trafic_Entrant!A66,Trafic_Entrant!B66) -> 201804CHcorporate | H66: =IF(Trafic_Entrant!$C66=H$4,Trafic_Entrant!$E66,0) -> 0 | I66: =IF(Trafic_Entrant!$C66=I$4,Trafic_Entrant!$E66,0) -> 0 | J66: =IF(OR(Trafic_Entrant!$C66=$F$1,Trafic_Entrant!C66=$F$2,Trafic_Entrant!C66=$F$3,Trafic_Entrant!C66=$F$4),Trafic_Entrant!$E66,0) -> 3569 | K66: =IF(Trafic_Entrant!$C66=K$4,Trafic_Entrant!$F66,0) -> 0 | L66: =IF(Trafic_Entrant!$C66=L$4,Trafic_Entrant!$F66,0) -> 0 | M66: =IF(OR(Trafic_Entrant!$C66=$F$1,Trafic_Entrant!C66=$F$2,Trafic_Entrant!C66=$F$3,Trafic_Entrant!C66=$F$4),Trafic_Entrant!$F66,0) -> 1643 | N66: =IF(Trafic_Entrant!$C66=N$4,Trafic_Entrant!$G66/0.3,0) -> 0 | O66: =IF(Trafic_Entrant!$C66=O$4,Trafic_Entrant!$G66/0.3,0) -> 0 | P66: =IF(OR(Trafic_Entrant!$C66=$F$1,Trafic_Entrant!$C66=$F$2,Trafic_Entrant!$C66=$F$3,Trafic_Entrant!$C66=$F$4),Trafic_Entrant!$G66/0.3,0) -> 167917.6543 | S66: =CONCATENATE(Organic_by_landing_search!D66,Organic_by_landing_search!A66,Organic_by_landing_search!B66) -> 201804MYguest | T66: =Organic_by_landing_search!E66 -> 28 | W66: =CONCATENATE(Organic_by_landing_PDP!D66,Organic_by_landing_PDP!A66,Organic_by_landing_PDP!B66) -> 201804LUguest | X66: =Organic_by_landing_PDP!E66 -> 2006 | Z66: =CONCATENATE(Organic_by_landing_welcome!D66,Organic_by_landing_welcome!A66,Organic_by_landing_welcome!B66) -> 201804LUcorporate | AA66: =Organic_by_landing_welcome!E66 -> 552 | AC66: 201804KRcorporate | AD66: 2099 | AE66: 4753 | AF66: 358 | AG66: 504 | AH66: 1631 | AI66: 262 | AJ66: 37540.75736 | AK66: 125484.3653 | AL66: 42878.71665 | AO66: =CONCATENATE(Organic_by_landing_category!D66,Organic_by_landing_category!A66,Organic_by_landing_category!B66) -> 201804AUcorporate | AP66: =Organic_by_landing_category!C66 -> /browse_catalogue/cat_l3/001001001 | AQ66: Paper & Envelopes | AR66: =Organic_by_landing_category!E66 -> 4 | AT66: 201804NLguest | AU66: 52 | AV66: 76 | AW66: 8 | AX66: 757 | AY66: 36 | AZ66: 88 | BA66: 1017 | BC66: =CONCATENATE(Organic_by_ldg_category_ATC!E62,Organic_by_ldg_category_ATC!C62,Organic_by_ldg_category_ATC!D62) -> 201804HKSMB | BD66: =Organic_by_ldg_category_ATC!B62 -> /browse_catalogue/cat_l3/006001005 | BE66: Facilities Supplies | BF66: =Organic_by_ldg_category_ATC!F62 -> 4 | BS66: =CONCATENATE(Organic_landing_category_bounce!E68,Organic_landing_category_bounce!B68,Organic_landing_category_bounce!D68) -> 201804AUguest | BT66: =Organic_landing_category_bounce!C68 -> /browse_catalogue/cat_l2/003010 | BU66: Office Supplies | BV66: =Organic_landing_category_bounce!F68 -> 0 | BW66: =Organic_landing_category_bounce!G68 -> 4 | BZ66: 201804NLguest | CA66: 28 | CB66: 40 | CC66: 4 | CD66: 208 | CE66: 8 | CF66: 36 | CG66: 52 | CH66: 76 | CI66: 8 | CJ66: 757 | CK66: 36 | CL66: 88 | CM66: 324 | CN66: 1017 | CP66: =CONCATENATE(Bounce_rate_global!C68:C68,Bounce_rate_global!A68,Bounce_rate_global!B68) -> 201804KRguest | CQ66: =Bounce_rate_global!D68 -> 5833 | CR66: =Bounce_rate_global!E68 -> 9667 | CT66: =CONCATENATE(Bounce_rate_organic!D68,Bounce_rate_organic!C68,Bounce_rate_organic!B68) -> 201804FIguest | CU66: =Bounce_rate_organic!E68 -> 3657 | CV66: =Bounce_rate_organic!F68 -> 8056 | CX66: =CONCATENATE(Organic_landing_cat_then_order!E67,Organic_landing_cat_then_order!C67,Organic_landing_cat_then_order!B67) -> 201804DASMB | CY66: =Organic_landing_cat_then_order!D67 -> /browse_catalogue/cat_l3/003004001 | CZ66: Office Supplies | DA66: =Organic_landing_cat_then_order!F67 -> 3
A67: =CONCATENATE(General_data!C67,General_data!A67,General_data!B67) -> 201804KRrep | B67: =General_data!D67 -> 1764 | C67: =General_data!E67 -> 1216 | D67: =General_data!F67/0.3 -> 123094.4071 | G67: =CONCATENATE(Trafic_Entrant!D67,Trafic_Entrant!A67,Trafic_Entrant!B67) -> 201804CHguest | H67: =IF(Trafic_Entrant!$C67=H$4,Trafic_Entrant!$E67,0) -> 0 | I67: =IF(Trafic_Entrant!$C67=I$4,Trafic_Entrant!$E67,0) -> 0 | J67: =IF(OR(Trafic_Entrant!$C67=$F$1,Trafic_Entrant!C67=$F$2,Trafic_Entrant!C67=$F$3,Trafic_Entrant!C67=$F$4),Trafic_Entrant!$E67,0) -> 4 | K67: =IF(Trafic_Entrant!$C67=K$4,Trafic_Entrant!$F67,0) -> 0 | L67: =IF(Trafic_Entrant!$C67=L$4,Trafic_Entrant!$F67,0) -> 0 | M67: =IF(OR(Trafic_Entrant!$C67=$F$1,Trafic_Entrant!C67=$F$2,Trafic_Entrant!C67=$F$3,Trafic_Entrant!C67=$F$4),Trafic_Entrant!$F67,0) -> 0 | N67: =IF(Trafic_Entrant!$C67=N$4,Trafic_Entrant!$G67/0.3,0) -> 0 | O67: =IF(Trafic_Entrant!$C67=O$4,Trafic_Entrant!$G67/0.3,0) -> 0 | P67: =IF(OR(Trafic_Entrant!$C67=$F$1,Trafic_Entrant!$C67=$F$2,Trafic_Entrant!$C67=$F$3,Trafic_Entrant!$C67=$F$4),Trafic_Entrant!$G67/0.3,0) -> 0 | S67: =CONCATENATE(Organic_by_landing_search!D67,Organic_by_landing_search!A67,Organic_by_landing_search!B67) -> 201804NLSMB | T67: =Organic_by_landing_search!E67 -> 97 | W67: =CONCATENATE(Organic_by_landing_PDP!D67,Organic_by_landing_PDP!A67,Organic_by_landing_PDP!B67) -> 201804LUrep | X67: =Organic_by_landing_PDP!E67 -> 4 | Z67: =CONCATENATE(Organic_by_landing_welcome!D67,Organic_by_landing_welcome!A67,Organic_by_landing_welcome!B67) -> 201804LUguest | AA67: =Organic_by_landing_welcome!E67 -> 1080 | AC67: 201804KRguest | AD67: 5776 | AE67: 3416 | AF67: 475 | AG67: 8 | AH67: 20 | AI67: 0 | AJ67: 355.99479 | AK67: 1539.117517 | AL67: 0 | AO67: =CONCATENATE(Organic_by_landing_category!D67,Organic_by_landing_category!A67,Organic_by_landing_category!B67) -> 201804AUcorporate | AP67: =Organic_by_landing_category!C67 -> /browse_catalogue/cat_l3/001002001 | AQ67: Paper & Envelopes | AR67: =Organic_by_landing_category!E67 -> 20 | AT67: 201804NOSMB | AU67: 12 | AV67: 4 | AW67: 4 | AX67: 24 | AZ67: 4 | BA67: 48 | BC67: =CONCATENATE(Organic_by_ldg_category_ATC!E63,Organic_by_ldg_category_ATC!C63,Organic_by_ldg_category_ATC!D63) -> 201804HUSMB | BD67: =Organic_by_ldg_category_ATC!B63 -> /browse_catalogue/cat_l3/001001001 | BE67: Paper & Envelopes | BF67: =Organic_by_ldg_category_ATC!F63 -> 4 | BS67: =CONCATENATE(Organic_landing_category_bounce!E69,Organic_landing_category_bounce!B69,Organic_landing_category_bounce!D69) -> 201804AUguest | BT67: =Organic_landing_category_bounce!C69 -> /browse_catalogue/cat_l2/004006 | BU67: Technology | BV67: =Organic_landing_category_bounce!F69 -> 4 | BW67: =Organic_landing_category_bounce!G69 -> 4 | BZ67: 201804NLcorporate | CA67: 8 | CB67: 4 | CD67: 4 | CE67: 0 | CF67: 0 | CG67: 16 | CH67: 4 | CJ67: 92 | CK67: 16 | CL67: 12 | CM67: 16 | CN67: 140 | CP67: =CONCATENATE(Bounce_rate_global!C69:C69,Bounce_rate_global!A69,Bounce_rate_global!B69) -> 201804KRrep | CQ67: =Bounce_rate_global!D69 -> 157 | CR67: =Bounce_rate_global!E69 -> 1764 | CT67: =CONCATENATE(Bounce_rate_organic!D69,Bounce_rate_organic!C69,Bounce_rate_organic!B69) -> 201804FRguest | CU67: =Bounce_rate_organic!E69 -> 18529 | CV67: =Bounce_rate_organic!F69 -> 63502 | CX67: =CONCATENATE(Organic_landing_cat_then_order!E68,Organic_landing_cat_then_order!C68,Organic_landing_cat_then_order!B68) -> 201804DASMB | CY67: =Organic_landing_cat_then_order!D68 -> /browse_catalogue/cat_l3/005004002 | CZ67: Furniture | DA67: =Organic_landing_cat_then_order!F68 -> 3
A68: =CONCATENATE(General_data!C68,General_data!A68,General_data!B68) -> 201804LUSMB | B68: =General_data!D68 -> 2904 | C68: =General_data!E68 -> 1096 | D68: =General_data!F68/0.3 -> 230969.5407 | G68: =CONCATENATE(Trafic_Entrant!D68,Trafic_Entrant!A68,Trafic_Entrant!B68) -> 201804CHguest | H68: =IF(Trafic_Entrant!$C68=H$4,Trafic_Entrant!$E68,0) -> 0 | I68: =IF(Trafic_Entrant!$C68=I$4,Trafic_Entrant!$E68,0) -> 11750 | J68: =IF(OR(Trafic_Entrant!$C68=$F$1,Trafic_Entrant!C68=$F$2,Trafic_Entrant!C68=$F$3,Trafic_Entrant!C68=$F$4),Trafic_Entrant!$E68,0) -> 0 | K68: =IF(Trafic_Entrant!$C68=K$4,Trafic_Entrant!$F68,0) -> 0 | L68: =IF(Trafic_Entrant!$C68=L$4,Trafic_Entrant!$F68,0) -> 68 | M68: =IF(OR(Trafic_Entrant!$C68=$F$1,Trafic_Entrant!C68=$F$2,Trafic_Entrant!C68=$F$3,Trafic_Entrant!C68=$F$4),Trafic_Entrant!$F68,0) -> 0 | N68: =IF(Trafic_Entrant!$C68=N$4,Trafic_Entrant!$G68/0.3,0) -> 0 | O68: =IF(Trafic_Entrant!$C68=O$4,Trafic_Entrant!$G68/0.3,0) -> 18255.98008 | P68: =IF(OR(Trafic_Entrant!$C68=$F$1,Trafic_Entrant!$C68=$F$2,Trafic_Entrant!$C68=$F$3,Trafic_Entrant!$C68=$F$4),Trafic_Entrant!$G68/0.3,0) -> 0 | S68: =CONCATENATE(Organic_by_landing_search!D68,Organic_by_landing_search!A68,Organic_by_landing_search!B68) -> 201804NLcorporate | T68: =Organic_by_landing_search!E68 -> 113 | W68: =CONCATENATE(Organic_by_landing_PDP!D68,Organic_by_landing_PDP!A68,Organic_by_landing_PDP!B68) -> 201804MYSMB | X68: =Organic_by_landing_PDP!E68 -> 181 | Z68: =CONCATENATE(Organic_by_landing_welcome!D68,Organic_by_landing_welcome!A68,Organic_by_landing_welcome!B68) -> 201804MYSMB | AA68: =Organic_by_landing_welcome!E68 -> 2389 | AC68: 201804KRrep | AD68: 419 | AE68: 1269 | AF68: 76 | AG68: 222 | AH68: 951 | AI68: 44 | AJ68: 16215.10411 | AK68: 95403.26376 | AL68: 11476.03925 | AO68: =CONCATENATE(Organic_by_landing_category!D68,Organic_by_landing_category!A68,Organic_by_landing_category!B68) -> 201804AUcorporate | AP68: =Organic_by_landing_category!C68 -> /browse_catalogue/cat_l3/001007002 | AQ68: Paper & Envelopes | AR68: =Organic_by_landing_category!E68 -> 4 | AT68: 201804NOcorporate | AU68: 12 | AV68: 4 | AX68: 8 | AY68: 4 | AZ68: 4 | BA68: 32 | BC68: =CONCATENATE(Organic_by_ldg_category_ATC!E64,Organic_by_ldg_category_ATC!C64,Organic_by_ldg_category_ATC!D64) -> 201804IRSMB | BD68: =Organic_by_ldg_category_ATC!B64 -> /browse_catalogue/cat_l1/003 | BE68: Office Supplies | BF68: =Organic_by_ldg_category_ATC!F64 -> 8 | BS68: =CONCATENATE(Organic_landing_category_bounce!E70,Organic_landing_category_bounce!B70,Organic_landing_category_bounce!D70) -> 201804AUcorporate | BT68: =Organic_landing_category_bounce!C70 -> /browse_catalogue/cat_l2/004007 | BU68: Technology | BV68: =Organic_landing_category_bounce!F70 -> 0 | BW68: =Organic_landing_category_bounce!G70 -> 4 | BZ68: 201804NOSMB | CA68: 4 | CB68: 4 | CC68: 0 | CD68: 0 | CF68: 0 | CG68: 12 | CH68: 4 | CI68: 4 | CJ68: 24 | CL68: 4 | CM68: 8 | CN68: 48 | CP68: =CONCATENATE(Bounce_rate_global!C70:C70,Bounce_rate_global!A70,Bounce_rate_global!B70) -> 201804LUSMB | CQ68: =Bounce_rate_global!D70 -> 375 | CR68: =Bounce_rate_global!E70 -> 2904 | CT68: =CONCATENATE(Bounce_rate_organic!D70,Bounce_rate_organic!C70,Bounce_rate_organic!B70) -> 201804HKguest | CU68: =Bounce_rate_organic!E70 -> 5704 | CV68: =Bounce_rate_organic!F70 -> 10288 | CX68: =CONCATENATE(Organic_landing_cat_then_order!E69,Organic_landing_cat_then_order!C69,Organic_landing_cat_then_order!B69) -> 201804DASMB | CY68: =Organic_landing_cat_then_order!D69 -> /browse_catalogue/cat_l3/006006006 | CZ68: Facilities Supplies | DA68: =Organic_landing_cat_then_order!F69 -> 3
A69: =CONCATENATE(General_data!C69,General_data!A69,General_data!B69) -> 201804LUcorporate | B69: =General_data!D69 -> 1942 | C69: =General_data!E69 -> 765 | D69: =General_data!F69/0.3 -> 161452.357 | G69: =CONCATENATE(Trafic_Entrant!D69,Trafic_Entrant!A69,Trafic_Entrant!B69) -> 201804CHguest | H69: =IF(Trafic_Entrant!$C69=H$4,Trafic_Entrant!$E69,0) -> 0 | I69: =IF(Trafic_Entrant!$C69=I$4,Trafic_Entrant!$E69,0) -> 0 | J69: =IF(OR(Trafic_Entrant!$C69=$F$1,Trafic_Entrant!C69=$F$2,Trafic_Entrant!C69=$F$3,Trafic_Entrant!C69=$F$4),Trafic_Entrant!$E69,0) -> 238 | K69: =IF(Trafic_Entrant!$C69=K$4,Trafic_Entrant!$F69,0) -> 0 | L69: =IF(Trafic_Entrant!$C69=L$4,Trafic_Entrant!$F69,0) -> 0 | M69: =IF(OR(Trafic_Entrant!$C69=$F$1,Trafic_Entrant!C69=$F$2,Trafic_Entrant!C69=$F$3,Trafic_Entrant!C69=$F$4),Trafic_Entrant!$F69,0) -> 0 | N69: =IF(Trafic_Entrant!$C69=N$4,Trafic_Entrant!$G69/0.3,0) -> 0 | O69: =IF(Trafic_Entrant!$C69=O$4,Trafic_Entrant!$G69/0.3,0) -> 0 | P69: =IF(OR(Trafic_Entrant!$C69=$F$1,Trafic_Entrant!$C69=$F$2,Trafic_Entrant!$C69=$F$3,Trafic_Entrant!$C69=$F$4),Trafic_Entrant!$G69/0.3,0) -> 0 | S69: =CONCATENATE(Organic_by_landing_search!D69,Organic_by_landing_search!A69,Organic_by_landing_search!B69) -> 201804NLguest | T69: =Organic_by_landing_search!E69 -> 101 | W69: =CONCATENATE(Organic_by_landing_PDP!D69,Organic_by_landing_PDP!A69,Organic_by_landing_PDP!B69) -> 201804MYcorporate | X69: =Organic_by_landing_PDP!E69 -> 24 | Z69: =CONCATENATE(Organic_by_landing_welcome!D69,Organic_by_landing_welcome!A69,Organic_by_landing_welcome!B69) -> 201804MYcorporate | AA69: =Organic_by_landing_welcome!E69 -> 89 | AC69: 201804LUSMB | AD69: 1402 | AE69: 1390 | AF69: 113 | AG69: 459 | AH69: 616 | AI69: 20 | AJ69: 111602.9598 | AK69: 113633.4887 | AL69: 5733.09221 | AO69: =CONCATENATE(Organic_by_landing_category!D69,Organic_by_landing_category!A69,Organic_by_landing_category!B69) -> 201804AUcorporate | AP69: =Organic_by_landing_category!C69 -> /browse_catalogue/cat_l3/002002001 | AQ69: Ink & Toners | AR69: =Organic_by_landing_category!E69 -> 4 | AT69: 201804NOguest | AU69: 156 | AV69: 112 | AW69: 52 | AX69: 280 | AY69: 56 | AZ69: 52 | BA69: 708 | BC69: =CONCATENATE(Organic_by_ldg_category_ATC!E65,Organic_by_ldg_category_ATC!C65,Organic_by_ldg_category_ATC!D65) -> 201804IRSMB | BD69: =Organic_by_ldg_category_ATC!B65 -> /browse_catalogue/cat_l3/001001001 | BE69: Paper & Envelopes | BF69: =Organic_by_ldg_category_ATC!F65 -> 4 | BS69: =CONCATENATE(Organic_landing_category_bounce!E71,Organic_landing_category_bounce!B71,Organic_landing_category_bounce!D71) -> 201804AUcorporate | BT69: =Organic_landing_category_bounce!C71 -> /browse_catalogue/cat_l2/005001 | BU69: Furniture | BV69: =Organic_landing_category_bounce!F71 -> 0 | BW69: =Organic_landing_category_bounce!G71 -> 4 | BZ69: 201804NOguest | CA69: 72 | CB69: 60 | CC69: 24 | CD69: 100 | CE69: 28 | CF69: 20 | CG69: 156 | CH69: 112 | CI69: 52 | CJ69: 280 | CK69: 56 | CL69: 52 | CM69: 304 | CN69: 708 | CP69: =CONCATENATE(Bounce_rate_global!C71:C71,Bounce_rate_global!A71,Bounce_rate_global!B71) -> 201804LUcorporate | CQ69: =Bounce_rate_global!D71 -> 165 | CR69: =Bounce_rate_global!E71 -> 1942 | CT69: =CONCATENATE(Bounce_rate_organic!D71,Bounce_rate_organic!C71,Bounce_rate_organic!B71) -> 201804HUguest | CU69: =Bounce_rate_organic!E71 -> 1724 | CV69: =Bounce_rate_organic!F71 -> 3919 | CX69: =CONCATENATE(Organic_landing_cat_then_order!E70,Organic_landing_cat_then_order!C70,Organic_landing_cat_then_order!B70) -> 201804DAcorporate | CY69: =Organic_landing_cat_then_order!D70 -> /browse_catalogue/cat_l1/003 | CZ69: Office Supplies | DA69: =Organic_landing_cat_then_order!F70 -> 17
A70: =CONCATENATE(General_data!C70,General_data!A70,General_data!B70) -> 201804LUguest | B70: =General_data!D70 -> 4387 | C70: =General_data!E70 -> 20 | D70: =General_data!F70/0.3 -> 1715.67138 | G70: =CONCATENATE(Trafic_Entrant!D70,Trafic_Entrant!A70,Trafic_Entrant!B70) -> 201804CHguest | H70: =IF(Trafic_Entrant!$C70=H$4,Trafic_Entrant!$E70,0) -> 21864 | I70: =IF(Trafic_Entrant!$C70=I$4,Trafic_Entrant!$E70,0) -> 0 | J70: =IF(OR(Trafic_Entrant!$C70=$F$1,Trafic_Entrant!C70=$F$2,Trafic_Entrant!C70=$F$3,Trafic_Entrant!C70=$F$4),Trafic_Entrant!$E70,0) -> 0 | K70: =IF(Trafic_Entrant!$C70=K$4,Trafic_Entrant!$F70,0) -> 44 | L70: =IF(Trafic_Entrant!$C70=L$4,Trafic_Entrant!$F70,0) -> 0 | M70: =IF(OR(Trafic_Entrant!$C70=$F$1,Trafic_Entrant!C70=$F$2,Trafic_Entrant!C70=$F$3,Trafic_Entrant!C70=$F$4),Trafic_Entrant!$F70,0) -> 0 | N70: =IF(Trafic_Entrant!$C70=N$4,Trafic_Entrant!$G70/0.3,0) -> 6706.207337 | O70: =IF(Trafic_Entrant!$C70=O$4,Trafic_Entrant!$G70/0.3,0) -> 0 | P70: =IF(OR(Trafic_Entrant!$C70=$F$1,Trafic_Entrant!$C70=$F$2,Trafic_Entrant!$C70=$F$3,Trafic_Entrant!$C70=$F$4),Trafic_Entrant!$G70/0.3,0) -> 0 | S70: =CONCATENATE(Organic_by_landing_search!D70,Organic_by_landing_search!A70,Organic_by_landing_search!B70) -> 201804NOSMB | T70: =Organic_by_landing_search!E70 -> 197 | W70: =CONCATENATE(Organic_by_landing_PDP!D70,Organic_by_landing_PDP!A70,Organic_by_landing_PDP!B70) -> 201804MYguest | X70: =Organic_by_landing_PDP!E70 -> 1893 | Z70: =CONCATENATE(Organic_by_landing_welcome!D70,Organic_by_landing_welcome!A70,Organic_by_landing_welcome!B70) -> 201804MYguest | AA70: =Organic_by_landing_welcome!E70 -> 504 | AC70: 201804LUcorporate | AD70: 685 | AE70: 1047 | AF70: 209 | AG70: 185 | AH70: 504 | AI70: 76 | AJ70: 64897.84121 | AK70: 76516.41936 | AL70: 20038.09648 | AO70: =CONCATENATE(Organic_by_landing_category!D70,Organic_by_landing_category!A70,Organic_by_landing_category!B70) -> 201804AUcorporate | AP70: =Organic_by_landing_category!C70 -> /browse_catalogue/cat_l3/003001002 | AQ70: =IF(COUNTIF(AP70,"*/001*"),"Paper & Envelopes",IF(COUNTIF(AP70,"*/002*"),"Ink & Toners",IF(COUNTIF(AP70,"*/003*"),"Office Supplies",IF(COUNTIF(AP70,"*/004*"),"Technology",IF(COUNTIF(AP70,"*/005*"),"Furniture",IF(COUNTIF(AP70,"*/006*"),"Facilities Supplies",IF(COUNTIF(AP70,"*/007*"),"Category Specefics",IF(COUNTIF(AP70,"*/008*"),"Nespresso",0)))))))) -> Office Supplies | AR70: =Organic_by_landing_category!E70 -> 4 | AT70: 201804NOrep | AX70: 4 | AZ70: 8 | BA70: 12 | BC70: =CONCATENATE(Organic_by_ldg_category_ATC!E66,Organic_by_ldg_category_ATC!C66,Organic_by_ldg_category_ATC!D66) -> 201804ITSMB | BD70: =Organic_by_ldg_category_ATC!B66 -> /browse_catalogue/cat_l3/003003004 | BE70: Office Supplies | BF70: =Organic_by_ldg_category_ATC!F66 -> 4 | BS70: =CONCATENATE(Organic_landing_category_bounce!E72,Organic_landing_category_bounce!B72,Organic_landing_category_bounce!D72) -> 201804AUguest | BT70: =Organic_landing_category_bounce!C72 -> /browse_catalogue/cat_l2/005001 | BU70: Furniture | BV70: =Organic_landing_category_bounce!F72 -> 20 | BW70: =Organic_landing_category_bounce!G72 -> 40 | BZ70: 201804NOcorporate | CA70: 4 | CB70: 0 | CD70: 4 | CE70: 0 | CF70: 0 | CG70: 12 | CH70: 4 | CJ70: 8 | CK70: 4 | CL70: 4 | CM70: 8 | CN70: 32 | CP70: =CONCATENATE(Bounce_rate_global!C72:C72,Bounce_rate_global!A72,Bounce_rate_global!B72) -> 201804LUguest | CQ70: =Bounce_rate_global!D72 -> 2002 | CR70: =Bounce_rate_global!E72 -> 4387 | CT70: =CONCATENATE(Bounce_rate_organic!D72,Bounce_rate_organic!C72,Bounce_rate_organic!B72) -> 201804IRguest | CU70: =Bounce_rate_organic!E72 -> 2526 | CV70: =Bounce_rate_organic!F72 -> 6457 | CX70: =CONCATENATE(Organic_landing_cat_then_order!E71,Organic_landing_cat_then_order!C71,Organic_landing_cat_then_order!B71) -> 201804DAcorporate | CY70: =Organic_landing_cat_then_order!D71 -> /browse_catalogue/cat_l3/001002001 | CZ70: Paper & Envelopes | DA70: =Organic_landing_cat_then_order!F71 -> 3
A71: =CONCATENATE(General_data!C71,General_data!A71,General_data!B71) -> 201804LUrep | B71: =General_data!D71 -> 4 | C71: =General_data!E71 -> 0 | D71: =General_data!F71/0.3 -> 0 | G71: =CONCATENATE(Trafic_Entrant!D71,Trafic_Entrant!A71,Trafic_Entrant!B71) -> 201804CHguest | H71: =IF(Trafic_Entrant!$C71=H$4,Trafic_Entrant!$E71,0) -> 0 | I71: =IF(Trafic_Entrant!$C71=I$4,Trafic_Entrant!$E71,0) -> 0 | J71: =IF(OR(Trafic_Entrant!$C71=$F$1,Trafic_Entrant!C71=$F$2,Trafic_Entrant!C71=$F$3,Trafic_Entrant!C71=$F$4),Trafic_Entrant!$E71,0) -> 1003 | K71: =IF(Trafic_Entrant!$C71=K$4,Trafic_Entrant!$F71,0) -> 0 | L71: =IF(Trafic_Entrant!$C71=L$4,Trafic_Entrant!$F71,0) -> 0 | M71: =IF(OR(Trafic_Entrant!$C71=$F$1,Trafic_Entrant!C71=$F$2,Trafic_Entrant!C71=$F$3,Trafic_Entrant!C71=$F$4),Trafic_Entrant!$F71,0) -> 0 | N71: =IF(Trafic_Entrant!$C71=N$4,Trafic_Entrant!$G71/0.3,0) -> 0 | O71: =IF(Trafic_Entrant!$C71=O$4,Trafic_Entrant!$G71/0.3,0) -> 0 | P71: =IF(OR(Trafic_Entrant!$C71=$F$1,Trafic_Entrant!$C71=$F$2,Trafic_Entrant!$C71=$F$3,Trafic_Entrant!$C71=$F$4),Trafic_Entrant!$G71/0.3,0) -> 0 | S71: =CONCATENATE(Organic_by_landing_search!D71,Organic_by_landing_search!A71,Organic_by_landing_search!B71) -> 201804NOcorporate | T71: =Organic_by_landing_search!E71 -> 89 | W71: =CONCATENATE(Organic_by_landing_PDP!D71,Organic_by_landing_PDP!A71,Organic_by_landing_PDP!B71) -> 201804MYrep | X71: =Organic_by_landing_PDP!E71 -> 8 | Z71: =CONCATENATE(Organic_by_landing_welcome!D71,Organic_by_landing_welcome!A71,Organic_by_landing_welcome!B71) -> 201804MYrep | AA71: =Organic_by_landing_welcome!E71 -> 302 | AC71: 201804LUguest | AD71: 3657 | AE71: 608 | AF71: 120 | AG71: 4 | AH71: 0 | AI71: 16 | AJ71: 1042.856443 | AK71: 0 | AL71: 672.81494 | AO71: =CONCATENATE(Organic_by_landing_category!D71,Organic_by_landing_category!A71,Organic_by_landing_category!B71) -> 201804AUcorporate | AP71: =Organic_by_landing_category!C71 -> /browse_catalogue/cat_l3/003001004 | AQ71: Office Supplies | AR71: =Organic_by_landing_category!E71 -> 4 | AT71: 201804PLSMB | AU71: 44 | AV71: 16 | AW71: 8 | AX71: 213 | AY71: 24 | AZ71: 8 | BA71: 313 | BC71: =CONCATENATE(Organic_by_ldg_category_ATC!E67,Organic_by_ldg_category_ATC!C67,Organic_by_ldg_category_ATC!D67) -> 201804KRSMB | BD71: =Organic_by_ldg_category_ATC!B67 -> /browse_catalogue/cat_l3/003002001 | BE71: Office Supplies | BF71: =Organic_by_ldg_category_ATC!F67 -> 4 | BS71: =CONCATENATE(Organic_landing_category_bounce!E73,Organic_landing_category_bounce!B73,Organic_landing_category_bounce!D73) -> 201804AUguest | BT71: =Organic_landing_category_bounce!C73 -> /browse_catalogue/cat_l2/005002 | BU71: =IF(COUNTIF(BT71,"*/001*"),"Paper & Envelopes",IF(COUNTIF(BT71,"*/002*"),"Ink & Toners",IF(COUNTIF(BT71,"*/003*"),"Office Supplies",IF(COUNTIF(BT71,"*/004*"),"Technology",IF(COUNTIF(BT71,"*/005*"),"Furniture",IF(COUNTIF(BT71,"*/006*"),"Facilities Supplies",IF(COUNTIF(BT71,"*/007*"),"Category Specefics",IF(COUNTIF(BT71,"*/008*"),"Nespresso",0)))))))) -> Furniture | BV71: =Organic_landing_category_bounce!F73 -> 4 | BW71: =Organic_landing_category_bounce!G73 -> 8 | BZ71: 201804NOrep | CD71: 0 | CF71: 0 | CJ71: 4 | CL71: 8 | CM71: 0 | CN71: 12 | CP71: =CONCATENATE(Bounce_rate_global!C73:C73,Bounce_rate_global!A73,Bounce_rate_global!B73) -> 201804LUrep | CQ71: =Bounce_rate_global!D73 -> 0 | CR71: =Bounce_rate_global!E73 -> 4 | CT71: =CONCATENATE(Bounce_rate_organic!D73,Bounce_rate_organic!C73,Bounce_rate_organic!B73) -> 201804ITguest | CU71: =Bounce_rate_organic!E73 -> 6542 | CV71: =Bounce_rate_organic!F73 -> 15580 | CX71: =CONCATENATE(Organic_landing_cat_then_order!E72,Organic_landing_cat_then_order!C72,Organic_landing_cat_then_order!B72) -> 201804DAcorporate | CY71: =Organic_landing_cat_then_order!D72 -> /browse_catalogue/cat_l3/003001002 | CZ71: =IF(COUNTIF(CY71,"*/001*"),"Paper & Envelopes",IF(COUNTIF(CY71,"*/002*"),"Ink & Toners",IF(COUNTIF(CY71,"*/003*"),"Office Supplies",IF(COUNTIF(CY71,"*/004*"),"Technology",IF(COUNTIF(CY71,"*/005*"),"Furniture",IF(COUNTIF(CY71,"*/006*"),"Facilities Supplies",IF(COUNTIF(CY71,"*/007*"),"Category Specefics",IF(COUNTIF(CY71,"*/008*"),"Nespresso",0)))))))) -> Office Supplies | DA71: =Organic_landing_cat_then_order!F72 -> 3
A72: =CONCATENATE(General_data!C72,General_data!A72,General_data!B72) -> 201804MYSMB | B72: =General_data!D72 -> 8991 | C72: =General_data!E72 -> 2127 | D72: =General_data!F72/0.3 -> 186682.6615 | G72: =CONCATENATE(Trafic_Entrant!D72,Trafic_Entrant!A72,Trafic_Entrant!B72) -> 201804CHguest | H72: =IF(Trafic_Entrant!$C72=H$4,Trafic_Entrant!$E72,0) -> 0 | I72: =IF(Trafic_Entrant!$C72=I$4,Trafic_Entrant!$E72,0) -> 0 | J72: =IF(OR(Trafic_Entrant!$C72=$F$1,Trafic_Entrant!C72=$F$2,Trafic_Entrant!C72=$F$3,Trafic_Entrant!C72=$F$4),Trafic_Entrant!$E72,0) -> 16 | K72: =IF(Trafic_Entrant!$C72=K$4,Trafic_Entrant!$F72,0) -> 0 | L72: =IF(Trafic_Entrant!$C72=L$4,Trafic_Entrant!$F72,0) -> 0 | M72: =IF(OR(Trafic_Entrant!$C72=$F$1,Trafic_Entrant!C72=$F$2,Trafic_Entrant!C72=$F$3,Trafic_Entrant!C72=$F$4),Trafic_Entrant!$F72,0) -> 0 | N72: =IF(Trafic_Entrant!$C72=N$4,Trafic_Entrant!$G72/0.3,0) -> 0 | O72: =IF(Trafic_Entrant!$C72=O$4,Trafic_Entrant!$G72/0.3,0) -> 0 | P72: =IF(OR(Trafic_Entrant!$C72=$F$1,Trafic_Entrant!$C72=$F$2,Trafic_Entrant!$C72=$F$3,Trafic_Entrant!$C72=$F$4),Trafic_Entrant!$G72/0.3,0) -> 0 | S72: =CONCATENATE(Organic_by_landing_search!D72,Organic_by_landing_search!A72,Organic_by_landing_search!B72) -> 201804NOguest | T72: =Organic_by_landing_search!E72 -> 40 | W72: =CONCATENATE(Organic_by_landing_PDP!D72,Organic_by_landing_PDP!A72,Organic_by_landing_PDP!B72) -> 201804NLSMB | X72: =Organic_by_landing_PDP!E72 -> 129 | Z72: =CONCATENATE(Organic_by_landing_welcome!D72,Organic_by_landing_welcome!A72,Organic_by_landing_welcome!B72) -> 201804NLSMB | AA72: =Organic_by_landing_welcome!E72 -> 5937 | AC72: 201804LUrep | AD72: 4 | AE72: 0 | AF72: 0 | AG72: 0 | AH72: 0 | AI72: 0 | AJ72: 0 | AK72: 0 | AL72: 0 | AO72: =CONCATENATE(Organic_by_landing_category!D72,Organic_by_landing_category!A72,Organic_by_landing_category!B72) -> 201804AUcorporate | AP72: =Organic_by_landing_category!C72 -> /browse_catalogue/cat_l3/003002001 | AQ72: Office Supplies | AR72: =Organic_by_landing_category!E72 -> 4 | AT72: 201804PLcorporate | AU72: 40 | AV72: 16 | AW72: 4 | AX72: 285 | AY72: 16 | AZ72: 20 | BA72: 381 | BC72: =CONCATENATE(Organic_by_ldg_category_ATC!E68,Organic_by_ldg_category_ATC!C68,Organic_by_ldg_category_ATC!D68) -> 201804KRSMB | BD72: =Organic_by_ldg_category_ATC!B68 -> /browse_catalogue/cat_l3/003008003 | BE72: Office Supplies | BF72: =Organic_by_ldg_category_ATC!F68 -> 4 | BS72: =CONCATENATE(Organic_landing_category_bounce!E74,Organic_landing_category_bounce!B74,Organic_landing_category_bounce!D74) -> 201804AUcorporate | BT72: =Organic_landing_category_bounce!C74 -> /browse_catalogue/cat_l2/005004 | BU72: Furniture | BV72: =Organic_landing_category_bounce!F74 -> 0 | BW72: =Organic_landing_category_bounce!G74 -> 4 | BZ72: 201804PLguest | CA72: 164 | CB72: 96 | CC72: 4 | CD72: 806 | CE72: 201 | CF72: 88 | CG72: 324 | CH72: 236 | CI72: 12 | CJ72: 2157 | CK72: 313 | CL72: 164 | CM72: 1359 | CN72: 3206 | CP72: =CONCATENATE(Bounce_rate_global!C74:C74,Bounce_rate_global!A74,Bounce_rate_global!B74) -> 201804MYSMB | CQ72: =Bounce_rate_global!D74 -> 1273 | CR72: =Bounce_rate_global!E74 -> 8991 | CT72: =CONCATENATE(Bounce_rate_organic!D74,Bounce_rate_organic!C74,Bounce_rate_organic!B74) -> 201804KRguest | CU72: =Bounce_rate_organic!E74 -> 3520 | CV72: =Bounce_rate_organic!F74 -> 5776 | CX72: =CONCATENATE(Organic_landing_cat_then_order!E73,Organic_landing_cat_then_order!C73,Organic_landing_cat_then_order!B73) -> 201804DAcorporate | CY72: =Organic_landing_cat_then_order!D73 -> /browse_catalogue/cat_l3/003001003 | CZ72: Office Supplies | DA72: =Organic_landing_cat_then_order!F73 -> 3
A73: =CONCATENATE(General_data!C73,General_data!A73,General_data!B73) -> 201804MYcorporate | B73: =General_data!D73 -> 737 | C73: =General_data!E73 -> 177 | D73: =General_data!F73/0.3 -> 10884.92061 | G73: =CONCATENATE(Trafic_Entrant!D73,Trafic_Entrant!A73,Trafic_Entrant!B73) -> 201804CHrep | H73: =IF(Trafic_Entrant!$C73=H$4,Trafic_Entrant!$E73,0) -> 0 | I73: =IF(Trafic_Entrant!$C73=I$4,Trafic_Entrant!$E73,0) -> 109 | J73: =IF(OR(Trafic_Entrant!$C73=$F$1,Trafic_Entrant!C73=$F$2,Trafic_Entrant!C73=$F$3,Trafic_Entrant!C73=$F$4),Trafic_Entrant!$E73,0) -> 0 | K73: =IF(Trafic_Entrant!$C73=K$4,Trafic_Entrant!$F73,0) -> 0 | L73: =IF(Trafic_Entrant!$C73=L$4,Trafic_Entrant!$F73,0) -> 12 | M73: =IF(OR(Trafic_Entrant!$C73=$F$1,Trafic_Entrant!C73=$F$2,Trafic_Entrant!C73=$F$3,Trafic_Entrant!C73=$F$4),Trafic_Entrant!$F73,0) -> 0 | N73: =IF(Trafic_Entrant!$C73=N$4,Trafic_Entrant!$G73/0.3,0) -> 0 | O73: =IF(Trafic_Entrant!$C73=O$4,Trafic_Entrant!$G73/0.3,0) -> 1822.180887 | P73: =IF(OR(Trafic_Entrant!$C73=$F$1,Trafic_Entrant!$C73=$F$2,Trafic_Entrant!$C73=$F$3,Trafic_Entrant!$C73=$F$4),Trafic_Entrant!$G73/0.3,0) -> 0 | S73: =CONCATENATE(Organic_by_landing_search!D73,Organic_by_landing_search!A73,Organic_by_landing_search!B73) -> 201804NOrep | T73: =Organic_by_landing_search!E73 -> 64 | W73: =CONCATENATE(Organic_by_landing_PDP!D73,Organic_by_landing_PDP!A73,Organic_by_landing_PDP!B73) -> 201804NLcorporate | X73: =Organic_by_landing_PDP!E73 -> 157 | Z73: =CONCATENATE(Organic_by_landing_welcome!D73,Organic_by_landing_welcome!A73,Organic_by_landing_welcome!B73) -> 201804NLcorporate | AA73: =Organic_by_landing_welcome!E73 -> 5897 | AC73: 201804MYSMB | AD73: 4697 | AE73: 3589 | AF73: 705 | AG73: 1023 | AH73: 898 | AI73: 205 | AJ73: 84889.71932 | AK73: 84292.50092 | AL73: 17500.44122 | AO73: =CONCATENATE(Organic_by_landing_category!D73,Organic_by_landing_category!A73,Organic_by_landing_category!B73) -> 201804AUcorporate | AP73: =Organic_by_landing_category!C73 -> /browse_catalogue/cat_l3/003002006 | AQ73: Office Supplies | AR73: =Organic_by_landing_category!E73 -> 4 | AT73: 201804PLguest | AU73: 324 | AV73: 236 | AW73: 12 | AX73: 2157 | AY73: 313 | AZ73: 164 | BA73: 3206 | BC73: =CONCATENATE(Organic_by_ldg_category_ATC!E69,Organic_by_ldg_category_ATC!C69,Organic_by_ldg_category_ATC!D69) -> 201804LUSMB | BD73: =Organic_by_ldg_category_ATC!B69 -> /browse_catalogue/cat_l3/003010002 | BE73: Office Supplies | BF73: =Organic_by_ldg_category_ATC!F69 -> 4 | BS73: =CONCATENATE(Organic_landing_category_bounce!E75,Organic_landing_category_bounce!B75,Organic_landing_category_bounce!D75) -> 201804AUguest | BT73: =Organic_landing_category_bounce!C75 -> /browse_catalogue/cat_l2/005004 | BU73: Furniture | BV73: =Organic_landing_category_bounce!F75 -> 4 | BW73: =Organic_landing_category_bounce!G75 -> 4 | BZ73: 201804PLSMB | CA73: 12 | CB73: 4 | CC73: 0 | CD73: 28 | CE73: 0 | CF73: 0 | CG73: 44 | CH73: 16 | CI73: 8 | CJ73: 213 | CK73: 24 | CL73: 8 | CM73: 44 | CN73: 313 | CP73: =CONCATENATE(Bounce_rate_global!C75:C75,Bounce_rate_global!A75,Bounce_rate_global!B75) -> 201804MYcorporate | CQ73: =Bounce_rate_global!D75 -> 64 | CR73: =Bounce_rate_global!E75 -> 737 | CT73: =CONCATENATE(Bounce_rate_organic!D75,Bounce_rate_organic!C75,Bounce_rate_organic!B75) -> 201804LUguest | CU73: =Bounce_rate_organic!E75 -> 1740 | CV73: =Bounce_rate_organic!F75 -> 3657 | CX73: =CONCATENATE(Organic_landing_cat_then_order!E74,Organic_landing_cat_then_order!C74,Organic_landing_cat_then_order!B74) -> 201804DAcorporate | CY73: =Organic_landing_cat_then_order!D74 -> /browse_catalogue/cat_l3/003001006 | CZ73: Office Supplies | DA73: =Organic_landing_cat_then_order!F74 -> 6
